{"text_format":"1","workbook":"xlsx","n_sheets":10,"sheets":["Language-Sprachen","Attachment 2 PPA Agreement","Attachment 3 SA-Part","Attachment 3 SA-Process","Attachment 4 Cover-PPA","Attachment 4 PPA-Evaluation","Attachment 4 PPA-Evidence","Attachment 4 Process-Evidence","Attachment 5 Software","Attachment 6 Part history"],"not_rendered":{"charts":0,"images":2,"macros":1,"external_links":0,"defined_names":390,"comments":2,"pivot_tables":0},"unopened":[],"bounds":{"document_bytes":16777216,"sheet_cells":100000,"rows_first":2000,"rows_last":500,"rows_between":2000,"halvings":0,"cell_chars":16384,"cell_head_chars":4096},"cells_cut":0,"cells_raw":0,"read":"whole","date_system":"1900"}

{"sheet":"Language-Sprachen","index":0,"n_rows":525,"n_cols":15,"rows_kept":525,"cut":false,"hidden":true,"merged":[]}
["GERMAN","ENGLISH","DUTCH","HUNGARIAN","ITALIAN","SPANISH","CHINESE","Bereich/Blattname",null,null,null,null,"Sprachen",{"$f":"VLOOKUP(O1,M2:N13,2,FALSE)","v":1},"ENGLISH"]
["Sprache wählen:","Select language:","Selecteer een taal:","Válassz nyelvet:",null,null,null,"Kopf",null,null,null,{"$f":"OFFSET('Language-Sprachen'!$A$125,,'Language-Sprachen'!$N$1)","v":"Yes"},{"$f":"'Language-Sprachen'!A1","v":"GERMAN"},0]
["Abstimmung zum PPF-Verfahren","PPA Agreement",null,null,null,null,null,"SCM / Seite 1",null,null,null,{"$f":"OFFSET('Language-Sprachen'!$A$126,,'Language-Sprachen'!$N$1)","v":"No"},{"$f":"'Language-Sprachen'!B1","v":"ENGLISH"},1]
["Sachnummer","Part Number",null,null,null,null,null,"SCM / Seite 1",null,null,null,{"$f":"OFFSET('Language-Sprachen'!$A$489,,'Language-Sprachen'!$N$1)","v":"Special archieving requirements"},{"$f":"'Language-Sprachen'!C1","v":"DUTCH"},2]
["Organisation","Organization",null,null,null,null,null,"SCM / Seite 1",null,null,null,"-","HUNGARIAN",3]
["Version/Datum","Version/ Date",null,null,null,null,null,"SCM / Seite 1",null,null,null,{"$f":"OFFSET('Language-Sprachen'!$A$490,,'Language-Sprachen'!$N$1)","v":"Requirements met"},{"$f":"'Language-Sprachen'!E1","v":"ITALIAN"},4]
["Kontaktinformationen","Contact information",null,null,null,null,null,"SCM / Seite 1",null,null,null,{"$f":"OFFSET('Language-Sprachen'!$A$491,,'Language-Sprachen'!$N$1)","v":"Requirements not fully met"},{"$f":"'Language-Sprachen'!F1","v":"SPANISH"},5]
["Angaben zur Organisation","Information about the organization",null,null,null,null,null,"SCM / Seite 1",null,null,null,{"$f":"OFFSET('Language-Sprachen'!$A$492,,'Language-Sprachen'!$N$1)","v":"Requirements not met"},{"$f":"'Language-Sprachen'!G1","v":"CHINESE"},6]
["Angaben zum Kunden","Information about the customer",null,null,null,null,null,"SCM / Seite 1",null,null,null,{"$f":"OFFSET('Language-Sprachen'!$A$493,,'Language-Sprachen'!$N$1)","v":"Entry incorrect, please check"}]
["Name der Organisation","Name of organization",null,null,null,null,null,"SCM / Seite 1",null,null,null,{"$f":"OFFSET('Language-Sprachen'!$A$495,,'Language-Sprachen'!$N$1)","v":"Part with special archiving requirement"}]
["Produktionsstandort","Production location",null,null,null,null,null,"SCM / Seite 1",null,null,null,"-"]
["Adresse","Address",null,null,null,null,null,"SCM / Seite 1"]
["Lieferstandort","Delivery location",null,null,null,null,null,"SCM / Seite 1"]
["Lieferantennummer/","Supplier number/",null,null,null,null,null,"SCM / Seite 1"]
["DUNS-Code","DUNS-Code:",null,null,null,null,null,"SCM / Seite 1"]
["Berichtsnummer","Report number",null,null,null,null,null,"SCM / Seite 1"]
["Berichtsversion","Report version",null,null,null,null,null,"SCM / Seite 1"]
["Name des Kunden","Name of customer",null,null,null,null,null,"SCM / Seite 1"]
["Empfängerstandort","Recipient location",null,null,null,null,null,"SCM / Seite 1"]
["Abladestelle","Unloading point",null,null,null,null,null,"SCM / Seite 1"]
["Bestellnr. PPF-Muster","Order Number PPA sample",null,null,null,null,null,"SCM / Seite 1"]
["Ansprechpartner","Contact person",null,null,null,null,null,"SCM / Seite 1"]
["Kunde","Customer",null,null,null,null,null,"SCM / Seite 1"]
["Organisation","Organization",null,null,null,null,null,"SCM / Seite 1"]
["Name","Name",null,null,null,null,null,"SCM / Seite 1"]
["Telefon","Telephone",null,null,null,null,null,"SCM / Seite 1"]
["E-Mail","E-mail",null,null,null,null,null,"SCM / Seite 1"]
["Qualitäts-management","Quality\nmanagement",null,null,null,null,null,"SCM / Seite 1"]
["Einkauf    \n(optional)","Purchasing\n(optional)",null,null,null,null,null,"SCM / Seite 1"]
["Projektleiter\n(optional)","Project manager\n(optional)",null,null,null,null,null,"SCM / Seite 1"]
["Entwicklung\n(optional)","Engineering\n(optional)",null,null,null,null,null,"SCM / Seite 1"]
["Fertigung\n(optional)","Production\n(optional)",null,null,null,null,null,"SCM / Seite 1"]
["Messtechnik\n(optional)","Measuring department\n(optional)",null,null,null,null,null,"SCM / Seite 1"]
["Werkstofftechnik\n(optional)","Material department\n(optional)",null,null,null,null,null,"SCM / Seite 1"]
["PPF-Verantwortlicher\n(optional)","Sampling representative\n(optional)",null,null,null,null,null,"SCM / Seite 1"]
["Bauteilinformationen","Component Information",null,null,null,null,null,"SCM / Seite 2"]
["Benennung","Name",null,null,null,null,null,"SCM / Seite 2"]
["Sachnummer","Part Number",null,null,null,null,null,"SCM / Seite 2"]
["Zeichnungsnummer","Drawing number",null,null,null,null,null,"SCM / Seite 2"]
["Kundenspezifische Teilestände (z.B. TGS/ F-Stand/ Q-Stand,…)","Customer-specific part statuses (e.g. part generation version / production status / quality status etc.)",null,null,null,null,null,"SCM / Seite 2"]
["Besondere Merkmale (Sicherheit, Zulassung, Funktion)","Special Characteristics (safety, legal, function)",null,null,null,null,null,"SCM / Seite 2"]
["Besondere Archivierungspflicht","Part with special archiving requirement",null,null,null,null,null,"SCM / Seite 2"]
["Teilebündelung / Produktfamilien","Part grouping / Product families",null,null,null,null,null,"SCM / Seite 2"]
["PPF-Verfahren für Produktfamilie","PPA procedure for product family",null,null,null,null,null,"SCM / Seite 2"]
["Benennung Kunde","Part name customer",null,null,null,null,null,"SCM / Seite 2"]
["Varianten-PPF","Variant PPA",null,null,null,null,null,"SCM / Seite 2"]
["Varianten-PPF zu bereits vorgelegtem PPF-Verfahren","Variant PPA for PPA procedure already submitted",null,null,null,null,null,"SCM / Seite 2"]
["Referenz- Berichtsnummer Organisation","Reference report number of organization",null,null,null,null,null,"SCM / Seite 2"]
["Datum","Date",null,null,null,null,null,"SCM / Seite 2"]
["Referenz- Berichtsnummer Kunde","Reference report number of customer",null,null,null,null,null,"SCM / Seite 2"]
["Benennung Organisation","Part name organization",null,null,null,null,null,"SCM / Seite 2"]
["Setzteile","Directed parts",null,null,null,null,null,"SCM / Seite 2"]
["Setzteile mit Q-Verantwortung der Organisation","Directed parts with Q-responsibility of organization",null,null,null,null,null,"SCM / Seite 2"]
["Setzteile mit Q-Verantwortung des Kunden","Directed parts with Q-responsibility of customer",null,null,null,null,null,"SCM / Seite 2"]
["Grund der Berichterstellung","Reason for report creation",null,null,null,null,null,"SCM / Seite 3"]
["Grund der Berichterstellung","Reason for report creation",null,null,null,null,null,"SCM / Seite 3"]
["Auslöser PPF-Verfahren","Trigger of PPA procedure",null,null,null,null,null,"SCM / Seite 3"]
["Bericht Produktionsprozess - und Produktfreigabe (PPF)","Report on production process and product approval (PPA)",null,null,null,null,null,"SCM / Seite 3"]
["Bericht sonstige Muster","Report on other samples",null,null,null,null,null,"SCM / Seite 3"]
["Requalifikation","Requalification",null,null,null,null,null,"SCM / Seite 3"]
["Übermittlung der PPF-Unterlagen","Submission of PPA documents",null,null,null,null,null,"SCM / Seite 3"]
["PDF-Format","PDF-format",null,null,null,null,null,"SCM / Seite 3"]
["Portal","Portal",null,null,null,null,null,"SCM / Seite 3"]
["Sonstiges","Other",null,null,null,null,null,"SCM / Seite 3"]
["Original","Original",null,null,null,null,null,"SCM / Seite 3"]
["Papierform","Paper form",null,null,null,null,null,"SCM / Seite 3"]
["Mustervorstellung","Sample presentation",null,null,null,null,null,"SCM / Seite 3"]
["Neuteil","New part",null,null,null,null,null,"SCM / Seite 3"]
["Änderungen am Produkt","Changes to product",null,null,null,null,null,"SCM / Seite 3"]
["Änderungen am Produktionsprozess","Changes to production process",null,null,null,null,null,"SCM / Seite 3"]
["Änderung in der Lieferkette","Change to supply chain",null,null,null,null,null,"SCM / Seite 3"]
["Wiedernutzung > 12 Monate Stillstand","Re-use > 12 month standstill",null,null,null,null,null,"SCM / Seite 3"]
["Aktualisierte PPF-Dokumentation","Updated PPA documentation",null,null,null,null,null,"SCM / Seite 3"]
["Übermittlungsabsprache des PPF-Verfahrens","PPA procedure submission language",null,null,null,null,null,"SCM / Seite 3"]
["gestuftes PPF-Verfahren (Bitte vereinbaren, die Termine der einzelnen PPF-Stufen angeben und die notwendigen Dokumente je Vorgang planen)","Step PPA procedure (please arrange below, specify the dates of the individual PPA steps, and plan the necessary documents for each operation)",null,null,null,null,null,"SCM / Seite 3"]
["Begründung des gestuften PPF-Verfahrens","Reason for stepped PPA procedure",null,null,null,null,null,"SCM / Seite 3"]
["Bestätigung Organisation:","Confirmation of organization:",null,null,null,null,null,"SCM / Seite 3"]
["Die vorgestellten Muster wurden bezüglich der nachzuweisenden Merkmale mit serienmäßigen Betriebsmitteln unter serienmäßigen Bedingungen am Serienstandort hergestellt bzw. bei \"sonstigen Mustern\" gemäß vereinbarung zwischen Organisation und Kunde (als Anlage beigefügt). Bezüglich dieser Merkmale sind keine Änderungen bekannt bzw. geplant. Die bei unseren Prüfungen und der Freigabe erzielten Ergebnisse können für eine aktualisierte PPF-Dokumentation übernommen werden. Sollten trotzdem Änderungen am Teil und/oder Produktionsprozess notwendig sein, werden wir dies bei der aktualisierten PPF-Dokumentation anzeigen.","With regards to the features to be verified, the samples presented were produced with serial equipment under serial conditions, at the series production location or, for \"other samples\", according to the agreement between the organization and the customer (agreement to be attached). No changes are known or planned regarding these features. The results obtained in our tests can be re-used for an updated PPA documentation. Should changes to the part and/ or production process still be necesarry, we will indicate this in the updated PPA documentation.",null,null,null,null,null,"SCM / Seite 3"]
["Terminabstimmung","Scheduling",null,null,null,null,null,"SCM / Seite 3"]
["PPF-Termin","PPA date",null,null,null,null,null,"SCM / Seite 3"]
["Gestuftes PPF-Verfahren","Stepped PPA procedure",null,null,null,null,null,"SCM / Seite 3"]
["PPF-Verfahren","PPA procedure",null,null,null,null,null,"SCM / Seite 3"]
["Variante","Variants",null,null,null,null,null,"SCM / Seite 3"]
["Stufe 1","Step 1",null,null,null,null,null,"SCM / Seite 3"]
["Stufe 2","Step 2",null,null,null,null,null,"SCM / Seite 3"]
["Stufe 3","Step 3",null,null,null,null,null,"SCM / Seite 3"]
["Stufe 4","Step 4",null,null,null,null,null,"SCM / Seite 3"]
["IMDS-ID Kunde","IMDS ID of customer",null,null,null,null,null,"SCM / Seite 3"]
["Endtermin des PPF-Verfahrens","PPA procedure due date",null,null,null,null,null,"SCM / Seite 3"]
["Bereitstellung IMDS","IMDS provision",null,null,null,null,null,"SCM / Seite 3"]
["Der Kunde verzichtet auf die Vorlage von Dokumenten.\nDurchführung und Dokumentation des PPF-Verfahrens erfolgen ausschließlich innerhalb der Organisation.\nDer Kunde schließt sich der Freigabeempfehlung der Organisation an.","The customer waives the submission of documents.\nThe implementation and documentation of the PPA procedure take place exclusively within the organization.\nThe customer follows the approval recommendation of the organization.",null,null,null,null,null,"SCM / Seite 3"]
["Unterschrift","Signature",null,null,null,null,null,"SCM / Seite 3"]
["Mitgeltende Unterlagen zum PPF-Verfahren","Applicable documents for the PPA procedure",null,null,null,null,null,"SCM / Seite 4"]
["Anwendung","Application",null,null,null,null,null,"SCM / Seite 4"]
["Unterlagen","Documents",null,null,null,null,null,"SCM / Seite 4"]
["Dokumenten-nummer","Document number",null,null,null,null,null,"SCM / Seite 4"]
["Ausgabe/\nStand/\nDatum","Issue/\nStatus/\nDate",null,null,null,null,null,"SCM / Seite 4"]
["Bemerkung/Beschreibung","Remark/Description",null,null,null,null,null,"SCM / Seite 4"]
["Technische Kundenunterlagen","Technical customer documents",null,null,null,null,null,"SCM / Seite 4"]
["Zonenfestlegung für optische Beurteilung","Zone definition for optical assessment",null,null,null,null,null,"SCM / Seite 4"]
["Festlegung Grenzmuster","Definition of boundary samples",null,null,null,null,null,"SCM / Seite 4"]
["Festlegung Porenklassen","Definition of pore classes",null,null,null,null,null,"SCM / Seite 4"]
["Abnahmerichtlinien","Acceptance quidelines",null,null,null,null,null,"SCM / Seite 4"]
["Prüfvorschriften","Test regulations",null,null,null,null,null,"SCM / Seite 4"]
["Normen","Standards",null,null,null,null,null,"SCM / Seite 4"]
["Liste mit Terminen für Farb/ Varianten-PPF","List with dates for color / variant PPAs",null,null,null,null,null,"SCM / Seite 4"]
["Varianten","Variants",null,null,null,null,null,"SCM / Seite 4"]
["Inhalte","Contents",null,null,null,null,null,"SCM / Seite 4"]
["Beschreibung","Description",null,null,null,null,null,"SCM / Seite 4"]
["Berücksichtigung im Rahmen des PPF-Verfahrens","Consideration in the scope of the PPA procedure",null,null,null,null,null,"SCM / Seite 4"]
["Sind Ausweichmaschinen oder -prozesse geplant?","Are deviating machines or processes planned?",null,null,null,null,null,"SCM / Seite 4"]
["Sind Alternativ Lieferanten vorgesehen?","Are alternative deliveries provided for?",null,null,null,null,null,"SCM / Seite 4"]
["Abstimmung PPF-Inhalt und Vorlage","Agreement on PPA content and submission",null,null,null,null,null,"SCM / Seite 5"]
["Ordnungsnummer","Order number",null,null,null,null,null,"SCM / Seite 5"]
["Prüfgebiet\n(sofern für das Produkt zutreffend)","Test area\n(if applicable for the product)",null,null,null,null,null,"SCM / Seite 5"]
["Anforderung vorhanden ","Requirement existing",null,null,null,null,null,"SCM / Seite 5"]
["Vorlage erforderlich","Submision required",null,null,null,null,null,"SCM / Seite 5"]
["PPF-Verfahren","PPA procedure",null,null,null,null,null,"SCM / Seite 5"]
["Varianten-PPF","Variant PPA",null,null,null,null,null,"SCM / Seite 5"]
["Schritt bei gestuftem\nPPV-Verfahren","Step for stepped PPA procedure",null,null,null,null,null,"SCM / Seite 5"]
["Bestandteil Requalifikation","Part of requalification",null,null,null,null,null,"SCM / Seite 5"]
["Bemerkung","Remark",null,null,null,null,null,"SCM / Seite 5"]
["PPF-Deckblatt/PPF-Bewertung","PPA cover sheet/ evaluation",null,null,null,null,null,"SCM / Seite 5"]
["Selbstbeurteilung Produkt, Produktionsprozess und ggf. Software","Self-assessment for product, process, SW (if appl.)",null,null,null,null,null,"SCM / Seite 5"]
["Ja","Yes",null,null,null,null,null,"SCM / Seite 5"]
["Nein","No",null,null,null,null,null,"SCM / Seite 5"]
["Hardwarefreigabe erforderlich","Hardware approval required",null,null,null,null,null,"SCM / Seite 5"]
["Nachweise zur Produktentwicklung","Deliverables of product development",null,null,null,null,null,"SCM / Seite 5"]
["Technische Spezifikationen","Technical specifications",null,null,null,null,null,"SCM / Seite 5"]
["Genehmigte Konstruktionsänderungen","Approved design changes",null,null,null,null,null,"SCM / Seite 5"]
["Konstruktions-, Entwicklungsfreigaben der Organisation bei Entwicklungsverantwortung entsprechend Vereinbarung","Design, engineering approvals by organization in case of development responsibility as per agreement",null,null,null,null,null,"SCM / Seite 5"]
["Materialdaten per IMDS","Material data via IMDS",null,null,null,null,null,"SCM / Seite 5"]
["Design-FMEA","Design FMEA",null,null,null,null,null,"SCM / Seite 5"]
["Nachweise zur Produktionsprozessentwicklung","Deliverables of production process development",null,null,null,null,null,"SCM / Seite 5"]
["Prozessablaufdiagramm","Process flow chart",null,null,null,null,null,"SCM / Seite 5"]
["Prozess-FMEA","Process FMEA",null,null,null,null,null,"SCM / Seite 5"]
["Produktionslenkungsplan","Control plan (CP)",null,null,null,null,null,"SCM / Seite 5"]
["Nachweise zur Validierung des Produktes","Deliverables of the validation of the product",null,null,null,null,null,"SCM / Seite 5"]
["Anzahl Teile pro Nest/Form","Number of parts per cavity/mold",null,null,null,null,null,"SCM / Seite 5"]
["Geometrie, Maß","Geometry, dimensions",null,null,null,null,null,"SCM / Seite 5"]
["Rohteilmessung","Raw part measurement",null,null,null,null,null,"SCM / Seite 5"]
["Einzelteilmessung","single part measurement",null,null,null,null,null,"SCM / Seite 5"]
["Standardmessbericht (alle Zeichnungsmerkmale)","Standard measurement report (all drawing characteristics)",null,null,null,null,null,"SCM / Seite 5"]
["Standardlehrenbericht","Standard gage report",null,null,null,null,null,"SCM / Seite 5"]
["3D-Datensatzmessung","3D record measurement",null,null,null,null,null,"SCM / Seite 5"]
["Schnitte","Sections",null,null,null,null,null,"SCM / Seite 5"]
["Werkstoff (Festigkeit, physikalische Eigenschaften, …)","Material (strength, physical properties, etc.)",null,null,null,null,null,"SCM / Seite 5"]
["Nachweis Einhaltung werkstoffspezifischer Kundennormen","Evidence of compliance with material related customer standards",null,null,null,null,null,"SCM / Seite 5"]
["Probeentnahmeplan","Sample extraction plan",null,null,null,null,null,"SCM / Seite 5"]
["Metallographie","Metallography",null,null,null,null,null,"SCM / Seite 5"]
["Chemische Analysen","Chemical analyses",null,null,null,null,null,"SCM / Seite 5"]
["Freigabe Einzelteile","Single part approval",null,null,null,null,null,"SCM / Seite 5"]
["Freigabe Hilfs- und Betriebsstoffe","Auxiliary and operating material approval",null,null,null,null,null,"SCM / Seite 5"]
["Mechanische Kennwerte","Mechanical measures",null,null,null,null,null,"SCM / Seite 5"]
["Freigabe Rohteile","Raw part approval",null,null,null,null,null,"SCM / Seite 5"]
["Korrosionsprüfung","Corrosion test",null,null,null,null,null,"SCM / Seite 5"]
["Funktionsprüfung gemäß KLH/Spezifikation/\nFunktionsvorschriften","Functional test acc. to CRS/specification/functional regulations",null,null,null,null,null,"SCM / Seite 6"]
["Haptikprüfung","Haptics",null,null,null,null,null,"SCM / Seite 6"]
["Akustikprüfung","Acoustic",null,null,null,null,null,"SCM / Seite 6"]
["Geruchsprüfung","Odor",null,null,null,null,null,"SCM / Seite 6"]
["Aussehen","Appearance",null,null,null,null,null,"SCM / Seite 6"]
["Oberflächenforderung","Surface requirement",null,null,null,null,null,"SCM / Seite 6"]
["Farbmessung und visuelle Eigenbeurteilung","Color measurement and visual self-assessment",null,null,null,null,null,"SCM / Seite 6"]
["Farbabhängige Eigenschaften","Color-dependent properties",null,null,null,null,null,"SCM / Seite 6"]
["Technische  Sauberkeit","Technical cleanliness",null,null,null,null,null,"SCM / Seite 6"]
["Zuverlässigkeit","Reliability",null,null,null,null,null,"SCM / Seite 6"]
["Beständigkeit gegenüber Elektrostatic Discharge (ESD)","Resistance to electrostatic discharge (ESD)",null,null,null,null,null,"SCM / Seite 6"]
["Elektrische Sicherheit/Hochvolt-Sicherheit","Electrical safety / high-voltage safety",null,null,null,null,null,"SCM / Seite 6"]
["Elektromagnetische Verträglichkeit (EMV)","Electromagnetic compatibility (EMC)",null,null,null,null,null,"SCM / Seite 6"]
["Nachweise zur Validierung Produktionsprozesses","Deliverables of the validation of the production process",null,null,null,null,null,"SCM / Seite 6"]
["Absicherung Besonderer Merkmale gemäß technischen Spezifikationen und vereinbarten Merkmalen (z.B. Poka Yoke, 100%-Prüfung, Prozessfähigkeiten, …)","Assurance of special characteristics according to technical specifications and agreed characteristics (e.g. poka-yoke, 100% inspection, process capabilities, etc.)",null,null,null,null,null,"SCM / Seite 6"]
["Laborqualifizierung","Laboratory qualification",null,null,null,null,null,"SCM / Seite 6"]
["Muster inkl. Fertigungsdokumentation","Sample including production documentation",null,null,null,null,null,"SCM / Seite 6"]
["Referenzmuster","Master sample",null,null,null,null,null,"SCM / Seite 6"]
["Produktionskapazität","Production capacity",null,null,null,null,null,"SCM / Seite 6"]
["Werkzeuge (mit Stückzahl/ Anzahl Nester und Information zum Werkzeugkonzept)","Tools (with quantity/number of cavities and information about tool concept)",null,null,null,null,null,"SCM / Seite 6"]
["Generelle Nachweise","General deliverables",null,null,null,null,null,"SCM / Seite 6"]
["Nachweise zur gesetzlicher Anforderungen","Evidence of compliance with statutory requirements",null,null,null,null,null,"SCM / Seite 6"]
["PPF-Status Lieferkette","PPA status of supply chain",null,null,null,null,null,"SCM / Seite 6"]
["Prüfmittelliste Produkt und Produktionsprozess","Test equipment list for product and production process",null,null,null,null,null,"SCM / Seite 6"]
["Prüf-/Messprotokolle bzw. Abnahmeprotokolle für Lehren","Test/measurement reports or acceptance test reports for gages",null,null,null,null,null,"SCM / Seite 6"]
["Prüfmittelfähigkeitsnachweis Produkt u. Produktionsprozess","Measurement equipment analysis studies product and production process",null,null,null,null,null,"SCM / Seite 6"]
["Teilelebenslauf","Part history",null,null,null,null,null,"SCM / Seite 7"]
["Eignungsnachweis der eingesetzten Ladungsträger inkl. Lagerung","Evidence of suitability of the employ-ed load carries including storage",null,null,null,null,null,"SCM / Seite 7"]
["Dokumentation der Verein-barungen zum Befundungs- und Analyseprozess\n- Reklamationsbearbeitung (z.B. 8D)\n- Schadteilanalyse Teil","Documention of agreements regarding the diagnosis and analysis process\n- Complaints handling (e.g. 8D)\n- Field failure analysis",null,null,null,null,null,"SCM / Seite 7"]
["Dokumentation der Vereinbarungen zur Requalifikation","Documentation of the requalification agreement",null,null,null,null,null,"SCM / Seite 7"]
["Nachweise zur Software","Deliverables for software",null,null,null,null,null,"SCM / Seite 7"]
["Softwarefreigabe erforderlich","Software approval required",null,null,null,null,null,"SCM / Seite 7"]
["SW-Einsatzfreigabe (z.B. Anlage 5 \"Deckblatt PPF Software\")","Software release (e.g. Appendix 5 \"Cover sheet for PPA software\")",null,null,null,null,null,"SCM / Seite 7"]
["Festlegung des Kontextes (\"Scope\") des zu liefernden Softwareproduktes","Definition of scope of the software product",null,null,null,null,null,"SCM / Seite 7"]
["Referenz zu vertraglich festgelegten Qualitätsanfoderungen (z.B. Coding Guidelines, Codemetriken, Testabdeckung)","Reference to contractually stipulated quality requirements",null,null,null,null,null,"SCM / Seite 7"]
["Dokumentation der technischen SW-Spezifikationen","Documentation of technical SW specifications",null,null,null,null,null,"SCM / Seite 7"]
["Nachweis Umsetzung der Anfoderungen 6.3 u. 6.4","Implementation of the requirements from 6.3 and 6.4 espacially the Special",null,null,null,null,null,"SCM / Seite 7"]
["Dokumentation über FOSS (Free-and-Open-Source-Software)","Documentation of FOSS (free and open-source software)",null,null,null,null,null,"SCM / Seite 7"]
["Liste bekannter Fehler","List of known errors",null,null,null,null,null,"SCM / Seite 7"]
["Dokumentation der während der gesamten Projektlaufzeit eingesetzten Entwicklungswerkzeuge","Documentation of development tools",null,null,null,null,null,"SCM / Seite 7"]
["Dokumentation der während der gesamten Projektlaufzeit eingesetzten Testwerkzeuge","Documentation of testing tools",null,null,null,null,null,"SCM / Seite 7"]
["Dokumentation des Versionsmanagements (Baseline, Konfigurationen, Änderungshistorie)","Documentation of version management",null,null,null,null,null,"SCM / Seite 7"]
["Nachweis einer Prozessbewertung (z.B. Automitive Spice)","Documentation of a process evaluation (e.g. VDA Automotive Spice)",null,null,null,null,null,"SCM / Seite 7"]
["Produktionsprozessabnahme erforderlich","Production process acceptance required",null,null,null,null,null,"SCM / Seite 7"]
["Prüfungen durch Kunde","Tests by customer",null,null,null,null,null,"SCM / Seite 8"]
["Anzahl Musterteile","Number of sample parts",null,null,null,null,null,"SCM / Seite 8"]
["Dauer in Arbeitstagen","Duration in working days",null,null,null,null,null,"SCM / Seite 8"]
["Ansprechpartner Kunde","Customer contact",null,null,null,null,null,"SCM / Seite 8"]
["Kundenteilnahme bei Prozessabnahme gewünscht","Customer participation desired for process acceptance",null,null,null,null,null,"SCM / Seite 8"]
["Vereinbarte Vorgehensweise (z.B. Dauer bzw. Stückzahl des Tests)","Agreed procedure (e.g. duration, test quantity)",null,null,null,null,null,"SCM / Seite 8"]
["Prüfungen durch Kunde","Tests by customer",null,null,null,null,null,"SCM / Seite 8"]
["Maß","Dimension",null,null,null,null,null,"SCM / Seite 8"]
["Funktion","Function",null,null,null,null,null,"SCM / Seite 8"]
["Verbaubarkeit","customer acceptance granted",null,null,null,null,null,"SCM / Seite 8"]
["Werkstoff","Material",null,null,null,null,null,"SCM / Seite 8"]
["Korrosion","Corrosion",null,null,null,null,null,"SCM / Seite 8"]
["Lacktechnik","Paint technology",null,null,null,null,null,"SCM / Seite 8"]
["Farbton","Color",null,null,null,null,null,"SCM / Seite 8"]
["Oberfläche, Narbung","surface, graining",null,null,null,null,null,"SCM / Seite 8"]
["Prozess","Process",null,null,null,null,null,"SCM / Seite 8"]
["Zur Verfügung zu stellenden Schnittstellenbauteile und Hilfsmittel","Interface components and auxiliary materials to be made available",null,null,null,null,null,"SCM / Seite 8"]
["Von der Organisation zur Verfügung zu stellen","To be provided by the organization",null,null,null,null,null,"SCM / Seite 8"]
["Bereitstellungs-termin","Date of provision",null,null,null,null,null,"SCM / Seite 8"]
["Bereitstellungsdauer","Duration of provision",null,null,null,null,null,"SCM / Seite 8"]
["Kommentar","Comment",null,null,null,null,null,"SCM / Seite 8"]
["Vom Kunden zur Verfügung zu stellen","To be provided by the customer",null,null,null,null,null,"SCM / Seite 8"]
["Abstimmung Requalifikation","Alignment \"Requalification\" (L.I. & funct. test)",null,null,null,null,null,"SCM / Seite 9"]
["Requalifikationsintervall","Intervall \"Requalification\" (L.I. & funct. test)",null,null,null,null,null,"SCM / Seite 9"]
["Weitergabe an den Kunden","Forward to customer",null,null,null,null,null,"SCM / Seite 9"]
["Nur Nachweis","Evidence only",null,null,null,null,null,"SCM / Seite 9"]
["Dokumentation","Documentation",null,null,null,null,null,"SCM / Seite 9"]
["Abteilung","Department",null,null,null,null,null,"SCM / Seite 9"]
["Liegen bei der Requalifikation Abweichungen zu den Spezifikationen vor, ist der Kunde in jedem Fall zu informieren.","If any deviations from the specifications were detected during layout inspection and functional testing, the customer must be informed any case.",null,null,null,null,null,"SCM / Seite 9"]
["Kommentar Organisation","Comment of organization",null,null,null,null,null,"SCM / Seite 9"]
["Kommentar Kunde","Comment of customer",null,null,null,null,null,"SCM / Seite 9"]
["Bestätigung Kunde","Conformation of customer",null,null,null,null,null,"SCM / Seite 9"]
["Selbtsbeurteilung\nProdukt","Self-assessment product",null,null,null,null,null,"SA-Part"]
["Angaben zu Mustern","Information about samples",null,null,null,null,null,"SA-Part"]
["Lieferscheinnummer","Delivery note number",null,null,null,null,null,"SA-Part"]
["Liefermenge","Delivery quantity",null,null,null,null,null,"SA-Part"]
["Chargennummer","Batch number",null,null,null,null,null,"SA-Part"]
["Mustergewicht [kg]","Sample weight [kg]",null,null,null,null,null,"SA-Part"]
["Hardwarestand","Hardware version",null,null,null,null,null,"SA-Part"]
["Diagnosesatand","Diagnosis status",null,null,null,null,null,"SA-Part"]
["Softwarestand","Software version",null,null,null,null,null,"SA-Part"]
["Kennung/ DUNS","Identification/ DUNS",null,null,null,null,null,"SA-Part"]
["Kategorie","Category",null,null,null,null,null,"SA-Part"]
["Funktion/EMV/\nESD","Function/EMC/\nESD",null,null,null,null,null,"SA-Part"]
["Oberfläche/\nStruktur Farbe/Narbung","Surface/\nstructure color/graining",null,null,null,null,null,"SA-Part"]
["PPF-Status Lieferkette","PPA status of supply chain",null,null,null,null,null,"SA-Part"]
["Verbaubarkeit (beim Kunden)","Assembly capability (at customer site)",null,null,null,null,null,"SA-Part"]
["Selbstbeurteilung Organisation","Self-assessment of organization",null,null,null,null,null,"SA-Part"]
["Anforderungen erfüllt","Requirements met",null,null,null,null,null,"SA-Part"]
["Maßlich i.O., keine Nacharbeit","Dimensionally OK\nno rework",null,null,null,null,null,"SA-Part"]
["Serienwerkstoff gemäß Spezifikation","Series material acc. to specification",null,null,null,null,null,"SA-Part"]
["Funktion erfüllt, entspricht Spezifikation","Function fulfilled\nmeets specification",null,null,null,null,null,"SA-Part"]
["i.O.","OK",null,null,null,null,null,"SA-Part"]
["Kunden-/Serientauglich (Anforderungen erfüllt oder Abweichungen nach Risikoanalyse akzeptiert)","Customer-ready\n(requirements met or deviations accepted after risk analysis)",null,null,null,null,null,"SA-Part"]
["Verbaubar ohne Mehraufwand","Capable for assembly with no additional expenditure",null,null,null,null,null,"SA-Part"]
["Anforderungen nicht vollständig erfüllt","Requirements not fully met",null,null,null,null,null,"SA-Part"]
["Maßlich i.O., mit Nacharbeit oder unkritische n.i.O.","Dimensionally OK\nwith rework or uncritical values NOK",null,null,null,null,null,"SA-Part"]
["Kein Serienwerkstoff oder andere Verarbeitung, Kundenakzeptanz liegt vor","No series material or other processing customer acceptance granted",null,null,null,null,null,"SA-Part"]
["Abweichung zur Spezifikation, Kundenakzeptanz liegt vor","Deviation from specification customer acceptance granted",null,null,null,null,null,"SA-Part"]
["Entspricht nicht dem Serienstand, Kundenakzeptanz liegt vor","Does not correspond to series status, customer acceptance granted",null,null,null,null,null,"SA-Part"]
["Kunden-/Serientauglich nach Risikobewertung, aktualisierte PPF-Dokumentation erforderlich","Customer-ready after risk assessment \nUpdated PPA documentation required",null,null,null,null,null,"SA-Part"]
["Verbaubar mit Mehraufwand, Kundenakzeptanz liegt vor","Capable for assembly with additional expenditure customer acceptance granted",null,null,null,null,null,"SA-Part"]
["Anforderungen nicht erfüllt","Requirements not met",null,null,null,null,null,"SA-Part"]
["Maßlich n.i.O.","Dimensionally NOK",null,null,null,null,null,"SA-Part"]
["Kein Serienwerkstoff, Spezifikation nicht erfüllt/nicht nachgewiesen","No series material specification not met/not verified.",null,null,null,null,null,"SA-Part"]
["Funktion n.i.O. bzw. Funktion nicht nachgwiesen,  Spezifikation nicht erfüllt","Funktion NOK or function\nnot verified specification not met",null,null,null,null,null,"SA-Part"]
["Entspricht nicht dem Serienstand, Kundenakzeptanz liegt nicht vor","Does not correspond to series status, customer acceptance not granted",null,null,null,null,null,"SA-Part"]
["Nicht kunden- oder serientauglich bzw. noch nicht freigegeben","Not customer-ready or not approved yet",null,null,null,null,null,"SA-Part"]
["Nicht verbaubar","Not capable for assembly",null,null,null,null,null,"SA-Part"]
["Nicht anwendbar","Not applicable",null,null,null,null,null,"SA-Part"]
["Bemerkung/Maßnahmen + Termin\n(sofern nicht OK ausgewählt) (5)","Remark/actions + date\n(if not OK selected) (5)",null,null,null,null,null,"SA-Part"]
["Ausfüllhilfen:","Instruction how to fill in the form:",null,null,null,null,null,"SA-Part"]
["Logistik: wenn zutreffend bewerten","Logistic: if applicable evaluate:",null,null,null,null,null,"SA-Part"]
["- zum Kunden","- towards customer",null,null,null,null,null,"SA-Part"]
["- innerhalb der Organisation","- within the organization",null,null,null,null,null,"SA-Part"]
["- von Lieferanten","- from the supplier",null,null,null,null,null,"SA-Part"]
["(z.B. Transport-, Verpackungsvorschriften erstellt, Serienverpackung in vereinbarter Menge vorhanden, keine Qualitätsbeeinträchtigung in der Serie zu erwarten)","(e.g. transport, packaging specification created; serial packaging in agreed quality available, no negative quality impacts to expect)",null,null,null,null,null,"SA-Part"]
["Vereinbarte Produktionsstückzahl:","Agreed production quantity:",null,null,null,null,null,"SA-Part"]
["Produktionseinrichtungen beziehen sich auf Linien/Anlagen/Maschinen/Werkzeuge/Kavitäten/Nester","Production equipment refers to lines/equipments/machines/tools/jigs/cavities",null,null,null,null,null,"SA-Part"]
["Personal nur eingeschränkt verfügbar/qualifiziert, keine Qualitätsbeeinträchtigungen zu erwarten:","Only limited personnel available/qualified, no negative impacts expected:",null,null,null,null,null,"SA-Part"]
["- Anzahl und Qualifikationsgrad müssen noch optimiert werden","- number and qualification still have to be optimized",null,null,null,null,null,"SA-Part"]
["- Arbeits- und Prüfanweisungen vollständig","- work and inspection instructions completely available",null,null,null,null,null,"SA-Part"]
["Qualifiziertes Personal nicht in ausreichender Anzahl verfügbar:","Not enough qualified personnel available:",null,null,null,null,null,"SA-Part"]
["Qualitätsbeeinträchtigungen möglich","negative quality impacts possible",null,null,null,null,null,"SA-Part"]
["Arbeits- und/oder Prüfanweisungen unvollständig","work and/or inspection instructions not completely available",null,null,null,null,null,"SA-Part"]
["Eingabe erforderlich, sofern nicht mit \"Anforderung erfüllt\" bewertet","Input mandatory, if other evaluation then \"Requirements met\"",null,null,null,null,null,"SA-Part"]
["Produktions-standort","Production \nlocation",null,null,null,null,null,"SA-Process"]
["Werkzeuge","Tools",null,null,null,null,null,"SA-Process"]
["Logistik (1)","Logistic *1",null,null,null,null,null,"SA-Process"]
["Besondere und vereinbarte Merkmale abgesichert","Special and agreed characteristics assured",null,null,null,null,null,"SA-Process"]
["Prüfmittel","Test equipment",null,null,null,null,null,"SA-Process"]
["Vereinbarte Produktions-stückzahl","Agreed production quantity",null,null,null,null,null,"SA-Process"]
["Personal","Human Resources",null,null,null,null,null,"SA-Process"]
["Fertigung am Produktions-standort durch die Organisation abgenommen (Fertigungsleyout umgesetzt, Verkettung Anlagen umgesetzt)","Production at production location approved by the organization (Production layout set up, linking between production equipment realized)",null,null,null,null,null,"SA-Process"]
["Serienwerkzeug abgenommen","Series tool accepted",null,null,null,null,null,"SA-Process"]
["Gemäß Prozessablauf","According to process sequence",null,null,null,null,null,"SA-Process"]
["Merkmale abgesichert","Characteristics assured",null,null,null,null,null,"SA-Process"]
["Vollständig vorhanden/ abgenommen, Fähigkeit nachgewiesen","Completely available / aceppted capability verified",null,null,null,null,null,"SA-Process"]
["Alle Produktionseinrichtungen abgenommen (2)","All production facilities accepted *2",null,null,null,null,null,"SA-Process"]
["Produktionsstückzahl erreicht/ nachgewiesen","Production quantity reached / verified",null,null,null,null,null,"SA-Process"]
["Erforderliches Personal verfügbar und geschult, Arbeits- und Prüfanweisungen volständig","Required personnel available and trained work and test instructions complete",null,null,null,null,null,"SA-Process"]
["Fertigung am Produktions-standort durch die Organisation noch nicht abgenommen; Keine Qualitätsbeeinträchtigungen in der Serie zu erwarten","Production at production location not approved by the organization yet; No negative quality impacts expected in series production",null,null,null,null,null,"SA-Process"]
["Serienwerkzeug/Kleinserien-werkzeug vorhanden, Optimierung(en) noch nötig, aber keine Qualitätsbeeinträchtigungen in der Serie zu erwarten","Series tool / small series tool available, optimization(s) still necessary, but no negative quality impacts expected in series production",null,null,null,null,null,"SA-Process"]
["Nicht gemäß Prozessablauf, aber keine Qualitätsbeein-trächtigungen in der Serie zu erwarten","Not according to process sequence but no negative quality impacts expected in series production",null,null,null,null,null,"SA-Process"]
["Absicherung nicht vollständig nachgewiesen, Zusatzmaß-nahmen sind installiert, Kundenakzeptanz liegt vor","Assurance not fully verified additional measures installed\ncustomer acceptance granted",null,null,null,null,null,"SA-Process"]
["Nur teilweise vorhanden/ abgenommen, geeignetes Ersatzprüfmittel vorhanden","Only partially available / accepted\nsuitable substitute test equipment available",null,null,null,null,null,"SA-Process"]
["Mindestens eine Produk-tionseinheit abgenommen (2)","At least one production unit accepted *2",null,null,null,null,null,"SA-Process"]
["Produktionsstückzahl dauerhaft erreichbar mit Sondermaßnahmen","Production quantity permanetely reachable with special measures",null,null,null,null,null,"SA-Process"]
["Personal nur eingeschränkt verfügbar/geschult, keine Qualitätsbeeinträchtungen zu erwarten (3)","Only limited personnel available/trained, no negative quality impacts expected *3",null,null,null,null,null,"SA-Process"]
["Fertigung nicht am Produktionsstandort;\n\nQualitätsbeeinträchtigungen möglich","Production not at production location;\n\nNegative quality impacts possible",null,null,null,null,null,"SA-Process"]
["Werkzeug nicht serientauglich\n\nQualitätsbeeinträchtigun-gen in der Serie zu erwarten","Tool not ready for series production\n\nnegative quality impacts expected in series production",null,null,null,null,null,"SA-Process"]
["Qualitätsbeinträchtigungen möglich","Negative quality impacts possible",null,null,null,null,null,"SA-Process"]
["Absicherung nicht vollständig nachgewiesen","Assurance not fully verified",null,null,null,null,null,"SA-Process"]
["Nicht vorhanden/ \nnicht abgenommen","Not available /\nnot accepted",null,null,null,null,null,"SA-Process"]
["Produktionseinrichtungen nicht abgenommen (2)","Production facilities not accepted *2",null,null,null,null,null,"SA-Process"]
["Produktionsstückzahl mit Sondermaßnahmen nicht erreichbar","Production quantity not reachable with special measures",null,null,null,null,null,"SA-Process"]
["Kein geschultes oder in ausreichender Anzahl verfügbares Personal, Qualitätsbeinträchtigungen möglich (4)","Not trained personnel or not enough personnel available negative quality impacts possible *4",null,null,null,null,null,"SA-Process"]
["Selbtsbeurteilung\nProduktionsprozess","Self-assessment\nproduction process",null,null,null,null,null,"SA-Process"]
["Kunde (Empfänger)","Customer (recipient)",null,null,null,null,null,"Cover-PPA"]
["Grund der Berichterstellung","Reason for report creation",null,null,null,null,null,"Cover-PPA"]
["Bericht Produktionsprozess- und Produktfreigabe (PPF)","Report on production process and product approval (PPA)",null,null,null,null,null,"Cover-PPA"]
["Bericht sonstige Muster","Report on other samples",null,null,null,null,null,"Cover-PPA"]
["Requalifikation","Requalification",null,null,null,null,null,"Cover-PPA"]
["Auslöser PPF-Verfahren","Trigger of PPA procedure",null,null,null,null,null,"Cover-PPA"]
["Mustervorstellung","Sample presentation",null,null,null,null,null,"Cover-PPA"]
["Neuteil","New part",null,null,null,null,null,"Cover-PPA"]
["Änderungen am Produkt","Changes to product",null,null,null,null,null,"Cover-PPA"]
["Änderungen am Produktionsprozess","Changes to production process",null,null,null,null,null,"Cover-PPA"]
["Änderung in der Lieferkette","Change to supply chain",null,null,null,null,null,"Cover-PPA"]
["Wiedernutzung > 12 Monate Stillstand","Re-use > 12 month standstill",null,null,null,null,null,"Cover-PPA"]
["Aktualisierte PPF-Dokumentation","Updated PPA documentation",null,null,null,null,null,"Cover-PPA"]
["Hardwarefreigabe","Hardware approval",null,null,null,null,null,"Cover-PPA"]
["Softwarefreigabe","Software approval",null,null,null,null,null,"Cover-PPA"]
["Bestätigung Organisation","Confirmation of organization:",null,null,null,null,null,"Cover-PPA"]
["Hiermit wird bestätigt, dass das PPf-Verfahren entsprechend den Vereinbarungen der Abstimmung zum PPF-Verfahren und nach den Vorgaben gemäß VDA Band 2 durchgeführt wurde.","It is hereby confirmed that the PPA procedure was carried out in accordance with the agreements made in the PPA agreement and the specifications of VDA Volume 2.",null,null,null,null,null,"Cover-PPA"]
["Der IMDS-Datensatz wurde erstellt unter der MDB-ID-Nr.:","The IMDS record was created under the IMDS ID No.:",null,null,null,null,null,"Cover-PPA"]
["Entscheidung Kunde","Customer decision",null,null,null,null,null,"Cover-PPA"]
["Kundentauglich/Serientauglich","Customer-ready/Ready for series production",null,null,null,null,null,"Cover-PPA"]
["PPF-Verfahren zum Kunden abgeschlossen","PPA procedure towards customer closed",null,null,null,null,null,"Cover-PPA"]
["Aktualisierung der PPF-Dokumentation erforderlich","Update of PPA documentation required",null,null,null,null,null,"Cover-PPA"]
["Berichtsnummer/-version Kunde","Report number/version Customer",null,null,null,null,null,"Cover-PPA"]
["Nicht kundentauglich/\nnicht serientauglich","Not customer-ready / Not ready for series production",null,null,null,null,null,"Cover-PPA"]
["Neues PPF-Verfahren erforderlich","New PPA procedure required",null,null,null,null,null,"Cover-PPA"]
["PPF-Bewertung","PPA evaluation",null,null,null,null,null,"PPA-Evaluation/Seite 1"]
["Bericht","Report",null,null,null,null,null,"PPA-Evaluation/Seite 1"]
["Einzelbewertung durch die Organisation","Individual evaluation by organization",null,null,null,null,null,"PPA-Evaluation/Seite 1"]
["Anforderungen vollständig erfüllt","Requirements fully met",null,null,null,null,null,"PPA-Evaluation/Seite 1"]
["Anforderungen nicht vollständig erfüllt","Requirements not fully met",null,null,null,null,null,"PPA-Evaluation/Seite 1"]
["Nachweisdokument","Deliverable",null,null,null,null,null,"PPA-Evaluation/Seite 1"]
["Version/ Datum","Version/ Date",null,null,null,null,null,"PPA-Evaluation/Seite 1"]
["Funktion","Function",null,null,null,null,null,"PPA-Evaluation/Seite 1"]
["Haptik","Haptics",null,null,null,null,null,"PPA-Evaluation/Seite 1"]
["Akustik","Acoustics",null,null,null,null,null,"PPA-Evaluation/Seite 1"]
["Geruch","Odor",null,null,null,null,null,"PPA-Evaluation/Seite 1"]
["Werkzeuge","Tools",null,null,null,null,null,"PPA-Evaluation/Seite 2"]
["Nachweise zur Einhaltung gesetzlicher Anforderungen","Evidence of compliance with statutory requirements",null,null,null,null,null,"PPA-Evaluation/Seite 2"]
["Prüfmittfähigkeits-\nnachweis Produkt u. Produktionsprozess","Measurement equipment analysis studies product and production process",null,null,null,null,null,"PPA-Evaluation/Seite 2"]
["Teilebündelung/Produktfamilien","Part grouping / Product families",null,null,null,null,null,"PPA-Evaluation/Seite 4"]
["PPF-Verfahren für Produktfamilie","PPA procedure for product family",null,null,null,null,null,"PPA-Evaluation/Seite 4"]
["Gesamtbewertung durch die Organisation","Overall evaluation by organization",null,null,null,null,null,"PPA-Evaluation/Seite 5"]
["Nachweiskategorie","Deliverable category",null,null,null,null,null,"PPA-Evaluation/Seite 5"]
["PPF-Deckblatt / PPF-Bewertung / Selbstbeurteilung","PPA cover sheet / PPA evaluation / Self-Assessment",null,null,null,null,null,"PPA-Evaluation/Seite 5"]
["Nachweise zum Produkt","Deliverables of product",null,null,null,null,null,"PPA-Evaluation/Seite 5"]
["Nachweise zum Produktionsprozess","Deliverables of production process",null,null,null,null,null,"PPA-Evaluation/Seite 5"]
["Generelle Nachweis","General deliverables",null,null,null,null,null,"PPA-Evaluation/Seite 5"]
["Nachweise zur Software","Deliverables for software",null,null,null,null,null,"PPA-Evaluation/Seite 5"]
["Anforderungen vollständig erfüllt","Requirements fully met",null,null,null,null,null,"PPA-Evaluation/Seite 5"]
["Anforderungen nicht vollständig erfüllt","Requirements not fully met",null,null,null,null,null,"PPA-Evaluation/Seite 5"]
["Risikobewertung","Risk assessment",null,null,null,null,null,"PPA-Evaluation/Seite 5"]
["Empfehlung durch die Organisation","Recommendation by the organization",null,null,null,null,null,"PPA-Evaluation/Seite 5"]
["Abweichende Einschätzung des Kunden gegenüber der Organisation","Customer evaluation deviating from that of the organization",null,null,null,null,null,"PPA-Evaluation/Seite 6"]
["Nachforderung Vorzulegende Dokumente zu offenen Prüfgebieten","Subsequent requirement Documents to be submitted about open test areas",null,null,null,null,null,"PPA-Evaluation/Seite 6"]
["Akzeptanz von Abweichungen (ohne Anpassung weiterer Dokumente)","Acceptance of deviations (without adjusting other documents)",null,null,null,null,null,"PPA-Evaluation/Seite 6"]
["Abweich-genehmigung","Deviation approval",null,null,null,null,null,"PPA-Evaluation/Seite 6"]
["Prüfgebiet","Test area",null,null,null,null,null,"PPA-Evaluation/Seite 6"]
["Nachforderung/Begründung","Subsequent requirement / reason",null,null,null,null,null,"PPA-Evaluation/Seite 6"]
["Neue Spezifikation","New specification",null,null,null,null,null,"PPA-Evaluation/Seite 6"]
["Abweichgenehmigung","Deviation approval",null,null,null,null,null,"PPA-Evaluation/Seite 6"]
["Gültigkeit","Validity",null,null,null,null,null,"PPA-Evaluation/Seite 6"]
["Produktbezogene\nNachweise","Product-related\ndeliverables",null,null,null,null,null,"PPA-Evidence"]
["Blatt","Sheet ",null,null,null,null,null,"PPA-Evidence"]
["von","of",null,null,null,null,null,"PPA-Evidence"]
["Werkstoff","Material",null,null,null,null,null,"PPA-Evidence"]
["Nr.","No.",null,null,null,null,null,"PPA-Evidence"]
["Anforderungen/ Spezifikation","Requirements/ Specification",null,null,null,null,null,"PPA-Evidence"]
["IST-Werte Organisation","Actual values of organization",null,null,null,null,null,"PPA-Evidence"]
["Teil 1","Part 1",null,null,null,null,null,"PPA-Evidence"]
["Teil 2","Part 2",null,null,null,null,null,"PPA-Evidence"]
["Teil 3","Part 3",null,null,null,null,null,"PPA-Evidence"]
["Teil 4","Part 4",null,null,null,null,null,"PPA-Evidence"]
["Teil 5","Part 5",null,null,null,null,null,"PPA-Evidence"]
["Spezifikation erfüllt","Specification met",null,null,null,null,null,"PPA-Evidence"]
["Produktionsprozessbezogene\nund generelle Nachweise","Production process related and general deliverables",null,null,null,null,null,"Process-Evidence"]
["Nachweise zur Einhaltung gesetzlicher Anforderungen","Evidence of compliance with statutory requirements",null,null,null,null,null,"Process-Evidence"]
["Prüfmittelfähigkeitsnachweis Produkt u. Produktionsprozess","Measurement equipment analysis studies product and process",null,null,null,null,null,"Process-Evidence"]
["Anforderungen","Requirement",null,null,null,null,null,"Process-Evidence"]
["Dokument","Document",null,null,null,null,null,"Process-Evidence"]
["Version","Version",null,null,null,null,null,"Process-Evidence"]
["Datum","Date",null,null,null,null,null,"Process-Evidence"]
["6.1 Deckblatt PPF \nSoftware","6.1 Cover sheet for PPA software",null,null,null,null,null,"Software / Seite 1"]
["Beschreibung der Software","Description software",null,null,null,null,null,"Software / Seite 1"]
["Produktspezifischer Kenner/Schlüssel","Product-specific identifier/key",null,null,null,null,null,"Software / Seite 1"]
["Prüfsumme","Checksum",null,null,null,null,null,"Software / Seite 1"]
["Angaben zu verwendeten Softwaremodule (Eigen- und Fremdanteile sind auszuführen)","Information about the software modules used (please list in-house and third-party components)",null,null,null,null,null,"Software / Seite 1"]
["Beschreibung","Description",null,null,null,null,null,"Software / Seite 1"]
["Auslöser","Trigger",null,null,null,null,null,"Software / Seite 1"]
["Eigenständiges Softwarepaket","Independent software package","HW-Verwendung",null,null,null,null,"Software / Seite 1"]
["HW-Verwendung","Assembled in following HW",null,null,null,null,null,"Software / Seite 1"]
["Softwarestand","Software version",null,null,null,null,null,"Software / Seite 1"]
["Betriebssystem","Operating system",null,null,null,null,null,"Software / Seite 1"]
["Diagnoseerkennung","Diagnosis version",null,null,null,null,null,"Software / Seite 1"]
["ASIL-Einstufung","ASIL classification",null,null,null,null,null,"Software / Seite 1"]
["Kompa-tibilität zur Spezifi-kation","Compa-tibility with specifi-cation","(6.6) FOSS-Freigabe",null,null,null,null,"Software / Seite 1"]
["(6.6) FOSS-Freigabe","(6.6) FOSS-Approval",null,null,null,null,null,"Software / Seite 1"]
["erfüllt","Fulfilled","liegt vor","liegt nicht vor","nicht relevant",null,null,"Software / Seite 1"]
["nicht erfüllt","Not Fulfilled",null,null,null,null,null,"Software / Seite 1"]
["liegt vor","Available",null,null,null,null,null,"Software / Seite 1"]
["liegt nicht vor","Not available",null,null,null,null,null,"Software / Seite 1"]
["nicht relevant","Not relevant",null,null,null,null,null,"Software / Seite 1"]
["Initiales PPF-Verfahren","Initial PPA procedure",null,null,null,null,null,"Software / Seite 1"]
["PPF-Verfahren aufgrund von Änderungen","PPA procedure due to changes",null,null,null,null,null,"Software / Seite 1"]
["Selbsbeurteilung Organisation","Self-assessment of organization",null,null,null,null,null,"Software / Seite 2"]
["Spezifikation und Nachweise","Specification and deliverables",null,null,null,null,null,"Software / Seite 2"]
["Anforderung nicht erfüllt","Requirements not met",null,null,null,null,null,"Software / Seite 2"]
["Methode zur Prozessbewertung","Process evaluation method",null,null,null,null,"Datum der letzten Prozess-bewerttung","Software / Seite 2"]
["Datum der letzten Prozess-bewertung","Date of last evaluation",null,null,null,null,null,"Software / Seite 2"]
["Ergebnis der Prozessbewertung","Process evaluation result",null,null,null,null,null,"Software / Seite 2"]
["Details zur Verwendung von Softwaremodulen","Details for usage of software modules",null,null,null,null,null,"Software / Seite 2"]
["Details zur Verwendung von Softwaremodulen","Details for usage of software modules",null,null,null,null,null,"Software / Seite 2"]
["SW-SNR","SW-PNR",null,null,"Benennung des Kunden",null,null,"Software / Seite 2"]
["Benennung des Kunden","Release name (customer)",null,null,null,null,null,"Software / Seite 2"]
["Bezeichnung der Organisation","Designation of organization",null,null,null,null,null,"Software / Seite 2"]
["Testreport","Test report","Freigabestatus",null,null,null,null,"Software / Seite 2"]
["Freigabestatus","Approval status",null,null,null,null,null,"Software / Seite 2"]
["Einsatzempfehlung der Organisation","Usage recommendation of organization",null,null,null,null,null,"Software / Seite 3"]
["(Von einer autorisierten Person bei der Organisation durch rechtsverbindliche Unterschrift [schriftlich, elektronisch] gegebene Erlaubnis, die Software für den vorgesehenen Einsatzzweck zu benutzen)","(To use the software for the intended application by an authorized person with the organization thorough permission granted via legally binding signature (handwritten, electronic))",null,null,null,null,null,"Software / Seite 3"]
["Nachweise zur Software","Delivarables for software",null,null,null,null,null,"Software / Seite 3"]
["(Von einer autorisierten Person beim Kunden durch rechtsverbindliche Unterschrift [schriftlich, elektronisch] gegebene Erlaubnis, die Software für den vorgesehenen Einsatzzweck zu benutzen)","(To use the software for the intended application by an authorized person with the customer thorough permission granted via legally binding signature (handwritten, electronic))",null,null,null,null,null,"Software / Seite 4"]
["Durchgeführte Prüfungen","Tests completed",null,null,null,null,null,"Software / Seite 5"]
["Allgemeine Angaben zur Hardware (Mindestanforderung)","General information about hardware (minimum requirement)",null,null,null,null,null,"Software / Seite 5"]
["Prozessor","Microcontroller",null,null,null,null,null,"Software / Seite 5"]
["Prozessorfrequenz","frequency",null,null,null,null,null,"Software / Seite 5"]
["Quarzfrequenz","Quartz frequency",null,null,null,null,null,"Software / Seite 5"]
["Speicherauslastung (Messung)","Memory utilization (measurement)",null,null,null,null,null,"Software / Seite 5"]
["Komponente","Component information",null,null,null,null,null,"Software / Seite 5"]
["ROM","ROM",null,null,null,null,null,"Software / Seite 5"]
["RAM","RAM",null,null,null,null,null,"Software / Seite 5"]
["EEPROM","EEPROM",null,null,null,null,null,"Software / Seite 5"]
["Harddisk","Harddisc",null,null,null,null,null,"Software / Seite 5"]
["Belegt [kB]","Used [kB]",null,null,null,null,null,"Software / Seite 5"]
["Verfügbar [kB]","Available [kB]",null,null,null,null,null,"Software / Seite 5"]
["Belegt [%]","Used [%]",null,null,null,null,null,"Software / Seite 5"]
["Spezifikation erfüllt","Specification met",null,null,null,null,null,"Software / Seite 5"]
["Prozessorrauslastung (Messung)","Precessor utilization (measurement)",null,null,null,null,null,"Software / Seite 6"]
["Komponente","Component information",null,null,null,null,null,"Software / Seite 6"]
["Prozessorauslastung","Precessor utilization",null,null,null,null,null,"Software / Seite 6"]
["Prozessorlast Initial","Processor load Initial",null,null,null,null,null,"Software / Seite 6"]
["Prozessorlast Betrieb","Processor load Operation",null,null,null,null,null,"Software / Seite 6"]
["Prozessorlast Peak","Processor load Peak",null,null,null,null,null,"Software / Seite 6"]
["6.9 Dokumentation der während der gesamten Projektlaufzeit eingesetzten Testwerkzeuge","Documentation of testing tools",null,null,null,null,null,"Software / Seite 6"]
["Referenz zur Dokumentation","Reference to documentation",null,null,null,null,null,"Software / Seite 6"]
["Zugrundeliegende Konfigration/Baseline","Aligned configuration / baseline",null,null,null,null,null,"Software / Seite 6"]
["Stand der Dokumentation","Status of documentation",null,null,null,null,null,"Software / Seite 6"]
["Review und Freigabe letzter Stand","Review and approval, last status",null,null,null,null,null,"Software / Seite 6"]
["6.10 Dokumentation des Versionsmanagements (Baseline, Konfigurationen, Änderungshistorie)","Documentation of version management",null,null,null,null,null,"Software / Seite 6"]
["Funktionstest Softwarepaket","Function tests",null,null,null,null,null,"Software / Seite 6"]
["Geprüft nach Testspezifikation","Tested according to test specification",null,null,null,null,null,"Software / Seite 6"]
["Nachweis-dokument","Deliverable",null,null,null,null,null,"Software / Seite 6"]
["Alle Testsequenzen bestanden?","All test sequences passed successfully?",null,null,null,null,null,"Software / Seite 6"]
["Alle Regressionstest bestanden?","All regression tests passed successfully?",null,null,null,null,null,"Software / Seite 6"]
["Liste nicht bestandener Tests und Risikobewertung","List of tests not passed and risk assessment",null,null,null,null,null,"Software / Seite 6"]
["Nachweis der Wirksamkeit der durchgeführten Maßnahmen","Verification of effectiveness of implemented measures",null,null,null,null,null,"Software / Seite 6"]
["Welche Sonderfreigaben liegen vor?","Which special approvals have been granted?",null,null,null,null,null,"Software / Seite 6"]
["Nachweise zur Freigabe können jederzeit durch den Kunden eingesehen werden.","Deliverables can be inspected by the customer at any time.",null,null,null,null,null,"Software / Seite 6"]
["Teilelebenslauf","Part history",null,null,null,null,null,"Part history"]
["Änd.-Stand Organisation","Version, organization",null,null,null,null,null,"Part history"]
["Änd.-Nummer Organisation","Change number organization",null,null,null,null,null,"Part history"]
["Änd.-Stand Kunde","Version, customer",null,null,null,null,null,"Part history"]
["Änd.-Nummer Kunde","Change number customer",null,null,null,null,null,"Part history"]
["Anwen-dung","Appli-cation",null,null,null,null,null,"Part history"]
["Ersteinsatz","First use",null,null,null,null,null,"Part history"]
["Produktänderung","Product change",null,null,null,null,null,"Part history"]
["Prozessänderung","Production process change",null,null,null,null,null,"Part history"]
["Änderungsbeschreibung","Discription of change",null,null,null,null,null,"Part history"]
["Produktionsdatum","Production date",null,null,null,null,null,"Part history"]
["Erstlieferdatum","Date of first delivery",null,null,null,null,null,"Part history"]
["Kennzeichnung der Lieferung","Delivery identification",null,null,null,null,null,"Part history"]
["Verantworliche Person","Responsible person",null,null,null,null,null,"Part history"]
["Besondere Archivierungspflicht","Special archieving requirements"]
["Anforderungen erfüllt","Requirements met"]
["Anforderungen nicht vollständig erfüllt","Requirements not fully met"]
["Anforderungen nicht erfüllt","Requirements not met"]
["Eingabe nicht korrekt, bitte prüfen","Entry incorrect, please check"]
["Deckblatt zum \nPPF-Bericht","Cover sheet PPA report"]
["Bauteil mit besonderer Archivierungspflicht","Part with special archiving requirement"]
["Gestuftes PPF-Verharen"]
["Angaben zur Software","Description about Software"]
["Stücklistenreferenz\n(Kunde)","Parts list reference\n(Customer) (optional)"]
["PPF-Nr.:","PPA-No.:"]
["Bitte beachten!\n\nAls erstes muss dass Blatt \"Attachment 4 Cover-PPA\" mit Daten befüllt werden, da diese Daten automatisch auf die anderen Blätter übertragen werden.","Please note!\n\nFirst the sheet \"Attachment 4 Cover-PPA\" must be filled with data, because this data will be automatically transferred to the other sheets."]
["Mess-/Prüfmethoden, Messabstimmungen","Measurement/test methods, measurement tuining"]
[]
[]
[]
[]
[]
[]
[]
[]
["Requalifikationsprüfung, gem. IATF 16949:2016 Kapitel 8.6.2: Der Umfang und die Frequenz sind im Produktionslenkungsplan festzulegen!","Layout Inspection according to IATF 16949:2016 Chapter 8.6.2: The scope and frequency are to be specified in the Control Plan!"]
["Wenn Sie dieses Dokument\nfür Kunden PPF verwenden wollen!\n\nDann klicken Sie auf diese Schaltfläche,\ndanach wird der Inhalt der \nZeilen 161 bis 172 und 343 gelöscht!","When you will use this\ndocument for Customer PPA!\n\nThan click to this button,\nafter then will clear contens\nof the rows 161 to 172 and 343!"]
["Supplier Technical Feasibility Commitment","Supplier Technical Feasibility Commitment"]
["GF0042 Refer: www.modine.com/suppliers/supplier refrence documents","GF0042 Refer: www.modine.com/suppliers/supplier refrence documents"]
["Lessons Learned","Lessons Learned"]
["GF0514 Refer: www.modine.com/suppliers/supplier reference documents","GF0514 Refer: www.modine.com/suppliers/supplier reference documents"]
["Production Performance Report","Production Performance Report"]
["GF0467 Refer: www.modine.com/suppliers/supplier reference documents","GF0467 Refer: www.modine.com/suppliers/supplier reference documents"]
["Tooling Inventory Form","Tooling Inventory Form"]
["NA0015 Refer: www.modine.com/suppliers/supplier reference documents","NA0015 Refer: www.modine.com/suppliers/supplier reference documents"]
["CQI (Continous Quality Improvements) Requirements","CQI (Continous Quality Improvements) Requirements"]
["Refer: https://www.aiag.org/quality/special-process-assessments","Refer: https://www.aiag.org/quality/special-process-assessments"]
["MGSM\n(Modine Global Supplier Manual)","MGSM\n(Modine Global Supplier Manual)"]
["Das Dokument muss bei Neuteil-Bemusterung eingereicht werden!","This document must be submitted in the case of new part sampling!\t"]
["Das Dokument muss bei anfallenden Themen eingereicht werden!","The document must be submitted when topics arise!"]
["Muss gegebenenfalls gemäß Kundenanforderung berücksichtigt werden!","Must be considered according to customer requirement if necessary!"]

{"sheet":"Attachment 2 PPA Agreement","index":1,"n_rows":369,"n_cols":38,"rows_kept":369,"cut":false,"hidden":false,"merged":[[160,2,161,9],[160,10,161,14],[160,15,161,19],[160,20,161,34],[160,0,161,1],[253,22,255,23],[253,24,255,25],[277,0,281,1],[277,2,281,9],[277,10,281,11],[277,12,281,13],[277,14,281,15],[277,16,281,17],[277,18,278,25],[277,26,281,27],[277,28,281,34],[279,18,281,19],[279,20,281,21],[279,22,281,23],[279,24,281,25],[276,18,276,19],[276,20,276,21],[276,22,276,23],[276,24,276,25],[276,26,276,27],[276,28,276,34],[276,0,276,1],[276,2,276,9],[276,10,276,11],[276,12,276,13],[276,14,276,15],[276,16,276,17],[367,0,367,4],[367,5,367,16],[368,0,368,4],[368,5,368,16],[368,17,368,21],[368,22,368,34],[357,0,362,34],[363,0,363,34],[364,0,364,4],[364,5,364,16],[364,17,367,21],[364,22,367,34],[365,0,365,4],[365,5,365,16],[366,0,366,4],[366,5,366,16],[353,5,353,16],[354,5,354,16],[355,5,355,16],[355,17,355,21],[355,22,355,34],[356,0,356,34],[353,0,353,4],[354,0,354,4],[355,0,355,4],[351,5,351,16],[351,17,354,21],[351,22,354,34],[352,5,352,16],[340,9,340,13],[339,14,339,24],[339,25,339,29],[339,30,339,34],[340,14,340,34],[341,1,341,34],[343,0,343,34],[337,0,342,0],[340,1,340,7],[339,1,339,7],[339,9,339,13],[338,1,338,7],[338,9,338,34],[337,1,337,7],[337,8,337,34],[342,1,342,34],[344,0,349,34],[350,0,350,34],[351,0,351,4],[352,0,352,4],[330,1,330,7],[330,8,330,12],[330,13,330,16],[330,17,330,20],[330,21,330,26],[330,27,330,34],[329,1,329,7],[329,8,329,12],[329,13,329,16],[329,17,329,20],[329,21,329,26],[329,27,329,34],[328,1,328,7],[328,8,328,12],[328,13,328,16],[328,17,328,20],[328,21,328,26],[328,27,328,34],[327,8,327,12],[327,13,327,16],[327,17,327,20],[327,21,327,26],[327,27,327,34],[326,1,326,7],[326,8,326,12],[326,13,326,16],[326,17,326,20],[326,21,326,26],[326,27,326,34],[325,1,325,7],[325,8,325,12],[325,13,325,16],[325,17,325,20],[325,21,325,26],[325,27,325,34],[323,27,323,34],[324,1,324,7],[324,8,324,12],[324,13,324,16],[324,17,324,20],[324,21,324,26],[324,27,324,34],[320,27,320,34],[321,27,321,34],[314,0,321,0],[323,0,330,0],[323,1,323,7],[323,8,323,12],[323,13,323,16],[323,17,323,20],[323,21,323,26],[314,27,314,34],[315,27,315,34],[316,27,316,34],[317,27,317,34],[318,27,318,34],[319,27,319,34],[321,1,321,7],[321,8,321,12],[321,13,321,16],[321,17,321,20],[321,21,321,26],[320,1,320,7],[320,8,320,12],[320,13,320,16],[320,17,320,20],[327,1,327,7],[320,21,320,26],[319,1,319,7],[319,8,319,12],[319,13,319,16],[319,17,319,20],[319,21,319,26],[318,1,318,7],[318,8,318,12],[318,13,318,16],[318,17,318,20],[318,21,318,26],[317,1,317,7],[317,8,317,12],[317,13,317,16],[317,17,317,20],[317,21,317,26],[316,1,316,7],[316,8,316,12],[316,13,316,16],[316,17,316,20],[316,21,316,26],[315,1,315,7],[315,8,315,12],[315,13,315,16],[315,17,315,20],[315,21,315,26],[312,0,312,34],[314,1,314,7],[314,8,314,12],[314,13,314,16],[314,17,314,20],[314,21,314,26],[311,18,311,19],[311,20,311,21],[311,22,311,23],[311,24,311,25],[311,26,311,27],[311,28,311,34],[311,0,311,1],[311,2,311,9],[311,10,311,11],[311,12,311,13],[311,14,311,15],[311,16,311,17],[310,18,310,19],[310,20,310,21],[310,22,310,23],[310,24,310,25],[310,26,310,27],[310,28,310,34],[310,0,310,1],[310,2,310,9],[310,10,310,11],[310,12,310,13],[310,14,310,15],[310,16,310,17],[309,18,309,19],[309,20,309,21],[309,22,309,23],[309,24,309,25],[309,26,309,27],[309,28,309,34],[309,0,309,1],[309,2,309,9],[309,10,309,11],[309,12,309,13],[309,14,309,15],[309,16,309,17],[308,18,308,19],[308,20,308,21],[308,22,308,23],[308,24,308,25],[308,26,308,27],[308,28,308,34],[308,0,308,1],[308,2,308,9],[308,10,308,11],[308,12,308,13],[308,14,308,15],[308,16,308,17],[307,18,307,19],[307,20,307,21],[307,22,307,23],[307,24,307,25],[307,26,307,27],[307,28,307,34],[307,0,307,1],[307,2,307,9],[307,10,307,11],[307,12,307,13],[307,14,307,15],[307,16,307,17],[306,18,306,19],[306,20,306,21],[306,22,306,23],[306,24,306,25],[306,26,306,27],[306,28,306,34],[306,0,306,1],[306,2,306,9],[306,10,306,11],[306,12,306,13],[306,14,306,15],[306,16,306,17],[305,18,305,19],[305,20,305,21],[305,22,305,23],[305,24,305,25],[305,26,305,27],[305,28,305,34],[305,0,305,1],[305,2,305,9],[305,10,305,11],[305,12,305,13],[305,14,305,15],[305,16,305,17],[304,18,304,19],[304,20,304,21],[304,22,304,23],[304,24,304,25],[304,26,304,27],[304,28,304,34],[304,0,304,1],[304,2,304,9],[304,10,304,11],[304,12,304,13],[304,14,304,15],[304,16,304,17],[303,18,303,19],[303,20,303,21],[303,22,303,23],[303,24,303,25],[303,26,303,27],[303,28,303,34],[303,0,303,1],[303,2,303,9],[303,10,303,11],[303,12,303,13],[303,14,303,15],[303,16,303,17],[302,18,302,19],[302,20,302,21],[302,22,302,23],[302,24,302,25],[302,26,302,27],[302,28,302,34],[302,0,302,1],[302,2,302,9],[302,10,302,11],[302,12,302,13],[302,14,302,15],[302,16,302,17],[301,18,301,19],[301,20,301,21],[301,22,301,23],[301,24,301,25],[301,26,301,27],[301,28,301,34],[301,0,301,1],[301,2,301,9],[301,10,301,11],[301,12,301,13],[301,14,301,15],[301,16,301,17],[300,18,300,19],[300,20,300,21],[300,22,300,23],[300,24,300,25],[300,26,300,27],[300,28,300,34],[300,0,300,1],[300,2,300,9],[300,10,300,11],[300,12,300,13],[300,14,300,15],[300,16,300,17],[299,18,299,19],[299,20,299,21],[299,22,299,23],[299,24,299,25],[299,26,299,27],[299,28,299,34],[299,0,299,1],[299,2,299,9],[299,10,299,11],[299,12,299,13],[299,14,299,15],[299,16,299,17],[298,18,298,19],[298,20,298,21],[298,22,298,23],[298,24,298,25],[298,26,298,27],[298,28,298,34],[298,0,298,1],[298,2,298,9],[298,10,298,11],[298,12,298,13],[298,14,298,15],[298,16,298,17],[297,18,297,19],[297,20,297,21],[297,22,297,23],[297,24,297,25],[297,26,297,27],[297,28,297,34],[297,0,297,1],[297,2,297,9],[297,10,297,11],[297,12,297,13],[297,14,297,15],[297,16,297,17],[296,18,296,19],[296,20,296,21],[296,22,296,23],[296,24,296,25],[296,26,296,27],[296,28,296,34],[296,0,296,1],[296,2,296,9],[296,10,296,11],[296,12,296,13],[296,14,296,15],[296,16,296,17],[295,18,295,19],[295,20,295,21],[295,22,295,23],[295,24,295,25],[295,26,295,27],[295,28,295,34],[294,22,294,23],[294,24,294,25],[294,26,294,27],[294,28,294,34],[295,0,295,1],[295,2,295,9],[295,10,295,11],[295,12,295,13],[295,14,295,15],[295,16,295,17],[287,0,287,1],[287,2,287,34],[294,0,294,1],[294,2,294,9],[294,10,294,11],[294,12,294,13],[294,14,294,15],[294,16,294,17],[294,18,294,19],[294,20,294,21],[293,18,293,19],[293,20,293,21],[293,22,293,23],[293,24,293,25],[293,26,293,27],[293,28,293,34],[293,0,293,1],[293,2,293,9],[293,10,293,11],[293,12,293,13],[293,14,293,15],[293,16,293,17],[288,18,289,25],[288,26,292,27],[288,28,292,34],[290,18,292,19],[290,20,292,21],[290,22,292,23],[290,24,292,25],[288,0,292,1],[288,2,292,9],[288,10,292,11],[288,12,292,13],[288,14,292,15],[288,16,292,17],[286,18,286,34],[286,0,286,1],[286,2,286,9],[286,10,286,11],[286,12,286,17],[285,2,285,34],[285,0,285,1],[284,18,284,19],[284,20,284,21],[284,22,284,23],[284,24,284,25],[284,26,284,27],[284,28,284,34],[284,0,284,1],[284,2,284,9],[284,10,284,11],[284,12,284,13],[284,14,284,15],[284,16,284,17],[283,18,283,19],[283,20,283,21],[283,22,283,23],[283,24,283,25],[283,26,283,27],[283,28,283,34],[283,0,283,1],[283,2,283,9],[283,10,283,11],[283,12,283,13],[283,14,283,15],[283,16,283,17],[275,28,275,34],[275,0,275,1],[275,2,275,9],[275,10,275,11],[275,12,275,13],[275,14,275,15],[275,16,275,17],[274,18,274,19],[274,20,274,21],[274,22,274,23],[274,24,274,25],[274,26,274,27],[274,28,274,34],[274,0,274,1],[274,2,274,9],[274,10,274,11],[274,12,274,13],[274,14,274,15],[274,16,274,17],[275,18,275,19],[275,20,275,21],[275,22,275,23],[275,24,275,25],[275,26,275,27],[273,18,273,19],[273,20,273,21],[273,22,273,23],[273,24,273,25],[273,26,273,27],[273,28,273,34],[273,0,273,1],[273,2,273,9],[273,10,273,11],[273,12,273,13],[273,14,273,15],[273,16,273,17],[272,18,272,19],[272,20,272,21],[272,22,272,23],[272,24,272,25],[272,26,272,27],[272,28,272,34],[272,0,272,1],[272,2,272,9],[272,10,272,11],[272,12,272,13],[272,14,272,15],[272,16,272,17],[271,18,271,19],[271,20,271,21],[271,22,271,23],[271,24,271,25],[271,26,271,27],[271,28,271,34],[269,22,269,23],[269,24,269,25],[269,26,269,27],[269,28,269,34],[271,0,271,1],[271,2,271,9],[271,10,271,11],[271,12,271,13],[271,14,271,15],[271,16,271,17],[267,0,267,1],[267,2,267,34],[269,0,269,1],[269,2,269,9],[269,10,269,11],[269,12,269,13],[269,14,269,15],[269,16,269,17],[269,18,269,19],[269,20,269,21],[270,18,270,19],[270,20,270,21],[270,22,270,23],[270,24,270,25],[270,26,270,27],[270,28,270,34],[270,0,270,1],[270,2,270,9],[270,10,270,11],[270,12,270,13],[270,14,270,15],[270,16,270,17],[268,16,268,25],[268,26,268,34],[268,0,268,15],[266,18,266,19],[266,20,266,21],[266,22,266,23],[266,24,266,25],[266,26,266,27],[266,28,266,34],[266,0,266,1],[266,2,266,9],[266,10,266,11],[266,12,266,13],[266,14,266,15],[266,16,266,17],[265,18,265,19],[265,20,265,21],[265,22,265,23],[265,24,265,25],[265,26,265,27],[265,28,265,34],[265,0,265,1],[265,2,265,9],[265,10,265,11],[265,12,265,13],[265,14,265,15],[265,16,265,17],[264,18,264,19],[264,20,264,21],[264,22,264,23],[264,24,264,25],[264,26,264,27],[264,28,264,34],[264,0,264,1],[264,2,264,9],[264,10,264,11],[264,12,264,13],[264,14,264,15],[264,16,264,17],[263,18,263,19],[263,20,263,21],[263,22,263,23],[263,24,263,25],[263,26,263,27],[263,28,263,34],[263,0,263,1],[263,2,263,9],[263,10,263,11],[263,12,263,13],[263,14,263,15],[263,16,263,17],[262,18,262,19],[262,20,262,21],[262,22,262,23],[262,24,262,25],[262,26,262,27],[262,28,262,34],[262,0,262,1],[262,2,262,9],[262,10,262,11],[262,12,262,13],[262,14,262,15],[262,16,262,17],[261,18,261,19],[261,20,261,21],[261,22,261,23],[261,24,261,25],[261,26,261,27],[261,28,261,34],[261,0,261,1],[261,2,261,9],[261,10,261,11],[261,12,261,13],[261,14,261,15],[261,16,261,17],[260,18,260,19],[260,20,260,21],[260,22,260,23],[260,24,260,25],[260,26,260,27],[260,28,260,34],[260,2,260,9],[260,10,260,11],[260,12,260,13],[260,14,260,15],[260,16,260,17],[259,0,260,1],[259,18,259,19],[259,20,259,21],[259,22,259,23],[259,24,259,25],[259,26,259,27],[259,28,259,34],[259,2,259,9],[259,10,259,11],[259,12,259,13],[259,14,259,15],[259,16,259,17],[258,18,258,19],[258,20,258,21],[258,22,258,23],[258,24,258,25],[258,26,258,27],[258,28,258,34],[258,0,258,1],[258,2,258,9],[258,10,258,11],[258,12,258,13],[258,14,258,15],[258,16,258,17],[251,0,255,1],[251,2,255,9],[251,10,255,11],[251,12,255,13],[251,14,255,15],[251,16,255,17],[256,0,256,1],[256,2,256,34],[257,0,257,1],[257,2,257,9],[257,10,257,11],[257,12,257,13],[257,14,257,15],[257,16,257,17],[257,18,257,19],[257,20,257,21],[257,22,257,23],[257,24,257,25],[257,26,257,27],[257,28,257,34],[246,18,246,19],[246,20,246,21],[246,22,246,23],[246,24,246,25],[246,26,246,27],[246,28,246,34],[246,0,246,1],[246,2,246,9],[246,10,246,11],[246,12,246,13],[246,14,246,15],[246,16,246,17],[245,18,245,19],[245,20,245,21],[245,22,245,23],[245,24,245,25],[245,26,245,27],[245,28,245,34],[245,0,245,1],[245,2,245,9],[245,10,245,11],[245,12,245,13],[245,14,245,15],[245,16,245,17],[251,18,252,25],[251,26,255,27],[251,28,255,34],[253,18,255,19],[253,20,255,21],[244,18,244,19],[244,20,244,21],[244,22,244,23],[244,24,244,25],[244,26,244,27],[244,28,244,34],[244,0,244,1],[244,2,244,9],[244,10,244,11],[244,12,244,13],[244,14,244,15],[244,16,244,17],[243,18,243,19],[243,20,243,21],[243,22,243,23],[243,24,243,25],[243,26,243,27],[243,28,243,34],[243,0,243,1],[243,2,243,9],[243,10,243,11],[243,12,243,13],[243,14,243,15],[243,16,243,17],[242,18,242,19],[242,20,242,21],[242,22,242,23],[242,24,242,25],[242,26,242,27],[242,28,242,34],[241,22,241,23],[241,24,241,25],[241,26,241,27],[241,28,241,34],[242,0,242,1],[242,2,242,9],[242,10,242,11],[242,12,242,13],[242,14,242,15],[242,16,242,17],[240,0,240,1],[240,2,240,34],[241,0,241,1],[241,2,241,9],[241,10,241,11],[241,12,241,13],[241,14,241,15],[241,16,241,17],[241,18,241,19],[241,20,241,21],[239,18,239,19],[239,20,239,21],[239,22,239,23],[239,24,239,25],[239,26,239,27],[239,28,239,34],[239,0,239,1],[239,2,239,9],[239,10,239,11],[239,12,239,13],[239,14,239,15],[239,16,239,17],[238,18,238,19],[238,20,238,21],[238,22,238,23],[238,24,238,25],[238,26,238,27],[238,28,238,34],[238,0,238,1],[238,2,238,9],[238,10,238,11],[238,12,238,13],[238,14,238,15],[238,16,238,17],[237,18,237,19],[237,20,237,21],[237,22,237,23],[237,24,237,25],[237,26,237,27],[237,28,237,34],[237,0,237,1],[237,2,237,9],[237,10,237,11],[237,12,237,13],[237,14,237,15],[237,16,237,17],[236,18,236,19],[236,20,236,21],[236,22,236,23],[236,24,236,25],[236,26,236,27],[236,28,236,34],[236,0,236,1],[236,2,236,9],[236,10,236,11],[236,12,236,13],[236,14,236,15],[236,16,236,17],[235,18,235,19],[235,20,235,21],[235,22,235,23],[235,24,235,25],[235,26,235,27],[235,28,235,34],[235,0,235,1],[235,2,235,9],[235,10,235,11],[235,12,235,13],[235,14,235,15],[235,16,235,17],[234,18,234,19],[234,20,234,21],[234,22,234,23],[234,24,234,25],[234,26,234,27],[234,28,234,34],[234,0,234,1],[234,2,234,9],[234,14,234,15],[234,16,234,17],[232,10,234,11],[232,12,234,13],[233,18,233,19],[233,20,233,21],[233,22,233,23],[233,24,233,25],[233,26,233,27],[233,28,233,34],[233,0,233,1],[233,2,233,9],[233,14,233,15],[233,16,233,17],[231,18,231,19],[231,20,231,21],[231,22,231,23],[231,24,231,25],[231,26,231,27],[231,28,231,34],[231,0,231,1],[231,2,231,9],[231,10,231,11],[231,12,231,13],[231,14,231,15],[231,16,231,17],[232,18,232,19],[232,20,232,21],[232,22,232,23],[232,24,232,25],[232,26,232,27],[232,28,232,34],[232,0,232,1],[232,2,232,9],[232,14,232,15],[232,16,232,17],[230,18,230,19],[230,20,230,21],[230,22,230,23],[230,24,230,25],[230,26,230,27],[230,28,230,34],[230,0,230,1],[230,2,230,9],[230,10,230,11],[230,12,230,13],[230,14,230,15],[230,16,230,17],[229,18,229,19],[229,20,229,21],[229,22,229,23],[229,24,229,25],[229,26,229,27],[229,28,229,34],[229,0,229,1],[229,2,229,9],[229,10,229,11],[229,12,229,13],[229,14,229,15],[229,16,229,17],[228,18,228,19],[228,20,228,21],[228,22,228,23],[228,24,228,25],[228,26,228,27],[228,28,228,34],[228,0,228,1],[228,2,228,9],[228,10,228,11],[228,12,228,13],[228,14,228,15],[228,16,228,17],[227,18,227,19],[227,20,227,21],[227,22,227,23],[227,24,227,25],[227,26,227,27],[227,28,227,34],[227,0,227,1],[227,2,227,9],[227,10,227,11],[227,12,227,13],[227,14,227,15],[227,16,227,17],[222,14,226,15],[222,16,226,17],[222,18,223,25],[222,26,226,27],[222,28,226,34],[224,18,226,19],[224,20,226,21],[224,22,226,23],[224,24,226,25],[222,0,226,1],[222,2,226,9],[222,10,226,11],[222,12,226,13],[219,18,219,19],[219,20,219,21],[219,22,219,23],[219,24,219,25],[219,26,219,27],[219,28,219,34],[219,0,219,1],[219,2,219,9],[219,14,219,15],[219,16,219,17],[209,10,219,11],[209,12,219,13],[218,18,218,19],[218,20,218,21],[218,22,218,23],[218,24,218,25],[218,26,218,27],[218,28,218,34],[218,0,218,1],[218,2,218,9],[218,14,218,15],[218,16,218,17],[217,18,217,19],[217,20,217,21],[217,22,217,23],[217,24,217,25],[217,26,217,27],[217,28,217,34],[217,0,217,1],[217,2,217,9],[217,14,217,15],[217,16,217,17],[216,18,216,19],[216,20,216,21],[216,22,216,23],[216,24,216,25],[216,26,216,27],[216,28,216,34],[216,0,216,1],[216,2,216,9],[216,14,216,15],[216,16,216,17],[215,18,215,19],[215,20,215,21],[215,22,215,23],[215,24,215,25],[215,26,215,27],[215,28,215,34],[215,0,215,1],[215,2,215,9],[215,14,215,15],[215,16,215,17],[214,18,214,19],[214,20,214,21],[214,22,214,23],[214,24,214,25],[214,26,214,27],[214,28,214,34],[214,0,214,1],[214,2,214,9],[214,14,214,15],[214,16,214,17],[213,18,213,19],[213,20,213,21],[213,22,213,23],[213,24,213,25],[213,26,213,27],[213,28,213,34],[213,0,213,1],[213,2,213,9],[213,14,213,15],[213,16,213,17],[212,18,212,19],[212,20,212,21],[212,22,212,23],[212,24,212,25],[212,26,212,27],[212,28,212,34],[212,0,212,1],[212,2,212,9],[212,14,212,15],[212,16,212,17],[211,18,211,19],[211,20,211,21],[211,22,211,23],[211,24,211,25]],"merged_total":1734,"flags":["merged_cut"]}
[{"$f":"OFFSET('Language-Sprachen'!A3,,'Language-Sprachen'!$N$1)","v":"PPA Agreement"},null,null,null,null,null,null,null,null,null,null,{"$f":"OFFSET('Language-Sprachen'!A4,,'Language-Sprachen'!$N$1)","v":"Part Number"},null,null,null,null,null,{"$f":"IF(OR('Attachment 4 Cover-PPA'!$AE$20=\"\"),\"\",'Attachment 4 Cover-PPA'!$AE$20)","v":""},null,null,null,null,null,null,{"$f":"OFFSET('Language-Sprachen'!A6,,'Language-Sprachen'!$N$1)","v":"Version/ Date"}]
[null,null,null,null,null,null,null,null,null,null,null,{"$f":"OFFSET('Language-Sprachen'!A5,,'Language-Sprachen'!$N$1)","v":"Organization"},null,null,null,null,null,{"$f":"IF(OR('Attachment 4 Cover-PPA'!$S$1=\"\"),\"-\",'Attachment 4 Cover-PPA'!$S$1)","v":"Modine Europe GmbH"}]
[{"$f":"OFFSET('Language-Sprachen'!A7,,'Language-Sprachen'!$N$1)","v":"Contact information"},null,null,null,null,null,null,null,null,null,null,null,null,null,null,null,null,null,null,null,null,null,null,null,null,null,null,null,null,null,null,null,null,null,null,null,null,{"$f":"OFFSET('Language-Sprachen'!A2,,'Language-Sprachen'!$N$1)","v":"Select language:"}]
[{"$f":"OFFSET('Language-Sprachen'!A8,,'Language-Sprachen'!$N$1)","v":"Information about the organization"},null,null,null,null,null,null,null,null,null,null,null,null,null,null,null,null,{"$f":"OFFSET('Language-Sprachen'!A9,,'Language-Sprachen'!$N$1)","v":"Information about the customer"}]
[{"$f":"OFFSET('Language-Sprachen'!A10,,'Language-Sprachen'!$N$1)","v":"Name of organization"},null,null,null,null,null,{"$f":"IF(OR('Attachment 4 Cover-PPA'!$A$4=\"\"),\"\",'Attachment 4 Cover-PPA'!$A$4)","v":""},null,null,null,null,null,null,null,null,null,null,{"$f":"OFFSET('Language-Sprachen'!A18,,'Language-Sprachen'!$N$1)","v":"Name of customer"},null,null,null,null,null,{"$f":"IF(OR('Attachment 4 Cover-PPA'!$A$10=\"\"),\"\",'Attachment 4 Cover-PPA'!$A$10)","v":""}]
[{"$f":"OFFSET('Language-Sprachen'!A11,,'Language-Sprachen'!$N$1)","v":"Production location"},null,null,null,null,null,{"$f":"IF(OR('Attachment 4 Cover-PPA'!$G$19=\"\"),\"\",'Attachment 4 Cover-PPA'!$G$19)","v":""},null,null,null,null,null,null,null,null,null,null,{"$f":"OFFSET('Language-Sprachen'!A19,,'Language-Sprachen'!$N$1)","v":"Recipient location"},null,null,null,null,null,{"$f":"IF(OR('Attachment 4 Cover-PPA'!$A$12=\"\"),\"\",'Attachment 4 Cover-PPA'!$A$12)","v":""}]
[{"$f":"OFFSET('Language-Sprachen'!A12,,'Language-Sprachen'!$N$1)","v":"Address"},null,null,null,null,null,{"$f":"IF(OR('Attachment 4 Cover-PPA'!$A$5=\"\"),\"\",'Attachment 4 Cover-PPA'!$A$5)","v":""},null,null,null,null,null,null,null,null,null,null,{"$f":"OFFSET('Language-Sprachen'!A12,,'Language-Sprachen'!$N$1)","v":"Address"},null,null,null,null,null,{"$f":"IF(OR('Attachment 4 Cover-PPA'!$A$11=\"\"),\"\",'Attachment 4 Cover-PPA'!$A$11)","v":""}]
[null,null,null,null,null,null,{"$f":"IF(OR('Attachment 4 Cover-PPA'!$A$6=\"\"),\"\",'Attachment 4 Cover-PPA'!$A$6)","v":""},null,null,null,null,null,null,null,null,null,null,null,null,null,null,null,null,{"$f":"IF(OR('Attachment 4 Cover-PPA'!$A$12=\"\"),\"\",'Attachment 4 Cover-PPA'!$A$12)","v":""}]
[{"$f":"OFFSET('Language-Sprachen'!A13,,'Language-Sprachen'!$N$1)","v":"Delivery location"},null,null,null,null,null,{"$f":"IF(OR('Attachment 4 Cover-PPA'!$G$18=\"\"),\"\",'Attachment 4 Cover-PPA'!$G$18)","v":""},null,null,null,null,null,null,null,null,null,null,{"$f":"OFFSET('Language-Sprachen'!A20,,'Language-Sprachen'!$N$1)","v":"Unloading point"},null,null,null,null,null,{"$f":"IF(OR('Attachment 4 Cover-PPA'!$AE$19=\"\"),\"\",'Attachment 4 Cover-PPA'!$AE$19)","v":""}]
[{"$f":"OFFSET('Language-Sprachen'!A12,,'Language-Sprachen'!$N$1)","v":"Address"},null,null,null,null,null,{"$f":"IF(OR('Attachment 4 Cover-PPA'!$A$5=\"\"),\"\",'Attachment 4 Cover-PPA'!$A$5)","v":""},null,null,null,null,null,null,null,null,null,null,{"$f":"OFFSET('Language-Sprachen'!A12,,'Language-Sprachen'!$N$1)","v":"Address"},null,null,null,null,null,{"$f":"IF(OR('Attachment 4 Cover-PPA'!$A$11=\"\"),\"\",'Attachment 4 Cover-PPA'!$A$11)","v":""}]
[null,null,null,null,null,null,{"$f":"IF(OR('Attachment 4 Cover-PPA'!$A$6=\"\"),\"\",'Attachment 4 Cover-PPA'!$A$6)","v":""},null,null,null,null,null,null,null,null,null,null,null,null,null,null,null,null,{"$f":"IF(OR('Attachment 4 Cover-PPA'!$A$12=\"\"),\"\",'Attachment 4 Cover-PPA'!$A$12)","v":""}]
[{"$f":"OFFSET('Language-Sprachen'!A14,,'Language-Sprachen'!$N$1)","v":"Supplier number/"},null,null,null,null,null,{"$f":"IF(OR('Attachment 4 Cover-PPA'!$S$23=\"\"),\"\",'Attachment 4 Cover-PPA'!$S$23)","v":""},null,null,null,null,null,null,null,null,null,null,{"$f":"OFFSET('Language-Sprachen'!A21,,'Language-Sprachen'!$N$1)","v":"Order Number PPA sample"},null,null,null,null,null,{"$f":"IF(OR('Attachment 4 Cover-PPA'!$AE$18=\"\"),\"\",'Attachment 4 Cover-PPA'!$AE$18)","v":""},null,null,null,null,null,null,null,null,null,null,null,null,null,{"$f":"OFFSET('Language-Sprachen'!$A$500,,'Language-Sprachen'!$N$1)","v":"Please note!\n\nFirst the sheet \"Attachment 4 Cover-PPA\" must be filled with data, because this data will be automatically transferred to the other sheets."}]
[{"$f":"OFFSET('Language-Sprachen'!A15,,'Language-Sprachen'!$N$1)","v":"DUNS-Code:"}]
[{"$f":"OFFSET('Language-Sprachen'!A16,,'Language-Sprachen'!$N$1)","v":"Report number"},null,null,null,null,null,{"$f":"IF(OR('Attachment 4 Cover-PPA'!$G$16=\"\"),\"\",'Attachment 4 Cover-PPA'!$G$16)","v":""},null,null,null,null,null,null,null,null,null,null,{"$f":"OFFSET('Language-Sprachen'!A16,,'Language-Sprachen'!$N$1)","v":"Report number"}]
[{"$f":"OFFSET('Language-Sprachen'!A17,,'Language-Sprachen'!$N$1)","v":"Report version"},null,null,null,null,null,{"$f":"IF(OR('Attachment 4 Cover-PPA'!$G$17=\"\"),\"\",'Attachment 4 Cover-PPA'!$G$17)","v":""},null,null,null,null,null,null,null,null,null,null,{"$f":"OFFSET('Language-Sprachen'!A17,,'Language-Sprachen'!$N$1)","v":"Report version"}]
[{"$f":"OFFSET('Language-Sprachen'!A22,,'Language-Sprachen'!$N$1)","v":"Contact person"}]
[null,{"$f":"OFFSET('Language-Sprachen'!A23,,'Language-Sprachen'!$N$1)","v":"Customer"},null,null,null,null,{"$f":"OFFSET('Language-Sprachen'!A25,,'Language-Sprachen'!$N$1)","v":"Name"},null,null,null,null,null,null,null,null,null,null,{"$f":"OFFSET('Language-Sprachen'!A26,,'Language-Sprachen'!$N$1)","v":"Telephone"},null,null,null,null,null,{"$f":"OFFSET('Language-Sprachen'!A27,,'Language-Sprachen'!$N$1)","v":"E-mail"}]
[null,{"$f":"OFFSET('Language-Sprachen'!A28,,'Language-Sprachen'!$N$1)","v":"Quality\nmanagement"}]
[]
[null,{"$f":"OFFSET('Language-Sprachen'!A29,,'Language-Sprachen'!$N$1)","v":"Purchasing\n(optional)"}]
[]
[null,{"$f":"OFFSET('Language-Sprachen'!A30,,'Language-Sprachen'!$N$1)","v":"Project manager\n(optional)"}]
[]
[null,{"$f":"OFFSET('Language-Sprachen'!A31,,'Language-Sprachen'!$N$1)","v":"Engineering\n(optional)"}]
[]
[null,{"$f":"OFFSET('Language-Sprachen'!A32,,'Language-Sprachen'!$N$1)","v":"Production\n(optional)"}]
[]
[null,{"$f":"OFFSET('Language-Sprachen'!A33,,'Language-Sprachen'!$N$1)","v":"Measuring department\n(optional)"}]
[]
[null,{"$f":"OFFSET('Language-Sprachen'!A34,,'Language-Sprachen'!$N$1)","v":"Material department\n(optional)"}]
[]
[null,{"$f":"OFFSET('Language-Sprachen'!A24,,'Language-Sprachen'!$N$1)","v":"Organization"},null,null,null,null,{"$f":"OFFSET('Language-Sprachen'!A25,,'Language-Sprachen'!$N$1)","v":"Name"},null,null,null,null,null,null,null,null,null,null,{"$f":"OFFSET('Language-Sprachen'!A26,,'Language-Sprachen'!$N$1)","v":"Telephone"},null,null,null,null,null,{"$f":"OFFSET('Language-Sprachen'!A27,,'Language-Sprachen'!$N$1)","v":"E-mail"}]
[null,{"$f":"OFFSET('Language-Sprachen'!A28,,'Language-Sprachen'!$N$1)","v":"Quality\nmanagement"}]
[]
[null,{"$f":"OFFSET('Language-Sprachen'!A35,,'Language-Sprachen'!$N$1)","v":"Sampling representative\n(optional)"}]
[]
[null,{"$f":"OFFSET('Language-Sprachen'!A30,,'Language-Sprachen'!$N$1)","v":"Project manager\n(optional)"}]
[]
[null,{"$f":"OFFSET('Language-Sprachen'!A31,,'Language-Sprachen'!$N$1)","v":"Engineering\n(optional)"}]
[]
[null,{"$f":"OFFSET('Language-Sprachen'!A32,,'Language-Sprachen'!$N$1)","v":"Production\n(optional)"}]
[]
[null,{"$f":"OFFSET('Language-Sprachen'!A33,,'Language-Sprachen'!$N$1)","v":"Measuring department\n(optional)"}]
[]
[null,{"$f":"OFFSET('Language-Sprachen'!A34,,'Language-Sprachen'!$N$1)","v":"Material department\n(optional)"}]
[]
[]
[]
[{"$f":"OFFSET('Language-Sprachen'!A36,,'Language-Sprachen'!$N$1)","v":"Component Information"}]
[{"$f":"OFFSET('Language-Sprachen'!A8,,'Language-Sprachen'!$N$1)","v":"Information about the organization"},null,null,null,null,null,null,null,null,null,null,null,null,null,null,null,null,{"$f":"OFFSET('Language-Sprachen'!A9,,'Language-Sprachen'!$N$1)","v":"Information about the customer"}]
[{"$f":"OFFSET('Language-Sprachen'!A37,,'Language-Sprachen'!$N$1)","v":"Name"},null,null,null,null,null,{"$f":"IF(OR('Attachment 4 Cover-PPA'!$G$21=\"\"),\"\",'Attachment 4 Cover-PPA'!$G$21)","v":""},null,null,null,null,null,null,null,null,null,null,{"$f":"OFFSET('Language-Sprachen'!A37,,'Language-Sprachen'!$N$1)","v":"Name"},null,null,null,null,null,{"$f":"IF(OR('Attachment 4 Cover-PPA'!$AE$21=\"\"),\"\",'Attachment 4 Cover-PPA'!$AE$21)","v":""}]
[{"$f":"OFFSET('Language-Sprachen'!A38,,'Language-Sprachen'!$N$1)","v":"Part Number"},null,null,null,null,null,{"$f":"IF(OR('Attachment 4 Cover-PPA'!$G$20=\"\"),\"\",'Attachment 4 Cover-PPA'!$G$20)","v":""},null,null,null,null,null,null,null,null,null,null,{"$f":"OFFSET('Language-Sprachen'!A38,,'Language-Sprachen'!$N$1)","v":"Part Number"},null,null,null,null,null,{"$f":"IF(OR('Attachment 4 Cover-PPA'!$AE$20=\"\"),\"\",'Attachment 4 Cover-PPA'!$AE$20)","v":""}]
[{"$f":"OFFSET('Language-Sprachen'!A39,,'Language-Sprachen'!$N$1)","v":"Drawing number"},null,null,null,null,null,{"$f":"IF(OR('Attachment 4 Cover-PPA'!$G$22=\"\"),\"\",'Attachment 4 Cover-PPA'!$G$22)","v":""},null,null,null,null,null,null,null,null,null,null,{"$f":"OFFSET('Language-Sprachen'!A39,,'Language-Sprachen'!$N$1)","v":"Drawing number"},null,null,null,null,null,{"$f":"IF(OR('Attachment 4 Cover-PPA'!$AE$22=\"\"),\"\",'Attachment 4 Cover-PPA'!$AE$22)","v":""}]
[]
[{"$f":"OFFSET('Language-Sprachen'!A6,,'Language-Sprachen'!$N$1)","v":"Version/ Date"},null,null,null,null,null,{"$f":"IF(OR('Attachment 4 Cover-PPA'!$G$23=\"\"),\"\",'Attachment 4 Cover-PPA'!$G$23)","v":""},null,null,null,null,null,null,null,null,null,null,{"$f":"OFFSET('Language-Sprachen'!A6,,'Language-Sprachen'!$N$1)","v":"Version/ Date"},null,null,null,null,null,{"$f":"IF(OR('Attachment 4 Cover-PPA'!$AE$23=\"\"),\"\",'Attachment 4 Cover-PPA'!$AE$23)","v":""}]
[null,null,null,null,null,null,null,null,null,null,null,null,null,null,null,null,null,{"$f":"OFFSET('Language-Sprachen'!A40,,'Language-Sprachen'!$N$1)","v":"Customer-specific part statuses (e.g. part generation version / production status / quality status etc.)"}]
[]
[{"$f":"OFFSET('Language-Sprachen'!A41,,'Language-Sprachen'!$N$1)","v":"Special Characteristics (safety, legal, function)"},null,null,null,null,null,null,null,null,null,null,null,null,null,null,null,null,{"$f":"OFFSET('Language-Sprachen'!A41,,'Language-Sprachen'!$N$1)","v":"Special Characteristics (safety, legal, function)"}]
["Berichtsversion",null,null,null,null,null,null,null,null,null,null,null,null,null,null,null,null,"Berichtsversion"]
["Special archieving requirements",null,null,null,null,null,null,null,null,null,null,null,{"$f":"OFFSET('Language-Sprachen'!A42,,'Language-Sprachen'!$N$1)","v":"Part with special archiving requirement"}]
[{"$f":"OFFSET('Language-Sprachen'!A43,,'Language-Sprachen'!$N$1)","v":"Part grouping / Product families"}]
["No",null,{"$f":"OFFSET('Language-Sprachen'!A44,,'Language-Sprachen'!$N$1)","v":"PPA procedure for product family"}]
[null,{"$f":"OFFSET('Language-Sprachen'!A37,,'Language-Sprachen'!$N$1)","v":"Name"},null,null,null,null,null,null,{"$f":"OFFSET('Language-Sprachen'!A38,,'Language-Sprachen'!$N$1)","v":"Part Number"},null,null,null,null,{"$f":"OFFSET('Language-Sprachen'!A6,,'Language-Sprachen'!$N$1)","v":"Version/ Date"},null,null,null,{"$f":"OFFSET('Language-Sprachen'!A45,,'Language-Sprachen'!$N$1)","v":"Part name customer"},null,null,null,null,null,null,null,null,{"$f":"OFFSET('Language-Sprachen'!A38,,'Language-Sprachen'!$N$1)","v":"Part Number"},null,null,null,null,{"$f":"OFFSET('Language-Sprachen'!A6,,'Language-Sprachen'!$N$1)","v":"Version/ Date"}]
[]
[]
[]
[]
[]
[]
[]
[]
[{"$f":"OFFSET('Language-Sprachen'!A46,,'Language-Sprachen'!$N$1)","v":"Variant PPA"}]
["No",null,{"$f":"OFFSET('Language-Sprachen'!A47,,'Language-Sprachen'!$N$1)","v":"Variant PPA for PPA procedure already submitted"}]
[null,{"$f":"OFFSET('Language-Sprachen'!A48,,'Language-Sprachen'!$N$1)","v":"Reference report number of organization"},null,null,null,null,null,null,{"$f":"OFFSET('Language-Sprachen'!A17,,'Language-Sprachen'!$N$1)","v":"Report version"},null,null,null,null,{"$f":"OFFSET('Language-Sprachen'!A49,,'Language-Sprachen'!$N$1)","v":"Date"},null,null,null,{"$f":"OFFSET('Language-Sprachen'!A50,,'Language-Sprachen'!$N$1)","v":"Reference report number of customer"},null,null,null,null,null,null,null,null,{"$f":"OFFSET('Language-Sprachen'!A17,,'Language-Sprachen'!$N$1)","v":"Report version"},null,null,null,null,{"$f":"OFFSET('Language-Sprachen'!A49,,'Language-Sprachen'!$N$1)","v":"Date"}]
[]
[{"$f":"OFFSET('Language-Sprachen'!A52,,'Language-Sprachen'!$N$1)","v":"Directed parts"}]
["No",null,{"$f":"OFFSET('Language-Sprachen'!A53,,'Language-Sprachen'!$N$1)","v":"Directed parts with Q-responsibility of organization"}]
[null,{"$f":"OFFSET('Language-Sprachen'!A51,,'Language-Sprachen'!$N$1)","v":"Part name organization"},null,null,null,null,null,null,{"$f":"OFFSET('Language-Sprachen'!A38,,'Language-Sprachen'!$N$1)","v":"Part Number"},null,null,null,null,{"$f":"OFFSET('Language-Sprachen'!A6,,'Language-Sprachen'!$N$1)","v":"Version/ Date"},null,null,null,{"$f":"OFFSET('Language-Sprachen'!A45,,'Language-Sprachen'!$N$1)","v":"Part name customer"},null,null,null,null,null,null,null,null,{"$f":"OFFSET('Language-Sprachen'!A38,,'Language-Sprachen'!$N$1)","v":"Part Number"},null,null,null,null,{"$f":"OFFSET('Language-Sprachen'!A6,,'Language-Sprachen'!$N$1)","v":"Version/ Date"}]
[]
[]
[]
[]
[]
[]
[]
["No",null,{"$f":"OFFSET('Language-Sprachen'!A54,,'Language-Sprachen'!$N$1)","v":"Directed parts with Q-responsibility of customer"}]
[null,{"$f":"OFFSET('Language-Sprachen'!A51,,'Language-Sprachen'!$N$1)","v":"Part name organization"},null,null,null,null,null,null,{"$f":"OFFSET('Language-Sprachen'!A38,,'Language-Sprachen'!$N$1)","v":"Part Number"},null,null,null,null,{"$f":"OFFSET('Language-Sprachen'!A6,,'Language-Sprachen'!$N$1)","v":"Version/ Date"},null,null,null,{"$f":"OFFSET('Language-Sprachen'!A45,,'Language-Sprachen'!$N$1)","v":"Part name customer"},null,null,null,null,null,null,null,null,{"$f":"OFFSET('Language-Sprachen'!A38,,'Language-Sprachen'!$N$1)","v":"Part Number"},null,null,null,null,{"$f":"OFFSET('Language-Sprachen'!A6,,'Language-Sprachen'!$N$1)","v":"Version/ Date"}]
[]
[]
[]
[]
[]
[]
[]
[]
[]
[]
[{"$f":"OFFSET('Language-Sprachen'!A55,,'Language-Sprachen'!$N$1)","v":"Reason for report creation"}]
[{"$f":"OFFSET('Language-Sprachen'!A56,,'Language-Sprachen'!$N$1)","v":"Reason for report creation"},null,null,null,null,null,null,null,null,null,null,null,null,null,null,null,null,{"$f":"OFFSET('Language-Sprachen'!A57,,'Language-Sprachen'!$N$1)","v":"Trigger of PPA procedure"}]
[null,{"$f":"OFFSET('Language-Sprachen'!A58,,'Language-Sprachen'!$N$1)","v":"Report on production process and product approval (PPA)"},null,null,null,null,null,null,null,null,null,null,null,null,null,null,null,null,{"$f":"OFFSET('Language-Sprachen'!A67,,'Language-Sprachen'!$N$1)","v":"Sample presentation"}]
[null,{"$f":"OFFSET('Language-Sprachen'!A59,,'Language-Sprachen'!$N$1)","v":"Report on other samples"},null,null,null,null,null,null,null,null,null,null,null,null,null,null,null,null,{"$f":"OFFSET('Language-Sprachen'!A68,,'Language-Sprachen'!$N$1)","v":"New part"}]
[null,{"$f":"OFFSET('Language-Sprachen'!A60,,'Language-Sprachen'!$N$1)","v":"Requalification"},null,null,null,null,null,null,null,null,null,null,null,null,null,null,null,null,{"$f":"OFFSET('Language-Sprachen'!A69,,'Language-Sprachen'!$N$1)","v":"Changes to product"}]
[{"$f":"OFFSET('Language-Sprachen'!A61,,'Language-Sprachen'!$N$1)","v":"Submission of PPA documents"},null,null,null,null,null,null,null,null,null,null,null,null,null,null,null,null,null,{"$f":"OFFSET('Language-Sprachen'!A70,,'Language-Sprachen'!$N$1)","v":"Changes to production process"}]
[null,{"$f":"OFFSET('Language-Sprachen'!A62,,'Language-Sprachen'!$N$1)","v":"PDF-format"},null,null,null,null,null,null,null,null,{"$f":"OFFSET('Language-Sprachen'!A65,,'Language-Sprachen'!$N$1)","v":"Original"},null,null,null,null,null,null,null,{"$f":"OFFSET('Language-Sprachen'!A71,,'Language-Sprachen'!$N$1)","v":"Change to supply chain"}]
[null,{"$f":"OFFSET('Language-Sprachen'!A63,,'Language-Sprachen'!$N$1)","v":"Portal"},null,null,null,null,null,null,null,null,{"$f":"OFFSET('Language-Sprachen'!A66,,'Language-Sprachen'!$N$1)","v":"Paper form"},null,null,null,null,null,null,null,{"$f":"OFFSET('Language-Sprachen'!A72,,'Language-Sprachen'!$N$1)","v":"Re-use > 12 month standstill"}]
[null,{"$f":"OFFSET('Language-Sprachen'!A64,,'Language-Sprachen'!$N$1)","v":"Other"},null,null,null,null,null,null,null,null,null,null,null,null,null,null,null,null,{"$f":"OFFSET('Language-Sprachen'!A73,,'Language-Sprachen'!$N$1)","v":"Updated PPA documentation"}]
[{"$f":"OFFSET('Language-Sprachen'!A74,,'Language-Sprachen'!$N$1)","v":"PPA procedure submission language"}]
[]
[{"$f":"OFFSET('Language-Sprachen'!A81,,'Language-Sprachen'!$N$1)","v":"Stepped PPA procedure"}]
["No",null,{"$f":"OFFSET('Language-Sprachen'!A75,,'Language-Sprachen'!$N$1)","v":"Step PPA procedure (please arrange below, specify the dates of the individual PPA steps, and plan the necessary documents for each operation)"}]
[null,{"$f":"OFFSET('Language-Sprachen'!A76,,'Language-Sprachen'!$N$1)","v":"Reason for stepped PPA procedure"}]
[]
[]
[]
[]
[]
[null,{"$f":"OFFSET('Language-Sprachen'!A77,,'Language-Sprachen'!$N$1)","v":"Confirmation of organization:"}]
[null,{"$f":"OFFSET('Language-Sprachen'!A78,,'Language-Sprachen'!$N$1)","v":"With regards to the features to be verified, the samples presented were produced with serial equipment under serial conditions, at the series production location or, for \"other samples\", according to the agreement between the organization and the customer (agreement to be attached). No changes are known or planned regarding these features. The results obtained in our tests can be re-used for an updated PPA documentation. Should changes to the part and/ or production process still be necesarry, we will indicate this in the updated PPA documentation."}]
[]
[]
[]
[]
[{"$f":"OFFSET('Language-Sprachen'!A79,,'Language-Sprachen'!$N$1)","v":"Scheduling"}]
[{"$f":"OFFSET('Language-Sprachen'!A80,,'Language-Sprachen'!$N$1)","v":"PPA date"},null,null,null,null,null,null,null,null,null,null,null,{"$f":"OFFSET('Language-Sprachen'!A81,,'Language-Sprachen'!$N$1)","v":"Stepped PPA procedure"}]
[{"$f":"OFFSET('Language-Sprachen'!A82,,'Language-Sprachen'!$N$1)","v":"PPA procedure"},null,null,null,null,null,null,null,null,null,null,null,{"$f":"OFFSET('Language-Sprachen'!A84,,'Language-Sprachen'!$N$1)","v":"Step 1"},null,null,null,null,null,null,null,null,null,null,null,{"$f":"OFFSET('Language-Sprachen'!A86,,'Language-Sprachen'!$N$1)","v":"Step 3"}]
[{"$f":"OFFSET('Language-Sprachen'!A83,,'Language-Sprachen'!$N$1)","v":"Variants"},null,null,null,null,null,null,null,null,null,null,null,{"$f":"OFFSET('Language-Sprachen'!A85,,'Language-Sprachen'!$N$1)","v":"Step 2"},null,null,null,null,null,null,null,null,null,null,null,{"$f":"OFFSET('Language-Sprachen'!A87,,'Language-Sprachen'!$N$1)","v":"Step 4"}]
[null,null,null,null,null,null,null,null,null,null,null,null,{"$f":"OFFSET('Language-Sprachen'!A89,,'Language-Sprachen'!$N$1)","v":"PPA procedure due date"}]
[{"$f":"OFFSET('Language-Sprachen'!A88,,'Language-Sprachen'!$N$1)","v":"IMDS ID of customer"},null,null,null,null,null,null,null,null,null,null,null,{"$f":"OFFSET('Language-Sprachen'!A90,,'Language-Sprachen'!$N$1)","v":"IMDS provision"}]
["No",null,{"$f":"OFFSET('Language-Sprachen'!A91,,'Language-Sprachen'!$N$1)","v":"The customer waives the submission of documents.\nThe implementation and documentation of the PPA procedure take place exclusively within the organization.\nThe customer follows the approval recommendation of the organization."}]
[]
[null,{"$f":"OFFSET('Language-Sprachen'!A49,,'Language-Sprachen'!$N$1)","v":"Date"},null,null,null,null,null,{"$f":"IF(OR('Attachment 4 Cover-PPA'!$F$33=\"\"),\"\",'Attachment 4 Cover-PPA'!$F$33)","v":""},null,null,null,null,null,null,null,null,null,null,{"$f":"OFFSET('Language-Sprachen'!A92,,'Language-Sprachen'!$N$1)","v":"Signature"},null,null,null,null,null,{"$f":"IF(OR('Attachment 4 Cover-PPA'!$W$33=\"\"),\"\",'Attachment 4 Cover-PPA'!$W$33)","v":""}]
[]
[]
[]
[]
[]
[]
[]
[]
[]
[]
[]
[]
[]
[]
[]
[]
["Yes",null,{"$f":"OFFSET('Language-Sprachen'!A93,,'Language-Sprachen'!$N$1)","v":"Applicable documents for the PPA procedure"},null,null,null,null,null,null,null,null,null,null,null,null,null,null,null,null,null,null,null,null,null,null,null,null,null,null,null,null,null,null,null,null,null,{"$f":"OFFSET('Language-Sprachen'!A511,,'Language-Sprachen'!$N$1)","v":"When you will use this\ndocument for Customer PPA!\n\nThan click to this button,\nafter then will clear contens\nof the rows 161 to 172 and 343!"}]
[{"$f":"OFFSET('Language-Sprachen'!A94,,'Language-Sprachen'!$N$1)","v":"Application"},null,{"$f":"OFFSET('Language-Sprachen'!A95,,'Language-Sprachen'!$N$1)","v":"Documents"},null,null,null,null,null,null,null,{"$f":"OFFSET('Language-Sprachen'!A96,,'Language-Sprachen'!$N$1)","v":"Document number"},null,null,null,null,{"$f":"OFFSET('Language-Sprachen'!A97,,'Language-Sprachen'!$N$1)","v":"Issue/\nStatus/\nDate"},null,null,null,null,{"$f":"OFFSET('Language-Sprachen'!A98,,'Language-Sprachen'!$N$1)","v":"Remark/Description"}]
[]
[]
[]
[1,null,{"$f":"OFFSET('Language-Sprachen'!A99,,'Language-Sprachen'!$N$1)","v":"Technical customer documents"}]
[2,null,{"$f":"OFFSET('Language-Sprachen'!A100,,'Language-Sprachen'!$N$1)","v":"Zone definition for optical assessment"}]
[3,null,{"$f":"OFFSET('Language-Sprachen'!A101,,'Language-Sprachen'!$N$1)","v":"Definition of boundary samples"}]
[4,null,{"$f":"OFFSET('Language-Sprachen'!A102,,'Language-Sprachen'!$N$1)","v":"Definition of pore classes"}]
[5,null,{"$f":"OFFSET('Language-Sprachen'!A103,,'Language-Sprachen'!$N$1)","v":"Acceptance quidelines"}]
[6,null,{"$f":"OFFSET('Language-Sprachen'!A104,,'Language-Sprachen'!$N$1)","v":"Test regulations"}]
[7,null,{"$f":"OFFSET('Language-Sprachen'!A105,,'Language-Sprachen'!$N$1)","v":"Standards"}]
[8,null,{"$f":"OFFSET('Language-Sprachen'!A106,,'Language-Sprachen'!$N$1)","v":"List with dates for color / variant PPAs"}]
[9,null,{"$f":"OFFSET('Language-Sprachen'!A522,,'Language-Sprachen'!$N$1)","v":"MGSM\n(Modine Global Supplier Manual)"},null,null,null,null,null,null,null,{"$f":"OFFSET('Language-Sprachen'!A513,,'Language-Sprachen'!$N$1)","v":"GF0042 Refer: www.modine.com/suppliers/supplier refrence documents"}]
[]
[10,null,{"$f":"OFFSET('Language-Sprachen'!A512,,'Language-Sprachen'!$N$1)","v":"Supplier Technical Feasibility Commitment"},null,null,null,null,null,null,null,{"$f":"OFFSET('Language-Sprachen'!A513,,'Language-Sprachen'!$N$1)","v":"GF0042 Refer: www.modine.com/suppliers/supplier refrence documents"},null,null,null,null,null,null,null,null,null,{"$f":"OFFSET('Language-Sprachen'!A523,,'Language-Sprachen'!$N$1)","v":"This document must be submitted in the case of new part sampling!\t"}]
[]
[11,null,{"$f":"OFFSET('Language-Sprachen'!A514,,'Language-Sprachen'!$N$1)","v":"Lessons Learned"},null,null,null,null,null,null,null,{"$f":"OFFSET('Language-Sprachen'!A515,,'Language-Sprachen'!$N$1)","v":"GF0514 Refer: www.modine.com/suppliers/supplier reference documents"},null,null,null,null,null,null,null,null,null,{"$f":"OFFSET('Language-Sprachen'!A524,,'Language-Sprachen'!$N$1)","v":"The document must be submitted when topics arise!"}]
[]
[12,null,{"$f":"OFFSET('Language-Sprachen'!A516,,'Language-Sprachen'!$N$1)","v":"Production Performance Report"},null,null,null,null,null,null,null,{"$f":"OFFSET('Language-Sprachen'!A517,,'Language-Sprachen'!$N$1)","v":"GF0467 Refer: www.modine.com/suppliers/supplier reference documents"},null,null,null,null,null,null,null,null,null,{"$f":"OFFSET('Language-Sprachen'!A523,,'Language-Sprachen'!$N$1)","v":"This document must be submitted in the case of new part sampling!\t"}]
[]
[13,null,{"$f":"OFFSET('Language-Sprachen'!A518,,'Language-Sprachen'!$N$1)","v":"Tooling Inventory Form"},null,null,null,null,null,null,null,{"$f":"OFFSET('Language-Sprachen'!A519,,'Language-Sprachen'!$N$1)","v":"NA0015 Refer: www.modine.com/suppliers/supplier reference documents"},null,null,null,null,null,null,null,null,null,{"$f":"OFFSET('Language-Sprachen'!A523,,'Language-Sprachen'!$N$1)","v":"This document must be submitted in the case of new part sampling!\t"}]
[]
[14,null,{"$f":"OFFSET('Language-Sprachen'!A520,,'Language-Sprachen'!$N$1)","v":"CQI (Continous Quality Improvements) Requirements"},null,null,null,null,null,null,null,{"$f":"OFFSET('Language-Sprachen'!A521,,'Language-Sprachen'!$N$1)","v":"Refer: https://www.aiag.org/quality/special-process-assessments"},null,null,null,null,null,null,null,null,null,{"$f":"OFFSET('Language-Sprachen'!A525,,'Language-Sprachen'!$N$1)","v":"Must be considered according to customer requirement if necessary!"}]
[]
[{"$f":"OFFSET('Language-Sprachen'!A107,,'Language-Sprachen'!$N$1)","v":"Variants"}]
[{"$f":"OFFSET('Language-Sprachen'!A94,,'Language-Sprachen'!$N$1)","v":"Application"},null,{"$f":"OFFSET('Language-Sprachen'!A108,,'Language-Sprachen'!$N$1)","v":"Contents"},null,null,null,null,null,null,null,{"$f":"OFFSET('Language-Sprachen'!A109,,'Language-Sprachen'!$N$1)","v":"Description"},null,null,null,null,null,null,null,null,null,{"$f":"OFFSET('Language-Sprachen'!A110,,'Language-Sprachen'!$N$1)","v":"Consideration in the scope of the PPA procedure"}]
[]
[]
[]
[null,null,{"$f":"OFFSET('Language-Sprachen'!A111,,'Language-Sprachen'!$N$1)","v":"Are deviating machines or processes planned?"}]
[null,null,{"$f":"OFFSET('Language-Sprachen'!A112,,'Language-Sprachen'!$N$1)","v":"Are alternative deliveries provided for?"}]
[]
[]
[{"$f":"OFFSET('Language-Sprachen'!A113,,'Language-Sprachen'!$N$1)","v":"Agreement on PPA content and submission"}]
[{"$f":"OFFSET('Language-Sprachen'!$A$114,,'Language-Sprachen'!$N$1)","v":"Order number"},null,{"$f":"OFFSET('Language-Sprachen'!$A$115,,'Language-Sprachen'!$N$1)","v":"Test area\n(if applicable for the product)"},null,null,null,null,null,null,null,{"$f":"OFFSET('Language-Sprachen'!$A$116,,'Language-Sprachen'!$N$1)","v":"Requirement existing"},null,{"$f":"OFFSET('Language-Sprachen'!$A$117,,'Language-Sprachen'!$N$1)","v":"Submision required"},null,{"$f":"OFFSET('Language-Sprachen'!$A$118,,'Language-Sprachen'!$N$1)","v":"PPA procedure"},null,{"$f":"OFFSET('Language-Sprachen'!$A$119,,'Language-Sprachen'!$N$1)","v":"Variant PPA"},null,{"$f":"OFFSET('Language-Sprachen'!$A$120,,'Language-Sprachen'!$N$1)","v":"Step for stepped PPA procedure"},null,null,null,null,null,null,null,{"$f":"OFFSET('Language-Sprachen'!$A$121,,'Language-Sprachen'!$N$1)","v":"Part of requalification"},null,{"$f":"OFFSET('Language-Sprachen'!$A$122,,'Language-Sprachen'!$N$1)","v":"Remark"}]
[]
[null,null,null,null,null,null,null,null,null,null,null,null,null,null,null,null,null,null,{"$f":"OFFSET('Language-Sprachen'!$A$84,,'Language-Sprachen'!$N$1)","v":"Step 1"},null,{"$f":"OFFSET('Language-Sprachen'!$A$85,,'Language-Sprachen'!$N$1)","v":"Step 2"},null,{"$f":"OFFSET('Language-Sprachen'!$A$86,,'Language-Sprachen'!$N$1)","v":"Step 3"},null,{"$f":"OFFSET('Language-Sprachen'!$A$87,,'Language-Sprachen'!$N$1)","v":"Step 4"}]
[]
[]
["0.1",null,{"$f":"OFFSET('Language-Sprachen'!A123,,'Language-Sprachen'!$N$1)","v":"PPA cover sheet/ evaluation"},null,null,null,null,null,null,null,{"$f":"OFFSET('Language-Sprachen'!A125,,'Language-Sprachen'!$N$1)","v":"Yes"},null,{"$f":"OFFSET('Language-Sprachen'!A125,,'Language-Sprachen'!$N$1)","v":"Yes"},null,"x",null,null,null,null,null,null,null,null,null,null,null,"Yes"]
["0.2",null,{"$f":"OFFSET('Language-Sprachen'!A124,,'Language-Sprachen'!$N$1)","v":"Self-assessment for product, process, SW (if appl.)"},null,null,null,null,null,null,null,{"$f":"OFFSET('Language-Sprachen'!A125,,'Language-Sprachen'!$N$1)","v":"Yes"},null,{"$f":"OFFSET('Language-Sprachen'!A125,,'Language-Sprachen'!$N$1)","v":"Yes"}]
[{"$f":"OFFSET('Language-Sprachen'!A127,,'Language-Sprachen'!$N$1)","v":"Hardware approval required"}]
["1.",null,{"$f":"OFFSET('Language-Sprachen'!A128,,'Language-Sprachen'!$N$1)","v":"Deliverables of product development"}]
["1.1",null,{"$f":"OFFSET('Language-Sprachen'!A129,,'Language-Sprachen'!$N$1)","v":"Technical specifications"}]
["1.2",null,{"$f":"OFFSET('Language-Sprachen'!A130,,'Language-Sprachen'!$N$1)","v":"Approved design changes"}]
["1.3",null,{"$f":"OFFSET('Language-Sprachen'!A131,,'Language-Sprachen'!$N$1)","v":"Design, engineering approvals by organization in case of development responsibility as per agreement"}]
["1.4",null,{"$f":"OFFSET('Language-Sprachen'!A132,,'Language-Sprachen'!$N$1)","v":"Material data via IMDS"}]
["1.5",null,{"$f":"OFFSET('Language-Sprachen'!A133,,'Language-Sprachen'!$N$1)","v":"Design FMEA"}]
["2.",null,{"$f":"OFFSET('Language-Sprachen'!A134,,'Language-Sprachen'!$N$1)","v":"Deliverables of production process development"}]
["2.1",null,{"$f":"OFFSET('Language-Sprachen'!A135,,'Language-Sprachen'!$N$1)","v":"Process flow chart"}]
["2.2",null,{"$f":"OFFSET('Language-Sprachen'!A136,,'Language-Sprachen'!$N$1)","v":"Process FMEA"}]
["2.3",null,{"$f":"OFFSET('Language-Sprachen'!A137,,'Language-Sprachen'!$N$1)","v":"Control plan (CP)"}]
["3.",null,{"$f":"OFFSET('Language-Sprachen'!A138,,'Language-Sprachen'!$N$1)","v":"Deliverables of the validation of the product"}]
["3.1",null,{"$f":"OFFSET('Language-Sprachen'!A140,,'Language-Sprachen'!$N$1)","v":"Geometry, dimensions"},null,null,null,null,null,null,null,null,null,null,null,{"$f":"OFFSET('Language-Sprachen'!A139,,'Language-Sprachen'!$N$1)","v":"Number of parts per cavity/mold"}]
["3.1.1",null,{"$f":"OFFSET('Language-Sprachen'!A141,,'Language-Sprachen'!$N$1)","v":"Raw part measurement"}]
["3.1.2",null,{"$f":"OFFSET('Language-Sprachen'!A142,,'Language-Sprachen'!$N$1)","v":"single part measurement"}]
["3.1.3",null,{"$f":"OFFSET('Language-Sprachen'!A143,,'Language-Sprachen'!$N$1)","v":"Standard measurement report (all drawing characteristics)"}]
["3.1.4",null,{"$f":"OFFSET('Language-Sprachen'!A144,,'Language-Sprachen'!$N$1)","v":"Standard gage report"}]
["3.1.5",null,{"$f":"OFFSET('Language-Sprachen'!A145,,'Language-Sprachen'!$N$1)","v":"3D record measurement"}]
["3.1.6",null,{"$f":"OFFSET('Language-Sprachen'!A146,,'Language-Sprachen'!$N$1)","v":"Sections"}]
["3.1.7",null,{"$f":"OFFSET('Language-Sprachen'!A64,,'Language-Sprachen'!$N$1)","v":"Other"},null,null,null,null,null,null,null,null,null,null,null,null,null,null,null,null,null,null,null,null,null,null,null,null,null,{"$f":"OFFSET('Language-Sprachen'!A501,,'Language-Sprachen'!$N$1)","v":"Measurement/test methods, measurement tuining"}]
["3.2",null,{"$f":"OFFSET('Language-Sprachen'!A147,,'Language-Sprachen'!$N$1)","v":"Material (strength, physical properties, etc.)"}]
["3.2.1",null,{"$f":"OFFSET('Language-Sprachen'!A148,,'Language-Sprachen'!$N$1)","v":"Evidence of compliance with material related customer standards"}]
["3.2.2",null,{"$f":"OFFSET('Language-Sprachen'!A149,,'Language-Sprachen'!$N$1)","v":"Sample extraction plan"}]
["3.2.3",null,{"$f":"OFFSET('Language-Sprachen'!A150,,'Language-Sprachen'!$N$1)","v":"Metallography"}]
["3.2.4",null,{"$f":"OFFSET('Language-Sprachen'!A151,,'Language-Sprachen'!$N$1)","v":"Chemical analyses"}]
["3.2.5",null,{"$f":"OFFSET('Language-Sprachen'!A152,,'Language-Sprachen'!$N$1)","v":"Single part approval"}]
["3.2.6",null,{"$f":"OFFSET('Language-Sprachen'!A153,,'Language-Sprachen'!$N$1)","v":"Auxiliary and operating material approval"}]
["3.2.7",null,{"$f":"OFFSET('Language-Sprachen'!A154,,'Language-Sprachen'!$N$1)","v":"Mechanical measures"}]
["3.2.8",null,{"$f":"OFFSET('Language-Sprachen'!A155,,'Language-Sprachen'!$N$1)","v":"Raw part approval"}]
["3.2.9",null,{"$f":"OFFSET('Language-Sprachen'!A156,,'Language-Sprachen'!$N$1)","v":"Corrosion test"}]
["3.2.10",null,{"$f":"OFFSET('Language-Sprachen'!A64,,'Language-Sprachen'!$N$1)","v":"Other"}]
[]
[]
[{"$f":"OFFSET('Language-Sprachen'!$A$114,,'Language-Sprachen'!$N$1)","v":"Order number"},null,{"$f":"OFFSET('Language-Sprachen'!$A$115,,'Language-Sprachen'!$N$1)","v":"Test area\n(if applicable for the product)"},null,null,null,null,null,null,null,{"$f":"OFFSET('Language-Sprachen'!$A$116,,'Language-Sprachen'!$N$1)","v":"Requirement existing"},null,{"$f":"OFFSET('Language-Sprachen'!$A$117,,'Language-Sprachen'!$N$1)","v":"Submision required"},null,{"$f":"OFFSET('Language-Sprachen'!$A$118,,'Language-Sprachen'!$N$1)","v":"PPA procedure"},null,{"$f":"OFFSET('Language-Sprachen'!$A$119,,'Language-Sprachen'!$N$1)","v":"Variant PPA"},null,{"$f":"OFFSET('Language-Sprachen'!$A$120,,'Language-Sprachen'!$N$1)","v":"Step for stepped PPA procedure"},null,null,null,null,null,null,null,{"$f":"OFFSET('Language-Sprachen'!$A$121,,'Language-Sprachen'!$N$1)","v":"Part of requalification"},null,{"$f":"OFFSET('Language-Sprachen'!$A$122,,'Language-Sprachen'!$N$1)","v":"Remark"}]
[]
[null,null,null,null,null,null,null,null,null,null,null,null,null,null,null,null,null,null,{"$f":"OFFSET('Language-Sprachen'!$A$84,,'Language-Sprachen'!$N$1)","v":"Step 1"},null,{"$f":"OFFSET('Language-Sprachen'!$A$85,,'Language-Sprachen'!$N$1)","v":"Step 2"},null,{"$f":"OFFSET('Language-Sprachen'!$A$86,,'Language-Sprachen'!$N$1)","v":"Step 3"},null,{"$f":"OFFSET('Language-Sprachen'!$A$87,,'Language-Sprachen'!$N$1)","v":"Step 4"}]
[]
[]
["3.3",null,{"$f":"OFFSET('Language-Sprachen'!A157,,'Language-Sprachen'!$N$1)","v":"Functional test acc. to CRS/specification/functional regulations"}]
["3.4",null,{"$f":"OFFSET('Language-Sprachen'!A158,,'Language-Sprachen'!$N$1)","v":"Haptics"}]
["3.5",null,{"$f":"OFFSET('Language-Sprachen'!A159,,'Language-Sprachen'!$N$1)","v":"Acoustic"}]
["3.6",null,{"$f":"OFFSET('Language-Sprachen'!A160,,'Language-Sprachen'!$N$1)","v":"Odor"}]
["3.7",null,{"$f":"OFFSET('Language-Sprachen'!A161,,'Language-Sprachen'!$N$1)","v":"Appearance"}]
["3.8",null,{"$f":"OFFSET('Language-Sprachen'!A162,,'Language-Sprachen'!$N$1)","v":"Surface requirement"}]
["3.8.1",null,{"$f":"OFFSET('Language-Sprachen'!A163,,'Language-Sprachen'!$N$1)","v":"Color measurement and visual self-assessment"}]
["3.8.2",null,{"$f":"OFFSET('Language-Sprachen'!A164,,'Language-Sprachen'!$N$1)","v":"Color-dependent properties"}]
["3.9",null,{"$f":"OFFSET('Language-Sprachen'!A165,,'Language-Sprachen'!$N$1)","v":"Technical cleanliness"}]
["3.10",null,{"$f":"OFFSET('Language-Sprachen'!A166,,'Language-Sprachen'!$N$1)","v":"Reliability"}]
["3.11",null,{"$f":"OFFSET('Language-Sprachen'!A167,,'Language-Sprachen'!$N$1)","v":"Resistance to electrostatic discharge (ESD)"}]
["3.12",null,{"$f":"OFFSET('Language-Sprachen'!A168,,'Language-Sprachen'!$N$1)","v":"Electrical safety / high-voltage safety"}]
["3.13",null,{"$f":"OFFSET('Language-Sprachen'!A169,,'Language-Sprachen'!$N$1)","v":"Electromagnetic compatibility (EMC)"}]
["4.",null,{"$f":"OFFSET('Language-Sprachen'!A170,,'Language-Sprachen'!$N$1)","v":"Deliverables of the validation of the production process"}]
["4.1",null,{"$f":"OFFSET('Language-Sprachen'!A171,,'Language-Sprachen'!$N$1)","v":"Assurance of special characteristics according to technical specifications and agreed characteristics (e.g. poka-yoke, 100% inspection, process capabilities, etc.)"}]
["4.2",null,{"$f":"OFFSET('Language-Sprachen'!A172,,'Language-Sprachen'!$N$1)","v":"Laboratory qualification"}]
["4.3",null,{"$f":"OFFSET('Language-Sprachen'!A173,,'Language-Sprachen'!$N$1)","v":"Sample including production documentation"}]
["4.4",null,{"$f":"OFFSET('Language-Sprachen'!A174,,'Language-Sprachen'!$N$1)","v":"Master sample"}]
["4.5",null,{"$f":"OFFSET('Language-Sprachen'!A175,,'Language-Sprachen'!$N$1)","v":"Production capacity"}]
["4.6",null,{"$f":"OFFSET('Language-Sprachen'!A176,,'Language-Sprachen'!$N$1)","v":"Tools (with quantity/number of cavities and information about tool concept)"}]
[]
[]
[]
[]
[{"$f":"OFFSET('Language-Sprachen'!$A$114,,'Language-Sprachen'!$N$1)","v":"Order number"},null,{"$f":"OFFSET('Language-Sprachen'!$A$115,,'Language-Sprachen'!$N$1)","v":"Test area\n(if applicable for the product)"},null,null,null,null,null,null,null,{"$f":"OFFSET('Language-Sprachen'!$A$116,,'Language-Sprachen'!$N$1)","v":"Requirement existing"},null,{"$f":"OFFSET('Language-Sprachen'!$A$117,,'Language-Sprachen'!$N$1)","v":"Submision required"},null,{"$f":"OFFSET('Language-Sprachen'!$A$118,,'Language-Sprachen'!$N$1)","v":"PPA procedure"},null,{"$f":"OFFSET('Language-Sprachen'!$A$119,,'Language-Sprachen'!$N$1)","v":"Variant PPA"},null,{"$f":"OFFSET('Language-Sprachen'!$A$120,,'Language-Sprachen'!$N$1)","v":"Step for stepped PPA procedure"},null,null,null,null,null,null,null,{"$f":"OFFSET('Language-Sprachen'!$A$121,,'Language-Sprachen'!$N$1)","v":"Part of requalification"},null,{"$f":"OFFSET('Language-Sprachen'!$A$122,,'Language-Sprachen'!$N$1)","v":"Remark"}]
[]
[null,null,null,null,null,null,null,null,null,null,null,null,null,null,null,null,null,null,{"$f":"OFFSET('Language-Sprachen'!$A$84,,'Language-Sprachen'!$N$1)","v":"Step 1"},null,{"$f":"OFFSET('Language-Sprachen'!$A$85,,'Language-Sprachen'!$N$1)","v":"Step 2"},null,{"$f":"OFFSET('Language-Sprachen'!$A$86,,'Language-Sprachen'!$N$1)","v":"Step 3"},null,{"$f":"OFFSET('Language-Sprachen'!$A$87,,'Language-Sprachen'!$N$1)","v":"Step 4"}]
[]
[]
["5.",null,{"$f":"OFFSET('Language-Sprachen'!A177,,'Language-Sprachen'!$N$1)","v":"General deliverables"}]
["5.1",null,{"$f":"OFFSET('Language-Sprachen'!A178,,'Language-Sprachen'!$N$1)","v":"Evidence of compliance with statutory requirements"}]
["5.2",null,{"$f":"OFFSET('Language-Sprachen'!A179,,'Language-Sprachen'!$N$1)","v":"PPA status of supply chain"}]
["5.3",null,{"$f":"OFFSET('Language-Sprachen'!A180,,'Language-Sprachen'!$N$1)","v":"Test equipment list for product and production process"}]
[null,null,{"$f":"OFFSET('Language-Sprachen'!A181,,'Language-Sprachen'!$N$1)","v":"Test/measurement reports or acceptance test reports for gages"}]
["5.4",null,{"$f":"OFFSET('Language-Sprachen'!A182,,'Language-Sprachen'!$N$1)","v":"Measurement equipment analysis studies product and production process"}]
["5.5",null,{"$f":"OFFSET('Language-Sprachen'!A183,,'Language-Sprachen'!$N$1)","v":"Part history"}]
["5.6",null,{"$f":"OFFSET('Language-Sprachen'!A184,,'Language-Sprachen'!$N$1)","v":"Evidence of suitability of the employ-ed load carries including storage"}]
["5.7",null,{"$f":"OFFSET('Language-Sprachen'!A185,,'Language-Sprachen'!$N$1)","v":"Documention of agreements regarding the diagnosis and analysis process\n- Complaints handling (e.g. 8D)\n- Field failure analysis"}]
["5.8",null,{"$f":"OFFSET('Language-Sprachen'!A186,,'Language-Sprachen'!$N$1)","v":"Documentation of the requalification agreement"}]
["5.9",null,{"$f":"OFFSET('Language-Sprachen'!A64,,'Language-Sprachen'!$N$1)","v":"Other"}]
[6,null,{"$f":"OFFSET('Language-Sprachen'!A187,,'Language-Sprachen'!$N$1)","v":"Deliverables for software"}]
[{"$f":"OFFSET('Language-Sprachen'!A188,,'Language-Sprachen'!$N$1)","v":"Software approval required"}]
["6.1",null,{"$f":"OFFSET('Language-Sprachen'!A189,,'Language-Sprachen'!$N$1)","v":"Software release (e.g. Appendix 5 \"Cover sheet for PPA software\")"}]
["6.2",null,{"$f":"OFFSET('Language-Sprachen'!A190,,'Language-Sprachen'!$N$1)","v":"Definition of scope of the software product"}]
["6.3",null,{"$f":"OFFSET('Language-Sprachen'!A191,,'Language-Sprachen'!$N$1)","v":"Reference to contractually stipulated quality requirements"}]
["6.4",null,{"$f":"OFFSET('Language-Sprachen'!A192,,'Language-Sprachen'!$N$1)","v":"Documentation of technical SW specifications"}]
["6.5",null,{"$f":"OFFSET('Language-Sprachen'!A193,,'Language-Sprachen'!$N$1)","v":"Implementation of the requirements from 6.3 and 6.4 espacially the Special"}]
["6.6",null,{"$f":"OFFSET('Language-Sprachen'!A194,,'Language-Sprachen'!$N$1)","v":"Documentation of FOSS (free and open-source software)"}]
["6.7",null,{"$f":"OFFSET('Language-Sprachen'!A195,,'Language-Sprachen'!$N$1)","v":"List of known errors"}]
["6.8",null,{"$f":"OFFSET('Language-Sprachen'!A196,,'Language-Sprachen'!$N$1)","v":"Documentation of development tools"}]
[{"$f":"OFFSET('Language-Sprachen'!$A$114,,'Language-Sprachen'!$N$1)","v":"Order number"},null,{"$f":"OFFSET('Language-Sprachen'!$A$115,,'Language-Sprachen'!$N$1)","v":"Test area\n(if applicable for the product)"},null,null,null,null,null,null,null,{"$f":"OFFSET('Language-Sprachen'!$A$116,,'Language-Sprachen'!$N$1)","v":"Requirement existing"},null,{"$f":"OFFSET('Language-Sprachen'!$A$117,,'Language-Sprachen'!$N$1)","v":"Submision required"},null,{"$f":"OFFSET('Language-Sprachen'!$A$118,,'Language-Sprachen'!$N$1)","v":"PPA procedure"},null,{"$f":"OFFSET('Language-Sprachen'!$A$119,,'Language-Sprachen'!$N$1)","v":"Variant PPA"},null,{"$f":"OFFSET('Language-Sprachen'!$A$120,,'Language-Sprachen'!$N$1)","v":"Step for stepped PPA procedure"},null,null,null,null,null,null,null,{"$f":"OFFSET('Language-Sprachen'!$A$121,,'Language-Sprachen'!$N$1)","v":"Part of requalification"},null,{"$f":"OFFSET('Language-Sprachen'!$A$122,,'Language-Sprachen'!$N$1)","v":"Remark"}]
[]
[null,null,null,null,null,null,null,null,null,null,null,null,null,null,null,null,null,null,{"$f":"OFFSET('Language-Sprachen'!$A$84,,'Language-Sprachen'!$N$1)","v":"Step 1"},null,{"$f":"OFFSET('Language-Sprachen'!$A$85,,'Language-Sprachen'!$N$1)","v":"Step 2"},null,{"$f":"OFFSET('Language-Sprachen'!$A$86,,'Language-Sprachen'!$N$1)","v":"Step 3"},null,{"$f":"OFFSET('Language-Sprachen'!$A$87,,'Language-Sprachen'!$N$1)","v":"Step 4"}]
[]
[]
["6.9",null,{"$f":"OFFSET('Language-Sprachen'!A197,,'Language-Sprachen'!$N$1)","v":"Documentation of testing tools"}]
["6.10",null,{"$f":"OFFSET('Language-Sprachen'!A198,,'Language-Sprachen'!$N$1)","v":"Documentation of version management"}]
["6.11",null,{"$f":"OFFSET('Language-Sprachen'!A199,,'Language-Sprachen'!$N$1)","v":"Documentation of a process evaluation (e.g. VDA Automotive Spice)"}]
[null,null,{"$f":"OFFSET('Language-Sprachen'!$A$200,,'Language-Sprachen'!$N$1)","v":"Production process acceptance required"}]
[null,null,{"$f":"OFFSET('Language-Sprachen'!$A$205,,'Language-Sprachen'!$N$1)","v":"Customer participation desired for process acceptance"},null,null,null,null,null,null,null,"Yes",null,{"$f":"OFFSET('Language-Sprachen'!$A$206,,'Language-Sprachen'!$N$1)","v":"Agreed procedure (e.g. duration, test quantity)"}]
[null,null,{"$f":"OFFSET('Language-Sprachen'!A207,,'Language-Sprachen'!$N$1)","v":"Tests by customer"}]
[{"$f":"OFFSET('Language-Sprachen'!$A$94,,'Language-Sprachen'!$N$1)","v":"Application"},null,{"$f":"OFFSET('Language-Sprachen'!$A$201,,'Language-Sprachen'!$N$1)","v":"Tests by customer"},null,null,null,null,null,null,null,{"$f":"OFFSET('Language-Sprachen'!$A$202,,'Language-Sprachen'!$N$1)","v":"Number of sample parts"},null,{"$f":"OFFSET('Language-Sprachen'!$A$203,,'Language-Sprachen'!$N$1)","v":"Duration in working days"},null,{"$f":"OFFSET('Language-Sprachen'!$A$118,,'Language-Sprachen'!$N$1)","v":"PPA procedure"},null,{"$f":"OFFSET('Language-Sprachen'!$A$119,,'Language-Sprachen'!$N$1)","v":"Variant PPA"},null,{"$f":"OFFSET('Language-Sprachen'!$A$120,,'Language-Sprachen'!$N$1)","v":"Step for stepped PPA procedure"},null,null,null,null,null,null,null,{"$f":"OFFSET('Language-Sprachen'!$A$121,,'Language-Sprachen'!$N$1)","v":"Part of requalification"},null,{"$f":"OFFSET('Language-Sprachen'!$A$204,,'Language-Sprachen'!$N$1)","v":"Customer contact"}]
[]
[null,null,null,null,null,null,null,null,null,null,null,null,null,null,null,null,null,null,{"$f":"OFFSET('Language-Sprachen'!$A$84,,'Language-Sprachen'!$N$1)","v":"Step 1"},null,{"$f":"OFFSET('Language-Sprachen'!$A$85,,'Language-Sprachen'!$N$1)","v":"Step 2"},null,{"$f":"OFFSET('Language-Sprachen'!$A$86,,'Language-Sprachen'!$N$1)","v":"Step 3"},null,{"$f":"OFFSET('Language-Sprachen'!$A$87,,'Language-Sprachen'!$N$1)","v":"Step 4"}]
[]
[]
["1",null,{"$f":"OFFSET('Language-Sprachen'!A208,,'Language-Sprachen'!$N$1)","v":"Dimension"}]
["2",null,{"$f":"OFFSET('Language-Sprachen'!A209,,'Language-Sprachen'!$N$1)","v":"Function"}]
["3",null,{"$f":"OFFSET('Language-Sprachen'!A210,,'Language-Sprachen'!$N$1)","v":"customer acceptance granted"}]
["4",null,{"$f":"OFFSET('Language-Sprachen'!A211,,'Language-Sprachen'!$N$1)","v":"Material"}]
["5",null,{"$f":"OFFSET('Language-Sprachen'!A212,,'Language-Sprachen'!$N$1)","v":"Corrosion"}]
["6",null,{"$f":"OFFSET('Language-Sprachen'!A213,,'Language-Sprachen'!$N$1)","v":"Paint technology"}]
["7",null,{"$f":"OFFSET('Language-Sprachen'!A214,,'Language-Sprachen'!$N$1)","v":"Color"}]
["8",null,{"$f":"OFFSET('Language-Sprachen'!A215,,'Language-Sprachen'!$N$1)","v":"surface, graining"}]
["9",null,{"$f":"OFFSET('Language-Sprachen'!A216,,'Language-Sprachen'!$N$1)","v":"Process"}]
["10"]
["11"]
["12"]
["13"]
["14"]
["15"]
["16"]
["17"]
["18"]
["19"]
[{"$f":"OFFSET('Language-Sprachen'!A217,,'Language-Sprachen'!$N$1)","v":"Interface components and auxiliary materials to be made available"}]
["No",null,{"$f":"OFFSET('Language-Sprachen'!A218,,'Language-Sprachen'!$N$1)","v":"To be provided by the organization"}]
[null,{"$f":"OFFSET('Language-Sprachen'!$A$37,,'Language-Sprachen'!$N$1)","v":"Name"},null,null,null,null,null,null,{"$f":"OFFSET('Language-Sprachen'!$A$38,,'Language-Sprachen'!$N$1)","v":"Part Number"},null,null,null,null,{"$f":"OFFSET('Language-Sprachen'!$A$6,,'Language-Sprachen'!$N$1)","v":"Version/ Date"},null,null,null,{"$f":"OFFSET('Language-Sprachen'!$A$219,,'Language-Sprachen'!$N$1)","v":"Date of provision"},null,null,null,{"$f":"OFFSET('Language-Sprachen'!$A$220,,'Language-Sprachen'!$N$1)","v":"Duration of provision"},null,null,null,null,null,{"$f":"OFFSET('Language-Sprachen'!$A$221,,'Language-Sprachen'!$N$1)","v":"Comment"}]
[]
[]
[]
[]
[]
[]
[]
["No",null,{"$f":"OFFSET('Language-Sprachen'!A222,,'Language-Sprachen'!$N$1)","v":"To be provided by the customer"}]
[null,{"$f":"OFFSET('Language-Sprachen'!$A$37,,'Language-Sprachen'!$N$1)","v":"Name"},null,null,null,null,null,null,{"$f":"OFFSET('Language-Sprachen'!$A$38,,'Language-Sprachen'!$N$1)","v":"Part Number"},null,null,null,null,{"$f":"OFFSET('Language-Sprachen'!$A$6,,'Language-Sprachen'!$N$1)","v":"Version/ Date"},null,null,null,{"$f":"OFFSET('Language-Sprachen'!$A$219,,'Language-Sprachen'!$N$1)","v":"Date of provision"},null,null,null,{"$f":"OFFSET('Language-Sprachen'!$A$220,,'Language-Sprachen'!$N$1)","v":"Duration of provision"},null,null,null,null,null,{"$f":"OFFSET('Language-Sprachen'!$A$221,,'Language-Sprachen'!$N$1)","v":"Comment"}]
[]
[]
[]
[]
[]
[]
[]
[]
[]
[]
[]
[]
["Yes",null,{"$f":"OFFSET('Language-Sprachen'!$A$223,,'Language-Sprachen'!$N$1)","v":"Alignment \"Requalification\" (L.I. & funct. test)"}]
[null,{"$f":"OFFSET('Language-Sprachen'!A224,,'Language-Sprachen'!$N$1)","v":"Intervall \"Requalification\" (L.I. & funct. test)"}]
[null,{"$f":"OFFSET('Language-Sprachen'!A225,,'Language-Sprachen'!$N$1)","v":"Forward to customer"},null,null,null,null,null,null,null,{"$f":"OFFSET('Language-Sprachen'!$A$204,,'Language-Sprachen'!$N$1)","v":"Customer contact"}]
[null,{"$f":"OFFSET('Language-Sprachen'!A226,,'Language-Sprachen'!$N$1)","v":"Evidence only"},null,null,null,null,null,null,null,{"$f":"OFFSET('Language-Sprachen'!$A$25,,'Language-Sprachen'!$N$1)","v":"Name"},null,null,null,null,null,null,null,null,null,null,null,null,null,null,null,{"$f":"OFFSET('Language-Sprachen'!$A$228,,'Language-Sprachen'!$N$1)","v":"Department"}]
[null,{"$f":"OFFSET('Language-Sprachen'!A227,,'Language-Sprachen'!$N$1)","v":"Documentation"},null,null,null,null,null,null,null,{"$f":"OFFSET('Language-Sprachen'!$A$27,,'Language-Sprachen'!$N$1)","v":"E-mail"}]
[null,{"$f":"OFFSET('Language-Sprachen'!$A$229,,'Language-Sprachen'!$N$1)","v":"If any deviations from the specifications were detected during layout inspection and functional testing, the customer must be informed any case."}]
[null,{"$f":"OFFSET('Language-Sprachen'!A510,,'Language-Sprachen'!$N$1)","v":"Layout Inspection according to IATF 16949:2016 Chapter 8.6.2: The scope and frequency are to be specified in the Control Plan!"}]
[{"$f":"OFFSET('Language-Sprachen'!$A$230,,'Language-Sprachen'!$N$1)","v":"Comment of organization"}]
[]
[]
[]
[]
[]
[]
[{"$f":"OFFSET('Language-Sprachen'!$A$334,,'Language-Sprachen'!$N$1)","v":"Confirmation of organization:"}]
[{"$f":"OFFSET('Language-Sprachen'!$A$25,,'Language-Sprachen'!$N$1)","v":"Name"},null,null,null,null,{"$f":"IF(OR('Attachment 4 Cover-PPA'!$F$29=\"\"),\"\",'Attachment 4 Cover-PPA'!$F$29)","v":""},null,null,null,null,null,null,null,null,null,null,null,{"$f":"OFFSET('Language-Sprachen'!$A$122,,'Language-Sprachen'!$N$1)","v":"Remark"},null,null,null,null,{"$f":"IF(OR('Attachment 4 Cover-PPA'!$W$29=\"\"),\"\",'Attachment 4 Cover-PPA'!$W$29)","v":""}]
[{"$f":"OFFSET('Language-Sprachen'!$A$228,,'Language-Sprachen'!$N$1)","v":"Department"},null,null,null,null,{"$f":"IF(OR('Attachment 4 Cover-PPA'!$F$30=\"\"),\"\",'Attachment 4 Cover-PPA'!$F$30)","v":""}]
[{"$f":"OFFSET('Language-Sprachen'!$A$26,,'Language-Sprachen'!$N$1)","v":"Telephone"},null,null,null,null,{"$f":"IF(OR('Attachment 4 Cover-PPA'!$F$31=\"\"),\"\",'Attachment 4 Cover-PPA'!$F$31)","v":""}]
[{"$f":"OFFSET('Language-Sprachen'!$A$27,,'Language-Sprachen'!$N$1)","v":"E-mail"},null,null,null,null,{"$f":"IF(OR('Attachment 4 Cover-PPA'!$F$32=\"\"),\"\",'Attachment 4 Cover-PPA'!$F$32)","v":""}]
[{"$f":"OFFSET('Language-Sprachen'!$A$49,,'Language-Sprachen'!$N$1)","v":"Date"},null,null,null,null,{"$f":"IF(OR('Attachment 4 Cover-PPA'!$F$33=\"\"),\"\",'Attachment 4 Cover-PPA'!$F$33)","v":""},null,null,null,null,null,null,null,null,null,null,null,{"$f":"OFFSET('Language-Sprachen'!$A$92,,'Language-Sprachen'!$N$1)","v":"Signature"},null,null,null,null,{"$f":"IF(OR('Attachment 4 Cover-PPA'!$W$33=\"\"),\"\",'Attachment 4 Cover-PPA'!$W$33)","v":""}]
[{"$f":"OFFSET('Language-Sprachen'!$A$231,,'Language-Sprachen'!$N$1)","v":"Comment of customer"}]
[]
[]
[]
[]
[]
[]
[{"$f":"OFFSET('Language-Sprachen'!$A$232,,'Language-Sprachen'!$N$1)","v":"Conformation of customer"}]
[{"$f":"OFFSET('Language-Sprachen'!$A$25,,'Language-Sprachen'!$N$1)","v":"Name"},null,null,null,null,{"$f":"IF(OR('Attachment 4 Cover-PPA'!$F$40=\"\"),\"\",'Attachment 4 Cover-PPA'!$F$40)","v":""},null,null,null,null,null,null,null,null,null,null,null,{"$f":"OFFSET('Language-Sprachen'!$A$122,,'Language-Sprachen'!$N$1)","v":"Remark"}]
[{"$f":"OFFSET('Language-Sprachen'!$A$228,,'Language-Sprachen'!$N$1)","v":"Department"},null,null,null,null,{"$f":"IF(OR('Attachment 4 Cover-PPA'!$F$41=\"\"),\"\",'Attachment 4 Cover-PPA'!$F$41)","v":""}]
[{"$f":"OFFSET('Language-Sprachen'!$A$26,,'Language-Sprachen'!$N$1)","v":"Telephone"},null,null,null,null,{"$f":"IF(OR('Attachment 4 Cover-PPA'!$F$42=\"\"),\"\",'Attachment 4 Cover-PPA'!$F$42)","v":""}]
[{"$f":"OFFSET('Language-Sprachen'!$A$27,,'Language-Sprachen'!$N$1)","v":"E-mail"},null,null,null,null,{"$f":"IF(OR('Attachment 4 Cover-PPA'!$F$43=\"\"),\"\",'Attachment 4 Cover-PPA'!$F$43)","v":""}]
[{"$f":"OFFSET('Language-Sprachen'!$A$49,,'Language-Sprachen'!$N$1)","v":"Date"},null,null,null,null,null,null,null,null,null,null,null,null,null,null,null,null,{"$f":"OFFSET('Language-Sprachen'!$A$92,,'Language-Sprachen'!$N$1)","v":"Signature"}]

{"sheet":"Attachment 3 SA-Part","index":2,"n_rows":66,"n_cols":41,"rows_kept":66,"cut":false,"hidden":false,"merged":[[65,0,65,1],[50,0,50,34],[51,2,51,34],[52,2,52,34],[53,2,53,34],[54,2,54,34],[57,2,57,34],[58,2,58,34],[59,2,59,34],[60,2,60,34],[61,2,61,34],[62,2,62,34],[63,2,63,34],[64,2,64,34],[65,2,65,34],[55,2,56,34],[51,0,56,1],[57,0,58,1],[59,0,61,1],[62,0,64,1],[0,0,1,11],[0,12,1,17],[0,18,1,34],[16,35,16,38],[20,40,22,40],[26,35,26,38],[10,0,10,5],[3,6,3,11],[4,6,4,11],[5,6,5,11],[6,6,6,11],[25,0,28,4],[21,0,24,4],[17,0,20,4],[17,5,19,11],[11,0,11,11],[8,0,8,5],[5,0,5,5],[4,0,4,5],[2,0,2,11],[2,12,2,23],[2,24,2,34],[3,24,4,29],[5,30,5,34],[3,18,3,23],[4,18,4,23],[5,18,5,23],[6,18,6,23],[7,18,7,23],[8,18,8,23],[47,0,47,4],[47,5,47,16],[48,0,48,4],[37,0,40,4],[41,0,42,15],[33,0,36,4],[33,5,35,11],[29,0,32,4],[32,5,32,11],[32,12,32,18],[48,5,48,16],[48,17,48,21],[9,6,9,11],[10,6,10,11],[9,12,9,17],[10,12,10,17],[9,18,9,23],[10,18,10,23],[6,30,6,34],[7,30,7,34],[8,30,8,34],[5,24,5,29],[6,24,6,29],[7,24,7,29],[8,24,8,29],[12,26,16,26],[12,27,16,34],[9,30,9,34],[10,30,10,34],[9,24,9,29],[10,24,10,29],[36,5,36,11],[37,5,39,11],[40,5,40,11],[17,12,19,18],[20,12,20,18],[21,12,23,18],[24,12,24,18],[25,12,27,18],[28,12,28,18],[29,12,31,18],[20,5,20,11],[21,5,23,11],[24,5,24,11],[25,5,27,11],[28,5,28,11],[29,5,31,11],[17,19,19,25],[20,19,20,25],[21,19,23,25],[24,19,24,25],[25,19,27,25],[28,19,28,25],[7,12,7,17],[8,12,8,17],[3,0,3,5],[6,0,6,5],[7,0,7,5],[9,0,9,5],[7,6,7,11],[8,6,8,11],[3,12,3,17],[4,12,4,17],[5,12,5,17],[6,12,6,17],[11,12,11,34],[3,30,4,34],[12,0,16,4],[12,5,16,11],[12,12,16,18],[12,19,16,25],[32,19,32,25],[33,19,35,25],[36,19,36,25],[37,19,39,25],[40,19,40,25],[33,12,35,18],[36,12,36,18],[37,12,39,18],[40,12,40,18],[17,27,20,34],[21,27,24,34],[25,27,28,34],[29,27,32,34],[33,27,36,34],[37,27,40,34],[17,26,19,26],[21,26,23,26],[48,22,48,34],[41,16,42,34],[43,0,43,34],[44,0,44,4],[44,5,44,16],[44,17,47,21],[44,22,47,34],[45,0,45,4],[45,5,45,16],[46,0,46,4],[46,5,46,16],[25,26,27,26],[29,26,31,26],[33,26,35,26],[37,26,39,26],[29,19,31,25]]}
[{"$f":"OFFSET('Language-Sprachen'!$A$233,,'Language-Sprachen'!$N$1)","v":"Self-assessment product"},null,null,null,null,null,null,null,null,null,null,null,{"$f":"OFFSET('Language-Sprachen'!$A$5,,'Language-Sprachen'!$N$1)","v":"Organization"},null,null,null,null,null,{"$f":"IF(OR('Attachment 4 Cover-PPA'!$S$1=\"\"),\"-\",'Attachment 4 Cover-PPA'!$S$1)","v":"Modine Europe GmbH"}]
[]
[{"$f":"OFFSET('Language-Sprachen'!$A$8,,'Language-Sprachen'!$N$1)","v":"Information about the organization"},null,null,null,null,null,null,null,null,null,null,null,{"$f":"OFFSET('Language-Sprachen'!$A$234,,'Language-Sprachen'!$N$1)","v":"Information about samples"},null,null,null,null,null,null,null,null,null,null,null,{"$f":"OFFSET('Language-Sprachen'!$A$9,,'Language-Sprachen'!$N$1)","v":"Information about the customer"}]
[{"$f":"OFFSET('Language-Sprachen'!$A$16,,'Language-Sprachen'!$N$1)","v":"Report number"},null,null,null,null,null,{"$f":"IF(OR('Attachment 4 Cover-PPA'!$G$16=\"\"),\"-\",'Attachment 4 Cover-PPA'!$G$16)","v":"-"},null,null,null,null,null,{"$f":"OFFSET('Language-Sprachen'!$A$235,,'Language-Sprachen'!$N$1)","v":"Delivery note number"},null,null,null,null,null,{"$f":"IF(OR('Attachment 4 Cover-PPA'!$S$16=\"\"),\"-\",'Attachment 4 Cover-PPA'!$S$16)","v":"-"},null,null,null,null,null,{"$f":"OFFSET('Language-Sprachen'!$A$23,,'Language-Sprachen'!$N$1)","v":"Customer"},null,null,null,null,null,{"$f":"IF(OR('Attachment 4 Cover-PPA'!$AE$16=\"\"),\"-\",'Attachment 4 Cover-PPA'!$AE$16)","v":"-"}]
[{"$f":"OFFSET('Language-Sprachen'!$A$17,,'Language-Sprachen'!$N$1)","v":"Report version"},null,null,null,null,null,{"$f":"IF(OR('Attachment 4 Cover-PPA'!$G$17=\"\"),\"-\",'Attachment 4 Cover-PPA'!$G$17)","v":"-"},null,null,null,null,null,{"$f":"OFFSET('Language-Sprachen'!$A$236,,'Language-Sprachen'!$N$1)","v":"Delivery quantity"},null,null,null,null,null,{"$f":"IF(OR('Attachment 4 Cover-PPA'!$S$17=\"\"),\"-\",'Attachment 4 Cover-PPA'!$S$17)","v":"-"}]
[{"$f":"OFFSET('Language-Sprachen'!$A$13,,'Language-Sprachen'!$N$1)","v":"Delivery location"},null,null,null,null,null,{"$f":"IF(OR('Attachment 4 Cover-PPA'!$G$18=\"\"),\"-\",'Attachment 4 Cover-PPA'!$G$18)","v":"-"},null,null,null,null,null,{"$f":"OFFSET('Language-Sprachen'!$A$237,,'Language-Sprachen'!$N$1)","v":"Batch number"},null,null,null,null,null,{"$f":"IF(OR('Attachment 4 Cover-PPA'!$S$18=\"\"),\"-\",'Attachment 4 Cover-PPA'!$S$18)","v":"-"},null,null,null,null,null,{"$f":"OFFSET('Language-Sprachen'!$A$21,,'Language-Sprachen'!$N$1)","v":"Order Number PPA sample"},null,null,null,null,null,{"$f":"IF(OR('Attachment 4 Cover-PPA'!$AE$18=\"\"),\"-\",'Attachment 4 Cover-PPA'!$AE$18)","v":"-"}]
[{"$f":"OFFSET('Language-Sprachen'!$A$11,,'Language-Sprachen'!$N$1)","v":"Production location"},null,null,null,null,null,{"$f":"IF(OR('Attachment 4 Cover-PPA'!$G$19=\"\"),\"-\",'Attachment 4 Cover-PPA'!$G$19)","v":"-"},null,null,null,null,null,{"$f":"OFFSET('Language-Sprachen'!$A$238,,'Language-Sprachen'!$N$1)","v":"Sample weight [kg]"},null,null,null,null,null,{"$f":"IF(OR('Attachment 4 Cover-PPA'!$S$19=\"\"),\"-\",'Attachment 4 Cover-PPA'!$S$19)","v":"-"},null,null,null,null,null,{"$f":"OFFSET('Language-Sprachen'!$A$20,,'Language-Sprachen'!$N$1)","v":"Unloading point"},null,null,null,null,null,{"$f":"IF(OR('Attachment 4 Cover-PPA'!$AE$19=\"\"),\"-\",'Attachment 4 Cover-PPA'!$AE$19)","v":"-"}]
[{"$f":"OFFSET('Language-Sprachen'!$A$38,,'Language-Sprachen'!$N$1)","v":"Part Number"},null,null,null,null,null,{"$f":"IF(OR('Attachment 4 Cover-PPA'!$G$20=\"\"),\"-\",'Attachment 4 Cover-PPA'!$G$20)","v":"-"},null,null,null,null,null,{"$f":"OFFSET('Language-Sprachen'!$A$239,,'Language-Sprachen'!$N$1)","v":"Hardware version"},null,null,null,null,null,{"$f":"IF(OR('Attachment 4 Cover-PPA'!$S$20=\"\"),\"-\",'Attachment 4 Cover-PPA'!$S$20)","v":"-"},null,null,null,null,null,{"$f":"OFFSET('Language-Sprachen'!$A$38,,'Language-Sprachen'!$N$1)","v":"Part Number"},null,null,null,null,null,{"$f":"IF(OR('Attachment 4 Cover-PPA'!$AE$20=\"\"),\"-\",'Attachment 4 Cover-PPA'!$AE$20)","v":"-"}]
[{"$f":"OFFSET('Language-Sprachen'!$A$37,,'Language-Sprachen'!$N$1)","v":"Name"},null,null,null,null,null,{"$f":"IF(OR('Attachment 4 Cover-PPA'!$G$21=\"\"),\"-\",'Attachment 4 Cover-PPA'!$G$21)","v":"-"},null,null,null,null,null,{"$f":"OFFSET('Language-Sprachen'!$A$240,,'Language-Sprachen'!$N$1)","v":"Diagnosis status"},null,null,null,null,null,{"$f":"IF(OR('Attachment 4 Cover-PPA'!$S$21=\"\"),\"-\",'Attachment 4 Cover-PPA'!$S$21)","v":"-"},null,null,null,null,null,{"$f":"OFFSET('Language-Sprachen'!$A$37,,'Language-Sprachen'!$N$1)","v":"Name"},null,null,null,null,null,{"$f":"IF(OR('Attachment 4 Cover-PPA'!$AE$21=\"\"),\"-\",'Attachment 4 Cover-PPA'!$AE$21)","v":"-"}]
[{"$f":"OFFSET('Language-Sprachen'!$A$39,,'Language-Sprachen'!$N$1)","v":"Drawing number"},null,null,null,null,null,{"$f":"IF(OR('Attachment 4 Cover-PPA'!$G$22=\"\"),\"-\",'Attachment 4 Cover-PPA'!$G$22)","v":"-"},null,null,null,null,null,{"$f":"OFFSET('Language-Sprachen'!$A$241,,'Language-Sprachen'!$N$1)","v":"Software version"},null,null,null,null,null,{"$f":"IF(OR('Attachment 4 Cover-PPA'!$S$22=\"\"),\"-\",'Attachment 4 Cover-PPA'!$S$22)","v":"-"},null,null,null,null,null,{"$f":"OFFSET('Language-Sprachen'!$A$39,,'Language-Sprachen'!$N$1)","v":"Drawing number"},null,null,null,null,null,{"$f":"IF(OR('Attachment 4 Cover-PPA'!$AE$22=\"\"),\"-\",'Attachment 4 Cover-PPA'!$AE$22)","v":"-"}]
[{"$f":"OFFSET('Language-Sprachen'!$A$350,,'Language-Sprachen'!$N$1)","v":"Version/ Date"},null,null,null,null,null,{"$f":"IF(OR('Attachment 4 Cover-PPA'!$G$23=\"\"),\"-\",'Attachment 4 Cover-PPA'!$G$23)","v":"-"},null,null,null,null,null,{"$f":"OFFSET('Language-Sprachen'!$A$242,,'Language-Sprachen'!$N$1)","v":"Identification/ DUNS"},null,null,null,null,null,{"$f":"IF(OR('Attachment 4 Cover-PPA'!$S$23=\"\"),\"-\",'Attachment 4 Cover-PPA'!$S$23)","v":"-"},null,null,null,null,null,{"$f":"OFFSET('Language-Sprachen'!$A$350,,'Language-Sprachen'!$N$1)","v":"Version/ Date"},null,null,null,null,null,{"$f":"IF(OR('Attachment 4 Cover-PPA'!$AE$23=\"\"),\"-\",'Attachment 4 Cover-PPA'!$AE$23)","v":"-"}]
["Part with special archiving requirement"]
[{"$f":"OFFSET('Language-Sprachen'!$A243,,'Language-Sprachen'!$N$1)","v":"Category"},null,null,null,null,{"$f":"OFFSET('Language-Sprachen'!$A249,,'Language-Sprachen'!$N$1)","v":"Requirements met"},null,null,null,null,null,null,{"$f":"OFFSET('Language-Sprachen'!$A256,,'Language-Sprachen'!$N$1)","v":"Requirements not fully met"},null,null,null,null,null,null,{"$f":"OFFSET('Language-Sprachen'!$A263,,'Language-Sprachen'!$N$1)","v":"Requirements not met"},null,null,null,null,null,null,{"$f":"OFFSET('Language-Sprachen'!$A270,,'Language-Sprachen'!$N$1)","v":"Not applicable"},{"$f":"OFFSET('Language-Sprachen'!$A271,,'Language-Sprachen'!$N$1)","v":"Remark/actions + date\n(if not OK selected) (5)"}]
[]
[]
[]
[null,null,null,null,null,null,null,null,null,null,null,null,null,null,null,null,null,null,null,null,null,null,null,null,null,null,null,null,null,null,null,null,null,null,null,"Status"]
[{"$f":"OFFSET('Language-Sprachen'!$A208,,'Language-Sprachen'!$N$1)","v":"Dimension"},null,null,null,null,{"$f":"OFFSET('Language-Sprachen'!$A250,,'Language-Sprachen'!$N$1)","v":"Dimensionally OK\nno rework"},null,null,null,null,null,null,{"$f":"OFFSET('Language-Sprachen'!$A257,,'Language-Sprachen'!$N$1)","v":"Dimensionally OK\nwith rework or uncritical values NOK"},null,null,null,null,null,null,{"$f":"OFFSET('Language-Sprachen'!$A264,,'Language-Sprachen'!$N$1)","v":"Dimensionally NOK"},null,null,null,null,null,null,null,null,null,null,null,null,null,null,null,"grün","gelb","rot","NA"]
[null,null,null,null,null,null,null,null,null,null,null,null,null,null,null,null,null,null,null,null,null,null,null,null,null,null,null,null,null,null,null,null,null,null,null,false,false,false,false,{"$f":"COUNTIF(AJ19:AM19,TRUE)","v":0}]
[null,null,null,null,null,null,null,null,null,null,null,null,null,null,null,null,null,null,null,null,null,null,null,null,null,null,null,null,null,null,null,null,null,null,null,false,false,false,false,0]
[null,null,null,null,null,null,null,null,null,null,null,null,null,null,null,null,null,null,null,null,null,null,null,null,null,null,null,null,null,null,null,null,null,null,null,false,false,false,false,0,{"$f":"IF(AS22=TRUE,\"n.a.\",AQ23)","v":0}]
[{"$f":"OFFSET('Language-Sprachen'!$A211,,'Language-Sprachen'!$N$1)","v":"Material"},null,null,null,null,{"$f":"OFFSET('Language-Sprachen'!$A251,,'Language-Sprachen'!$N$1)","v":"Series material acc. to specification"},null,null,null,null,null,null,{"$f":"OFFSET('Language-Sprachen'!$A258,,'Language-Sprachen'!$N$1)","v":"No series material or other processing customer acceptance granted"},null,null,null,null,null,null,{"$f":"OFFSET('Language-Sprachen'!$A265,,'Language-Sprachen'!$N$1)","v":"No series material specification not met/not verified."},null,null,null,null,null,null,null,null,null,null,null,null,null,null,null,false,false,false,false,0]
[null,null,null,null,null,null,null,null,null,null,null,null,null,null,null,null,null,null,null,null,null,null,null,null,null,null,null,null,null,null,null,null,null,null,null,false,false,false,false,0]
[null,null,null,null,null,null,null,null,null,null,null,null,null,null,null,null,null,null,null,null,null,null,null,null,null,null,null,null,null,null,null,null,null,null,null,false,false,false,false,0]
[null,null,null,null,null,null,null,null,null,null,null,null,null,null,null,null,null,null,null,null,null,null,null,null,null,null,null,null,null,null,null,null,null,null,null,{"$f":"COUNTIF(AJ18:AJ24,TRUE)","v":0},{"$f":"COUNTIF(AK18:AK24,TRUE)","v":0},{"$f":"COUNTIF(AL18:AL24,TRUE)","v":0},{"$f":"COUNTIF(AM18:AM24,TRUE)","v":0},{"$f":"COUNTIF(AN19:AN24,0)","v":6},{"$f":"SUM(AJ25:AM25)","v":0}]
[{"$f":"OFFSET('Language-Sprachen'!$A244,,'Language-Sprachen'!$N$1)","v":"Function/EMC/\nESD"},null,null,null,null,{"$f":"OFFSET('Language-Sprachen'!$A252,,'Language-Sprachen'!$N$1)","v":"Function fulfilled\nmeets specification"},null,null,null,null,null,null,{"$f":"OFFSET('Language-Sprachen'!$A259,,'Language-Sprachen'!$N$1)","v":"Deviation from specification customer acceptance granted"},null,null,null,null,null,null,{"$f":"OFFSET('Language-Sprachen'!$A266,,'Language-Sprachen'!$N$1)","v":"Funktion NOK or function\nnot verified specification not met"},null,null,null,null,null,null,null,null,null,null,null,null,null,null,null,null,null,null,false]
[null,null,null,null,null,null,null,null,null,null,null,null,null,null,null,null,null,null,null,null,null,null,null,null,null,null,null,null,null,null,null,null,null,null,null,"Anzahl Mehrfachbewertungen",null,null,null,{"$f":"COUNTIF(AN18:AN24,2)","v":0}]
[]
[]
[{"$f":"OFFSET('Language-Sprachen'!$A245,,'Language-Sprachen'!$N$1)","v":"Surface/\nstructure color/graining"},null,null,null,null,{"$f":"OFFSET('Language-Sprachen'!$A253,,'Language-Sprachen'!$N$1)","v":"OK"},null,null,null,null,null,null,{"$f":"OFFSET('Language-Sprachen'!$A260,,'Language-Sprachen'!$N$1)","v":"Does not correspond to series status, customer acceptance granted"},null,null,null,null,null,null,{"$f":"OFFSET('Language-Sprachen'!$A267,,'Language-Sprachen'!$N$1)","v":"Does not correspond to series status, customer acceptance not granted"}]
[]
[]
[]
[{"$f":"OFFSET('Language-Sprachen'!$A246,,'Language-Sprachen'!$N$1)","v":"PPA status of supply chain"},null,null,null,null,{"$f":"OFFSET('Language-Sprachen'!$A254,,'Language-Sprachen'!$N$1)","v":"Customer-ready\n(requirements met or deviations accepted after risk analysis)"},null,null,null,null,null,null,{"$f":"OFFSET('Language-Sprachen'!$A261,,'Language-Sprachen'!$N$1)","v":"Customer-ready after risk assessment \nUpdated PPA documentation required"},null,null,null,null,null,null,{"$f":"OFFSET('Language-Sprachen'!$A268,,'Language-Sprachen'!$N$1)","v":"Not customer-ready or not approved yet"},null,null,null,null,null,null,null,null,null,null,null,null,null,null,null,null,"i.O. / o.k."]
[null,null,null,null,null,null,null,null,null,null,null,null,null,null,null,null,null,null,null,null,null,null,null,null,null,null,null,null,null,null,null,null,null,null,null,null,"bedingt i.O. / conditionally o.k."]
[null,null,null,null,null,null,null,null,null,null,null,null,null,null,null,null,null,null,null,null,null,null,null,null,null,null,null,null,null,null,null,null,null,null,null,null,"n.i.O. / n.o.k."]
[]
[{"$f":"OFFSET('Language-Sprachen'!$A247,,'Language-Sprachen'!$N$1)","v":"Assembly capability (at customer site)"},null,null,null,null,{"$f":"OFFSET('Language-Sprachen'!$A255,,'Language-Sprachen'!$N$1)","v":"Capable for assembly with no additional expenditure"},null,null,null,null,null,null,{"$f":"OFFSET('Language-Sprachen'!$A262,,'Language-Sprachen'!$N$1)","v":"Capable for assembly with additional expenditure customer acceptance granted"},null,null,null,null,null,null,{"$f":"OFFSET('Language-Sprachen'!$A269,,'Language-Sprachen'!$N$1)","v":"Not capable for assembly"}]
[]
[]
[]
[{"$f":"OFFSET('Language-Sprachen'!$A248,,'Language-Sprachen'!$N$1)","v":"Self-assessment of organization"},null,null,null,null,null,null,null,null,null,null,null,null,null,null,null,{"$f":"IF(AND(AO25=6,AN25=0),IF(AL25>0,T13,IF(AK25>0,M13,IF(AJ25>0,F13,\"\"))),'Language-Sprachen'!L9)","v":"Entry incorrect, please check"}]
[]
[{"$f":"OFFSET('Language-Sprachen'!$A$334,,'Language-Sprachen'!$N$1)","v":"Confirmation of organization:"}]
[{"$f":"OFFSET('Language-Sprachen'!$A$25,,'Language-Sprachen'!$N$1)","v":"Name"},null,null,null,null,{"$f":"IF(OR('Attachment 4 Cover-PPA'!$F$29=\"\"),\"\",'Attachment 4 Cover-PPA'!$F$29)","v":""},null,null,null,null,null,null,null,null,null,null,null,{"$f":"OFFSET('Language-Sprachen'!$A$122,,'Language-Sprachen'!$N$1)","v":"Remark"},null,null,null,null,{"$f":"IF(OR('Attachment 4 Cover-PPA'!$W$29=\"\"),\"\",'Attachment 4 Cover-PPA'!$W$29)","v":""}]
[{"$f":"OFFSET('Language-Sprachen'!$A$228,,'Language-Sprachen'!$N$1)","v":"Department"},null,null,null,null,{"$f":"IF(OR('Attachment 4 Cover-PPA'!$F$30=\"\"),\"\",'Attachment 4 Cover-PPA'!$F$30)","v":""}]
[{"$f":"OFFSET('Language-Sprachen'!$A$26,,'Language-Sprachen'!$N$1)","v":"Telephone"},null,null,null,null,{"$f":"IF(OR('Attachment 4 Cover-PPA'!$F$31=\"\"),\"\",'Attachment 4 Cover-PPA'!$F$31)","v":""}]
[{"$f":"OFFSET('Language-Sprachen'!$A$27,,'Language-Sprachen'!$N$1)","v":"E-mail"},null,null,null,null,{"$f":"IF(OR('Attachment 4 Cover-PPA'!$F$32=\"\"),\"\",'Attachment 4 Cover-PPA'!$F$32)","v":""}]
[{"$f":"OFFSET('Language-Sprachen'!$A$49,,'Language-Sprachen'!$N$1)","v":"Date"},null,null,null,null,{"$f":"IF(OR('Attachment 4 Cover-PPA'!$F$33=\"\"),\"\",'Attachment 4 Cover-PPA'!$F$33)","v":""},null,null,null,null,null,null,null,null,null,null,null,{"$f":"OFFSET('Language-Sprachen'!$A$92,,'Language-Sprachen'!$N$1)","v":"Signature"},null,null,null,null,{"$f":"IF(OR('Attachment 4 Cover-PPA'!$W$33=\"\"),\"\",'Attachment 4 Cover-PPA'!$W$33)","v":""}]
[]
[{"$f":"OFFSET('Language-Sprachen'!$A$272,,'Language-Sprachen'!$N$1)","v":"Instruction how to fill in the form:"}]
["(1)",null,{"$f":"OFFSET('Language-Sprachen'!$A$273,,'Language-Sprachen'!$N$1)","v":"Logistic: if applicable evaluate:"}]
[null,null,{"$f":"OFFSET('Language-Sprachen'!$A$274,,'Language-Sprachen'!$N$1)","v":"- towards customer"}]
[null,null,{"$f":"OFFSET('Language-Sprachen'!$A$275,,'Language-Sprachen'!$N$1)","v":"- within the organization"}]
[null,null,{"$f":"OFFSET('Language-Sprachen'!$A$276,,'Language-Sprachen'!$N$1)","v":"- from the supplier"}]
[null,null,{"$f":"OFFSET('Language-Sprachen'!$A$277,,'Language-Sprachen'!$N$1)","v":"(e.g. transport, packaging specification created; serial packaging in agreed quality available, no negative quality impacts to expect)"}]
[]
["(2)",null,{"$f":"OFFSET('Language-Sprachen'!$A$278,,'Language-Sprachen'!$N$1)","v":"Agreed production quantity:"}]
[null,null,{"$f":"OFFSET('Language-Sprachen'!$A$279,,'Language-Sprachen'!$N$1)","v":"Production equipment refers to lines/equipments/machines/tools/jigs/cavities"}]
["(3)",null,{"$f":"OFFSET('Language-Sprachen'!$A$280,,'Language-Sprachen'!$N$1)","v":"Only limited personnel available/qualified, no negative impacts expected:"}]
[null,null,{"$f":"OFFSET('Language-Sprachen'!$A$281,,'Language-Sprachen'!$N$1)","v":"- number and qualification still have to be optimized"}]
[null,null,{"$f":"OFFSET('Language-Sprachen'!$A$282,,'Language-Sprachen'!$N$1)","v":"- work and inspection instructions completely available"}]
["(4)",null,{"$f":"OFFSET('Language-Sprachen'!$A$283,,'Language-Sprachen'!$N$1)","v":"Not enough qualified personnel available:"}]
[null,null,{"$f":"OFFSET('Language-Sprachen'!$A$284,,'Language-Sprachen'!$N$1)","v":"negative quality impacts possible"}]
[null,null,{"$f":"OFFSET('Language-Sprachen'!$A$285,,'Language-Sprachen'!$N$1)","v":"work and/or inspection instructions not completely available"}]
["(5)",null,{"$f":"OFFSET('Language-Sprachen'!$A$286,,'Language-Sprachen'!$N$1)","v":"Input mandatory, if other evaluation then \"Requirements met\""}]

{"sheet":"Attachment 3 SA-Process","index":3,"n_rows":71,"n_cols":41,"rows_kept":71,"cut":false,"hidden":false,"merged":[[0,0,1,11],[0,12,1,17],[0,18,1,34],[2,0,2,11],[2,12,2,23],[2,24,2,34],[5,0,5,5],[5,6,5,11],[5,12,5,17],[5,18,5,23],[5,24,5,29],[5,30,5,34],[3,0,3,5],[3,6,3,11],[3,12,3,17],[3,18,3,23],[3,24,4,29],[3,30,4,34],[4,0,4,5],[4,6,4,11],[4,12,4,17],[4,18,4,23],[7,0,7,5],[7,6,7,11],[7,12,7,17],[7,18,7,23],[7,24,7,29],[7,30,7,34],[6,0,6,5],[6,6,6,11],[6,12,6,17],[6,18,6,23],[6,24,6,29],[6,30,6,34],[9,0,9,5],[9,6,9,11],[9,12,9,17],[9,18,9,23],[9,24,9,29],[9,30,9,34],[8,0,8,5],[8,6,8,11],[8,12,8,17],[8,18,8,23],[8,24,8,29],[8,30,8,34],[11,0,11,11],[11,12,11,34],[12,0,16,4],[12,5,16,11],[12,12,16,18],[12,19,16,25],[12,26,16,26],[12,27,16,34],[10,0,10,5],[10,6,10,11],[10,12,10,17],[10,18,10,23],[10,24,10,29],[10,30,10,34],[16,35,16,38],[17,0,20,4],[17,5,19,11],[17,12,19,18],[17,19,19,25],[17,26,19,26],[17,27,20,34],[20,5,20,11],[20,12,20,18],[20,19,20,25],[20,40,22,40],[21,0,24,4],[21,5,23,11],[21,12,23,18],[21,19,23,25],[21,26,23,26],[21,27,24,34],[24,5,24,11],[24,12,24,18],[24,19,24,25],[32,5,32,11],[32,12,32,18],[32,19,32,25],[33,0,35,4],[33,5,34,11],[33,12,34,18],[33,19,34,25],[28,35,28,38],[28,5,28,11],[28,12,28,18],[28,19,28,25],[29,0,32,4],[29,5,31,11],[29,12,31,18],[29,19,31,25],[29,26,31,26],[29,27,32,34],[25,0,28,4],[25,5,27,11],[25,12,27,18],[25,19,27,25],[25,26,27,26],[25,27,28,34],[46,0,47,15],[46,16,47,34],[39,5,40,11],[39,12,40,18],[39,19,40,25],[39,26,40,26],[33,26,34,26],[33,27,35,34],[35,5,35,11],[35,12,35,18],[35,19,35,25],[36,5,37,11],[36,12,37,18],[36,19,37,25],[36,26,37,26],[42,27,45,34],[45,5,45,11],[45,12,45,18],[45,19,45,25],[39,27,41,34],[41,5,41,11],[41,12,41,18],[41,19,41,25],[36,0,41,4],[48,0,48,34],[49,0,49,4],[49,5,49,16],[49,17,52,21],[49,22,52,34],[50,0,50,4],[50,5,50,16],[51,0,51,4],[51,5,51,16],[52,0,52,4],[56,0,61,1],[56,2,56,34],[57,2,57,34],[58,2,58,34],[59,2,59,34],[60,2,61,34],[52,5,52,16],[53,0,53,4],[53,5,53,16],[53,17,53,21],[53,22,53,34],[55,0,55,34],[67,0,69,1],[67,2,67,34],[68,2,68,34],[69,2,69,34],[70,0,70,1],[70,2,70,34],[62,0,63,1],[62,2,62,34],[63,2,63,34],[64,0,66,1],[64,2,64,34],[65,2,65,34],[66,2,66,34],[42,0,45,4],[42,5,44,11],[42,12,44,18],[42,19,44,25],[42,26,44,26],[36,27,38,34],[38,5,38,11],[38,12,38,18],[38,19,38,25]]}
[{"$f":"OFFSET('Language-Sprachen'!$A318,,'Language-Sprachen'!$N$1)","v":"Self-assessment\nproduction process"},null,null,null,null,null,null,null,null,null,null,null,{"$f":"OFFSET('Language-Sprachen'!$A5,,'Language-Sprachen'!$N$1)","v":"Organization"},null,null,null,null,null,{"$f":"IF(OR('Attachment 4 Cover-PPA'!$S$1=\"\"),\"-\",'Attachment 4 Cover-PPA'!$S$1)","v":"Modine Europe GmbH"}]
[]
[{"$f":"OFFSET('Language-Sprachen'!$A$8,,'Language-Sprachen'!$N$1)","v":"Information about the organization"},null,null,null,null,null,null,null,null,null,null,null,{"$f":"OFFSET('Language-Sprachen'!$A$234,,'Language-Sprachen'!$N$1)","v":"Information about samples"},null,null,null,null,null,null,null,null,null,null,null,{"$f":"OFFSET('Language-Sprachen'!$A$9,,'Language-Sprachen'!$N$1)","v":"Information about the customer"}]
[{"$f":"OFFSET('Language-Sprachen'!$A$16,,'Language-Sprachen'!$N$1)","v":"Report number"},null,null,null,null,null,{"$f":"IF(OR('Attachment 4 Cover-PPA'!$G$16=\"\"),\"-\",'Attachment 4 Cover-PPA'!$G$16)","v":"-"},null,null,null,null,null,{"$f":"OFFSET('Language-Sprachen'!$A$235,,'Language-Sprachen'!$N$1)","v":"Delivery note number"},null,null,null,null,null,{"$f":"IF(OR('Attachment 4 Cover-PPA'!$S$16=\"\"),\"-\",'Attachment 4 Cover-PPA'!$S$16)","v":"-"},null,null,null,null,null,{"$f":"OFFSET('Language-Sprachen'!$A$23,,'Language-Sprachen'!$N$1)","v":"Customer"},null,null,null,null,null,{"$f":"IF(OR('Attachment 4 Cover-PPA'!$AE$16=\"\"),\"-\",'Attachment 4 Cover-PPA'!$AE$16)","v":"-"}]
[{"$f":"OFFSET('Language-Sprachen'!$A$17,,'Language-Sprachen'!$N$1)","v":"Report version"},null,null,null,null,null,{"$f":"IF(OR('Attachment 4 Cover-PPA'!$G$17=\"\"),\"-\",'Attachment 4 Cover-PPA'!$G$17)","v":"-"},null,null,null,null,null,{"$f":"OFFSET('Language-Sprachen'!$A$236,,'Language-Sprachen'!$N$1)","v":"Delivery quantity"},null,null,null,null,null,{"$f":"IF(OR('Attachment 4 Cover-PPA'!$S$17=\"\"),\"-\",'Attachment 4 Cover-PPA'!$S$17)","v":"-"}]
[{"$f":"OFFSET('Language-Sprachen'!$A$13,,'Language-Sprachen'!$N$1)","v":"Delivery location"},null,null,null,null,null,{"$f":"IF(OR('Attachment 4 Cover-PPA'!$G$18=\"\"),\"-\",'Attachment 4 Cover-PPA'!$G$18)","v":"-"},null,null,null,null,null,{"$f":"OFFSET('Language-Sprachen'!$A$237,,'Language-Sprachen'!$N$1)","v":"Batch number"},null,null,null,null,null,{"$f":"IF(OR('Attachment 4 Cover-PPA'!$S$18=\"\"),\"-\",'Attachment 4 Cover-PPA'!$S$18)","v":"-"},null,null,null,null,null,{"$f":"OFFSET('Language-Sprachen'!$A$21,,'Language-Sprachen'!$N$1)","v":"Order Number PPA sample"},null,null,null,null,null,{"$f":"IF(OR('Attachment 4 Cover-PPA'!$AE$18=\"\"),\"-\",'Attachment 4 Cover-PPA'!$AE$18)","v":"-"}]
[{"$f":"OFFSET('Language-Sprachen'!$A$11,,'Language-Sprachen'!$N$1)","v":"Production location"},null,null,null,null,null,{"$f":"IF(OR('Attachment 4 Cover-PPA'!$G$19=\"\"),\"-\",'Attachment 4 Cover-PPA'!$G$19)","v":"-"},null,null,null,null,null,{"$f":"OFFSET('Language-Sprachen'!$A$238,,'Language-Sprachen'!$N$1)","v":"Sample weight [kg]"},null,null,null,null,null,{"$f":"IF(OR('Attachment 4 Cover-PPA'!$S$19=\"\"),\"-\",'Attachment 4 Cover-PPA'!$S$19)","v":"-"},null,null,null,null,null,{"$f":"OFFSET('Language-Sprachen'!$A$20,,'Language-Sprachen'!$N$1)","v":"Unloading point"},null,null,null,null,null,{"$f":"IF(OR('Attachment 4 Cover-PPA'!$AE$19=\"\"),\"-\",'Attachment 4 Cover-PPA'!$AE$19)","v":"-"}]
[{"$f":"OFFSET('Language-Sprachen'!$A$38,,'Language-Sprachen'!$N$1)","v":"Part Number"},null,null,null,null,null,{"$f":"IF(OR('Attachment 4 Cover-PPA'!$G$20=\"\"),\"-\",'Attachment 4 Cover-PPA'!$G$20)","v":"-"},null,null,null,null,null,{"$f":"OFFSET('Language-Sprachen'!$A$239,,'Language-Sprachen'!$N$1)","v":"Hardware version"},null,null,null,null,null,{"$f":"IF(OR('Attachment 4 Cover-PPA'!$S$20=\"\"),\"-\",'Attachment 4 Cover-PPA'!$S$20)","v":"-"},null,null,null,null,null,{"$f":"OFFSET('Language-Sprachen'!$A$38,,'Language-Sprachen'!$N$1)","v":"Part Number"},null,null,null,null,null,{"$f":"IF(OR('Attachment 4 Cover-PPA'!$AE$20=\"\"),\"-\",'Attachment 4 Cover-PPA'!$AE$20)","v":"-"}]
[{"$f":"OFFSET('Language-Sprachen'!$A$37,,'Language-Sprachen'!$N$1)","v":"Name"},null,null,null,null,null,{"$f":"IF(OR('Attachment 4 Cover-PPA'!$G$21=\"\"),\"-\",'Attachment 4 Cover-PPA'!$G$21)","v":"-"},null,null,null,null,null,{"$f":"OFFSET('Language-Sprachen'!$A$240,,'Language-Sprachen'!$N$1)","v":"Diagnosis status"},null,null,null,null,null,{"$f":"IF(OR('Attachment 4 Cover-PPA'!$S$21=\"\"),\"-\",'Attachment 4 Cover-PPA'!$S$21)","v":"-"},null,null,null,null,null,{"$f":"OFFSET('Language-Sprachen'!$A$37,,'Language-Sprachen'!$N$1)","v":"Name"},null,null,null,null,null,{"$f":"IF(OR('Attachment 4 Cover-PPA'!$AE$21=\"\"),\"-\",'Attachment 4 Cover-PPA'!$AE$21)","v":"-"}]
[{"$f":"OFFSET('Language-Sprachen'!$A$39,,'Language-Sprachen'!$N$1)","v":"Drawing number"},null,null,null,null,null,{"$f":"IF(OR('Attachment 4 Cover-PPA'!$G$22=\"\"),\"-\",'Attachment 4 Cover-PPA'!$G$22)","v":"-"},null,null,null,null,null,{"$f":"OFFSET('Language-Sprachen'!$A$241,,'Language-Sprachen'!$N$1)","v":"Software version"},null,null,null,null,null,{"$f":"IF(OR('Attachment 4 Cover-PPA'!$S$22=\"\"),\"-\",'Attachment 4 Cover-PPA'!$S$22)","v":"-"},null,null,null,null,null,{"$f":"OFFSET('Language-Sprachen'!$A$39,,'Language-Sprachen'!$N$1)","v":"Drawing number"},null,null,null,null,null,{"$f":"IF(OR('Attachment 4 Cover-PPA'!$AE$22=\"\"),\"-\",'Attachment 4 Cover-PPA'!$AE$22)","v":"-"}]
[{"$f":"OFFSET('Language-Sprachen'!$A$350,,'Language-Sprachen'!$N$1)","v":"Version/ Date"},null,null,null,null,null,{"$f":"IF(OR('Attachment 4 Cover-PPA'!$G$23=\"\"),\"-\",'Attachment 4 Cover-PPA'!$G$23)","v":"-"},null,null,null,null,null,{"$f":"OFFSET('Language-Sprachen'!$A$242,,'Language-Sprachen'!$N$1)","v":"Identification/ DUNS"},null,null,null,null,null,{"$f":"IF(OR('Attachment 4 Cover-PPA'!$S$23=\"\"),\"-\",'Attachment 4 Cover-PPA'!$S$23)","v":"-"},null,null,null,null,null,{"$f":"OFFSET('Language-Sprachen'!$A$350,,'Language-Sprachen'!$N$1)","v":"Version/ Date"},null,null,null,null,null,{"$f":"IF(OR('Attachment 4 Cover-PPA'!$AE$23=\"\"),\"-\",'Attachment 4 Cover-PPA'!$AE$23)","v":"-"}]
["Part with special archiving requirement"]
[{"$f":"OFFSET('Language-Sprachen'!$A243,,'Language-Sprachen'!$N$1)","v":"Category"},null,null,null,null,{"$f":"OFFSET('Language-Sprachen'!$A249,,'Language-Sprachen'!$N$1)","v":"Requirements met"},null,null,null,null,null,null,{"$f":"OFFSET('Language-Sprachen'!$A256,,'Language-Sprachen'!$N$1)","v":"Requirements not fully met"},null,null,null,null,null,null,{"$f":"OFFSET('Language-Sprachen'!$A263,,'Language-Sprachen'!$N$1)","v":"Requirements not met"},null,null,null,null,null,null,{"$f":"OFFSET('Language-Sprachen'!$A270,,'Language-Sprachen'!$N$1)","v":"Not applicable"},{"$f":"OFFSET('Language-Sprachen'!$A271,,'Language-Sprachen'!$N$1)","v":"Remark/actions + date\n(if not OK selected) (5)"}]
[]
[]
[]
[null,null,null,null,null,null,null,null,null,null,null,null,null,null,null,null,null,null,null,null,null,null,null,null,null,null,null,null,null,null,null,null,null,null,null,"Status"]
[{"$f":"OFFSET('Language-Sprachen'!$A287,,'Language-Sprachen'!$N$1)","v":"Production \nlocation"},null,null,null,null,{"$f":"OFFSET('Language-Sprachen'!$A294,,'Language-Sprachen'!$N$1)","v":"Production at production location approved by the organization (Production layout set up, linking between production equipment realized)"},null,null,null,null,null,null,{"$f":"OFFSET('Language-Sprachen'!$A302,,'Language-Sprachen'!$N$1)","v":"Production at production location not approved by the organization yet; No negative quality impacts expected in series production"},null,null,null,null,null,null,{"$f":"OFFSET('Language-Sprachen'!$A310,,'Language-Sprachen'!$N$1)","v":"Production not at production location;\n\nNegative quality impacts possible"},null,null,null,null,null,null,null,null,null,null,null,null,null,null,null,"grün","gelb","rot","NA"]
[null,null,null,null,null,null,null,null,null,null,null,null,null,null,null,null,null,null,null,null,null,null,null,null,null,null,null,null,null,null,null,null,null,null,null,false,false,false,false,{"$f":"COUNTIF(AJ19:AM19,TRUE)","v":0}]
[null,null,null,null,null,null,null,null,null,null,null,null,null,null,null,null,null,null,null,null,null,null,null,null,null,null,null,null,null,null,null,null,null,null,null,false,false,false,false,0]
[null,null,null,null,null,null,null,null,null,null,null,null,null,null,null,null,null,null,null,null,null,null,null,null,null,null,null,null,null,null,null,null,null,null,null,false,false,false,false,0,{"$f":"IF(AS22=TRUE,\"n.a.\",AQ23)","v":0}]
[{"$f":"OFFSET('Language-Sprachen'!$A288,,'Language-Sprachen'!$N$1)","v":"Tools"},null,null,null,null,{"$f":"OFFSET('Language-Sprachen'!$A295,,'Language-Sprachen'!$N$1)","v":"Series tool accepted"},null,null,null,null,null,null,{"$f":"OFFSET('Language-Sprachen'!$A303,,'Language-Sprachen'!$N$1)","v":"Series tool / small series tool available, optimization(s) still necessary, but no negative quality impacts expected in series production"},null,null,null,null,null,null,{"$f":"OFFSET('Language-Sprachen'!$A311,,'Language-Sprachen'!$N$1)","v":"Tool not ready for series production\n\nnegative quality impacts expected in series production"},null,null,null,null,null,null,null,null,null,null,null,null,null,null,null,false,false,false,false,0]
[null,null,null,null,null,null,null,null,null,null,null,null,null,null,null,null,null,null,null,null,null,null,null,null,null,null,null,null,null,null,null,null,null,null,null,false,false,false,false,0]
[null,null,null,null,null,null,null,null,null,null,null,null,null,null,null,null,null,null,null,null,null,null,null,null,null,null,null,null,null,null,null,null,null,null,null,false,false,false,false,0]
[null,null,null,null,null,null,null,null,null,null,null,null,null,null,null,null,null,null,null,null,null,null,null,null,null,null,null,null,null,null,null,null,null,null,null,false,false,false,false,0]
[{"$f":"OFFSET('Language-Sprachen'!$A289,,'Language-Sprachen'!$N$1)","v":"Logistic *1"},null,null,null,null,{"$f":"OFFSET('Language-Sprachen'!$A296,,'Language-Sprachen'!$N$1)","v":"According to process sequence"},null,null,null,null,null,null,{"$f":"OFFSET('Language-Sprachen'!$A304,,'Language-Sprachen'!$N$1)","v":"Not according to process sequence but no negative quality impacts expected in series production"},null,null,null,null,null,null,{"$f":"OFFSET('Language-Sprachen'!$A312,,'Language-Sprachen'!$N$1)","v":"Negative quality impacts possible"},null,null,null,null,null,null,null,null,null,null,null,null,null,null,null,false,false,false,false,0]
[null,null,null,null,null,null,null,null,null,null,null,null,null,null,null,null,null,null,null,null,null,null,null,null,null,null,null,null,null,null,null,null,null,null,null,{"$f":"COUNTIF(AJ18:AJ26,TRUE)","v":0},{"$f":"COUNTIF(AK18:AK26,TRUE)","v":0},{"$f":"COUNTIF(AL18:AL26,TRUE)","v":0},{"$f":"COUNTIF(AM18:AM26,TRUE)","v":0},{"$f":"COUNTIF(AN19:AN26,0)","v":8},{"$f":"SUM(AJ27:AM27)","v":0}]
[]
[null,null,null,null,null,null,null,null,null,null,null,null,null,null,null,null,null,null,null,null,null,null,null,null,null,null,null,null,null,null,null,null,null,null,null,"Anzahl Mehrfachbewertungen",null,null,null,{"$f":"COUNTIF(AN19:AN26,2)","v":0}]
[{"$f":"OFFSET('Language-Sprachen'!$A290,,'Language-Sprachen'!$N$1)","v":"Special and agreed characteristics assured"},null,null,null,null,{"$f":"OFFSET('Language-Sprachen'!$A297,,'Language-Sprachen'!$N$1)","v":"Characteristics assured"},null,null,null,null,null,null,{"$f":"OFFSET('Language-Sprachen'!$A305,,'Language-Sprachen'!$N$1)","v":"Assurance not fully verified additional measures installed\ncustomer acceptance granted"},null,null,null,null,null,null,{"$f":"OFFSET('Language-Sprachen'!$A313,,'Language-Sprachen'!$N$1)","v":"Assurance not fully verified"}]
[null,null,null,null,null,null,null,null,null,null,null,null,null,null,null,null,null,null,null,null,null,null,null,null,null,null,null,null,null,null,null,null,null,null,null,null,"i.O. / o.k."]
[null,null,null,null,null,null,null,null,null,null,null,null,null,null,null,null,null,null,null,null,null,null,null,null,null,null,null,null,null,null,null,null,null,null,null,null,"bedingt i.O. / conditionally o.k."]
[null,null,null,null,null,null,null,null,null,null,null,null,null,null,null,null,null,null,null,null,null,null,null,null,null,null,null,null,null,null,null,null,null,null,null,null,"n.i.O. / n.o.k."]
[{"$f":"OFFSET('Language-Sprachen'!$A291,,'Language-Sprachen'!$N$1)","v":"Test equipment"},null,null,null,null,{"$f":"OFFSET('Language-Sprachen'!$A298,,'Language-Sprachen'!$N$1)","v":"Completely available / aceppted capability verified"},null,null,null,null,null,null,{"$f":"OFFSET('Language-Sprachen'!$A306,,'Language-Sprachen'!$N$1)","v":"Only partially available / accepted\nsuitable substitute test equipment available"},null,null,null,null,null,null,{"$f":"OFFSET('Language-Sprachen'!$A314,,'Language-Sprachen'!$N$1)","v":"Not available /\nnot accepted"}]
[]
[]
[{"$f":"OFFSET('Language-Sprachen'!$A292,,'Language-Sprachen'!$N$1)","v":"Agreed production quantity"},null,null,null,null,{"$f":"OFFSET('Language-Sprachen'!$A299,,'Language-Sprachen'!$N$1)","v":"All production facilities accepted *2"},null,null,null,null,null,null,{"$f":"OFFSET('Language-Sprachen'!$A307,,'Language-Sprachen'!$N$1)","v":"At least one production unit accepted *2"},null,null,null,null,null,null,{"$f":"OFFSET('Language-Sprachen'!$A315,,'Language-Sprachen'!$N$1)","v":"Production facilities not accepted *2"}]
[]
[]
[null,null,null,null,null,{"$f":"OFFSET('Language-Sprachen'!$A300,,'Language-Sprachen'!$N$1)","v":"Production quantity reached / verified"},null,null,null,null,null,null,{"$f":"OFFSET('Language-Sprachen'!$A308,,'Language-Sprachen'!$N$1)","v":"Production quantity permanetely reachable with special measures"},null,null,null,null,null,null,{"$f":"OFFSET('Language-Sprachen'!$A316,,'Language-Sprachen'!$N$1)","v":"Production quantity not reachable with special measures"}]
[]
[]
[{"$f":"OFFSET('Language-Sprachen'!$A293,,'Language-Sprachen'!$N$1)","v":"Human Resources"},null,null,null,null,{"$f":"OFFSET('Language-Sprachen'!$A301,,'Language-Sprachen'!$N$1)","v":"Required personnel available and trained work and test instructions complete"},null,null,null,null,null,null,{"$f":"OFFSET('Language-Sprachen'!$A309,,'Language-Sprachen'!$N$1)","v":"Only limited personnel available/trained, no negative quality impacts expected *3"},null,null,null,null,null,null,{"$f":"OFFSET('Language-Sprachen'!$A317,,'Language-Sprachen'!$N$1)","v":"Not trained personnel or not enough personnel available negative quality impacts possible *4"}]
[]
[]
[]
[{"$f":"OFFSET('Language-Sprachen'!$A248,,'Language-Sprachen'!$N$1)","v":"Self-assessment of organization"},null,null,null,null,null,null,null,null,null,null,null,null,null,null,null,{"$f":"IF(AND(AO27=8,AN27=0),IF(AL27>0,T13,IF(AK27>0,M13,IF(AJ27>0,F13,\"\"))),'Language-Sprachen'!L9)","v":"Entry incorrect, please check"}]
[]
[{"$f":"OFFSET('Language-Sprachen'!$A$334,,'Language-Sprachen'!$N$1)","v":"Confirmation of organization:"}]
[{"$f":"OFFSET('Language-Sprachen'!$A$25,,'Language-Sprachen'!$N$1)","v":"Name"},null,null,null,null,{"$f":"IF(OR('Attachment 4 Cover-PPA'!$F$29=\"\"),\"\",'Attachment 4 Cover-PPA'!$F$29)","v":""},null,null,null,null,null,null,null,null,null,null,null,{"$f":"OFFSET('Language-Sprachen'!$A$122,,'Language-Sprachen'!$N$1)","v":"Remark"},null,null,null,null,{"$f":"IF(OR('Attachment 4 Cover-PPA'!$W$29=\"\"),\"\",'Attachment 4 Cover-PPA'!$W$29)","v":""}]
[{"$f":"OFFSET('Language-Sprachen'!$A$228,,'Language-Sprachen'!$N$1)","v":"Department"},null,null,null,null,{"$f":"IF(OR('Attachment 4 Cover-PPA'!$F$30=\"\"),\"\",'Attachment 4 Cover-PPA'!$F$30)","v":""}]
[{"$f":"OFFSET('Language-Sprachen'!$A$26,,'Language-Sprachen'!$N$1)","v":"Telephone"},null,null,null,null,{"$f":"IF(OR('Attachment 4 Cover-PPA'!$F$31=\"\"),\"\",'Attachment 4 Cover-PPA'!$F$31)","v":""}]
[{"$f":"OFFSET('Language-Sprachen'!$A$27,,'Language-Sprachen'!$N$1)","v":"E-mail"},null,null,null,null,{"$f":"IF(OR('Attachment 4 Cover-PPA'!$F$32=\"\"),\"\",'Attachment 4 Cover-PPA'!$F$32)","v":""}]
[{"$f":"OFFSET('Language-Sprachen'!$A$49,,'Language-Sprachen'!$N$1)","v":"Date"},null,null,null,null,{"$f":"IF(OR('Attachment 4 Cover-PPA'!$F$33=\"\"),\"\",'Attachment 4 Cover-PPA'!$F$33)","v":""},null,null,null,null,null,null,null,null,null,null,null,{"$f":"OFFSET('Language-Sprachen'!$A$92,,'Language-Sprachen'!$N$1)","v":"Signature"},null,null,null,null,{"$f":"IF(OR('Attachment 4 Cover-PPA'!$W$33=\"\"),\"\",'Attachment 4 Cover-PPA'!$W$33)","v":""}]
[]
[{"$f":"OFFSET('Language-Sprachen'!$A$272,,'Language-Sprachen'!$N$1)","v":"Instruction how to fill in the form:"}]
["(1)",null,{"$f":"OFFSET('Language-Sprachen'!$A$273,,'Language-Sprachen'!$N$1)","v":"Logistic: if applicable evaluate:"}]
[null,null,{"$f":"OFFSET('Language-Sprachen'!$A$274,,'Language-Sprachen'!$N$1)","v":"- towards customer"}]
[null,null,{"$f":"OFFSET('Language-Sprachen'!$A$275,,'Language-Sprachen'!$N$1)","v":"- within the organization"}]
[null,null,{"$f":"OFFSET('Language-Sprachen'!$A$276,,'Language-Sprachen'!$N$1)","v":"- from the supplier"}]
[null,null,{"$f":"OFFSET('Language-Sprachen'!$A$277,,'Language-Sprachen'!$N$1)","v":"(e.g. transport, packaging specification created; serial packaging in agreed quality available, no negative quality impacts to expect)"}]
[]
["(2)",null,{"$f":"OFFSET('Language-Sprachen'!$A$278,,'Language-Sprachen'!$N$1)","v":"Agreed production quantity:"}]
[null,null,{"$f":"OFFSET('Language-Sprachen'!$A$279,,'Language-Sprachen'!$N$1)","v":"Production equipment refers to lines/equipments/machines/tools/jigs/cavities"}]
["(3)",null,{"$f":"OFFSET('Language-Sprachen'!$A$280,,'Language-Sprachen'!$N$1)","v":"Only limited personnel available/qualified, no negative impacts expected:"}]
[null,null,{"$f":"OFFSET('Language-Sprachen'!$A$281,,'Language-Sprachen'!$N$1)","v":"- number and qualification still have to be optimized"}]
[null,null,{"$f":"OFFSET('Language-Sprachen'!$A$282,,'Language-Sprachen'!$N$1)","v":"- work and inspection instructions completely available"}]
["(4)",null,{"$f":"OFFSET('Language-Sprachen'!$A$283,,'Language-Sprachen'!$N$1)","v":"Not enough qualified personnel available:"}]
[null,null,{"$f":"OFFSET('Language-Sprachen'!$A$284,,'Language-Sprachen'!$N$1)","v":"negative quality impacts possible"}]
[null,null,{"$f":"OFFSET('Language-Sprachen'!$A$285,,'Language-Sprachen'!$N$1)","v":"work and/or inspection instructions not completely available"}]
["(5)",null,{"$f":"OFFSET('Language-Sprachen'!$A$286,,'Language-Sprachen'!$N$1)","v":"Input mandatory, if other evaluation then \"Requirements met\""}]

{"sheet":"Attachment 4 Cover-PPA","index":4,"n_rows":44,"n_cols":35,"rows_kept":44,"cut":false,"hidden":false,"merged":[[0,0,1,11],[0,12,1,17],[0,18,1,34],[2,0,2,17],[2,18,2,34],[3,0,3,17],[4,0,4,17],[5,0,5,17],[6,0,6,17],[7,0,7,17],[3,19,3,34],[4,19,4,34],[5,19,5,34],[7,19,7,34],[6,18,6,34],[14,24,14,34],[15,0,15,5],[15,6,15,11],[15,12,15,17],[15,18,15,23],[15,24,16,29],[15,30,16,34],[16,0,16,5],[8,0,8,17],[9,0,9,17],[10,0,10,17],[11,0,11,17],[12,0,12,17],[13,0,13,17],[8,19,8,34],[9,19,9,34],[10,19,10,34],[11,19,11,34],[12,19,12,34],[13,19,13,34],[16,6,16,11],[16,12,16,17],[16,18,16,23],[17,0,17,5],[17,6,17,11],[17,12,17,17],[17,18,17,23],[14,0,14,11],[14,12,14,23],[19,0,19,5],[19,6,19,11],[19,12,19,17],[19,18,19,23],[19,24,19,29],[19,30,19,34],[17,24,17,29],[17,30,17,34],[18,0,18,5],[18,6,18,11],[18,12,18,17],[18,18,18,23],[18,24,18,29],[18,30,18,34],[21,0,21,5],[21,6,21,11],[21,12,21,17],[21,18,21,23],[21,24,21,29],[21,30,21,34],[20,0,20,5],[20,6,20,11],[20,12,20,17],[20,18,20,23],[20,24,20,29],[20,30,20,34],[23,12,23,17],[23,18,23,23],[23,24,23,29],[23,30,23,34],[23,0,23,11],[24,0,24,34],[22,0,22,5],[22,6,22,11],[22,12,22,17],[22,18,22,23],[22,24,22,29],[22,30,22,34],[25,0,26,34],[28,0,28,4],[28,5,28,16],[28,17,31,21],[28,22,31,34],[29,0,29,4],[29,5,29,16],[30,0,30,4],[30,5,30,16],[31,0,31,4],[36,18,37,33],[36,34,37,34],[36,0,36,16],[37,0,37,16],[38,0,38,16],[38,17,38,34],[27,0,27,1],[34,17,35,17],[34,18,35,33],[34,34,35,34],[34,0,35,16],[31,5,31,16],[32,0,32,4],[32,5,32,16],[32,17,32,21],[32,22,32,34],[33,0,33,34],[27,19,27,34],[27,2,27,18],[43,0,43,4],[43,5,43,16],[43,17,43,21],[43,22,43,34],[39,0,39,4],[39,5,39,16],[39,17,42,21],[39,22,42,34],[40,0,40,4],[40,5,40,16],[41,0,41,4],[41,5,41,16],[42,0,42,4],[42,5,42,16]]}
[{"$f":"OFFSET('Language-Sprachen'!$A$494,,'Language-Sprachen'!$N$1)","v":"Cover sheet PPA report"},null,null,null,null,null,null,null,null,null,null,null,{"$f":"OFFSET('Language-Sprachen'!$A$5,,'Language-Sprachen'!$N$1)","v":"Organization"},null,null,null,null,null,"Modine Europe GmbH"]
[]
[{"$f":"OFFSET('Language-Sprachen'!$A$5,,'Language-Sprachen'!$N$1)","v":"Organization"},null,null,null,null,null,null,null,null,null,null,null,null,null,null,null,null,null,{"$f":"OFFSET('Language-Sprachen'!$A$320,,'Language-Sprachen'!$N$1)","v":"Reason for report creation"}]
[null,null,null,null,null,null,null,null,null,null,null,null,null,null,null,null,null,null,null,{"$f":"OFFSET('Language-Sprachen'!$A321,,'Language-Sprachen'!$N$1)","v":"Report on production process and product approval (PPA)"}]
[null,null,null,null,null,null,null,null,null,null,null,null,null,null,null,null,null,null,null,{"$f":"OFFSET('Language-Sprachen'!$A322,,'Language-Sprachen'!$N$1)","v":"Report on other samples"}]
[null,null,null,null,null,null,null,null,null,null,null,null,null,null,null,null,null,null,null,{"$f":"OFFSET('Language-Sprachen'!$A323,,'Language-Sprachen'!$N$1)","v":"Requalification"}]
[null,null,null,null,null,null,null,null,null,null,null,null,null,null,null,null,null,null,{"$f":"OFFSET('Language-Sprachen'!$A$324,,'Language-Sprachen'!$N$1)","v":"Trigger of PPA procedure"}]
[null,null,null,null,null,null,null,null,null,null,null,null,null,null,null,null,null,null,null,{"$f":"OFFSET('Language-Sprachen'!$A325,,'Language-Sprachen'!$N$1)","v":"Sample presentation"}]
[{"$f":"OFFSET('Language-Sprachen'!$A$319,,'Language-Sprachen'!$N$1)","v":"Customer (recipient)"},null,null,null,null,null,null,null,null,null,null,null,null,null,null,null,null,null,null,{"$f":"OFFSET('Language-Sprachen'!$A326,,'Language-Sprachen'!$N$1)","v":"New part"}]
[null,null,null,null,null,null,null,null,null,null,null,null,null,null,null,null,null,null,null,{"$f":"OFFSET('Language-Sprachen'!$A327,,'Language-Sprachen'!$N$1)","v":"Changes to product"}]
[null,null,null,null,null,null,null,null,null,null,null,null,null,null,null,null,null,null,null,{"$f":"OFFSET('Language-Sprachen'!$A328,,'Language-Sprachen'!$N$1)","v":"Changes to production process"}]
[null,null,null,null,null,null,null,null,null,null,null,null,null,null,null,null,null,null,null,{"$f":"OFFSET('Language-Sprachen'!$A329,,'Language-Sprachen'!$N$1)","v":"Change to supply chain"}]
[null,null,null,null,null,null,null,null,null,null,null,null,null,null,null,null,null,null,null,{"$f":"OFFSET('Language-Sprachen'!$A330,,'Language-Sprachen'!$N$1)","v":"Re-use > 12 month standstill"}]
[null,null,null,null,null,null,null,null,null,null,null,null,null,null,null,null,null,null,null,{"$f":"OFFSET('Language-Sprachen'!$A331,,'Language-Sprachen'!$N$1)","v":"Updated PPA documentation"}]
[{"$f":"OFFSET('Language-Sprachen'!$A$8,,'Language-Sprachen'!$N$1)","v":"Information about the organization"},null,null,null,null,null,null,null,null,null,null,null,{"$f":"OFFSET('Language-Sprachen'!$A$234,,'Language-Sprachen'!$N$1)","v":"Information about samples"},null,null,null,null,null,null,null,null,null,null,null,{"$f":"OFFSET('Language-Sprachen'!$A$9,,'Language-Sprachen'!$N$1)","v":"Information about the customer"}]
[{"$f":"OFFSET('Language-Sprachen'!$A$16,,'Language-Sprachen'!$N$1)","v":"Report number"},null,null,null,null,null,null,null,null,null,null,null,{"$f":"OFFSET('Language-Sprachen'!$A$235,,'Language-Sprachen'!$N$1)","v":"Delivery note number"},null,null,null,null,null,null,null,null,null,null,null,{"$f":"OFFSET('Language-Sprachen'!$A$23,,'Language-Sprachen'!$N$1)","v":"Customer"}]
[{"$f":"OFFSET('Language-Sprachen'!$A$17,,'Language-Sprachen'!$N$1)","v":"Report version"},null,null,null,null,null,null,null,null,null,null,null,{"$f":"OFFSET('Language-Sprachen'!$A$236,,'Language-Sprachen'!$N$1)","v":"Delivery quantity"}]
[{"$f":"OFFSET('Language-Sprachen'!$A$13,,'Language-Sprachen'!$N$1)","v":"Delivery location"},null,null,null,null,null,null,null,null,null,null,null,{"$f":"OFFSET('Language-Sprachen'!$A$237,,'Language-Sprachen'!$N$1)","v":"Batch number"},null,null,null,null,null,null,null,null,null,null,null,{"$f":"OFFSET('Language-Sprachen'!$A$21,,'Language-Sprachen'!$N$1)","v":"Order Number PPA sample"}]
[{"$f":"OFFSET('Language-Sprachen'!$A$11,,'Language-Sprachen'!$N$1)","v":"Production location"},null,null,null,null,null,null,null,null,null,null,null,{"$f":"OFFSET('Language-Sprachen'!$A$238,,'Language-Sprachen'!$N$1)","v":"Sample weight [kg]"},null,null,null,null,null,null,null,null,null,null,null,{"$f":"OFFSET('Language-Sprachen'!$A$20,,'Language-Sprachen'!$N$1)","v":"Unloading point"}]
[{"$f":"OFFSET('Language-Sprachen'!$A$38,,'Language-Sprachen'!$N$1)","v":"Part Number"},null,null,null,null,null,null,null,null,null,null,null,{"$f":"OFFSET('Language-Sprachen'!$A$239,,'Language-Sprachen'!$N$1)","v":"Hardware version"},null,null,null,null,null,null,null,null,null,null,null,{"$f":"OFFSET('Language-Sprachen'!$A$38,,'Language-Sprachen'!$N$1)","v":"Part Number"}]
[{"$f":"OFFSET('Language-Sprachen'!$A$37,,'Language-Sprachen'!$N$1)","v":"Name"},null,null,null,null,null,null,null,null,null,null,null,{"$f":"OFFSET('Language-Sprachen'!$A$240,,'Language-Sprachen'!$N$1)","v":"Diagnosis status"},null,null,null,null,null,null,null,null,null,null,null,{"$f":"OFFSET('Language-Sprachen'!$A$37,,'Language-Sprachen'!$N$1)","v":"Name"}]
[{"$f":"OFFSET('Language-Sprachen'!$A$39,,'Language-Sprachen'!$N$1)","v":"Drawing number"},null,null,null,null,null,null,null,null,null,null,null,{"$f":"OFFSET('Language-Sprachen'!$A$241,,'Language-Sprachen'!$N$1)","v":"Software version"},null,null,null,null,null,null,null,null,null,null,null,{"$f":"OFFSET('Language-Sprachen'!$A$39,,'Language-Sprachen'!$N$1)","v":"Drawing number"}]
[{"$f":"OFFSET('Language-Sprachen'!$A$350,,'Language-Sprachen'!$N$1)","v":"Version/ Date"},null,null,null,null,null,null,null,null,null,null,null,{"$f":"OFFSET('Language-Sprachen'!$A$242,,'Language-Sprachen'!$N$1)","v":"Identification/ DUNS"},null,null,null,null,null,null,null,null,null,null,null,{"$f":"OFFSET('Language-Sprachen'!$A$350,,'Language-Sprachen'!$N$1)","v":"Version/ Date"}]
["Part with special archiving requirement",null,null,null,null,null,null,null,null,null,null,null,{"$f":"OFFSET('Language-Sprachen'!$A332,,'Language-Sprachen'!$N$1)","v":"Hardware approval"},null,null,null,null,null,null,null,null,null,null,null,{"$f":"OFFSET('Language-Sprachen'!$A333,,'Language-Sprachen'!$N$1)","v":"Software approval"}]
[{"$f":"OFFSET('Language-Sprachen'!$A$334,,'Language-Sprachen'!$N$1)","v":"Confirmation of organization:"}]
[{"$f":"OFFSET('Language-Sprachen'!$A$335,,'Language-Sprachen'!$N$1)","v":"It is hereby confirmed that the PPA procedure was carried out in accordance with the agreements made in the PPA agreement and the specifications of VDA Volume 2."}]
[]
[null,null,{"$f":"OFFSET('Language-Sprachen'!$A$336,,'Language-Sprachen'!$N$1)","v":"The IMDS record was created under the IMDS ID No.:"}]
[{"$f":"OFFSET('Language-Sprachen'!$A$25,,'Language-Sprachen'!$N$1)","v":"Name"},null,null,null,null,null,null,null,null,null,null,null,null,null,null,null,null,{"$f":"OFFSET('Language-Sprachen'!$A$122,,'Language-Sprachen'!$N$1)","v":"Remark"}]
[{"$f":"OFFSET('Language-Sprachen'!$A$228,,'Language-Sprachen'!$N$1)","v":"Department"}]
[{"$f":"OFFSET('Language-Sprachen'!$A$26,,'Language-Sprachen'!$N$1)","v":"Telephone"}]
[{"$f":"OFFSET('Language-Sprachen'!$A$27,,'Language-Sprachen'!$N$1)","v":"E-mail"}]
[{"$f":"OFFSET('Language-Sprachen'!$A$49,,'Language-Sprachen'!$N$1)","v":"Date"},null,null,null,null,null,null,null,null,null,null,null,null,null,null,null,null,{"$f":"OFFSET('Language-Sprachen'!$A$92,,'Language-Sprachen'!$N$1)","v":"Signature"}]
[{"$f":"OFFSET('Language-Sprachen'!$A$337,,'Language-Sprachen'!$N$1)","v":"Customer decision"}]
[{"$f":"OFFSET('Language-Sprachen'!$A$338,,'Language-Sprachen'!$N$1)","v":"Customer-ready/Ready for series production"},null,null,null,null,null,null,null,null,null,null,null,null,null,null,null,null,{"$f":"IF('Attachment 4 PPA-Evaluation'!R226<>\"\",'Attachment 4 PPA-Evaluation'!R226,\"\")","v":""},{"$f":"OFFSET('Language-Sprachen'!$A$342,,'Language-Sprachen'!$N$1)","v":"Not customer-ready / Not ready for series production"},null,null,null,null,null,null,null,null,null,null,null,null,null,null,null,{"$f":"IF('Attachment 4 PPA-Evaluation'!AI226<>\"\",'Attachment 4 PPA-Evaluation'!AI226,\"\")","v":""}]
[]
[{"$f":"OFFSET('Language-Sprachen'!$A$339,,'Language-Sprachen'!$N$1)","v":"PPA procedure towards customer closed"},null,null,null,null,null,null,null,null,null,null,null,null,null,null,null,null,{"$f":"IF('Attachment 4 PPA-Evaluation'!R228<>\"\",'Attachment 4 PPA-Evaluation'!R228,\"\")","v":""},{"$f":"OFFSET('Language-Sprachen'!$A$343,,'Language-Sprachen'!$N$1)","v":"New PPA procedure required"},null,null,null,null,null,null,null,null,null,null,null,null,null,null,null,{"$f":"IF('Attachment 4 PPA-Evaluation'!AI228<>\"\",'Attachment 4 PPA-Evaluation'!AI228,\"\")","v":""}]
[{"$f":"OFFSET('Language-Sprachen'!$A$340,,'Language-Sprachen'!$N$1)","v":"Update of PPA documentation required"},null,null,null,null,null,null,null,null,null,null,null,null,null,null,null,null,{"$f":"IF('Attachment 4 PPA-Evaluation'!R229<>\"\",'Attachment 4 PPA-Evaluation'!R229,\"\")","v":""}]
[{"$f":"OFFSET('Language-Sprachen'!$A$341,,'Language-Sprachen'!$N$1)","v":"Report number/version Customer"}]
[{"$f":"OFFSET('Language-Sprachen'!$A$25,,'Language-Sprachen'!$N$1)","v":"Name"},null,null,null,null,null,null,null,null,null,null,null,null,null,null,null,null,{"$f":"OFFSET('Language-Sprachen'!$A$122,,'Language-Sprachen'!$N$1)","v":"Remark"}]
[{"$f":"OFFSET('Language-Sprachen'!$A$228,,'Language-Sprachen'!$N$1)","v":"Department"}]
[{"$f":"OFFSET('Language-Sprachen'!$A$26,,'Language-Sprachen'!$N$1)","v":"Telephone"}]
[{"$f":"OFFSET('Language-Sprachen'!$A$27,,'Language-Sprachen'!$N$1)","v":"E-mail"}]
[{"$f":"OFFSET('Language-Sprachen'!$A$49,,'Language-Sprachen'!$N$1)","v":"Date"},null,null,null,null,null,null,null,null,null,null,null,null,null,null,null,null,{"$f":"OFFSET('Language-Sprachen'!$A$92,,'Language-Sprachen'!$N$1)","v":"Signature"}]

{"sheet":"Attachment 4 PPA-Evaluation","index":5,"n_rows":264,"n_cols":35,"rows_kept":264,"cut":false,"hidden":false,"merged":[[4,0,4,5],[3,6,3,11],[3,12,3,17],[90,24,94,27],[90,28,94,34],[69,16,69,23],[69,24,69,27],[55,0,59,1],[55,2,59,9],[55,10,59,11],[33,16,33,23],[33,24,33,27],[13,28,17,34],[12,0,12,34],[13,0,17,1],[13,2,17,9],[13,10,17,11],[13,12,17,13],[13,14,17,15],[18,28,18,34],[18,0,18,1],[22,2,22,9],[22,10,22,11],[22,12,22,13],[22,14,22,15],[26,16,26,23],[32,28,32,34],[32,0,32,1],[32,2,32,9],[32,14,32,15],[32,16,32,23],[32,24,32,27],[140,14,140,17],[140,18,140,25],[140,26,140,30],[140,31,140,34],[136,18,136,25],[136,26,136,30],[136,31,136,34],[137,2,137,8],[137,9,137,13],[137,14,137,17],[137,18,137,25],[137,26,137,30],[137,31,137,34],[139,2,139,8],[139,9,139,13],[139,14,139,17],[139,18,139,25],[138,2,138,8],[131,2,131,8],[111,0,112,11],[111,12,111,17],[19,2,19,9],[19,10,19,11],[19,12,19,13],[19,14,19,15],[24,16,24,23],[27,0,27,1],[27,2,27,34],[28,0,28,1],[28,2,28,9],[28,10,28,11],[28,12,28,13],[28,14,28,15],[25,28,25,34],[26,0,26,1],[26,2,26,9],[26,10,26,11],[26,12,26,13],[22,28,22,34],[22,16,22,23],[22,24,22,27],[23,16,23,23],[33,14,33,15],[23,24,23,27],[25,16,25,23],[25,0,25,1],[25,2,25,9],[30,10,30,11],[30,12,30,13],[30,14,30,15],[29,0,29,1],[29,2,29,9],[24,0,24,1],[24,2,24,9],[24,10,24,11],[24,12,24,13],[24,14,24,15],[24,24,24,27],[25,24,25,27],[26,24,26,27],[28,16,28,23],[28,24,28,27],[29,16,29,23],[29,24,29,27],[30,16,30,23],[30,24,30,27],[25,10,25,11],[25,12,25,13],[25,14,25,15],[36,12,36,13],[36,14,36,15],[35,28,35,34],[35,16,35,23],[35,24,35,27],[35,0,35,1],[35,2,35,9],[35,10,35,11],[35,12,35,13],[35,14,35,15],[29,10,29,11],[29,12,29,13],[29,14,29,15],[34,28,34,34],[34,16,34,23],[34,24,34,27],[34,0,34,1],[34,2,34,9],[34,10,34,11],[34,12,34,13],[34,14,34,15],[33,28,33,34],[33,0,33,1],[33,2,33,9],[32,10,32,11],[32,12,32,13],[30,28,30,34],[31,0,31,1],[31,2,31,34],[29,28,29,34],[30,0,30,1],[30,2,30,9],[33,10,33,11],[33,12,33,13],[39,28,39,34],[39,16,39,23],[39,24,39,27],[39,0,39,1],[39,2,39,9],[39,10,39,11],[39,12,39,13],[39,14,39,15],[38,28,38,34],[38,16,38,23],[38,24,38,27],[38,0,38,1],[38,2,38,9],[38,10,38,11],[38,12,38,13],[38,14,38,15],[37,28,37,34],[37,16,37,23],[37,24,37,27],[37,0,37,1],[37,2,37,9],[37,10,37,11],[37,12,37,13],[37,14,37,15],[36,28,36,34],[36,16,36,23],[36,24,36,27],[36,0,36,1],[36,2,36,9],[36,10,36,11],[60,28,60,34],[60,16,60,23],[60,24,60,27],[60,0,60,1],[60,2,60,9],[60,10,60,11],[60,12,60,13],[60,14,60,15],[42,0,42,1],[42,2,42,9],[42,10,42,11],[42,12,42,13],[42,14,42,15],[41,28,41,34],[41,16,41,23],[41,24,41,27],[41,0,41,1],[41,2,41,9],[41,10,41,11],[41,12,41,13],[41,14,41,15],[55,24,59,27],[55,28,59,34],[44,0,45,11],[44,12,44,17],[44,18,45,34],[45,12,45,17],[43,28,43,34],[43,16,43,23],[43,24,43,27],[43,0,43,1],[43,2,43,9],[63,28,63,34],[62,28,62,34],[63,0,63,1],[63,2,63,9],[63,10,63,11],[63,12,63,13],[63,14,63,15],[62,16,62,23],[62,24,62,27],[63,16,63,23],[63,24,63,27],[64,16,64,23],[64,24,64,27],[61,0,61,1],[61,2,61,34],[62,0,62,1],[62,2,62,9],[62,10,62,11],[62,12,62,13],[62,14,62,15],[66,28,66,34],[66,16,66,23],[66,24,66,27],[66,0,66,1],[66,2,66,9],[66,10,66,11],[66,12,66,13],[66,14,66,15],[65,28,65,34],[65,16,65,23],[65,24,65,27],[65,0,65,1],[65,2,65,9],[65,10,65,11],[65,12,65,13],[65,14,65,15],[64,28,64,34],[64,0,64,1],[64,2,64,9],[64,10,64,11],[64,12,64,13],[64,14,64,15],[69,28,69,34],[70,0,70,1],[70,2,70,9],[70,10,70,11],[70,12,70,13],[70,14,70,15],[68,0,68,1],[68,2,68,34],[69,0,69,1],[69,2,69,9],[69,10,69,11],[69,12,69,13],[69,14,69,15],[67,28,67,34],[67,16,67,23],[67,24,67,27],[67,0,67,1],[67,2,67,9],[67,10,67,11],[67,12,67,13],[67,14,67,15],[72,28,72,34],[72,0,72,1],[72,2,72,9],[72,10,72,11],[72,12,72,13],[72,14,72,15],[72,16,72,23],[72,24,72,27],[71,28,71,34],[71,16,71,23],[71,24,71,27],[71,0,71,1],[71,2,71,9],[71,10,71,11],[71,12,71,13],[71,14,71,15],[70,28,70,34],[70,16,70,23],[70,24,70,27],[95,0,95,1],[95,2,95,34],[96,0,96,15],[96,16,96,25],[96,26,96,34],[97,0,97,1],[97,2,97,9],[97,10,97,11],[97,12,97,13],[97,14,97,15],[74,10,74,11],[74,12,74,13],[74,14,74,15],[73,28,73,34],[73,16,73,23],[73,24,73,27],[73,0,73,1],[73,2,73,9],[73,10,73,11],[73,12,73,13],[73,14,73,15],[74,28,74,34],[74,16,74,23],[74,24,74,27],[74,0,74,1],[74,2,74,9],[77,16,77,23],[77,0,77,1],[77,2,77,9],[77,10,77,11],[77,12,77,13],[77,14,77,15],[98,28,98,34],[99,0,99,1],[99,2,99,9],[99,10,99,11],[99,12,99,13],[99,14,99,15],[98,16,98,23],[98,24,98,27],[99,16,99,23],[99,24,99,27],[97,28,97,34],[98,0,98,1],[98,2,98,9],[98,10,98,11],[98,12,98,13],[98,14,98,15],[97,16,97,23],[97,24,97,27],[100,28,100,34],[101,0,101,1],[101,2,101,9],[101,10,101,11],[101,12,101,13],[101,14,101,15],[102,16,102,23],[102,24,102,27],[101,16,101,23],[101,24,101,27],[100,16,100,23],[100,24,100,27],[99,28,99,34],[100,0,100,1],[100,2,100,9],[100,10,100,11],[100,12,100,13],[100,14,100,15],[103,28,103,34],[104,0,104,1],[104,2,104,9],[104,10,104,11],[104,12,104,13],[104,14,104,15],[103,16,103,23],[103,24,103,27],[102,28,102,34],[103,0,103,1],[103,2,103,9],[103,10,103,11],[103,12,103,13],[103,14,103,15],[104,16,104,23],[104,24,104,27],[101,28,101,34],[102,0,102,1],[102,2,102,9],[102,10,102,11],[102,12,102,13],[102,14,102,15],[114,6,114,11],[114,12,114,17],[114,18,114,23],[114,24,115,29],[114,30,115,34],[115,0,115,5],[105,28,105,34],[106,0,106,1],[106,2,106,9],[106,10,106,11],[106,12,106,13],[106,14,106,15],[104,28,104,34],[105,0,105,1],[105,2,105,9],[105,10,105,11],[105,12,105,13],[105,14,105,15],[105,16,105,23],[105,24,105,27],[115,6,115,11],[115,12,115,17],[115,18,115,23],[3,18,3,23],[3,24,4,29],[3,30,4,34],[4,6,4,11],[4,12,4,17],[4,18,4,23],[0,0,1,11],[0,18,1,34],[0,12,0,17],[1,12,1,17],[2,0,2,11],[2,12,2,23],[2,24,2,34],[3,0,3,5],[123,0,123,1],[111,18,112,34],[112,12,112,17],[107,28,107,34],[106,28,106,34],[107,0,107,1],[107,2,107,9],[107,10,107,11],[107,12,107,13],[107,14,107,15],[106,16,106,23],[106,24,106,27],[107,16,107,23],[107,24,107,27],[113,0,113,11],[113,12,113,23],[113,24,113,34],[114,0,114,5],[6,30,6,34],[7,0,7,5],[7,6,7,11],[7,12,7,17],[7,18,7,23],[7,24,7,29],[7,30,7,34],[5,6,5,11],[5,12,5,17],[5,18,5,23],[5,24,5,29],[5,30,5,34],[6,0,6,5],[6,6,6,11],[6,12,6,17],[6,18,6,23],[6,24,6,29],[5,0,5,5],[18,14,18,15],[23,10,23,11],[23,12,23,13],[23,14,23,15],[22,0,22,1],[9,30,9,34],[10,0,10,5],[10,6,10,11],[10,12,10,17],[10,18,10,23],[10,24,10,29],[10,30,10,34],[8,6,8,11],[8,12,8,17],[8,18,8,23],[8,24,8,29],[8,30,8,34],[9,0,9,5],[9,6,9,11],[9,12,9,17],[9,18,9,23],[9,24,9,29],[23,0,23,1],[23,2,23,9],[11,0,11,11],[8,0,8,5],[47,12,47,17],[47,18,47,23],[47,24,48,29],[47,30,48,34],[48,0,48,5],[48,6,48,11],[48,12,48,17],[48,18,48,23],[49,0,49,5],[49,6,49,11],[11,12,11,34],[13,24,17,27],[13,16,17,23],[18,24,18,27],[19,24,19,27],[20,16,20,23],[20,24,20,34],[18,16,18,23],[19,16,19,23],[28,28,28,34],[26,28,26,34],[24,28,24,34],[23,28,23,34],[20,0,20,15],[21,0,21,1],[21,2,21,34],[19,28,19,34],[19,0,19,1],[26,14,26,15],[18,2,18,9],[18,10,18,11],[18,12,18,13],[82,30,83,34],[83,0,83,5],[83,6,83,11],[83,12,83,17],[83,18,83,23],[84,0,84,5],[84,6,84,11],[84,12,84,17],[84,18,84,23],[84,24,84,29],[43,10,43,11],[43,12,43,13],[43,14,43,15],[42,28,42,34],[42,16,42,23],[42,24,42,27],[40,28,40,34],[40,16,40,23],[40,24,40,27],[40,0,40,1],[40,2,40,9],[40,10,40,11],[40,12,40,13],[40,14,40,15],[55,12,59,13],[55,14,59,15],[55,16,59,23],[46,0,46,11],[46,12,46,23],[46,24,46,34],[47,0,47,5],[47,6,47,11],[90,0,94,1],[90,2,94,9],[90,10,94,11],[90,12,94,13],[90,14,94,15],[90,16,94,23],[130,2,130,8],[130,9,130,13],[130,14,130,17],[128,2,128,8],[128,9,128,13],[128,14,128,17],[129,2,129,8],[129,9,129,13],[129,14,129,17],[129,18,129,25],[126,2,126,8],[126,9,126,13],[126,14,126,17],[127,2,127,8],[127,9,127,13],[127,14,127,17],[122,0,122,34],[123,2,123,34],[124,2,124,8],[124,9,124,13],[124,14,124,17],[125,2,125,8],[125,9,125,13],[125,14,125,17],[124,26,124,30],[124,31,124,34],[125,26,125,30],[125,31,125,34],[126,26,126,30],[126,31,126,34],[124,18,124,25],[125,18,125,25],[126,18,126,25],[131,9,131,13],[131,14,131,17],[131,18,131,25],[131,26,131,30],[131,31,131,34],[130,26,130,30],[130,31,130,34],[130,18,130,25],[127,26,127,30],[127,31,127,34],[128,26,128,30],[128,31,128,34],[129,26,129,30],[129,31,129,34],[127,18,127,25],[128,18,128,25],[143,2,143,8],[143,9,143,13],[132,2,132,8],[132,9,132,13],[132,14,132,17],[132,18,132,25],[132,26,132,30],[134,26,134,30],[134,31,134,34],[135,2,135,8],[135,9,135,13],[135,14,135,17],[135,18,135,25],[135,26,135,30],[135,31,135,34],[132,31,132,34],[133,2,133,8],[133,9,133,13],[133,14,133,17],[133,18,133,25],[133,26,133,30],[133,31,133,34],[134,2,134,8],[134,9,134,13],[134,14,134,17],[134,18,134,25],[136,2,136,8],[136,9,136,13],[136,14,136,17],[139,31,139,34],[140,2,140,8],[140,9,140,13],[143,14,143,17],[143,18,143,25],[141,2,141,8],[141,9,141,13],[141,14,141,17],[141,18,141,25],[146,2,146,8],[146,9,146,13],[146,14,146,17],[146,18,146,25],[138,9,138,13],[138,14,138,17],[138,18,138,25],[138,26,138,30],[138,31,138,34],[139,26,139,30],[143,26,143,30],[143,31,143,34],[144,2,144,8],[144,9,144,13],[144,14,144,17],[144,18,144,25],[144,26,144,30],[144,31,144,34],[141,26,141,30],[141,31,141,34],[142,2,142,8],[142,9,142,13],[142,14,142,17],[142,18,142,25],[142,26,142,30],[142,31,142,34],[149,2,149,8],[149,9,149,13],[149,14,149,17],[149,18,149,25],[149,26,149,30],[149,31,149,34],[147,2,147,8],[147,9,147,13],[147,14,147,17],[147,18,147,25],[147,26,147,30],[147,31,147,34],[148,18,148,25],[146,26,146,30],[146,31,146,34],[145,2,145,8],[145,9,145,13],[145,14,145,17],[145,18,145,25],[145,26,145,30],[145,31,145,34],[148,26,148,30],[148,31,148,34],[148,2,148,8],[148,9,148,13],[148,14,148,17],[154,2,154,8],[154,9,154,13],[154,14,154,17],[154,18,154,25],[154,26,154,30],[154,31,154,34],[152,26,152,30],[152,31,152,34],[153,2,153,8],[153,9,153,13],[153,14,153,17],[153,18,153,25],[153,26,153,30],[153,31,153,34],[150,26,150,30],[150,31,150,34],[151,2,151,8],[151,9,151,13],[151,14,151,17],[151,18,151,25],[151,26,151,30],[151,31,151,34],[152,2,152,8],[152,9,152,13],[152,14,152,17],[152,18,152,25],[150,2,150,8],[150,9,150,13],[150,14,150,17],[150,18,150,25],[156,18,156,25],[156,26,156,30],[156,31,156,34],[157,2,157,8],[157,9,157,13],[157,14,157,17],[157,18,157,25],[157,26,157,30],[157,31,157,34],[156,2,156,8],[156,9,156,13],[156,14,156,17],[155,2,155,8],[155,9,155,13],[155,14,155,17],[155,18,155,25],[155,26,155,30],[155,31,155,34],[160,2,160,8],[160,9,160,13],[160,14,160,17],[160,18,160,25],[160,26,160,30],[160,31,160,34],[159,2,159,8],[159,9,159,13],[159,14,159,17],[159,18,159,25],[159,26,159,30],[159,31,159,34],[158,2,158,8],[158,9,158,13],[158,14,158,17],[158,18,158,25],[158,26,158,30],[158,31,158,34],[169,18,169,23],[169,24,169,29],[169,30,169,34],[166,0,166,5],[166,6,166,11],[166,12,166,17],[166,18,166,23],[167,0,167,5],[167,6,167,11],[167,12,167,17],[167,18,167,23],[165,12,165,23],[165,24,165,34],[161,31,161,34],[162,2,162,8],[162,14,162,17],[162,18,162,25],[162,26,162,30],[162,31,162,34],[162,9,162,13],[161,2,161,8],[161,14,161,17],[161,18,161,25],[161,26,161,30],[161,9,161,13],[166,24,167,29],[166,30,167,34],[175,0,179,9],[180,0,181,9],[180,10,181,11],[180,12,181,13],[180,14,181,15],[180,16,181,17],[163,0,164,11],[163,12,163,17],[163,18,164,34],[164,12,164,17],[174,0,174,34],[175,10,179,11],[175,12,179,13],[175,14,179,15],[175,16,179,17],[175,18,179,19],[175,20,179,21],[175,31,179,34],[180,18,181,19],[180,20,181,21],[180,22,181,30],[180,31,181,34],[175,22,179,30],[165,0,165,11],[170,0,170,5],[170,6,170,11],[170,12,170,17],[170,18,170,23],[170,24,170,29],[170,30,170,34],[171,0,171,5],[171,6,171,11],[184,0,185,9],[184,10,185,11],[184,12,185,13],[184,14,185,15],[184,16,185,17],[184,18,185,19],[184,20,185,21],[184,22,185,30],[184,31,185,34],[182,0,183,9],[182,10,183,11],[182,12,183,13],[182,14,183,15],[182,16,183,17],[182,18,183,19],[182,20,183,21],[182,22,183,30],[182,31,183,34],[191,0,196,34],[197,0,197,34],[198,0,199,16],[198,17,199,17],[198,18,199,33],[198,34,199,34],[186,31,187,34],[188,0,189,9],[188,10,189,11],[188,12,189,13],[188,14,189,15],[188,16,189,17],[188,18,189,19],[188,20,189,21],[188,22,189,30],[188,31,189,34],[186,0,187,9],[186,10,187,11],[186,12,187,13],[186,14,187,15],[186,16,187,17],[186,18,187,19],[186,20,187,21],[186,22,187,30],[190,0,190,34],[205,0,205,4],[205,5,205,16],[205,17,205,21],[205,22,205,34],[200,0,200,34],[213,0,214,11],[213,12,213,17],[213,18,214,34],[214,12,214,17],[201,0,201,4],[201,5,201,16],[201,17,204,21],[201,22,204,34],[202,0,202,4],[202,5,202,16],[203,0,203,4],[203,5,203,16],[204,0,204,4],[204,5,204,16],[235,7,236,11],[235,12,236,34],[237,7,238,11],[237,12,238,34],[239,7,240,11],[239,12,240,34],[229,0,231,6],[229,7,231,34],[232,7,232,11],[232,12,232,34],[233,7,234,11],[233,12,234,34],[224,0,224,34],[225,0,226,16],[225,17,226,17],[225,18,226,33],[225,34,226,34],[227,0,227,16],[227,18,228,33],[227,34,228,34],[228,0,228,16],[251,30,252,34],[253,12,254,29],[253,30,254,34],[255,12,256,29],[255,30,256,34],[251,7,252,11],[253,7,254,11],[255,7,256,11],[246,7,247,11],[246,12,247,34],[248,7,249,11],[248,12,249,34],[250,7,250,11],[241,7,241,11],[241,12,241,34],[242,7,243,11],[242,12,243,34],[244,7,245,11],[244,12,245,34],[116,0,116,5],[116,6,116,11],[116,12,116,17],[116,18,116,23],[116,24,116,29],[116,30,116,34],[263,17,263,21],[263,22,263,34],[260,5,260,16],[261,0,261,4],[261,5,261,16],[262,0,262,4],[262,5,262,16],[263,0,263,4],[263,5,263,16],[257,12,258,29],[257,30,258,34],[232,0,240,6],[241,0,249,6],[250,0,258,6],[259,0,259,4],[259,5,259,16],[259,17,262,21],[259,22,262,34],[260,0,260,4],[257,7,258,11],[250,12,250,29],[250,30,250,34],[251,12,252,29],[119,0,119,5],[119,6,119,11],[119,12,119,17],[119,18,119,23],[119,24,119,29],[119,30,119,34],[120,0,120,5],[120,6,120,11],[120,12,120,17],[120,18,120,23],[120,24,120,29],[120,30,120,34],[117,0,117,5],[117,6,117,11],[117,12,117,17],[117,18,117,23],[117,24,117,29],[117,30,117,34],[118,0,118,5],[118,6,118,11],[118,12,118,17],[118,18,118,23],[118,24,118,29],[118,30,118,34],[172,0,172,5],[172,6,172,11],[172,12,172,17],[172,18,172,23],[172,24,172,29],[172,30,172,34],[173,0,173,5],[173,6,173,11],[173,12,173,17],[173,18,173,23],[173,24,173,29],[173,30,173,34],[121,0,121,5],[121,6,121,11],[121,12,121,17],[121,18,121,23],[121,24,121,29],[121,30,121,34],[124,0,162,1],[171,12,171,17],[171,18,171,23],[171,24,171,29],[171,30,171,34],[168,0,168,5],[168,6,168,11],[168,12,168,17],[168,18,168,23],[168,24,168,29],[168,30,168,34],[169,0,169,5],[169,6,169,11],[169,12,169,17],[218,0,218,5],[218,6,218,11],[218,12,218,17],[218,18,218,23],[218,24,218,29],[218,30,218,34],[219,0,219,5],[219,6,219,11],[219,12,219,17],[219,18,219,23],[219,24,219,29]],"merged_total":1133,"flags":["merged_cut"]}
[{"$f":"OFFSET('Language-Sprachen'!$A$344,,'Language-Sprachen'!$N$1)","v":"PPA evaluation"},null,null,null,null,null,null,null,null,null,null,null,{"$f":"OFFSET('Language-Sprachen'!$A$345,,'Language-Sprachen'!$N$1)","v":"Report"},null,null,null,null,null,{"$f":"IF(OR('Attachment 4 Cover-PPA'!$S$1=\"\"),\"-\",'Attachment 4 Cover-PPA'!$S$1)","v":"Modine Europe GmbH"}]
[null,null,null,null,null,null,null,null,null,null,null,null,{"$f":"OFFSET('Language-Sprachen'!$A$5,,'Language-Sprachen'!$N$1)","v":"Organization"}]
[{"$f":"OFFSET('Language-Sprachen'!$A$8,,'Language-Sprachen'!$N$1)","v":"Information about the organization"},null,null,null,null,null,null,null,null,null,null,null,{"$f":"OFFSET('Language-Sprachen'!$A$234,,'Language-Sprachen'!$N$1)","v":"Information about samples"},null,null,null,null,null,null,null,null,null,null,null,{"$f":"OFFSET('Language-Sprachen'!$A$9,,'Language-Sprachen'!$N$1)","v":"Information about the customer"}]
[{"$f":"OFFSET('Language-Sprachen'!$A$16,,'Language-Sprachen'!$N$1)","v":"Report number"},null,null,null,null,null,{"$f":"IF(OR('Attachment 4 Cover-PPA'!$G$16=\"\"),\"-\",'Attachment 4 Cover-PPA'!$G$16)","v":"-"},null,null,null,null,null,{"$f":"OFFSET('Language-Sprachen'!$A$235,,'Language-Sprachen'!$N$1)","v":"Delivery note number"},null,null,null,null,null,{"$f":"IF(OR('Attachment 4 Cover-PPA'!$S$16=\"\"),\"-\",'Attachment 4 Cover-PPA'!$S$16)","v":"-"},null,null,null,null,null,{"$f":"OFFSET('Language-Sprachen'!$A$23,,'Language-Sprachen'!$N$1)","v":"Customer"},null,null,null,null,null,{"$f":"IF(OR('Attachment 4 Cover-PPA'!$AE$16=\"\"),\"-\",'Attachment 4 Cover-PPA'!$AE$16)","v":"-"}]
[{"$f":"OFFSET('Language-Sprachen'!$A$17,,'Language-Sprachen'!$N$1)","v":"Report version"},null,null,null,null,null,{"$f":"IF(OR('Attachment 4 Cover-PPA'!$G$17=\"\"),\"-\",'Attachment 4 Cover-PPA'!$G$17)","v":"-"},null,null,null,null,null,{"$f":"OFFSET('Language-Sprachen'!$A$236,,'Language-Sprachen'!$N$1)","v":"Delivery quantity"},null,null,null,null,null,{"$f":"IF(OR('Attachment 4 Cover-PPA'!$S$17=\"\"),\"-\",'Attachment 4 Cover-PPA'!$S$17)","v":"-"}]
[{"$f":"OFFSET('Language-Sprachen'!$A$13,,'Language-Sprachen'!$N$1)","v":"Delivery location"},null,null,null,null,null,{"$f":"IF(OR('Attachment 4 Cover-PPA'!$G$18=\"\"),\"-\",'Attachment 4 Cover-PPA'!$G$18)","v":"-"},null,null,null,null,null,{"$f":"OFFSET('Language-Sprachen'!$A$237,,'Language-Sprachen'!$N$1)","v":"Batch number"},null,null,null,null,null,{"$f":"IF(OR('Attachment 4 Cover-PPA'!$S$18=\"\"),\"-\",'Attachment 4 Cover-PPA'!$S$18)","v":"-"},null,null,null,null,null,{"$f":"OFFSET('Language-Sprachen'!$A$21,,'Language-Sprachen'!$N$1)","v":"Order Number PPA sample"},null,null,null,null,null,{"$f":"IF(OR('Attachment 4 Cover-PPA'!$AE$18=\"\"),\"-\",'Attachment 4 Cover-PPA'!$AE$18)","v":"-"}]
[{"$f":"OFFSET('Language-Sprachen'!$A$11,,'Language-Sprachen'!$N$1)","v":"Production location"},null,null,null,null,null,{"$f":"IF(OR('Attachment 4 Cover-PPA'!$G$19=\"\"),\"-\",'Attachment 4 Cover-PPA'!$G$19)","v":"-"},null,null,null,null,null,{"$f":"OFFSET('Language-Sprachen'!$A$238,,'Language-Sprachen'!$N$1)","v":"Sample weight [kg]"},null,null,null,null,null,{"$f":"IF(OR('Attachment 4 Cover-PPA'!$S$19=\"\"),\"-\",'Attachment 4 Cover-PPA'!$S$19)","v":"-"},null,null,null,null,null,{"$f":"OFFSET('Language-Sprachen'!$A$20,,'Language-Sprachen'!$N$1)","v":"Unloading point"},null,null,null,null,null,{"$f":"IF(OR('Attachment 4 Cover-PPA'!$AE$19=\"\"),\"-\",'Attachment 4 Cover-PPA'!$AE$19)","v":"-"}]
[{"$f":"OFFSET('Language-Sprachen'!$A$38,,'Language-Sprachen'!$N$1)","v":"Part Number"},null,null,null,null,null,{"$f":"IF(OR('Attachment 4 Cover-PPA'!$G$20=\"\"),\"-\",'Attachment 4 Cover-PPA'!$G$20)","v":"-"},null,null,null,null,null,{"$f":"OFFSET('Language-Sprachen'!$A$239,,'Language-Sprachen'!$N$1)","v":"Hardware version"},null,null,null,null,null,{"$f":"IF(OR('Attachment 4 Cover-PPA'!$S$20=\"\"),\"-\",'Attachment 4 Cover-PPA'!$S$20)","v":"-"},null,null,null,null,null,{"$f":"OFFSET('Language-Sprachen'!$A$38,,'Language-Sprachen'!$N$1)","v":"Part Number"},null,null,null,null,null,{"$f":"IF(OR('Attachment 4 Cover-PPA'!$AE$20=\"\"),\"-\",'Attachment 4 Cover-PPA'!$AE$20)","v":"-"}]
[{"$f":"OFFSET('Language-Sprachen'!$A$37,,'Language-Sprachen'!$N$1)","v":"Name"},null,null,null,null,null,{"$f":"IF(OR('Attachment 4 Cover-PPA'!$G$21=\"\"),\"-\",'Attachment 4 Cover-PPA'!$G$21)","v":"-"},null,null,null,null,null,{"$f":"OFFSET('Language-Sprachen'!$A$240,,'Language-Sprachen'!$N$1)","v":"Diagnosis status"},null,null,null,null,null,{"$f":"IF(OR('Attachment 4 Cover-PPA'!$S$21=\"\"),\"-\",'Attachment 4 Cover-PPA'!$S$21)","v":"-"},null,null,null,null,null,{"$f":"OFFSET('Language-Sprachen'!$A$37,,'Language-Sprachen'!$N$1)","v":"Name"},null,null,null,null,null,{"$f":"IF(OR('Attachment 4 Cover-PPA'!$AE$21=\"\"),\"-\",'Attachment 4 Cover-PPA'!$AE$21)","v":"-"}]
[{"$f":"OFFSET('Language-Sprachen'!$A$39,,'Language-Sprachen'!$N$1)","v":"Drawing number"},null,null,null,null,null,{"$f":"IF(OR('Attachment 4 Cover-PPA'!$G$22=\"\"),\"-\",'Attachment 4 Cover-PPA'!$G$22)","v":"-"},null,null,null,null,null,{"$f":"OFFSET('Language-Sprachen'!$A$241,,'Language-Sprachen'!$N$1)","v":"Software version"},null,null,null,null,null,{"$f":"IF(OR('Attachment 4 Cover-PPA'!$S$22=\"\"),\"-\",'Attachment 4 Cover-PPA'!$S$22)","v":"-"},null,null,null,null,null,{"$f":"OFFSET('Language-Sprachen'!$A$39,,'Language-Sprachen'!$N$1)","v":"Drawing number"},null,null,null,null,null,{"$f":"IF(OR('Attachment 4 Cover-PPA'!$AE$22=\"\"),\"-\",'Attachment 4 Cover-PPA'!$AE$22)","v":"-"}]
[{"$f":"OFFSET('Language-Sprachen'!$A$350,,'Language-Sprachen'!$N$1)","v":"Version/ Date"},null,null,null,null,null,{"$f":"IF(OR('Attachment 4 Cover-PPA'!$G$23=\"\"),\"-\",'Attachment 4 Cover-PPA'!$G$23)","v":"-"},null,null,null,null,null,{"$f":"OFFSET('Language-Sprachen'!$A$242,,'Language-Sprachen'!$N$1)","v":"Identification/ DUNS"},null,null,null,null,null,{"$f":"IF(OR('Attachment 4 Cover-PPA'!$S$23=\"\"),\"-\",'Attachment 4 Cover-PPA'!$S$23)","v":"-"},null,null,null,null,null,{"$f":"OFFSET('Language-Sprachen'!$A$350,,'Language-Sprachen'!$N$1)","v":"Version/ Date"},null,null,null,null,null,{"$f":"IF(OR('Attachment 4 Cover-PPA'!$AE$23=\"\"),\"-\",'Attachment 4 Cover-PPA'!$AE$23)","v":"-"}]
["Part with special archiving requirement"]
[{"$f":"OFFSET('Language-Sprachen'!$A$346,,'Language-Sprachen'!$N$1)","v":"Individual evaluation by organization"}]
[{"$f":"OFFSET('Language-Sprachen'!$A$114,,'Language-Sprachen'!$N$1)","v":"Order number"},null,{"$f":"OFFSET('Language-Sprachen'!$A$115,,'Language-Sprachen'!$N$1)","v":"Test area\n(if applicable for the product)"},null,null,null,null,null,null,null,{"$f":"OFFSET('Language-Sprachen'!$A$117,,'Language-Sprachen'!$N$1)","v":"Submision required"},null,{"$f":"OFFSET('Language-Sprachen'!$A$347,,'Language-Sprachen'!$N$1)","v":"Requirements fully met"},null,{"$f":"OFFSET('Language-Sprachen'!$A$348,,'Language-Sprachen'!$N$1)","v":"Requirements not fully met"},null,{"$f":"OFFSET('Language-Sprachen'!$A$349,,'Language-Sprachen'!$N$1)","v":"Deliverable"},null,null,null,null,null,null,null,{"$f":"OFFSET('Language-Sprachen'!$A$350,,'Language-Sprachen'!$N$1)","v":"Version/ Date"},null,null,null,{"$f":"OFFSET('Language-Sprachen'!$A$122,,'Language-Sprachen'!$N$1)","v":"Remark"}]
[]
[]
[]
[]
["0.1",null,{"$f":"OFFSET('Language-Sprachen'!$A$123,,'Language-Sprachen'!$N$1)","v":"PPA cover sheet/ evaluation"},null,null,null,null,null,null,null,"Yes",null,null,null,null,null,"-",null,null,null,null,null,null,null,"-"]
["0.2",null,{"$f":"OFFSET('Language-Sprachen'!$A$124,,'Language-Sprachen'!$N$1)","v":"Self-assessment for product, process, SW (if appl.)"},null,null,null,null,null,null,null,"Yes"]
[{"$f":"OFFSET('Language-Sprachen'!$A$127,,'Language-Sprachen'!$N$1)","v":"Hardware approval required"}]
["1.",null,{"$f":"OFFSET('Language-Sprachen'!$A$128,,'Language-Sprachen'!$N$1)","v":"Deliverables of product development"}]
["1.1",null,{"$f":"OFFSET('Language-Sprachen'!$A129,,'Language-Sprachen'!$N$1)","v":"Technical specifications"}]
["1.2",null,{"$f":"OFFSET('Language-Sprachen'!$A130,,'Language-Sprachen'!$N$1)","v":"Approved design changes"}]
["1.3",null,{"$f":"OFFSET('Language-Sprachen'!$A131,,'Language-Sprachen'!$N$1)","v":"Design, engineering approvals by organization in case of development responsibility as per agreement"}]
["1.4",null,{"$f":"OFFSET('Language-Sprachen'!$A132,,'Language-Sprachen'!$N$1)","v":"Material data via IMDS"}]
["1.5",null,{"$f":"OFFSET('Language-Sprachen'!$A133,,'Language-Sprachen'!$N$1)","v":"Design FMEA"}]
["2.",null,{"$f":"OFFSET('Language-Sprachen'!$A$134,,'Language-Sprachen'!$N$1)","v":"Deliverables of production process development"}]
["2.1",null,{"$f":"OFFSET('Language-Sprachen'!$A135,,'Language-Sprachen'!$N$1)","v":"Process flow chart"}]
["2.2",null,{"$f":"OFFSET('Language-Sprachen'!$A136,,'Language-Sprachen'!$N$1)","v":"Process FMEA"}]
["2.3",null,{"$f":"OFFSET('Language-Sprachen'!$A137,,'Language-Sprachen'!$N$1)","v":"Control plan (CP)"}]
["3.",null,{"$f":"OFFSET('Language-Sprachen'!$A$138,,'Language-Sprachen'!$N$1)","v":"Deliverables of the validation of the product"}]
["3.1",null,{"$f":"OFFSET('Language-Sprachen'!$A$140,,'Language-Sprachen'!$N$1)","v":"Geometry, dimensions"}]
["3.2",null,{"$f":"OFFSET('Language-Sprachen'!$A$147,,'Language-Sprachen'!$N$1)","v":"Material (strength, physical properties, etc.)"}]
["3.3",null,{"$f":"OFFSET('Language-Sprachen'!$A351,,'Language-Sprachen'!$N$1)","v":"Function"}]
["3.4",null,{"$f":"OFFSET('Language-Sprachen'!$A352,,'Language-Sprachen'!$N$1)","v":"Haptics"}]
["3.5",null,{"$f":"OFFSET('Language-Sprachen'!$A353,,'Language-Sprachen'!$N$1)","v":"Acoustics"}]
["3.6",null,{"$f":"OFFSET('Language-Sprachen'!$A354,,'Language-Sprachen'!$N$1)","v":"Odor"}]
["3.7",null,{"$f":"OFFSET('Language-Sprachen'!$A161,,'Language-Sprachen'!$N$1)","v":"Appearance"}]
["3.8",null,{"$f":"OFFSET('Language-Sprachen'!$A162,,'Language-Sprachen'!$N$1)","v":"Surface requirement"}]
["3.9",null,{"$f":"OFFSET('Language-Sprachen'!$A165,,'Language-Sprachen'!$N$1)","v":"Technical cleanliness"}]
["3.10",null,{"$f":"OFFSET('Language-Sprachen'!$A166,,'Language-Sprachen'!$N$1)","v":"Reliability"}]
["3.11",null,{"$f":"OFFSET('Language-Sprachen'!$A167,,'Language-Sprachen'!$N$1)","v":"Resistance to electrostatic discharge (ESD)"}]
["3.12",null,{"$f":"OFFSET('Language-Sprachen'!$A168,,'Language-Sprachen'!$N$1)","v":"Electrical safety / high-voltage safety"}]
[{"$f":"OFFSET('Language-Sprachen'!$A$344,,'Language-Sprachen'!$N$1)","v":"PPA evaluation"},null,null,null,null,null,null,null,null,null,null,null,{"$f":"OFFSET('Language-Sprachen'!$A$345,,'Language-Sprachen'!$N$1)","v":"Report"},null,null,null,null,null,{"$f":"IF(OR('Attachment 4 Cover-PPA'!$S$1=\"\"),\"-\",'Attachment 4 Cover-PPA'!$S$1)","v":"Modine Europe GmbH"}]
[null,null,null,null,null,null,null,null,null,null,null,null,{"$f":"OFFSET('Language-Sprachen'!$A$5,,'Language-Sprachen'!$N$1)","v":"Organization"}]
[{"$f":"OFFSET('Language-Sprachen'!$A$8,,'Language-Sprachen'!$N$1)","v":"Information about the organization"},null,null,null,null,null,null,null,null,null,null,null,{"$f":"OFFSET('Language-Sprachen'!$A$234,,'Language-Sprachen'!$N$1)","v":"Information about samples"},null,null,null,null,null,null,null,null,null,null,null,{"$f":"OFFSET('Language-Sprachen'!$A$9,,'Language-Sprachen'!$N$1)","v":"Information about the customer"}]
[{"$f":"OFFSET('Language-Sprachen'!$A$16,,'Language-Sprachen'!$N$1)","v":"Report number"},null,null,null,null,null,{"$f":"IF(OR('Attachment 4 Cover-PPA'!$G$16=\"\"),\"-\",'Attachment 4 Cover-PPA'!$G$16)","v":"-"},null,null,null,null,null,{"$f":"OFFSET('Language-Sprachen'!$A$235,,'Language-Sprachen'!$N$1)","v":"Delivery note number"},null,null,null,null,null,{"$f":"IF(OR('Attachment 4 Cover-PPA'!$S$16=\"\"),\"-\",'Attachment 4 Cover-PPA'!$S$16)","v":"-"},null,null,null,null,null,{"$f":"OFFSET('Language-Sprachen'!$A$23,,'Language-Sprachen'!$N$1)","v":"Customer"},null,null,null,null,null,{"$f":"IF(OR('Attachment 4 Cover-PPA'!$AE$16=\"\"),\"-\",'Attachment 4 Cover-PPA'!$AE$16)","v":"-"}]
[{"$f":"OFFSET('Language-Sprachen'!$A$17,,'Language-Sprachen'!$N$1)","v":"Report version"},null,null,null,null,null,{"$f":"IF(OR('Attachment 4 Cover-PPA'!$G$17=\"\"),\"-\",'Attachment 4 Cover-PPA'!$G$17)","v":"-"},null,null,null,null,null,{"$f":"OFFSET('Language-Sprachen'!$A$236,,'Language-Sprachen'!$N$1)","v":"Delivery quantity"},null,null,null,null,null,{"$f":"IF(OR('Attachment 4 Cover-PPA'!$S$17=\"\"),\"-\",'Attachment 4 Cover-PPA'!$S$17)","v":"-"}]
[{"$f":"OFFSET('Language-Sprachen'!$A$13,,'Language-Sprachen'!$N$1)","v":"Delivery location"},null,null,null,null,null,{"$f":"IF(OR('Attachment 4 Cover-PPA'!$G$18=\"\"),\"-\",'Attachment 4 Cover-PPA'!$G$18)","v":"-"},null,null,null,null,null,{"$f":"OFFSET('Language-Sprachen'!$A$237,,'Language-Sprachen'!$N$1)","v":"Batch number"},null,null,null,null,null,{"$f":"IF(OR('Attachment 4 Cover-PPA'!$S$18=\"\"),\"-\",'Attachment 4 Cover-PPA'!$S$18)","v":"-"},null,null,null,null,null,{"$f":"OFFSET('Language-Sprachen'!$A$21,,'Language-Sprachen'!$N$1)","v":"Order Number PPA sample"},null,null,null,null,null,{"$f":"IF(OR('Attachment 4 Cover-PPA'!$AE$18=\"\"),\"-\",'Attachment 4 Cover-PPA'!$AE$18)","v":"-"}]
[{"$f":"OFFSET('Language-Sprachen'!$A$11,,'Language-Sprachen'!$N$1)","v":"Production location"},null,null,null,null,null,{"$f":"IF(OR('Attachment 4 Cover-PPA'!$G$19=\"\"),\"-\",'Attachment 4 Cover-PPA'!$G$19)","v":"-"},null,null,null,null,null,{"$f":"OFFSET('Language-Sprachen'!$A$238,,'Language-Sprachen'!$N$1)","v":"Sample weight [kg]"},null,null,null,null,null,{"$f":"IF(OR('Attachment 4 Cover-PPA'!$S$19=\"\"),\"-\",'Attachment 4 Cover-PPA'!$S$19)","v":"-"},null,null,null,null,null,{"$f":"OFFSET('Language-Sprachen'!$A$20,,'Language-Sprachen'!$N$1)","v":"Unloading point"},null,null,null,null,null,{"$f":"IF(OR('Attachment 4 Cover-PPA'!$AE$19=\"\"),\"-\",'Attachment 4 Cover-PPA'!$AE$19)","v":"-"}]
[{"$f":"OFFSET('Language-Sprachen'!$A$38,,'Language-Sprachen'!$N$1)","v":"Part Number"},null,null,null,null,null,{"$f":"IF(OR('Attachment 4 Cover-PPA'!$G$20=\"\"),\"-\",'Attachment 4 Cover-PPA'!$G$20)","v":"-"},null,null,null,null,null,{"$f":"OFFSET('Language-Sprachen'!$A$239,,'Language-Sprachen'!$N$1)","v":"Hardware version"},null,null,null,null,null,{"$f":"IF(OR('Attachment 4 Cover-PPA'!$S$20=\"\"),\"-\",'Attachment 4 Cover-PPA'!$S$20)","v":"-"},null,null,null,null,null,{"$f":"OFFSET('Language-Sprachen'!$A$38,,'Language-Sprachen'!$N$1)","v":"Part Number"},null,null,null,null,null,{"$f":"IF(OR('Attachment 4 Cover-PPA'!$AE$20=\"\"),\"-\",'Attachment 4 Cover-PPA'!$AE$20)","v":"-"}]
[{"$f":"OFFSET('Language-Sprachen'!$A$37,,'Language-Sprachen'!$N$1)","v":"Name"},null,null,null,null,null,{"$f":"IF(OR('Attachment 4 Cover-PPA'!$G$21=\"\"),\"-\",'Attachment 4 Cover-PPA'!$G$21)","v":"-"},null,null,null,null,null,{"$f":"OFFSET('Language-Sprachen'!$A$240,,'Language-Sprachen'!$N$1)","v":"Diagnosis status"},null,null,null,null,null,{"$f":"IF(OR('Attachment 4 Cover-PPA'!$S$21=\"\"),\"-\",'Attachment 4 Cover-PPA'!$S$21)","v":"-"},null,null,null,null,null,{"$f":"OFFSET('Language-Sprachen'!$A$37,,'Language-Sprachen'!$N$1)","v":"Name"},null,null,null,null,null,{"$f":"IF(OR('Attachment 4 Cover-PPA'!$AE$21=\"\"),\"-\",'Attachment 4 Cover-PPA'!$AE$21)","v":"-"}]
[{"$f":"OFFSET('Language-Sprachen'!$A$39,,'Language-Sprachen'!$N$1)","v":"Drawing number"},null,null,null,null,null,{"$f":"IF(OR('Attachment 4 Cover-PPA'!$G$22=\"\"),\"-\",'Attachment 4 Cover-PPA'!$G$22)","v":"-"},null,null,null,null,null,{"$f":"OFFSET('Language-Sprachen'!$A$241,,'Language-Sprachen'!$N$1)","v":"Software version"},null,null,null,null,null,{"$f":"IF(OR('Attachment 4 Cover-PPA'!$S$22=\"\"),\"-\",'Attachment 4 Cover-PPA'!$S$22)","v":"-"},null,null,null,null,null,{"$f":"OFFSET('Language-Sprachen'!$A$39,,'Language-Sprachen'!$N$1)","v":"Drawing number"},null,null,null,null,null,{"$f":"IF(OR('Attachment 4 Cover-PPA'!$AE$22=\"\"),\"-\",'Attachment 4 Cover-PPA'!$AE$22)","v":"-"}]
[{"$f":"OFFSET('Language-Sprachen'!$A$350,,'Language-Sprachen'!$N$1)","v":"Version/ Date"},null,null,null,null,null,{"$f":"IF(OR('Attachment 4 Cover-PPA'!$G$23=\"\"),\"-\",'Attachment 4 Cover-PPA'!$G$23)","v":"-"},null,null,null,null,null,{"$f":"OFFSET('Language-Sprachen'!$A$242,,'Language-Sprachen'!$N$1)","v":"Identification/ DUNS"},null,null,null,null,null,{"$f":"IF(OR('Attachment 4 Cover-PPA'!$S$23=\"\"),\"-\",'Attachment 4 Cover-PPA'!$S$23)","v":"-"},null,null,null,null,null,{"$f":"OFFSET('Language-Sprachen'!$A$350,,'Language-Sprachen'!$N$1)","v":"Version/ Date"},null,null,null,null,null,{"$f":"IF(OR('Attachment 4 Cover-PPA'!$AE$23=\"\"),\"-\",'Attachment 4 Cover-PPA'!$AE$23)","v":"-"}]
[{"$f":"OFFSET('Language-Sprachen'!$A$114,,'Language-Sprachen'!$N$1)","v":"Order number"},null,{"$f":"OFFSET('Language-Sprachen'!$A$115,,'Language-Sprachen'!$N$1)","v":"Test area\n(if applicable for the product)"},null,null,null,null,null,null,null,{"$f":"OFFSET('Language-Sprachen'!$A$117,,'Language-Sprachen'!$N$1)","v":"Submision required"},null,{"$f":"OFFSET('Language-Sprachen'!$A$347,,'Language-Sprachen'!$N$1)","v":"Requirements fully met"},null,{"$f":"OFFSET('Language-Sprachen'!$A$348,,'Language-Sprachen'!$N$1)","v":"Requirements not fully met"},null,{"$f":"OFFSET('Language-Sprachen'!$A$349,,'Language-Sprachen'!$N$1)","v":"Deliverable"},null,null,null,null,null,null,null,{"$f":"OFFSET('Language-Sprachen'!$A$350,,'Language-Sprachen'!$N$1)","v":"Version/ Date"},null,null,null,{"$f":"OFFSET('Language-Sprachen'!$A$122,,'Language-Sprachen'!$N$1)","v":"Remark"}]
[]
[]
[]
[]
["3.13",null,{"$f":"OFFSET('Language-Sprachen'!$A169,,'Language-Sprachen'!$N$1)","v":"Electromagnetic compatibility (EMC)"}]
["4.",null,{"$f":"OFFSET('Language-Sprachen'!$A170,,'Language-Sprachen'!$N$1)","v":"Deliverables of the validation of the production process"}]
["4.1",null,{"$f":"OFFSET('Language-Sprachen'!$A171,,'Language-Sprachen'!$N$1)","v":"Assurance of special characteristics according to technical specifications and agreed characteristics (e.g. poka-yoke, 100% inspection, process capabilities, etc.)"}]
["4.2",null,{"$f":"OFFSET('Language-Sprachen'!$A172,,'Language-Sprachen'!$N$1)","v":"Laboratory qualification"}]
["4.3",null,{"$f":"OFFSET('Language-Sprachen'!$A173,,'Language-Sprachen'!$N$1)","v":"Sample including production documentation"}]
["4.4",null,{"$f":"OFFSET('Language-Sprachen'!$A174,,'Language-Sprachen'!$N$1)","v":"Master sample"}]
["4.5",null,{"$f":"OFFSET('Language-Sprachen'!$A175,,'Language-Sprachen'!$N$1)","v":"Production capacity"}]
["4.6",null,{"$f":"OFFSET('Language-Sprachen'!$A355,,'Language-Sprachen'!$N$1)","v":"Tools"}]
[5,null,{"$f":"OFFSET('Language-Sprachen'!$A177,,'Language-Sprachen'!$N$1)","v":"General deliverables"}]
["5.1",null,{"$f":"OFFSET('Language-Sprachen'!$A356,,'Language-Sprachen'!$N$1)","v":"Evidence of compliance with statutory requirements"}]
["5.2",null,{"$f":"OFFSET('Language-Sprachen'!$A179,,'Language-Sprachen'!$N$1)","v":"PPA status of supply chain"}]
["5.3",null,{"$f":"OFFSET('Language-Sprachen'!$A180,,'Language-Sprachen'!$N$1)","v":"Test equipment list for product and production process"}]
["5.4",null,{"$f":"OFFSET('Language-Sprachen'!$A357,,'Language-Sprachen'!$N$1)","v":"Measurement equipment analysis studies product and production process"}]
["5.5",null,{"$f":"OFFSET('Language-Sprachen'!$A183,,'Language-Sprachen'!$N$1)","v":"Part history"}]
["5.6",null,{"$f":"OFFSET('Language-Sprachen'!$A184,,'Language-Sprachen'!$N$1)","v":"Evidence of suitability of the employ-ed load carries including storage"}]
["5.7",null,{"$f":"OFFSET('Language-Sprachen'!$A185,,'Language-Sprachen'!$N$1)","v":"Documention of agreements regarding the diagnosis and analysis process\n- Complaints handling (e.g. 8D)\n- Field failure analysis"}]
["5.8",null,{"$f":"OFFSET('Language-Sprachen'!$A186,,'Language-Sprachen'!$N$1)","v":"Documentation of the requalification agreement"}]
["5.9",null,{"$f":"OFFSET('Language-Sprachen'!$A64,,'Language-Sprachen'!$N$1)","v":"Other"}]
[]
[{"$f":"OFFSET('Language-Sprachen'!$A$344,,'Language-Sprachen'!$N$1)","v":"PPA evaluation"},null,null,null,null,null,null,null,null,null,null,null,{"$f":"OFFSET('Language-Sprachen'!$A$345,,'Language-Sprachen'!$N$1)","v":"Report"},null,null,null,null,null,{"$f":"IF(OR('Attachment 4 Cover-PPA'!$S$1=\"\"),\"-\",'Attachment 4 Cover-PPA'!$S$1)","v":"Modine Europe GmbH"}]
[null,null,null,null,null,null,null,null,null,null,null,null,{"$f":"OFFSET('Language-Sprachen'!$A$5,,'Language-Sprachen'!$N$1)","v":"Organization"}]
[{"$f":"OFFSET('Language-Sprachen'!$A$8,,'Language-Sprachen'!$N$1)","v":"Information about the organization"},null,null,null,null,null,null,null,null,null,null,null,{"$f":"OFFSET('Language-Sprachen'!$A$234,,'Language-Sprachen'!$N$1)","v":"Information about samples"},null,null,null,null,null,null,null,null,null,null,null,{"$f":"OFFSET('Language-Sprachen'!$A$9,,'Language-Sprachen'!$N$1)","v":"Information about the customer"}]
[{"$f":"OFFSET('Language-Sprachen'!$A$16,,'Language-Sprachen'!$N$1)","v":"Report number"},null,null,null,null,null,{"$f":"IF(OR('Attachment 4 Cover-PPA'!$G$16=\"\"),\"-\",'Attachment 4 Cover-PPA'!$G$16)","v":"-"},null,null,null,null,null,{"$f":"OFFSET('Language-Sprachen'!$A$235,,'Language-Sprachen'!$N$1)","v":"Delivery note number"},null,null,null,null,null,{"$f":"IF(OR('Attachment 4 Cover-PPA'!$S$16=\"\"),\"-\",'Attachment 4 Cover-PPA'!$S$16)","v":"-"},null,null,null,null,null,{"$f":"OFFSET('Language-Sprachen'!$A$23,,'Language-Sprachen'!$N$1)","v":"Customer"},null,null,null,null,null,{"$f":"IF(OR('Attachment 4 Cover-PPA'!$AE$16=\"\"),\"-\",'Attachment 4 Cover-PPA'!$AE$16)","v":"-"}]
[{"$f":"OFFSET('Language-Sprachen'!$A$17,,'Language-Sprachen'!$N$1)","v":"Report version"},null,null,null,null,null,{"$f":"IF(OR('Attachment 4 Cover-PPA'!$G$17=\"\"),\"-\",'Attachment 4 Cover-PPA'!$G$17)","v":"-"},null,null,null,null,null,{"$f":"OFFSET('Language-Sprachen'!$A$236,,'Language-Sprachen'!$N$1)","v":"Delivery quantity"},null,null,null,null,null,{"$f":"IF(OR('Attachment 4 Cover-PPA'!$S$17=\"\"),\"-\",'Attachment 4 Cover-PPA'!$S$17)","v":"-"}]
[{"$f":"OFFSET('Language-Sprachen'!$A$13,,'Language-Sprachen'!$N$1)","v":"Delivery location"},null,null,null,null,null,{"$f":"IF(OR('Attachment 4 Cover-PPA'!$G$18=\"\"),\"-\",'Attachment 4 Cover-PPA'!$G$18)","v":"-"},null,null,null,null,null,{"$f":"OFFSET('Language-Sprachen'!$A$237,,'Language-Sprachen'!$N$1)","v":"Batch number"},null,null,null,null,null,{"$f":"IF(OR('Attachment 4 Cover-PPA'!$S$18=\"\"),\"-\",'Attachment 4 Cover-PPA'!$S$18)","v":"-"},null,null,null,null,null,{"$f":"OFFSET('Language-Sprachen'!$A$21,,'Language-Sprachen'!$N$1)","v":"Order Number PPA sample"},null,null,null,null,null,{"$f":"IF(OR('Attachment 4 Cover-PPA'!$AE$18=\"\"),\"-\",'Attachment 4 Cover-PPA'!$AE$18)","v":"-"}]
[{"$f":"OFFSET('Language-Sprachen'!$A$11,,'Language-Sprachen'!$N$1)","v":"Production location"},null,null,null,null,null,{"$f":"IF(OR('Attachment 4 Cover-PPA'!$G$19=\"\"),\"-\",'Attachment 4 Cover-PPA'!$G$19)","v":"-"},null,null,null,null,null,{"$f":"OFFSET('Language-Sprachen'!$A$238,,'Language-Sprachen'!$N$1)","v":"Sample weight [kg]"},null,null,null,null,null,{"$f":"IF(OR('Attachment 4 Cover-PPA'!$S$19=\"\"),\"-\",'Attachment 4 Cover-PPA'!$S$19)","v":"-"},null,null,null,null,null,{"$f":"OFFSET('Language-Sprachen'!$A$20,,'Language-Sprachen'!$N$1)","v":"Unloading point"},null,null,null,null,null,{"$f":"IF(OR('Attachment 4 Cover-PPA'!$AE$19=\"\"),\"-\",'Attachment 4 Cover-PPA'!$AE$19)","v":"-"}]
[{"$f":"OFFSET('Language-Sprachen'!$A$38,,'Language-Sprachen'!$N$1)","v":"Part Number"},null,null,null,null,null,{"$f":"IF(OR('Attachment 4 Cover-PPA'!$G$20=\"\"),\"-\",'Attachment 4 Cover-PPA'!$G$20)","v":"-"},null,null,null,null,null,{"$f":"OFFSET('Language-Sprachen'!$A$239,,'Language-Sprachen'!$N$1)","v":"Hardware version"},null,null,null,null,null,{"$f":"IF(OR('Attachment 4 Cover-PPA'!$S$20=\"\"),\"-\",'Attachment 4 Cover-PPA'!$S$20)","v":"-"},null,null,null,null,null,{"$f":"OFFSET('Language-Sprachen'!$A$38,,'Language-Sprachen'!$N$1)","v":"Part Number"},null,null,null,null,null,{"$f":"IF(OR('Attachment 4 Cover-PPA'!$AE$20=\"\"),\"-\",'Attachment 4 Cover-PPA'!$AE$20)","v":"-"}]
[{"$f":"OFFSET('Language-Sprachen'!$A$37,,'Language-Sprachen'!$N$1)","v":"Name"},null,null,null,null,null,{"$f":"IF(OR('Attachment 4 Cover-PPA'!$G$21=\"\"),\"-\",'Attachment 4 Cover-PPA'!$G$21)","v":"-"},null,null,null,null,null,{"$f":"OFFSET('Language-Sprachen'!$A$240,,'Language-Sprachen'!$N$1)","v":"Diagnosis status"},null,null,null,null,null,{"$f":"IF(OR('Attachment 4 Cover-PPA'!$S$21=\"\"),\"-\",'Attachment 4 Cover-PPA'!$S$21)","v":"-"},null,null,null,null,null,{"$f":"OFFSET('Language-Sprachen'!$A$37,,'Language-Sprachen'!$N$1)","v":"Name"},null,null,null,null,null,{"$f":"IF(OR('Attachment 4 Cover-PPA'!$AE$21=\"\"),\"-\",'Attachment 4 Cover-PPA'!$AE$21)","v":"-"}]
[{"$f":"OFFSET('Language-Sprachen'!$A$39,,'Language-Sprachen'!$N$1)","v":"Drawing number"},null,null,null,null,null,{"$f":"IF(OR('Attachment 4 Cover-PPA'!$G$22=\"\"),\"-\",'Attachment 4 Cover-PPA'!$G$22)","v":"-"},null,null,null,null,null,{"$f":"OFFSET('Language-Sprachen'!$A$241,,'Language-Sprachen'!$N$1)","v":"Software version"},null,null,null,null,null,{"$f":"IF(OR('Attachment 4 Cover-PPA'!$S$22=\"\"),\"-\",'Attachment 4 Cover-PPA'!$S$22)","v":"-"},null,null,null,null,null,{"$f":"OFFSET('Language-Sprachen'!$A$39,,'Language-Sprachen'!$N$1)","v":"Drawing number"},null,null,null,null,null,{"$f":"IF(OR('Attachment 4 Cover-PPA'!$AE$22=\"\"),\"-\",'Attachment 4 Cover-PPA'!$AE$22)","v":"-"}]
[{"$f":"OFFSET('Language-Sprachen'!$A$350,,'Language-Sprachen'!$N$1)","v":"Version/ Date"},null,null,null,null,null,{"$f":"IF(OR('Attachment 4 Cover-PPA'!$G$23=\"\"),\"-\",'Attachment 4 Cover-PPA'!$G$23)","v":"-"},null,null,null,null,null,{"$f":"OFFSET('Language-Sprachen'!$A$242,,'Language-Sprachen'!$N$1)","v":"Identification/ DUNS"},null,null,null,null,null,{"$f":"IF(OR('Attachment 4 Cover-PPA'!$S$23=\"\"),\"-\",'Attachment 4 Cover-PPA'!$S$23)","v":"-"},null,null,null,null,null,{"$f":"OFFSET('Language-Sprachen'!$A$350,,'Language-Sprachen'!$N$1)","v":"Version/ Date"},null,null,null,null,null,{"$f":"IF(OR('Attachment 4 Cover-PPA'!$AE$23=\"\"),\"-\",'Attachment 4 Cover-PPA'!$AE$23)","v":"-"}]
[{"$f":"OFFSET('Language-Sprachen'!$A$114,,'Language-Sprachen'!$N$1)","v":"Order number"},null,{"$f":"OFFSET('Language-Sprachen'!$A$115,,'Language-Sprachen'!$N$1)","v":"Test area\n(if applicable for the product)"},null,null,null,null,null,null,null,{"$f":"OFFSET('Language-Sprachen'!$A$117,,'Language-Sprachen'!$N$1)","v":"Submision required"},null,{"$f":"OFFSET('Language-Sprachen'!$A$347,,'Language-Sprachen'!$N$1)","v":"Requirements fully met"},null,{"$f":"OFFSET('Language-Sprachen'!$A$348,,'Language-Sprachen'!$N$1)","v":"Requirements not fully met"},null,{"$f":"OFFSET('Language-Sprachen'!$A$349,,'Language-Sprachen'!$N$1)","v":"Deliverable"},null,null,null,null,null,null,null,{"$f":"OFFSET('Language-Sprachen'!$A$350,,'Language-Sprachen'!$N$1)","v":"Version/ Date"},null,null,null,{"$f":"OFFSET('Language-Sprachen'!$A$122,,'Language-Sprachen'!$N$1)","v":"Remark"}]
[]
[]
[]
[]
[6,null,{"$f":"OFFSET('Language-Sprachen'!$A187,,'Language-Sprachen'!$N$1)","v":"Deliverables for software"}]
[{"$f":"OFFSET('Language-Sprachen'!$A188,,'Language-Sprachen'!$N$1)","v":"Software approval required"}]
["6.1",null,{"$f":"OFFSET('Language-Sprachen'!$A189,,'Language-Sprachen'!$N$1)","v":"Software release (e.g. Appendix 5 \"Cover sheet for PPA software\")"}]
["6.2",null,{"$f":"OFFSET('Language-Sprachen'!$A190,,'Language-Sprachen'!$N$1)","v":"Definition of scope of the software product"}]
["6.3",null,{"$f":"OFFSET('Language-Sprachen'!$A191,,'Language-Sprachen'!$N$1)","v":"Reference to contractually stipulated quality requirements"}]
["6.4",null,{"$f":"OFFSET('Language-Sprachen'!$A192,,'Language-Sprachen'!$N$1)","v":"Documentation of technical SW specifications"}]
["6.5",null,{"$f":"OFFSET('Language-Sprachen'!$A193,,'Language-Sprachen'!$N$1)","v":"Implementation of the requirements from 6.3 and 6.4 espacially the Special"}]
["6.6",null,{"$f":"OFFSET('Language-Sprachen'!$A194,,'Language-Sprachen'!$N$1)","v":"Documentation of FOSS (free and open-source software)"}]
["6.7",null,{"$f":"OFFSET('Language-Sprachen'!$A195,,'Language-Sprachen'!$N$1)","v":"List of known errors"}]
["6.8",null,{"$f":"OFFSET('Language-Sprachen'!$A196,,'Language-Sprachen'!$N$1)","v":"Documentation of development tools"}]
["6.9",null,{"$f":"OFFSET('Language-Sprachen'!$A197,,'Language-Sprachen'!$N$1)","v":"Documentation of testing tools"}]
["6.10",null,{"$f":"OFFSET('Language-Sprachen'!$A198,,'Language-Sprachen'!$N$1)","v":"Documentation of version management"}]
["6.11",null,{"$f":"OFFSET('Language-Sprachen'!$A199,,'Language-Sprachen'!$N$1)","v":"Documentation of a process evaluation (e.g. VDA Automotive Spice)"}]
[]
[]
[]
[{"$f":"OFFSET('Language-Sprachen'!$A$344,,'Language-Sprachen'!$N$1)","v":"PPA evaluation"},null,null,null,null,null,null,null,null,null,null,null,{"$f":"OFFSET('Language-Sprachen'!$A$345,,'Language-Sprachen'!$N$1)","v":"Report"},null,null,null,null,null,{"$f":"IF(OR('Attachment 4 Cover-PPA'!$S$1=\"\"),\"-\",'Attachment 4 Cover-PPA'!$S$1)","v":"Modine Europe GmbH"}]
[null,null,null,null,null,null,null,null,null,null,null,null,{"$f":"OFFSET('Language-Sprachen'!$A$5,,'Language-Sprachen'!$N$1)","v":"Organization"}]
[{"$f":"OFFSET('Language-Sprachen'!$A$8,,'Language-Sprachen'!$N$1)","v":"Information about the organization"},null,null,null,null,null,null,null,null,null,null,null,{"$f":"OFFSET('Language-Sprachen'!$A$234,,'Language-Sprachen'!$N$1)","v":"Information about samples"},null,null,null,null,null,null,null,null,null,null,null,{"$f":"OFFSET('Language-Sprachen'!$A$9,,'Language-Sprachen'!$N$1)","v":"Information about the customer"}]
[{"$f":"OFFSET('Language-Sprachen'!$A$16,,'Language-Sprachen'!$N$1)","v":"Report number"},null,null,null,null,null,{"$f":"IF(OR('Attachment 4 Cover-PPA'!$G$16=\"\"),\"-\",'Attachment 4 Cover-PPA'!$G$16)","v":"-"},null,null,null,null,null,{"$f":"OFFSET('Language-Sprachen'!$A$235,,'Language-Sprachen'!$N$1)","v":"Delivery note number"},null,null,null,null,null,{"$f":"IF(OR('Attachment 4 Cover-PPA'!$S$16=\"\"),\"-\",'Attachment 4 Cover-PPA'!$S$16)","v":"-"},null,null,null,null,null,{"$f":"OFFSET('Language-Sprachen'!$A$23,,'Language-Sprachen'!$N$1)","v":"Customer"},null,null,null,null,null,{"$f":"IF(OR('Attachment 4 Cover-PPA'!$AE$16=\"\"),\"-\",'Attachment 4 Cover-PPA'!$AE$16)","v":"-"}]
[{"$f":"OFFSET('Language-Sprachen'!$A$17,,'Language-Sprachen'!$N$1)","v":"Report version"},null,null,null,null,null,{"$f":"IF(OR('Attachment 4 Cover-PPA'!$G$17=\"\"),\"-\",'Attachment 4 Cover-PPA'!$G$17)","v":"-"},null,null,null,null,null,{"$f":"OFFSET('Language-Sprachen'!$A$236,,'Language-Sprachen'!$N$1)","v":"Delivery quantity"},null,null,null,null,null,{"$f":"IF(OR('Attachment 4 Cover-PPA'!$S$17=\"\"),\"-\",'Attachment 4 Cover-PPA'!$S$17)","v":"-"}]
[{"$f":"OFFSET('Language-Sprachen'!$A$13,,'Language-Sprachen'!$N$1)","v":"Delivery location"},null,null,null,null,null,{"$f":"IF(OR('Attachment 4 Cover-PPA'!$G$18=\"\"),\"-\",'Attachment 4 Cover-PPA'!$G$18)","v":"-"},null,null,null,null,null,{"$f":"OFFSET('Language-Sprachen'!$A$237,,'Language-Sprachen'!$N$1)","v":"Batch number"},null,null,null,null,null,{"$f":"IF(OR('Attachment 4 Cover-PPA'!$S$18=\"\"),\"-\",'Attachment 4 Cover-PPA'!$S$18)","v":"-"},null,null,null,null,null,{"$f":"OFFSET('Language-Sprachen'!$A$21,,'Language-Sprachen'!$N$1)","v":"Order Number PPA sample"},null,null,null,null,null,{"$f":"IF(OR('Attachment 4 Cover-PPA'!$AE$18=\"\"),\"-\",'Attachment 4 Cover-PPA'!$AE$18)","v":"-"}]
[{"$f":"OFFSET('Language-Sprachen'!$A$11,,'Language-Sprachen'!$N$1)","v":"Production location"},null,null,null,null,null,{"$f":"IF(OR('Attachment 4 Cover-PPA'!$G$19=\"\"),\"-\",'Attachment 4 Cover-PPA'!$G$19)","v":"-"},null,null,null,null,null,{"$f":"OFFSET('Language-Sprachen'!$A$238,,'Language-Sprachen'!$N$1)","v":"Sample weight [kg]"},null,null,null,null,null,{"$f":"IF(OR('Attachment 4 Cover-PPA'!$S$19=\"\"),\"-\",'Attachment 4 Cover-PPA'!$S$19)","v":"-"},null,null,null,null,null,{"$f":"OFFSET('Language-Sprachen'!$A$20,,'Language-Sprachen'!$N$1)","v":"Unloading point"},null,null,null,null,null,{"$f":"IF(OR('Attachment 4 Cover-PPA'!$AE$19=\"\"),\"-\",'Attachment 4 Cover-PPA'!$AE$19)","v":"-"}]
[{"$f":"OFFSET('Language-Sprachen'!$A$38,,'Language-Sprachen'!$N$1)","v":"Part Number"},null,null,null,null,null,{"$f":"IF(OR('Attachment 4 Cover-PPA'!$G$20=\"\"),\"-\",'Attachment 4 Cover-PPA'!$G$20)","v":"-"},null,null,null,null,null,{"$f":"OFFSET('Language-Sprachen'!$A$239,,'Language-Sprachen'!$N$1)","v":"Hardware version"},null,null,null,null,null,{"$f":"IF(OR('Attachment 4 Cover-PPA'!$S$20=\"\"),\"-\",'Attachment 4 Cover-PPA'!$S$20)","v":"-"},null,null,null,null,null,{"$f":"OFFSET('Language-Sprachen'!$A$38,,'Language-Sprachen'!$N$1)","v":"Part Number"},null,null,null,null,null,{"$f":"IF(OR('Attachment 4 Cover-PPA'!$AE$20=\"\"),\"-\",'Attachment 4 Cover-PPA'!$AE$20)","v":"-"}]
[{"$f":"OFFSET('Language-Sprachen'!$A$37,,'Language-Sprachen'!$N$1)","v":"Name"},null,null,null,null,null,{"$f":"IF(OR('Attachment 4 Cover-PPA'!$G$21=\"\"),\"-\",'Attachment 4 Cover-PPA'!$G$21)","v":"-"},null,null,null,null,null,{"$f":"OFFSET('Language-Sprachen'!$A$240,,'Language-Sprachen'!$N$1)","v":"Diagnosis status"},null,null,null,null,null,{"$f":"IF(OR('Attachment 4 Cover-PPA'!$S$21=\"\"),\"-\",'Attachment 4 Cover-PPA'!$S$21)","v":"-"},null,null,null,null,null,{"$f":"OFFSET('Language-Sprachen'!$A$37,,'Language-Sprachen'!$N$1)","v":"Name"},null,null,null,null,null,{"$f":"IF(OR('Attachment 4 Cover-PPA'!$AE$21=\"\"),\"-\",'Attachment 4 Cover-PPA'!$AE$21)","v":"-"}]
[{"$f":"OFFSET('Language-Sprachen'!$A$39,,'Language-Sprachen'!$N$1)","v":"Drawing number"},null,null,null,null,null,{"$f":"IF(OR('Attachment 4 Cover-PPA'!$G$22=\"\"),\"-\",'Attachment 4 Cover-PPA'!$G$22)","v":"-"},null,null,null,null,null,{"$f":"OFFSET('Language-Sprachen'!$A$241,,'Language-Sprachen'!$N$1)","v":"Software version"},null,null,null,null,null,{"$f":"IF(OR('Attachment 4 Cover-PPA'!$S$22=\"\"),\"-\",'Attachment 4 Cover-PPA'!$S$22)","v":"-"},null,null,null,null,null,{"$f":"OFFSET('Language-Sprachen'!$A$39,,'Language-Sprachen'!$N$1)","v":"Drawing number"},null,null,null,null,null,{"$f":"IF(OR('Attachment 4 Cover-PPA'!$AE$22=\"\"),\"-\",'Attachment 4 Cover-PPA'!$AE$22)","v":"-"}]
[{"$f":"OFFSET('Language-Sprachen'!$A$350,,'Language-Sprachen'!$N$1)","v":"Version/ Date"},null,null,null,null,null,{"$f":"IF(OR('Attachment 4 Cover-PPA'!$G$23=\"\"),\"-\",'Attachment 4 Cover-PPA'!$G$23)","v":"-"},null,null,null,null,null,{"$f":"OFFSET('Language-Sprachen'!$A$242,,'Language-Sprachen'!$N$1)","v":"Identification/ DUNS"},null,null,null,null,null,{"$f":"IF(OR('Attachment 4 Cover-PPA'!$S$23=\"\"),\"-\",'Attachment 4 Cover-PPA'!$S$23)","v":"-"},null,null,null,null,null,{"$f":"OFFSET('Language-Sprachen'!$A$350,,'Language-Sprachen'!$N$1)","v":"Version/ Date"},null,null,null,null,null,{"$f":"IF(OR('Attachment 4 Cover-PPA'!$AE$23=\"\"),\"-\",'Attachment 4 Cover-PPA'!$AE$23)","v":"-"}]
[{"$f":"OFFSET('Language-Sprachen'!$A358,,'Language-Sprachen'!$N$1)","v":"Part grouping / Product families"}]
[null,null,{"$f":"OFFSET('Language-Sprachen'!$A359,,'Language-Sprachen'!$N$1)","v":"PPA procedure for product family"}]
[null,null,{"$f":"OFFSET('Language-Sprachen'!$A37,,'Language-Sprachen'!$N$1)","v":"Name"},null,null,null,null,null,null,{"$f":"OFFSET('Language-Sprachen'!$A38,,'Language-Sprachen'!$N$1)","v":"Part Number"},null,null,null,null,{"$f":"OFFSET('Language-Sprachen'!$A350,,'Language-Sprachen'!$N$1)","v":"Version/ Date"},null,null,null,{"$f":"OFFSET('Language-Sprachen'!$A37,,'Language-Sprachen'!$N$1)","v":"Name"},null,null,null,null,null,null,null,{"$f":"OFFSET('Language-Sprachen'!$A38,,'Language-Sprachen'!$N$1)","v":"Part Number"},null,null,null,null,{"$f":"OFFSET('Language-Sprachen'!$A350,,'Language-Sprachen'!$N$1)","v":"Version/ Date"}]
[]
[]
[]
[]
[]
[]
[]
[]
[]
[]
[]
[]
[]
[]
[]
[]
[]
[]
[]
[]
[]
[]
[]
[]
[]
[]
[]
[]
[]
[]
[]
[]
[]
[]
[]
[]
[]
[]
[{"$f":"OFFSET('Language-Sprachen'!$A$344,,'Language-Sprachen'!$N$1)","v":"PPA evaluation"},null,null,null,null,null,null,null,null,null,null,null,{"$f":"OFFSET('Language-Sprachen'!$A$345,,'Language-Sprachen'!$N$1)","v":"Report"},null,null,null,null,null,{"$f":"IF(OR('Attachment 4 Cover-PPA'!$S$1=\"\"),\"-\",'Attachment 4 Cover-PPA'!$S$1)","v":"Modine Europe GmbH"}]
[null,null,null,null,null,null,null,null,null,null,null,null,{"$f":"OFFSET('Language-Sprachen'!$A$5,,'Language-Sprachen'!$N$1)","v":"Organization"}]
[{"$f":"OFFSET('Language-Sprachen'!$A$8,,'Language-Sprachen'!$N$1)","v":"Information about the organization"},null,null,null,null,null,null,null,null,null,null,null,{"$f":"OFFSET('Language-Sprachen'!$A$234,,'Language-Sprachen'!$N$1)","v":"Information about samples"},null,null,null,null,null,null,null,null,null,null,null,{"$f":"OFFSET('Language-Sprachen'!$A$9,,'Language-Sprachen'!$N$1)","v":"Information about the customer"}]
[{"$f":"OFFSET('Language-Sprachen'!$A$16,,'Language-Sprachen'!$N$1)","v":"Report number"},null,null,null,null,null,{"$f":"IF(OR('Attachment 4 Cover-PPA'!$G$16=\"\"),\"-\",'Attachment 4 Cover-PPA'!$G$16)","v":"-"},null,null,null,null,null,{"$f":"OFFSET('Language-Sprachen'!$A$235,,'Language-Sprachen'!$N$1)","v":"Delivery note number"},null,null,null,null,null,{"$f":"IF(OR('Attachment 4 Cover-PPA'!$S$16=\"\"),\"-\",'Attachment 4 Cover-PPA'!$S$16)","v":"-"},null,null,null,null,null,{"$f":"OFFSET('Language-Sprachen'!$A$23,,'Language-Sprachen'!$N$1)","v":"Customer"},null,null,null,null,null,{"$f":"IF(OR('Attachment 4 Cover-PPA'!$AE$16=\"\"),\"-\",'Attachment 4 Cover-PPA'!$AE$16)","v":"-"}]
[{"$f":"OFFSET('Language-Sprachen'!$A$17,,'Language-Sprachen'!$N$1)","v":"Report version"},null,null,null,null,null,{"$f":"IF(OR('Attachment 4 Cover-PPA'!$G$17=\"\"),\"-\",'Attachment 4 Cover-PPA'!$G$17)","v":"-"},null,null,null,null,null,{"$f":"OFFSET('Language-Sprachen'!$A$236,,'Language-Sprachen'!$N$1)","v":"Delivery quantity"},null,null,null,null,null,{"$f":"IF(OR('Attachment 4 Cover-PPA'!$S$17=\"\"),\"-\",'Attachment 4 Cover-PPA'!$S$17)","v":"-"}]
[{"$f":"OFFSET('Language-Sprachen'!$A$13,,'Language-Sprachen'!$N$1)","v":"Delivery location"},null,null,null,null,null,{"$f":"IF(OR('Attachment 4 Cover-PPA'!$G$18=\"\"),\"-\",'Attachment 4 Cover-PPA'!$G$18)","v":"-"},null,null,null,null,null,{"$f":"OFFSET('Language-Sprachen'!$A$237,,'Language-Sprachen'!$N$1)","v":"Batch number"},null,null,null,null,null,{"$f":"IF(OR('Attachment 4 Cover-PPA'!$S$18=\"\"),\"-\",'Attachment 4 Cover-PPA'!$S$18)","v":"-"},null,null,null,null,null,{"$f":"OFFSET('Language-Sprachen'!$A$21,,'Language-Sprachen'!$N$1)","v":"Order Number PPA sample"},null,null,null,null,null,{"$f":"IF(OR('Attachment 4 Cover-PPA'!$AE$18=\"\"),\"-\",'Attachment 4 Cover-PPA'!$AE$18)","v":"-"}]
[{"$f":"OFFSET('Language-Sprachen'!$A$11,,'Language-Sprachen'!$N$1)","v":"Production location"},null,null,null,null,null,{"$f":"IF(OR('Attachment 4 Cover-PPA'!$G$19=\"\"),\"-\",'Attachment 4 Cover-PPA'!$G$19)","v":"-"},null,null,null,null,null,{"$f":"OFFSET('Language-Sprachen'!$A$238,,'Language-Sprachen'!$N$1)","v":"Sample weight [kg]"},null,null,null,null,null,{"$f":"IF(OR('Attachment 4 Cover-PPA'!$S$19=\"\"),\"-\",'Attachment 4 Cover-PPA'!$S$19)","v":"-"},null,null,null,null,null,{"$f":"OFFSET('Language-Sprachen'!$A$20,,'Language-Sprachen'!$N$1)","v":"Unloading point"},null,null,null,null,null,{"$f":"IF(OR('Attachment 4 Cover-PPA'!$AE$19=\"\"),\"-\",'Attachment 4 Cover-PPA'!$AE$19)","v":"-"}]
[{"$f":"OFFSET('Language-Sprachen'!$A$38,,'Language-Sprachen'!$N$1)","v":"Part Number"},null,null,null,null,null,{"$f":"IF(OR('Attachment 4 Cover-PPA'!$G$20=\"\"),\"-\",'Attachment 4 Cover-PPA'!$G$20)","v":"-"},null,null,null,null,null,{"$f":"OFFSET('Language-Sprachen'!$A$239,,'Language-Sprachen'!$N$1)","v":"Hardware version"},null,null,null,null,null,{"$f":"IF(OR('Attachment 4 Cover-PPA'!$S$20=\"\"),\"-\",'Attachment 4 Cover-PPA'!$S$20)","v":"-"},null,null,null,null,null,{"$f":"OFFSET('Language-Sprachen'!$A$38,,'Language-Sprachen'!$N$1)","v":"Part Number"},null,null,null,null,null,{"$f":"IF(OR('Attachment 4 Cover-PPA'!$AE$20=\"\"),\"-\",'Attachment 4 Cover-PPA'!$AE$20)","v":"-"}]
[{"$f":"OFFSET('Language-Sprachen'!$A$37,,'Language-Sprachen'!$N$1)","v":"Name"},null,null,null,null,null,{"$f":"IF(OR('Attachment 4 Cover-PPA'!$G$21=\"\"),\"-\",'Attachment 4 Cover-PPA'!$G$21)","v":"-"},null,null,null,null,null,{"$f":"OFFSET('Language-Sprachen'!$A$240,,'Language-Sprachen'!$N$1)","v":"Diagnosis status"},null,null,null,null,null,{"$f":"IF(OR('Attachment 4 Cover-PPA'!$S$21=\"\"),\"-\",'Attachment 4 Cover-PPA'!$S$21)","v":"-"},null,null,null,null,null,{"$f":"OFFSET('Language-Sprachen'!$A$37,,'Language-Sprachen'!$N$1)","v":"Name"},null,null,null,null,null,{"$f":"IF(OR('Attachment 4 Cover-PPA'!$AE$21=\"\"),\"-\",'Attachment 4 Cover-PPA'!$AE$21)","v":"-"}]
[{"$f":"OFFSET('Language-Sprachen'!$A$39,,'Language-Sprachen'!$N$1)","v":"Drawing number"},null,null,null,null,null,{"$f":"IF(OR('Attachment 4 Cover-PPA'!$G$22=\"\"),\"-\",'Attachment 4 Cover-PPA'!$G$22)","v":"-"},null,null,null,null,null,{"$f":"OFFSET('Language-Sprachen'!$A$241,,'Language-Sprachen'!$N$1)","v":"Software version"},null,null,null,null,null,{"$f":"IF(OR('Attachment 4 Cover-PPA'!$S$22=\"\"),\"-\",'Attachment 4 Cover-PPA'!$S$22)","v":"-"},null,null,null,null,null,{"$f":"OFFSET('Language-Sprachen'!$A$39,,'Language-Sprachen'!$N$1)","v":"Drawing number"},null,null,null,null,null,{"$f":"IF(OR('Attachment 4 Cover-PPA'!$AE$22=\"\"),\"-\",'Attachment 4 Cover-PPA'!$AE$22)","v":"-"}]
[{"$f":"OFFSET('Language-Sprachen'!$A$350,,'Language-Sprachen'!$N$1)","v":"Version/ Date"},null,null,null,null,null,{"$f":"IF(OR('Attachment 4 Cover-PPA'!$G$23=\"\"),\"-\",'Attachment 4 Cover-PPA'!$G$23)","v":"-"},null,null,null,null,null,{"$f":"OFFSET('Language-Sprachen'!$A$242,,'Language-Sprachen'!$N$1)","v":"Identification/ DUNS"},null,null,null,null,null,{"$f":"IF(OR('Attachment 4 Cover-PPA'!$S$23=\"\"),\"-\",'Attachment 4 Cover-PPA'!$S$23)","v":"-"},null,null,null,null,null,{"$f":"OFFSET('Language-Sprachen'!$A$350,,'Language-Sprachen'!$N$1)","v":"Version/ Date"},null,null,null,null,null,{"$f":"IF(OR('Attachment 4 Cover-PPA'!$AE$23=\"\"),\"-\",'Attachment 4 Cover-PPA'!$AE$23)","v":"-"}]
[{"$f":"OFFSET('Language-Sprachen'!$A$360,,'Language-Sprachen'!$N$1)","v":"Overall evaluation by organization"}]
[{"$f":"OFFSET('Language-Sprachen'!$A$361,,'Language-Sprachen'!$N$1)","v":"Deliverable category"},null,null,null,null,null,null,null,null,null,{"$f":"OFFSET('Language-Sprachen'!$A$117,,'Language-Sprachen'!$N$1)","v":"Submision required"},null,{"$f":"OFFSET('Language-Sprachen'!$A$367,,'Language-Sprachen'!$N$1)","v":"Requirements fully met"},null,{"$f":"OFFSET('Language-Sprachen'!$A$368,,'Language-Sprachen'!$N$1)","v":"Requirements not fully met"},null,{"$f":"OFFSET('Language-Sprachen'!$A$339,,'Language-Sprachen'!$N$1)","v":"PPA procedure towards customer closed"},null,{"$f":"OFFSET('Language-Sprachen'!$A$340,,'Language-Sprachen'!$N$1)","v":"Update of PPA documentation required"},null,{"$f":"OFFSET('Language-Sprachen'!$A$343,,'Language-Sprachen'!$N$1)","v":"New PPA procedure required"},null,{"$f":"OFFSET('Language-Sprachen'!$A$369,,'Language-Sprachen'!$N$1)","v":"Risk assessment"},null,null,null,null,null,null,null,null,{"$f":"OFFSET('Language-Sprachen'!$A$350,,'Language-Sprachen'!$N$1)","v":"Version/ Date"}]
[]
[]
[]
[]
[{"$f":"OFFSET('Language-Sprachen'!$A362,,'Language-Sprachen'!$N$1)","v":"PPA cover sheet / PPA evaluation / Self-Assessment"},null,null,null,null,null,null,null,null,null,"Yes"]
[]
[{"$f":"OFFSET('Language-Sprachen'!$A363,,'Language-Sprachen'!$N$1)","v":"Deliverables of product"},null,null,null,null,null,null,null,null,null,"No"]
[]
[{"$f":"OFFSET('Language-Sprachen'!$A364,,'Language-Sprachen'!$N$1)","v":"Deliverables of production process"},null,null,null,null,null,null,null,null,null,"No"]
[]
[{"$f":"OFFSET('Language-Sprachen'!$A365,,'Language-Sprachen'!$N$1)","v":"General deliverables"},null,null,null,null,null,null,null,null,null,"No"]
[]
[{"$f":"OFFSET('Language-Sprachen'!$A366,,'Language-Sprachen'!$N$1)","v":"Deliverables for software"},null,null,null,null,null,null,null,null,null,"No"]
[]
[{"$f":"OFFSET('Language-Sprachen'!$A230,,'Language-Sprachen'!$N$1)","v":"Comment of organization"}]
[]
[]
[]
[]
[]
[]
[{"$f":"OFFSET('Language-Sprachen'!$A$370,,'Language-Sprachen'!$N$1)","v":"Recommendation by the organization"}]
[{"$f":"OFFSET('Language-Sprachen'!$A$338,,'Language-Sprachen'!$N$1)","v":"Customer-ready/Ready for series production"},null,null,null,null,null,null,null,null,null,null,null,null,null,null,null,null,null,{"$f":"OFFSET('Language-Sprachen'!$A$342,,'Language-Sprachen'!$N$1)","v":"Not customer-ready / Not ready for series production"}]
[]
[{"$f":"OFFSET('Language-Sprachen'!$A$334,,'Language-Sprachen'!$N$1)","v":"Confirmation of organization:"}]
[{"$f":"OFFSET('Language-Sprachen'!$A$25,,'Language-Sprachen'!$N$1)","v":"Name"},null,null,null,null,{"$f":"IF(OR('Attachment 4 Cover-PPA'!$F$29=\"\"),\"\",'Attachment 4 Cover-PPA'!$F$29)","v":""},null,null,null,null,null,null,null,null,null,null,null,{"$f":"OFFSET('Language-Sprachen'!$A$122,,'Language-Sprachen'!$N$1)","v":"Remark"},null,null,null,null,{"$f":"IF(OR('Attachment 4 Cover-PPA'!$W$29=\"\"),\"\",'Attachment 4 Cover-PPA'!$W$29)","v":""}]
[{"$f":"OFFSET('Language-Sprachen'!$A$228,,'Language-Sprachen'!$N$1)","v":"Department"},null,null,null,null,{"$f":"IF(OR('Attachment 4 Cover-PPA'!$F$30=\"\"),\"\",'Attachment 4 Cover-PPA'!$F$30)","v":""}]
[{"$f":"OFFSET('Language-Sprachen'!$A$26,,'Language-Sprachen'!$N$1)","v":"Telephone"},null,null,null,null,{"$f":"IF(OR('Attachment 4 Cover-PPA'!$F$31=\"\"),\"\",'Attachment 4 Cover-PPA'!$F$31)","v":""}]
[{"$f":"OFFSET('Language-Sprachen'!$A$27,,'Language-Sprachen'!$N$1)","v":"E-mail"},null,null,null,null,{"$f":"IF(OR('Attachment 4 Cover-PPA'!$F$32=\"\"),\"\",'Attachment 4 Cover-PPA'!$F$32)","v":""}]
[{"$f":"OFFSET('Language-Sprachen'!$A$49,,'Language-Sprachen'!$N$1)","v":"Date"},null,null,null,null,{"$f":"IF(OR('Attachment 4 Cover-PPA'!$F$33=\"\"),\"\",'Attachment 4 Cover-PPA'!$F$33)","v":""},null,null,null,null,null,null,null,null,null,null,null,{"$f":"OFFSET('Language-Sprachen'!$A$92,,'Language-Sprachen'!$N$1)","v":"Signature"},null,null,null,null,{"$f":"IF(OR('Attachment 4 Cover-PPA'!$W$33=\"\"),\"\",'Attachment 4 Cover-PPA'!$W$33)","v":""}]
[]
[]
[]
[]
[]
[]
[]
[{"$f":"OFFSET('Language-Sprachen'!$A$344,,'Language-Sprachen'!$N$1)","v":"PPA evaluation"},null,null,null,null,null,null,null,null,null,null,null,{"$f":"OFFSET('Language-Sprachen'!$A$345,,'Language-Sprachen'!$N$1)","v":"Report"},null,null,null,null,null,{"$f":"IF(OR('Attachment 4 Cover-PPA'!$S$1=\"\"),\"-\",'Attachment 4 Cover-PPA'!$S$1)","v":"Modine Europe GmbH"}]
[null,null,null,null,null,null,null,null,null,null,null,null,{"$f":"OFFSET('Language-Sprachen'!$A$5,,'Language-Sprachen'!$N$1)","v":"Organization"}]
[{"$f":"OFFSET('Language-Sprachen'!$A$8,,'Language-Sprachen'!$N$1)","v":"Information about the organization"},null,null,null,null,null,null,null,null,null,null,null,{"$f":"OFFSET('Language-Sprachen'!$A$234,,'Language-Sprachen'!$N$1)","v":"Information about samples"},null,null,null,null,null,null,null,null,null,null,null,{"$f":"OFFSET('Language-Sprachen'!$A$9,,'Language-Sprachen'!$N$1)","v":"Information about the customer"}]
[{"$f":"OFFSET('Language-Sprachen'!$A$16,,'Language-Sprachen'!$N$1)","v":"Report number"},null,null,null,null,null,{"$f":"IF(OR('Attachment 4 Cover-PPA'!$G$16=\"\"),\"-\",'Attachment 4 Cover-PPA'!$G$16)","v":"-"},null,null,null,null,null,{"$f":"OFFSET('Language-Sprachen'!$A$235,,'Language-Sprachen'!$N$1)","v":"Delivery note number"},null,null,null,null,null,{"$f":"IF(OR('Attachment 4 Cover-PPA'!$S$16=\"\"),\"-\",'Attachment 4 Cover-PPA'!$S$16)","v":"-"},null,null,null,null,null,{"$f":"OFFSET('Language-Sprachen'!$A$23,,'Language-Sprachen'!$N$1)","v":"Customer"},null,null,null,null,null,{"$f":"IF(OR('Attachment 4 Cover-PPA'!$AE$16=\"\"),\"-\",'Attachment 4 Cover-PPA'!$AE$16)","v":"-"}]
[{"$f":"OFFSET('Language-Sprachen'!$A$17,,'Language-Sprachen'!$N$1)","v":"Report version"},null,null,null,null,null,{"$f":"IF(OR('Attachment 4 Cover-PPA'!$G$17=\"\"),\"-\",'Attachment 4 Cover-PPA'!$G$17)","v":"-"},null,null,null,null,null,{"$f":"OFFSET('Language-Sprachen'!$A$236,,'Language-Sprachen'!$N$1)","v":"Delivery quantity"},null,null,null,null,null,{"$f":"IF(OR('Attachment 4 Cover-PPA'!$S$17=\"\"),\"-\",'Attachment 4 Cover-PPA'!$S$17)","v":"-"}]
[{"$f":"OFFSET('Language-Sprachen'!$A$13,,'Language-Sprachen'!$N$1)","v":"Delivery location"},null,null,null,null,null,{"$f":"IF(OR('Attachment 4 Cover-PPA'!$G$18=\"\"),\"-\",'Attachment 4 Cover-PPA'!$G$18)","v":"-"},null,null,null,null,null,{"$f":"OFFSET('Language-Sprachen'!$A$237,,'Language-Sprachen'!$N$1)","v":"Batch number"},null,null,null,null,null,{"$f":"IF(OR('Attachment 4 Cover-PPA'!$S$18=\"\"),\"-\",'Attachment 4 Cover-PPA'!$S$18)","v":"-"},null,null,null,null,null,{"$f":"OFFSET('Language-Sprachen'!$A$21,,'Language-Sprachen'!$N$1)","v":"Order Number PPA sample"},null,null,null,null,null,{"$f":"IF(OR('Attachment 4 Cover-PPA'!$AE$18=\"\"),\"-\",'Attachment 4 Cover-PPA'!$AE$18)","v":"-"}]
[{"$f":"OFFSET('Language-Sprachen'!$A$11,,'Language-Sprachen'!$N$1)","v":"Production location"},null,null,null,null,null,{"$f":"IF(OR('Attachment 4 Cover-PPA'!$G$19=\"\"),\"-\",'Attachment 4 Cover-PPA'!$G$19)","v":"-"},null,null,null,null,null,{"$f":"OFFSET('Language-Sprachen'!$A$238,,'Language-Sprachen'!$N$1)","v":"Sample weight [kg]"},null,null,null,null,null,{"$f":"IF(OR('Attachment 4 Cover-PPA'!$S$19=\"\"),\"-\",'Attachment 4 Cover-PPA'!$S$19)","v":"-"},null,null,null,null,null,{"$f":"OFFSET('Language-Sprachen'!$A$20,,'Language-Sprachen'!$N$1)","v":"Unloading point"},null,null,null,null,null,{"$f":"IF(OR('Attachment 4 Cover-PPA'!$AE$19=\"\"),\"-\",'Attachment 4 Cover-PPA'!$AE$19)","v":"-"}]
[{"$f":"OFFSET('Language-Sprachen'!$A$38,,'Language-Sprachen'!$N$1)","v":"Part Number"},null,null,null,null,null,{"$f":"IF(OR('Attachment 4 Cover-PPA'!$G$20=\"\"),\"-\",'Attachment 4 Cover-PPA'!$G$20)","v":"-"},null,null,null,null,null,{"$f":"OFFSET('Language-Sprachen'!$A$239,,'Language-Sprachen'!$N$1)","v":"Hardware version"},null,null,null,null,null,{"$f":"IF(OR('Attachment 4 Cover-PPA'!$S$20=\"\"),\"-\",'Attachment 4 Cover-PPA'!$S$20)","v":"-"},null,null,null,null,null,{"$f":"OFFSET('Language-Sprachen'!$A$38,,'Language-Sprachen'!$N$1)","v":"Part Number"},null,null,null,null,null,{"$f":"IF(OR('Attachment 4 Cover-PPA'!$AE$20=\"\"),\"-\",'Attachment 4 Cover-PPA'!$AE$20)","v":"-"}]
[{"$f":"OFFSET('Language-Sprachen'!$A$37,,'Language-Sprachen'!$N$1)","v":"Name"},null,null,null,null,null,{"$f":"IF(OR('Attachment 4 Cover-PPA'!$G$21=\"\"),\"-\",'Attachment 4 Cover-PPA'!$G$21)","v":"-"},null,null,null,null,null,{"$f":"OFFSET('Language-Sprachen'!$A$240,,'Language-Sprachen'!$N$1)","v":"Diagnosis status"},null,null,null,null,null,{"$f":"IF(OR('Attachment 4 Cover-PPA'!$S$21=\"\"),\"-\",'Attachment 4 Cover-PPA'!$S$21)","v":"-"},null,null,null,null,null,{"$f":"OFFSET('Language-Sprachen'!$A$37,,'Language-Sprachen'!$N$1)","v":"Name"},null,null,null,null,null,{"$f":"IF(OR('Attachment 4 Cover-PPA'!$AE$21=\"\"),\"-\",'Attachment 4 Cover-PPA'!$AE$21)","v":"-"}]
[{"$f":"OFFSET('Language-Sprachen'!$A$39,,'Language-Sprachen'!$N$1)","v":"Drawing number"},null,null,null,null,null,{"$f":"IF(OR('Attachment 4 Cover-PPA'!$G$22=\"\"),\"-\",'Attachment 4 Cover-PPA'!$G$22)","v":"-"},null,null,null,null,null,{"$f":"OFFSET('Language-Sprachen'!$A$241,,'Language-Sprachen'!$N$1)","v":"Software version"},null,null,null,null,null,{"$f":"IF(OR('Attachment 4 Cover-PPA'!$S$22=\"\"),\"-\",'Attachment 4 Cover-PPA'!$S$22)","v":"-"},null,null,null,null,null,{"$f":"OFFSET('Language-Sprachen'!$A$39,,'Language-Sprachen'!$N$1)","v":"Drawing number"},null,null,null,null,null,{"$f":"IF(OR('Attachment 4 Cover-PPA'!$AE$22=\"\"),\"-\",'Attachment 4 Cover-PPA'!$AE$22)","v":"-"}]
[{"$f":"OFFSET('Language-Sprachen'!$A$350,,'Language-Sprachen'!$N$1)","v":"Version/ Date"},null,null,null,null,null,{"$f":"IF(OR('Attachment 4 Cover-PPA'!$G$23=\"\"),\"-\",'Attachment 4 Cover-PPA'!$G$23)","v":"-"},null,null,null,null,null,{"$f":"OFFSET('Language-Sprachen'!$A$242,,'Language-Sprachen'!$N$1)","v":"Identification/ DUNS"},null,null,null,null,null,{"$f":"IF(OR('Attachment 4 Cover-PPA'!$S$23=\"\"),\"-\",'Attachment 4 Cover-PPA'!$S$23)","v":"-"},null,null,null,null,null,{"$f":"OFFSET('Language-Sprachen'!$A$350,,'Language-Sprachen'!$N$1)","v":"Version/ Date"},null,null,null,null,null,{"$f":"IF(OR('Attachment 4 Cover-PPA'!$AE$23=\"\"),\"-\",'Attachment 4 Cover-PPA'!$AE$23)","v":"-"}]
[{"$f":"OFFSET('Language-Sprachen'!$A$337,,'Language-Sprachen'!$N$1)","v":"Customer decision"}]
[{"$f":"OFFSET('Language-Sprachen'!$A$338,,'Language-Sprachen'!$N$1)","v":"Customer-ready/Ready for series production"},null,null,null,null,null,null,null,null,null,null,null,null,null,null,null,null,null,{"$f":"OFFSET('Language-Sprachen'!$A$342,,'Language-Sprachen'!$N$1)","v":"Not customer-ready / Not ready for series production"}]
[]
[{"$f":"OFFSET('Language-Sprachen'!$A$339,,'Language-Sprachen'!$N$1)","v":"PPA procedure towards customer closed"},null,null,null,null,null,null,null,null,null,null,null,null,null,null,null,null,null,{"$f":"OFFSET('Language-Sprachen'!$A$343,,'Language-Sprachen'!$N$1)","v":"New PPA procedure required"},null,null,null,null,null,null,null,null,null,null,null,null,null,null,null,{"$f":"IF(AI226=\"x\",\"x\",\"\")","v":""}]
[{"$f":"OFFSET('Language-Sprachen'!$A$340,,'Language-Sprachen'!$N$1)","v":"Update of PPA documentation required"}]
[{"$f":"OFFSET('Language-Sprachen'!$A$371,,'Language-Sprachen'!$N$1)","v":"Customer evaluation deviating from that of the organization"}]
[]
[]
[{"$f":"OFFSET('Language-Sprachen'!$A$372,,'Language-Sprachen'!$N$1)","v":"Subsequent requirement Documents to be submitted about open test areas"},null,null,null,null,null,null,{"$f":"OFFSET('Language-Sprachen'!$A$375,,'Language-Sprachen'!$N$1)","v":"Test area"},null,null,null,null,{"$f":"OFFSET('Language-Sprachen'!$A$376,,'Language-Sprachen'!$N$1)","v":"Subsequent requirement / reason"}]
[]
[]
[]
[]
[]
[]
[]
[]
[{"$f":"OFFSET('Language-Sprachen'!$A$373,,'Language-Sprachen'!$N$1)","v":"Acceptance of deviations (without adjusting other documents)"},null,null,null,null,null,null,{"$f":"OFFSET('Language-Sprachen'!$A$375,,'Language-Sprachen'!$N$1)","v":"Test area"},null,null,null,null,{"$f":"OFFSET('Language-Sprachen'!$A$377,,'Language-Sprachen'!$N$1)","v":"New specification"}]
[]
[]
[]
[]
[]
[]
[]
[]
[{"$f":"OFFSET('Language-Sprachen'!$A$374,,'Language-Sprachen'!$N$1)","v":"Deviation approval"},null,null,null,null,null,null,{"$f":"OFFSET('Language-Sprachen'!$A$375,,'Language-Sprachen'!$N$1)","v":"Test area"},null,null,null,null,{"$f":"OFFSET('Language-Sprachen'!$A$378,,'Language-Sprachen'!$N$1)","v":"Deviation approval"},null,null,null,null,null,null,null,null,null,null,null,null,null,null,null,null,null,{"$f":"OFFSET('Language-Sprachen'!$A$379,,'Language-Sprachen'!$N$1)","v":"Validity"}]
[]
[]
[]
[]
[]
[]
[]
[]
[{"$f":"OFFSET('Language-Sprachen'!$A$25,,'Language-Sprachen'!$N$1)","v":"Name"},null,null,null,null,{"$f":"IF(OR('Attachment 4 Cover-PPA'!$F$29=\"\"),\"\",'Attachment 4 Cover-PPA'!$F$29)","v":""},null,null,null,null,null,null,null,null,null,null,null,{"$f":"OFFSET('Language-Sprachen'!$A$122,,'Language-Sprachen'!$N$1)","v":"Remark"},null,null,null,null,{"$f":"IF(OR('Attachment 4 Cover-PPA'!$W$29=\"\"),\"\",'Attachment 4 Cover-PPA'!$W$29)","v":""}]
[{"$f":"OFFSET('Language-Sprachen'!$A$228,,'Language-Sprachen'!$N$1)","v":"Department"},null,null,null,null,{"$f":"IF(OR('Attachment 4 Cover-PPA'!$F$30=\"\"),\"\",'Attachment 4 Cover-PPA'!$F$30)","v":""}]
[{"$f":"OFFSET('Language-Sprachen'!$A$26,,'Language-Sprachen'!$N$1)","v":"Telephone"},null,null,null,null,{"$f":"IF(OR('Attachment 4 Cover-PPA'!$F$31=\"\"),\"\",'Attachment 4 Cover-PPA'!$F$31)","v":""}]
[{"$f":"OFFSET('Language-Sprachen'!$A$27,,'Language-Sprachen'!$N$1)","v":"E-mail"},null,null,null,null,{"$f":"IF(OR('Attachment 4 Cover-PPA'!$F$32=\"\"),\"\",'Attachment 4 Cover-PPA'!$F$32)","v":""}]
[{"$f":"OFFSET('Language-Sprachen'!$A$49,,'Language-Sprachen'!$N$1)","v":"Date"},null,null,null,null,{"$f":"IF(OR('Attachment 4 Cover-PPA'!$F$33=\"\"),\"\",'Attachment 4 Cover-PPA'!$F$33)","v":""},null,null,null,null,null,null,null,null,null,null,null,{"$f":"OFFSET('Language-Sprachen'!$A$92,,'Language-Sprachen'!$N$1)","v":"Signature"},null,null,null,null,{"$f":"IF(OR('Attachment 4 Cover-PPA'!$W$33=\"\"),\"\",'Attachment 4 Cover-PPA'!$W$33)","v":""}]

{"sheet":"Attachment 4 PPA-Evidence","index":6,"n_rows":49,"n_cols":33,"rows_kept":49,"cut":false,"hidden":false,"merged":[[41,19,41,21],[41,22,41,24],[41,25,41,26],[39,27,39,28],[39,29,39,34],[40,10,40,12],[40,13,40,15],[40,16,40,18],[40,19,40,21],[40,22,40,24],[40,25,40,26],[40,27,40,28],[40,29,40,34],[39,10,39,12],[39,13,39,15],[39,16,39,18],[39,19,39,21],[39,22,39,24],[39,25,39,26],[38,10,38,12],[38,13,38,15],[38,16,38,18],[38,19,38,21],[38,22,38,24],[38,25,38,26],[38,27,38,28],[38,29,38,34],[37,10,37,12],[37,13,37,15],[37,16,37,18],[37,19,37,21],[37,22,37,24],[37,25,37,26],[36,10,36,12],[36,13,36,15],[36,16,36,18],[36,19,36,21],[36,22,36,24],[36,25,36,26],[36,27,36,28],[36,29,36,34],[37,27,37,28],[37,29,37,34],[34,22,34,24],[34,25,34,26],[34,27,34,28],[34,29,34,34],[35,10,35,12],[35,13,35,15],[35,16,35,18],[35,19,35,21],[35,22,35,24],[35,25,35,26],[35,27,35,28],[35,29,35,34],[32,22,32,24],[32,25,32,26],[32,27,32,28],[32,29,32,34],[33,10,33,12],[33,13,33,15],[33,16,33,18],[33,19,33,21],[33,22,33,24],[33,25,33,26],[33,27,33,28],[33,29,33,34],[30,22,30,24],[30,25,30,26],[30,27,30,28],[30,29,30,34],[31,2,31,9],[31,10,31,12],[31,13,31,15],[31,16,31,18],[31,19,31,21],[31,22,31,24],[31,25,31,26],[31,27,31,28],[31,29,31,34],[28,10,28,12],[28,13,28,15],[28,16,28,18],[28,19,28,21],[28,22,28,24],[28,25,28,26],[28,27,28,28],[28,29,28,34],[29,10,29,12],[29,13,29,15],[29,16,29,18],[29,19,29,21],[29,22,29,24],[29,25,29,26],[29,27,29,28],[29,29,29,34],[27,10,27,12],[27,13,27,15],[27,16,27,18],[27,19,27,21],[27,22,27,24],[25,27,25,28],[25,29,25,34],[26,10,26,12],[26,13,26,15],[26,16,26,18],[26,19,26,21],[26,22,26,24],[26,25,26,26],[26,27,26,28],[26,29,26,34],[27,25,27,26],[27,27,27,28],[27,29,27,34],[24,22,24,24],[24,25,24,26],[24,27,24,28],[24,29,24,34],[25,10,25,12],[25,13,25,15],[25,16,25,18],[25,19,25,21],[25,22,25,24],[25,25,25,26],[22,22,22,24],[22,25,22,26],[22,27,22,28],[22,29,22,34],[23,10,23,12],[23,13,23,15],[23,16,23,18],[23,19,23,21],[23,22,23,24],[23,25,23,26],[23,27,23,28],[23,29,23,34],[21,2,21,9],[21,10,21,12],[21,13,21,15],[21,16,21,18],[21,19,21,21],[21,22,21,24],[21,25,21,26],[21,27,21,28],[21,29,21,34],[20,0,20,1],[20,2,20,9],[20,10,20,12],[20,13,20,15],[20,16,20,18],[20,19,20,21],[18,25,18,26],[18,27,18,28],[17,29,18,34],[17,25,17,28],[17,10,17,24],[19,10,19,12],[19,13,19,15],[19,16,19,18],[19,19,19,21],[19,22,19,24],[20,22,20,24],[20,25,20,26],[20,27,20,28],[20,29,20,34],[13,14,13,15],[13,16,13,23],[14,12,14,13],[14,14,14,15],[14,16,14,23],[15,27,15,34],[16,25,16,26],[16,27,16,34],[17,0,18,1],[17,2,18,9],[18,10,18,12],[18,13,18,15],[18,16,18,18],[18,19,18,21],[18,22,18,24],[48,22,48,34],[12,0,12,1],[13,0,13,1],[14,0,14,1],[15,0,15,1],[16,0,16,1],[12,2,12,3],[13,2,13,3],[14,2,14,3],[15,2,15,3],[46,5,46,16],[47,0,47,4],[47,5,47,16],[48,0,48,4],[48,5,48,16],[48,17,48,21],[44,0,44,4],[12,25,12,26],[12,27,12,34],[13,25,13,26],[13,27,13,34],[14,25,14,26],[14,27,14,34],[15,14,15,15],[44,5,44,16],[44,17,47,21],[44,22,47,34],[45,0,45,4],[45,5,45,16],[46,0,46,4],[42,0,42,1],[42,2,42,9],[41,0,41,1],[41,2,41,9],[43,0,43,34],[41,27,41,28],[41,29,41,34],[42,10,42,12],[42,13,42,15],[42,16,42,18],[42,19,42,21],[42,22,42,24],[42,25,42,26],[42,27,42,28],[42,29,42,34],[41,10,41,12],[41,13,41,15],[41,16,41,18],[40,0,40,1],[40,2,40,9],[39,0,39,1],[39,2,39,9],[38,0,38,1],[38,2,38,9],[37,0,37,1],[37,2,37,9],[36,0,36,1],[36,2,36,9],[35,0,35,1],[35,2,35,9],[34,0,34,1],[34,2,34,9],[34,10,34,12],[34,13,34,15],[34,16,34,18],[34,19,34,21],[33,0,33,1],[33,2,33,9],[31,0,31,1],[32,0,32,1],[32,2,32,9],[30,0,30,1],[30,2,30,9],[30,10,30,12],[30,13,30,15],[30,16,30,18],[30,19,30,21],[32,10,32,12],[32,13,32,15],[32,16,32,18],[32,19,32,21],[29,0,29,1],[29,2,29,9],[27,0,27,1],[28,0,28,1],[28,2,28,9],[26,0,26,1],[26,2,26,9],[25,0,25,1],[25,2,25,9],[27,2,27,9],[24,0,24,1],[24,2,24,9],[24,10,24,12],[24,13,24,15],[24,16,24,18],[24,19,24,21],[23,0,23,1],[23,2,23,9],[22,0,22,1],[22,2,22,9],[22,10,22,12],[22,13,22,15],[22,16,22,18],[22,19,22,21],[21,0,21,1],[19,25,19,26],[19,27,19,28],[19,29,19,34],[19,0,19,1],[19,2,19,9],[16,2,16,3],[11,0,11,11],[11,12,11,34],[12,4,12,11],[13,4,13,11],[14,4,14,11],[15,4,15,11],[16,4,16,11],[12,12,12,13],[15,12,15,13],[15,16,15,23],[16,12,16,13],[16,14,16,15],[16,16,16,23],[15,25,15,26],[12,14,12,15],[12,16,12,23],[13,12,13,13],[10,0,10,5],[10,6,10,11],[10,12,10,17],[10,18,10,23],[10,24,10,29],[10,30,10,34],[9,0,9,5],[9,6,9,11],[9,12,9,17],[9,18,9,23],[9,24,9,29],[9,30,9,34],[8,0,8,5],[8,6,8,11],[8,12,8,17],[8,18,8,23],[8,24,8,29],[8,30,8,34],[7,0,7,5],[7,6,7,11],[7,12,7,17],[7,18,7,23],[7,24,7,29],[7,30,7,34],[6,0,6,5],[6,6,6,11],[6,12,6,17],[6,18,6,23],[6,24,6,29],[6,30,6,34],[5,0,5,5],[5,6,5,11],[5,12,5,17],[5,18,5,23],[5,24,5,29],[5,30,5,34],[0,0,1,11],[0,12,0,17],[1,12,1,17],[2,0,2,11],[2,12,2,23],[2,24,2,34],[3,0,3,5],[3,6,3,11],[3,12,3,17],[3,18,3,23],[3,24,4,29],[3,30,4,34],[4,0,4,5],[4,6,4,11],[4,12,4,17],[4,18,4,23],[1,18,1,34],[0,32,0,33],[0,30,0,31],[0,28,0,29],[0,25,0,27],[0,18,0,24]]}
[{"$f":"OFFSET('Language-Sprachen'!$A$380,,'Language-Sprachen'!$N$1)","v":"Product-related\ndeliverables"},null,null,null,null,null,null,null,null,null,null,null,{"$f":"OFFSET('Language-Sprachen'!$A$345,,'Language-Sprachen'!$N$1)","v":"Report"},null,null,null,null,null,null,null,null,null,null,null,null,{"$f":"OFFSET('Language-Sprachen'!$A$381,,'Language-Sprachen'!$N$1)","v":"Sheet "},null,null,1,null,{"$f":"OFFSET('Language-Sprachen'!$A$382,,'Language-Sprachen'!$N$1)","v":"of"},null,1]
[null,null,null,null,null,null,null,null,null,null,null,null,{"$f":"OFFSET('Language-Sprachen'!$A$5,,'Language-Sprachen'!$N$1)","v":"Organization"},null,null,null,null,null,{"$f":"IF(OR('Attachment 4 Cover-PPA'!$S$1=\"\"),\"-\",'Attachment 4 Cover-PPA'!$S$1)","v":"Modine Europe GmbH"}]
[{"$f":"OFFSET('Language-Sprachen'!$A$8,,'Language-Sprachen'!$N$1)","v":"Information about the organization"},null,null,null,null,null,null,null,null,null,null,null,{"$f":"OFFSET('Language-Sprachen'!$A$234,,'Language-Sprachen'!$N$1)","v":"Information about samples"},null,null,null,null,null,null,null,null,null,null,null,{"$f":"OFFSET('Language-Sprachen'!$A$9,,'Language-Sprachen'!$N$1)","v":"Information about the customer"}]
[{"$f":"OFFSET('Language-Sprachen'!$A$16,,'Language-Sprachen'!$N$1)","v":"Report number"},null,null,null,null,null,{"$f":"IF(OR('Attachment 4 Cover-PPA'!$G$16=\"\"),\"-\",'Attachment 4 Cover-PPA'!$G$16)","v":"-"},null,null,null,null,null,{"$f":"OFFSET('Language-Sprachen'!$A$235,,'Language-Sprachen'!$N$1)","v":"Delivery note number"},null,null,null,null,null,{"$f":"IF(OR('Attachment 4 Cover-PPA'!$S$16=\"\"),\"-\",'Attachment 4 Cover-PPA'!$S$16)","v":"-"},null,null,null,null,null,{"$f":"OFFSET('Language-Sprachen'!$A$23,,'Language-Sprachen'!$N$1)","v":"Customer"},null,null,null,null,null,{"$f":"IF(OR('Attachment 4 Cover-PPA'!$AE$16=\"\"),\"-\",'Attachment 4 Cover-PPA'!$AE$16)","v":"-"}]
[{"$f":"OFFSET('Language-Sprachen'!$A$17,,'Language-Sprachen'!$N$1)","v":"Report version"},null,null,null,null,null,{"$f":"IF(OR('Attachment 4 Cover-PPA'!$G$17=\"\"),\"-\",'Attachment 4 Cover-PPA'!$G$17)","v":"-"},null,null,null,null,null,{"$f":"OFFSET('Language-Sprachen'!$A$236,,'Language-Sprachen'!$N$1)","v":"Delivery quantity"},null,null,null,null,null,{"$f":"IF(OR('Attachment 4 Cover-PPA'!$S$17=\"\"),\"-\",'Attachment 4 Cover-PPA'!$S$17)","v":"-"}]
[{"$f":"OFFSET('Language-Sprachen'!$A$13,,'Language-Sprachen'!$N$1)","v":"Delivery location"},null,null,null,null,null,{"$f":"IF(OR('Attachment 4 Cover-PPA'!$G$18=\"\"),\"-\",'Attachment 4 Cover-PPA'!$G$18)","v":"-"},null,null,null,null,null,{"$f":"OFFSET('Language-Sprachen'!$A$237,,'Language-Sprachen'!$N$1)","v":"Batch number"},null,null,null,null,null,{"$f":"IF(OR('Attachment 4 Cover-PPA'!$S$18=\"\"),\"-\",'Attachment 4 Cover-PPA'!$S$18)","v":"-"},null,null,null,null,null,{"$f":"OFFSET('Language-Sprachen'!$A$21,,'Language-Sprachen'!$N$1)","v":"Order Number PPA sample"},null,null,null,null,null,{"$f":"IF(OR('Attachment 4 Cover-PPA'!$AE$18=\"\"),\"-\",'Attachment 4 Cover-PPA'!$AE$18)","v":"-"}]
[{"$f":"OFFSET('Language-Sprachen'!$A$11,,'Language-Sprachen'!$N$1)","v":"Production location"},null,null,null,null,null,{"$f":"IF(OR('Attachment 4 Cover-PPA'!$G$19=\"\"),\"-\",'Attachment 4 Cover-PPA'!$G$19)","v":"-"},null,null,null,null,null,{"$f":"OFFSET('Language-Sprachen'!$A$238,,'Language-Sprachen'!$N$1)","v":"Sample weight [kg]"},null,null,null,null,null,{"$f":"IF(OR('Attachment 4 Cover-PPA'!$S$19=\"\"),\"-\",'Attachment 4 Cover-PPA'!$S$19)","v":"-"},null,null,null,null,null,{"$f":"OFFSET('Language-Sprachen'!$A$20,,'Language-Sprachen'!$N$1)","v":"Unloading point"},null,null,null,null,null,{"$f":"IF(OR('Attachment 4 Cover-PPA'!$AE$19=\"\"),\"-\",'Attachment 4 Cover-PPA'!$AE$19)","v":"-"}]
[{"$f":"OFFSET('Language-Sprachen'!$A$38,,'Language-Sprachen'!$N$1)","v":"Part Number"},null,null,null,null,null,{"$f":"IF(OR('Attachment 4 Cover-PPA'!$G$20=\"\"),\"-\",'Attachment 4 Cover-PPA'!$G$20)","v":"-"},null,null,null,null,null,{"$f":"OFFSET('Language-Sprachen'!$A$239,,'Language-Sprachen'!$N$1)","v":"Hardware version"},null,null,null,null,null,{"$f":"IF(OR('Attachment 4 Cover-PPA'!$S$20=\"\"),\"-\",'Attachment 4 Cover-PPA'!$S$20)","v":"-"},null,null,null,null,null,{"$f":"OFFSET('Language-Sprachen'!$A$38,,'Language-Sprachen'!$N$1)","v":"Part Number"},null,null,null,null,null,{"$f":"IF(OR('Attachment 4 Cover-PPA'!$AE$20=\"\"),\"-\",'Attachment 4 Cover-PPA'!$AE$20)","v":"-"}]
[{"$f":"OFFSET('Language-Sprachen'!$A$37,,'Language-Sprachen'!$N$1)","v":"Name"},null,null,null,null,null,{"$f":"IF(OR('Attachment 4 Cover-PPA'!$G$21=\"\"),\"-\",'Attachment 4 Cover-PPA'!$G$21)","v":"-"},null,null,null,null,null,{"$f":"OFFSET('Language-Sprachen'!$A$240,,'Language-Sprachen'!$N$1)","v":"Diagnosis status"},null,null,null,null,null,{"$f":"IF(OR('Attachment 4 Cover-PPA'!$S$21=\"\"),\"-\",'Attachment 4 Cover-PPA'!$S$21)","v":"-"},null,null,null,null,null,{"$f":"OFFSET('Language-Sprachen'!$A$37,,'Language-Sprachen'!$N$1)","v":"Name"},null,null,null,null,null,{"$f":"IF(OR('Attachment 4 Cover-PPA'!$AE$21=\"\"),\"-\",'Attachment 4 Cover-PPA'!$AE$21)","v":"-"}]
[{"$f":"OFFSET('Language-Sprachen'!$A$39,,'Language-Sprachen'!$N$1)","v":"Drawing number"},null,null,null,null,null,{"$f":"IF(OR('Attachment 4 Cover-PPA'!$G$22=\"\"),\"-\",'Attachment 4 Cover-PPA'!$G$22)","v":"-"},null,null,null,null,null,{"$f":"OFFSET('Language-Sprachen'!$A$241,,'Language-Sprachen'!$N$1)","v":"Software version"},null,null,null,null,null,{"$f":"IF(OR('Attachment 4 Cover-PPA'!$S$22=\"\"),\"-\",'Attachment 4 Cover-PPA'!$S$22)","v":"-"},null,null,null,null,null,{"$f":"OFFSET('Language-Sprachen'!$A$39,,'Language-Sprachen'!$N$1)","v":"Drawing number"},null,null,null,null,null,{"$f":"IF(OR('Attachment 4 Cover-PPA'!$AE$22=\"\"),\"-\",'Attachment 4 Cover-PPA'!$AE$22)","v":"-"}]
[{"$f":"OFFSET('Language-Sprachen'!$A$350,,'Language-Sprachen'!$N$1)","v":"Version/ Date"},null,null,null,null,null,{"$f":"IF(OR('Attachment 4 Cover-PPA'!$G$23=\"\"),\"-\",'Attachment 4 Cover-PPA'!$G$23)","v":"-"},null,null,null,null,null,{"$f":"OFFSET('Language-Sprachen'!$A$242,,'Language-Sprachen'!$N$1)","v":"Identification/ DUNS"},null,null,null,null,null,{"$f":"IF(OR('Attachment 4 Cover-PPA'!$S$23=\"\"),\"-\",'Attachment 4 Cover-PPA'!$S$23)","v":"-"},null,null,null,null,null,{"$f":"OFFSET('Language-Sprachen'!$A$350,,'Language-Sprachen'!$N$1)","v":"Version/ Date"},null,null,null,null,null,{"$f":"IF(OR('Attachment 4 Cover-PPA'!$AE$23=\"\"),\"-\",'Attachment 4 Cover-PPA'!$AE$23)","v":"-"}]
["Part with special archiving requirement"]
[null,null,"3.1",null,{"$f":"OFFSET('Language-Sprachen'!$A$140,,'Language-Sprachen'!$N$1)","v":"Geometry, dimensions"},null,null,null,null,null,null,null,null,null,"3.5",null,{"$f":"OFFSET('Language-Sprachen'!$A353,,'Language-Sprachen'!$N$1)","v":"Acoustics"},null,null,null,null,null,null,null,null,"3.9",null,{"$f":"OFFSET('Language-Sprachen'!$A165,,'Language-Sprachen'!$N$1)","v":"Technical cleanliness"}]
[null,null,"3.2",null,{"$f":"OFFSET('Language-Sprachen'!$A$383,,'Language-Sprachen'!$N$1)","v":"Material"},null,null,null,null,null,null,null,null,null,"3.6",null,{"$f":"OFFSET('Language-Sprachen'!$A354,,'Language-Sprachen'!$N$1)","v":"Odor"},null,null,null,null,null,null,null,null,"3.10",null,{"$f":"OFFSET('Language-Sprachen'!$A166,,'Language-Sprachen'!$N$1)","v":"Reliability"}]
[null,null,"3.3",null,{"$f":"OFFSET('Language-Sprachen'!$A351,,'Language-Sprachen'!$N$1)","v":"Function"},null,null,null,null,null,null,null,null,null,"3.7",null,{"$f":"OFFSET('Language-Sprachen'!$A161,,'Language-Sprachen'!$N$1)","v":"Appearance"},null,null,null,null,null,null,null,null,"3.11",null,{"$f":"OFFSET('Language-Sprachen'!$A167,,'Language-Sprachen'!$N$1)","v":"Resistance to electrostatic discharge (ESD)"}]
[null,null,"3.4",null,{"$f":"OFFSET('Language-Sprachen'!$A352,,'Language-Sprachen'!$N$1)","v":"Haptics"},null,null,null,null,null,null,null,null,null,"3.8",null,{"$f":"OFFSET('Language-Sprachen'!$A162,,'Language-Sprachen'!$N$1)","v":"Surface requirement"},null,null,null,null,null,null,null,null,"3.12",null,{"$f":"OFFSET('Language-Sprachen'!$A168,,'Language-Sprachen'!$N$1)","v":"Electrical safety / high-voltage safety"}]
[null,null,null,null,null,null,null,null,null,null,null,null,null,null,null,null,null,null,null,null,null,null,null,null,null,"3.13",null,{"$f":"OFFSET('Language-Sprachen'!$A169,,'Language-Sprachen'!$N$1)","v":"Electromagnetic compatibility (EMC)"}]
[{"$f":"OFFSET('Language-Sprachen'!$A384,,'Language-Sprachen'!$N$1)","v":"No."},null,{"$f":"OFFSET('Language-Sprachen'!$A385,,'Language-Sprachen'!$N$1)","v":"Requirements/ Specification"},null,null,null,null,null,null,null,{"$f":"OFFSET('Language-Sprachen'!$A386,,'Language-Sprachen'!$N$1)","v":"Actual values of organization"},null,null,null,null,null,null,null,null,null,null,null,null,null,null,{"$f":"OFFSET('Language-Sprachen'!$A392,,'Language-Sprachen'!$N$1)","v":"Specification met"},null,null,null,{"$f":"OFFSET('Language-Sprachen'!$A122,,'Language-Sprachen'!$N$1)","v":"Remark"}]
[null,null,null,null,null,null,null,null,null,null,{"$f":"OFFSET('Language-Sprachen'!$A387,,'Language-Sprachen'!$N$1)","v":"Part 1"},null,null,{"$f":"OFFSET('Language-Sprachen'!$A388,,'Language-Sprachen'!$N$1)","v":"Part 2"},null,null,{"$f":"OFFSET('Language-Sprachen'!$A389,,'Language-Sprachen'!$N$1)","v":"Part 3"},null,null,{"$f":"OFFSET('Language-Sprachen'!$A390,,'Language-Sprachen'!$N$1)","v":"Part 4"},null,null,{"$f":"OFFSET('Language-Sprachen'!$A391,,'Language-Sprachen'!$N$1)","v":"Part 5"},null,null,{"$f":"OFFSET('Language-Sprachen'!$A125,,'Language-Sprachen'!$N$1)","v":"Yes"},null,{"$f":"OFFSET('Language-Sprachen'!$A126,,'Language-Sprachen'!$N$1)","v":"No"}]
[1]
[2]
[3]
[4]
[5]
[6]
[7]
[8]
[9]
[10]
[11]
[12]
[13]
[14]
[15]
[16]
[17]
[18]
[19]
[20]
[21]
[22]
[23]
[24]
[{"$f":"OFFSET('Language-Sprachen'!$A$334,,'Language-Sprachen'!$N$1)","v":"Confirmation of organization:"}]
[{"$f":"OFFSET('Language-Sprachen'!$A$25,,'Language-Sprachen'!$N$1)","v":"Name"},null,null,null,null,{"$f":"IF(OR('Attachment 4 Cover-PPA'!$F$29=\"\"),\"\",'Attachment 4 Cover-PPA'!$F$29)","v":""},null,null,null,null,null,null,null,null,null,null,null,{"$f":"OFFSET('Language-Sprachen'!$A$122,,'Language-Sprachen'!$N$1)","v":"Remark"},null,null,null,null,{"$f":"IF(OR('Attachment 4 Cover-PPA'!$W$29=\"\"),\"\",'Attachment 4 Cover-PPA'!$W$29)","v":""}]
[{"$f":"OFFSET('Language-Sprachen'!$A$228,,'Language-Sprachen'!$N$1)","v":"Department"},null,null,null,null,{"$f":"IF(OR('Attachment 4 Cover-PPA'!$F$30=\"\"),\"\",'Attachment 4 Cover-PPA'!$F$30)","v":""}]
[{"$f":"OFFSET('Language-Sprachen'!$A$26,,'Language-Sprachen'!$N$1)","v":"Telephone"},null,null,null,null,{"$f":"IF(OR('Attachment 4 Cover-PPA'!$F$31=\"\"),\"\",'Attachment 4 Cover-PPA'!$F$31)","v":""}]
[{"$f":"OFFSET('Language-Sprachen'!$A$27,,'Language-Sprachen'!$N$1)","v":"E-mail"},null,null,null,null,{"$f":"IF(OR('Attachment 4 Cover-PPA'!$F$32=\"\"),\"\",'Attachment 4 Cover-PPA'!$F$32)","v":""}]
[{"$f":"OFFSET('Language-Sprachen'!$A$49,,'Language-Sprachen'!$N$1)","v":"Date"},null,null,null,null,{"$f":"IF(OR('Attachment 4 Cover-PPA'!$F$33=\"\"),\"\",'Attachment 4 Cover-PPA'!$F$33)","v":""},null,null,null,null,null,null,null,null,null,null,null,{"$f":"OFFSET('Language-Sprachen'!$A$92,,'Language-Sprachen'!$N$1)","v":"Signature"},null,null,null,null,{"$f":"IF(OR('Attachment 4 Cover-PPA'!$W$33=\"\"),\"\",'Attachment 4 Cover-PPA'!$W$33)","v":""}]

{"sheet":"Attachment 4 Process-Evidence","index":7,"n_rows":45,"n_cols":33,"rows_kept":45,"cut":false,"hidden":false,"merged":[[38,10,38,20],[38,21,38,23],[38,24,38,27],[38,28,38,34],[35,10,35,20],[35,21,35,23],[35,24,35,27],[35,28,35,34],[37,10,37,20],[37,21,37,23],[37,24,37,27],[37,28,37,34],[36,10,36,20],[36,21,36,23],[36,24,36,27],[36,28,36,34],[33,10,33,20],[33,21,33,23],[33,24,33,27],[33,28,33,34],[34,10,34,20],[34,21,34,23],[34,24,34,27],[34,28,34,34],[31,10,31,20],[31,21,31,23],[31,24,31,27],[31,28,31,34],[32,10,32,20],[32,21,32,23],[32,24,32,27],[32,28,32,34],[29,10,29,20],[29,21,29,23],[29,24,29,27],[29,28,29,34],[30,10,30,20],[30,21,30,23],[30,24,30,27],[30,28,30,34],[27,10,27,20],[27,21,27,23],[27,24,27,27],[27,28,27,34],[28,10,28,20],[28,21,28,23],[28,24,28,27],[28,28,28,34],[25,10,25,20],[25,21,25,23],[25,24,25,27],[25,28,25,34],[26,10,26,20],[26,21,26,23],[26,24,26,27],[26,28,26,34],[23,10,23,20],[23,21,23,23],[23,24,23,27],[23,28,23,34],[24,10,24,20],[24,21,24,23],[24,24,24,27],[24,28,24,34],[22,10,22,20],[22,21,22,23],[22,24,22,27],[22,28,22,34],[19,24,19,27],[20,24,20,27],[19,21,19,23],[20,21,20,23],[20,10,20,20],[19,10,19,20],[44,22,44,34],[16,2,16,3],[16,4,16,11],[16,12,16,13],[16,14,16,15],[16,16,16,23],[16,25,16,26],[16,27,16,34],[18,28,19,34],[20,28,20,34],[42,5,42,16],[43,0,43,4],[43,5,43,16],[44,0,44,4],[44,5,44,16],[44,17,44,21],[39,0,39,34],[40,0,40,4],[40,5,40,16],[40,17,43,21],[40,22,43,34],[41,0,41,4],[41,5,41,16],[21,10,21,20],[42,0,42,4],[38,0,38,1],[38,2,38,9],[37,0,37,1],[37,2,37,9],[35,0,35,1],[35,2,35,9],[34,0,34,1],[34,2,34,9],[33,0,33,1],[33,2,33,9],[36,0,36,1],[36,2,36,9],[32,0,32,1],[32,2,32,9],[31,0,31,1],[31,2,31,9],[30,0,30,1],[30,2,30,9],[29,0,29,1],[29,2,29,9],[28,0,28,1],[28,2,28,9],[27,0,27,1],[27,2,27,9],[26,0,26,1],[26,2,26,9],[25,0,25,1],[25,2,25,9],[24,0,24,1],[24,2,24,9],[23,0,23,1],[23,2,23,9],[22,0,22,1],[22,2,22,9],[21,0,21,1],[21,2,21,9],[20,0,20,1],[20,2,20,9],[18,0,19,1],[18,2,19,9],[15,25,15,26],[21,21,21,23],[21,24,21,27],[15,27,15,34],[17,0,17,1],[17,2,17,3],[17,4,17,11],[17,12,17,13],[17,14,17,15],[17,16,17,23],[17,25,17,26],[17,27,17,34],[15,0,15,1],[15,2,15,3],[15,4,15,11],[15,12,15,13],[15,14,15,15],[15,16,15,23],[21,28,21,34],[18,10,18,27],[13,25,13,26],[13,27,13,34],[14,0,14,1],[14,2,14,3],[14,4,14,11],[14,12,14,13],[14,14,14,15],[14,16,14,23],[14,25,14,26],[14,27,14,34],[13,0,13,1],[13,2,13,3],[13,4,13,11],[13,12,13,13],[13,14,13,15],[13,16,13,23],[11,0,11,11],[11,12,11,34],[12,0,12,1],[12,2,12,3],[12,4,12,11],[12,12,12,13],[12,14,12,15],[12,16,12,23],[12,25,12,26],[12,27,12,34],[10,0,10,5],[10,6,10,11],[10,12,10,17],[10,18,10,23],[10,24,10,29],[10,30,10,34],[9,0,9,5],[9,6,9,11],[9,12,9,17],[9,18,9,23],[9,24,9,29],[9,30,9,34],[8,0,8,5],[8,6,8,11],[8,12,8,17],[8,18,8,23],[8,24,8,29],[8,30,8,34],[7,0,7,5],[7,6,7,11],[7,12,7,17],[7,18,7,23],[7,24,7,29],[7,30,7,34],[6,0,6,5],[6,6,6,11],[6,12,6,17],[6,18,6,23],[6,24,6,29],[6,30,6,34],[5,0,5,5],[5,6,5,11],[5,12,5,17],[5,18,5,23],[5,24,5,29],[5,30,5,34],[3,0,3,5],[3,6,3,11],[3,12,3,17],[3,18,3,23],[3,24,4,29],[3,30,4,34],[4,0,4,5],[4,6,4,11],[4,12,4,17],[4,18,4,23],[0,32,0,33],[1,12,1,17],[1,18,1,34],[2,0,2,11],[2,12,2,23],[2,24,2,34],[0,0,1,11],[0,12,0,17],[0,18,0,24],[0,25,0,27],[0,28,0,29],[0,30,0,31]]}
[{"$f":"OFFSET('Language-Sprachen'!$A$393,,'Language-Sprachen'!$N$1)","v":"Production process related and general deliverables"},null,null,null,null,null,null,null,null,null,null,null,{"$f":"OFFSET('Language-Sprachen'!$A$345,,'Language-Sprachen'!$N$1)","v":"Report"},null,null,null,null,null,null,null,null,null,null,null,null,{"$f":"OFFSET('Language-Sprachen'!$A$381,,'Language-Sprachen'!$N$1)","v":"Sheet "},null,null,1,null,{"$f":"OFFSET('Language-Sprachen'!$A$382,,'Language-Sprachen'!$N$1)","v":"of"},null,1]
[null,null,null,null,null,null,null,null,null,null,null,null,{"$f":"OFFSET('Language-Sprachen'!$A$5,,'Language-Sprachen'!$N$1)","v":"Organization"},null,null,null,null,null,{"$f":"IF(OR('Attachment 4 Cover-PPA'!$S$1=\"\"),\"-\",'Attachment 4 Cover-PPA'!$S$1)","v":"Modine Europe GmbH"}]
[{"$f":"OFFSET('Language-Sprachen'!$A$8,,'Language-Sprachen'!$N$1)","v":"Information about the organization"},null,null,null,null,null,null,null,null,null,null,null,{"$f":"OFFSET('Language-Sprachen'!$A$234,,'Language-Sprachen'!$N$1)","v":"Information about samples"},null,null,null,null,null,null,null,null,null,null,null,{"$f":"OFFSET('Language-Sprachen'!$A$9,,'Language-Sprachen'!$N$1)","v":"Information about the customer"}]
[{"$f":"OFFSET('Language-Sprachen'!$A$16,,'Language-Sprachen'!$N$1)","v":"Report number"},null,null,null,null,null,{"$f":"IF(OR('Attachment 4 Cover-PPA'!$G$16=\"\"),\"-\",'Attachment 4 Cover-PPA'!$G$16)","v":"-"},null,null,null,null,null,{"$f":"OFFSET('Language-Sprachen'!$A$235,,'Language-Sprachen'!$N$1)","v":"Delivery note number"},null,null,null,null,null,{"$f":"IF(OR('Attachment 4 Cover-PPA'!$S$16=\"\"),\"-\",'Attachment 4 Cover-PPA'!$S$16)","v":"-"},null,null,null,null,null,{"$f":"OFFSET('Language-Sprachen'!$A$23,,'Language-Sprachen'!$N$1)","v":"Customer"},null,null,null,null,null,{"$f":"IF(OR('Attachment 4 Cover-PPA'!$AE$16=\"\"),\"-\",'Attachment 4 Cover-PPA'!$AE$16)","v":"-"}]
[{"$f":"OFFSET('Language-Sprachen'!$A$17,,'Language-Sprachen'!$N$1)","v":"Report version"},null,null,null,null,null,{"$f":"IF(OR('Attachment 4 Cover-PPA'!$G$17=\"\"),\"-\",'Attachment 4 Cover-PPA'!$G$17)","v":"-"},null,null,null,null,null,{"$f":"OFFSET('Language-Sprachen'!$A$236,,'Language-Sprachen'!$N$1)","v":"Delivery quantity"},null,null,null,null,null,{"$f":"IF(OR('Attachment 4 Cover-PPA'!$S$17=\"\"),\"-\",'Attachment 4 Cover-PPA'!$S$17)","v":"-"}]
[{"$f":"OFFSET('Language-Sprachen'!$A$13,,'Language-Sprachen'!$N$1)","v":"Delivery location"},null,null,null,null,null,{"$f":"IF(OR('Attachment 4 Cover-PPA'!$G$18=\"\"),\"-\",'Attachment 4 Cover-PPA'!$G$18)","v":"-"},null,null,null,null,null,{"$f":"OFFSET('Language-Sprachen'!$A$237,,'Language-Sprachen'!$N$1)","v":"Batch number"},null,null,null,null,null,{"$f":"IF(OR('Attachment 4 Cover-PPA'!$S$18=\"\"),\"-\",'Attachment 4 Cover-PPA'!$S$18)","v":"-"},null,null,null,null,null,{"$f":"OFFSET('Language-Sprachen'!$A$21,,'Language-Sprachen'!$N$1)","v":"Order Number PPA sample"},null,null,null,null,null,{"$f":"IF(OR('Attachment 4 Cover-PPA'!$AE$18=\"\"),\"-\",'Attachment 4 Cover-PPA'!$AE$18)","v":"-"}]
[{"$f":"OFFSET('Language-Sprachen'!$A$11,,'Language-Sprachen'!$N$1)","v":"Production location"},null,null,null,null,null,{"$f":"IF(OR('Attachment 4 Cover-PPA'!$G$19=\"\"),\"-\",'Attachment 4 Cover-PPA'!$G$19)","v":"-"},null,null,null,null,null,{"$f":"OFFSET('Language-Sprachen'!$A$238,,'Language-Sprachen'!$N$1)","v":"Sample weight [kg]"},null,null,null,null,null,{"$f":"IF(OR('Attachment 4 Cover-PPA'!$S$19=\"\"),\"-\",'Attachment 4 Cover-PPA'!$S$19)","v":"-"},null,null,null,null,null,{"$f":"OFFSET('Language-Sprachen'!$A$20,,'Language-Sprachen'!$N$1)","v":"Unloading point"},null,null,null,null,null,{"$f":"IF(OR('Attachment 4 Cover-PPA'!$AE$19=\"\"),\"-\",'Attachment 4 Cover-PPA'!$AE$19)","v":"-"}]
[{"$f":"OFFSET('Language-Sprachen'!$A$38,,'Language-Sprachen'!$N$1)","v":"Part Number"},null,null,null,null,null,{"$f":"IF(OR('Attachment 4 Cover-PPA'!$G$20=\"\"),\"-\",'Attachment 4 Cover-PPA'!$G$20)","v":"-"},null,null,null,null,null,{"$f":"OFFSET('Language-Sprachen'!$A$239,,'Language-Sprachen'!$N$1)","v":"Hardware version"},null,null,null,null,null,{"$f":"IF(OR('Attachment 4 Cover-PPA'!$S$20=\"\"),\"-\",'Attachment 4 Cover-PPA'!$S$20)","v":"-"},null,null,null,null,null,{"$f":"OFFSET('Language-Sprachen'!$A$38,,'Language-Sprachen'!$N$1)","v":"Part Number"},null,null,null,null,null,{"$f":"IF(OR('Attachment 4 Cover-PPA'!$AE$20=\"\"),\"-\",'Attachment 4 Cover-PPA'!$AE$20)","v":"-"}]
[{"$f":"OFFSET('Language-Sprachen'!$A$37,,'Language-Sprachen'!$N$1)","v":"Name"},null,null,null,null,null,{"$f":"IF(OR('Attachment 4 Cover-PPA'!$G$21=\"\"),\"-\",'Attachment 4 Cover-PPA'!$G$21)","v":"-"},null,null,null,null,null,{"$f":"OFFSET('Language-Sprachen'!$A$240,,'Language-Sprachen'!$N$1)","v":"Diagnosis status"},null,null,null,null,null,{"$f":"IF(OR('Attachment 4 Cover-PPA'!$S$21=\"\"),\"-\",'Attachment 4 Cover-PPA'!$S$21)","v":"-"},null,null,null,null,null,{"$f":"OFFSET('Language-Sprachen'!$A$37,,'Language-Sprachen'!$N$1)","v":"Name"},null,null,null,null,null,{"$f":"IF(OR('Attachment 4 Cover-PPA'!$AE$21=\"\"),\"-\",'Attachment 4 Cover-PPA'!$AE$21)","v":"-"}]
[{"$f":"OFFSET('Language-Sprachen'!$A$39,,'Language-Sprachen'!$N$1)","v":"Drawing number"},null,null,null,null,null,{"$f":"IF(OR('Attachment 4 Cover-PPA'!$G$22=\"\"),\"-\",'Attachment 4 Cover-PPA'!$G$22)","v":"-"},null,null,null,null,null,{"$f":"OFFSET('Language-Sprachen'!$A$241,,'Language-Sprachen'!$N$1)","v":"Software version"},null,null,null,null,null,{"$f":"IF(OR('Attachment 4 Cover-PPA'!$S$22=\"\"),\"-\",'Attachment 4 Cover-PPA'!$S$22)","v":"-"},null,null,null,null,null,{"$f":"OFFSET('Language-Sprachen'!$A$39,,'Language-Sprachen'!$N$1)","v":"Drawing number"},null,null,null,null,null,{"$f":"IF(OR('Attachment 4 Cover-PPA'!$AE$22=\"\"),\"-\",'Attachment 4 Cover-PPA'!$AE$22)","v":"-"}]
[{"$f":"OFFSET('Language-Sprachen'!$A$350,,'Language-Sprachen'!$N$1)","v":"Version/ Date"},null,null,null,null,null,{"$f":"IF(OR('Attachment 4 Cover-PPA'!$G$23=\"\"),\"-\",'Attachment 4 Cover-PPA'!$G$23)","v":"-"},null,null,null,null,null,{"$f":"OFFSET('Language-Sprachen'!$A$242,,'Language-Sprachen'!$N$1)","v":"Identification/ DUNS"},null,null,null,null,null,{"$f":"IF(OR('Attachment 4 Cover-PPA'!$S$23=\"\"),\"-\",'Attachment 4 Cover-PPA'!$S$23)","v":"-"},null,null,null,null,null,{"$f":"OFFSET('Language-Sprachen'!$A$350,,'Language-Sprachen'!$N$1)","v":"Version/ Date"},null,null,null,null,null,{"$f":"IF(OR('Attachment 4 Cover-PPA'!$AE$23=\"\"),\"-\",'Attachment 4 Cover-PPA'!$AE$23)","v":"-"}]
["Part with special archiving requirement"]
[null,null,"2.1",null,{"$f":"OFFSET('Language-Sprachen'!$A135,,'Language-Sprachen'!$N$1)","v":"Process flow chart"},null,null,null,null,null,null,null,null,null,"4.4",null,{"$f":"OFFSET('Language-Sprachen'!$A174,,'Language-Sprachen'!$N$1)","v":"Master sample"},null,null,null,null,null,null,null,null,"5.4",null,{"$f":"OFFSET('Language-Sprachen'!$A$395,,'Language-Sprachen'!$N$1)","v":"Measurement equipment analysis studies product and process"}]
[null,null,"2.2",null,{"$f":"OFFSET('Language-Sprachen'!$A136,,'Language-Sprachen'!$N$1)","v":"Process FMEA"},null,null,null,null,null,null,null,null,null,"4.5",null,{"$f":"OFFSET('Language-Sprachen'!$A175,,'Language-Sprachen'!$N$1)","v":"Production capacity"},null,null,null,null,null,null,null,null,"5.5",null,{"$f":"OFFSET('Language-Sprachen'!$A$183,,'Language-Sprachen'!$N$1)","v":"Part history"}]
[null,null,"2.3",null,{"$f":"OFFSET('Language-Sprachen'!$A137,,'Language-Sprachen'!$N$1)","v":"Control plan (CP)"},null,null,null,null,null,null,null,null,null,"4.6",null,{"$f":"OFFSET('Language-Sprachen'!$A355,,'Language-Sprachen'!$N$1)","v":"Tools"},null,null,null,null,null,null,null,null,"5.6",null,{"$f":"OFFSET('Language-Sprachen'!$A$184,,'Language-Sprachen'!$N$1)","v":"Evidence of suitability of the employ-ed load carries including storage"}]
[null,null,"4.1",null,{"$f":"OFFSET('Language-Sprachen'!$A171,,'Language-Sprachen'!$N$1)","v":"Assurance of special characteristics according to technical specifications and agreed characteristics (e.g. poka-yoke, 100% inspection, process capabilities, etc.)"},null,null,null,null,null,null,null,null,null,"5.1",null,{"$f":"OFFSET('Language-Sprachen'!$A$394,,'Language-Sprachen'!$N$1)","v":"Evidence of compliance with statutory requirements"},null,null,null,null,null,null,null,null,"5.7",null,{"$f":"OFFSET('Language-Sprachen'!$A185,,'Language-Sprachen'!$N$1)","v":"Documention of agreements regarding the diagnosis and analysis process\n- Complaints handling (e.g. 8D)\n- Field failure analysis"}]
[null,null,"4.2",null,{"$f":"OFFSET('Language-Sprachen'!$A172,,'Language-Sprachen'!$N$1)","v":"Laboratory qualification"},null,null,null,null,null,null,null,null,null,"5.2",null,{"$f":"OFFSET('Language-Sprachen'!$A179,,'Language-Sprachen'!$N$1)","v":"PPA status of supply chain"},null,null,null,null,null,null,null,null,"5.8",null,{"$f":"OFFSET('Language-Sprachen'!$A186,,'Language-Sprachen'!$N$1)","v":"Documentation of the requalification agreement"}]
[null,null,"4.3",null,{"$f":"OFFSET('Language-Sprachen'!$A173,,'Language-Sprachen'!$N$1)","v":"Sample including production documentation"},null,null,null,null,null,null,null,null,null,"5.3",null,{"$f":"OFFSET('Language-Sprachen'!$A180,,'Language-Sprachen'!$N$1)","v":"Test equipment list for product and production process"},null,null,null,null,null,null,null,null,"5.9",null,{"$f":"OFFSET('Language-Sprachen'!$A64,,'Language-Sprachen'!$N$1)","v":"Other"}]
[{"$f":"OFFSET('Language-Sprachen'!$A384,,'Language-Sprachen'!$N$1)","v":"No."},null,{"$f":"OFFSET('Language-Sprachen'!$A396,,'Language-Sprachen'!$N$1)","v":"Requirement"},null,null,null,null,null,null,null,{"$f":"OFFSET('Language-Sprachen'!$A349,,'Language-Sprachen'!$N$1)","v":"Deliverable"},null,null,null,null,null,null,null,null,null,null,null,null,null,null,null,null,null,{"$f":"OFFSET('Language-Sprachen'!$A122,,'Language-Sprachen'!$N$1)","v":"Remark"}]
[null,null,null,null,null,null,null,null,null,null,{"$f":"OFFSET('Language-Sprachen'!$A397,,'Language-Sprachen'!$N$1)","v":"Document"},null,null,null,null,null,null,null,null,null,null,{"$f":"OFFSET('Language-Sprachen'!$A398,,'Language-Sprachen'!$N$1)","v":"Version"},null,null,{"$f":"OFFSET('Language-Sprachen'!$A399,,'Language-Sprachen'!$N$1)","v":"Date"}]
[1]
[2]
[3]
[4]
[5]
[6]
[7]
[8]
[9]
[10]
[11]
[12]
[13]
[14]
[15]
[16]
[17]
[18]
[19]
[{"$f":"OFFSET('Language-Sprachen'!$A$334,,'Language-Sprachen'!$N$1)","v":"Confirmation of organization:"}]
[{"$f":"OFFSET('Language-Sprachen'!$A$25,,'Language-Sprachen'!$N$1)","v":"Name"},null,null,null,null,{"$f":"IF(OR('Attachment 4 Cover-PPA'!$F$29=\"\"),\"\",'Attachment 4 Cover-PPA'!$F$29)","v":""},null,null,null,null,null,null,null,null,null,null,null,{"$f":"OFFSET('Language-Sprachen'!$A$122,,'Language-Sprachen'!$N$1)","v":"Remark"},null,null,null,null,{"$f":"IF(OR('Attachment 4 Cover-PPA'!$W$29=\"\"),\"\",'Attachment 4 Cover-PPA'!$W$29)","v":""}]
[{"$f":"OFFSET('Language-Sprachen'!$A$228,,'Language-Sprachen'!$N$1)","v":"Department"},null,null,null,null,{"$f":"IF(OR('Attachment 4 Cover-PPA'!$F$30=\"\"),\"\",'Attachment 4 Cover-PPA'!$F$30)","v":""}]
[{"$f":"OFFSET('Language-Sprachen'!$A$26,,'Language-Sprachen'!$N$1)","v":"Telephone"},null,null,null,null,{"$f":"IF(OR('Attachment 4 Cover-PPA'!$F$31=\"\"),\"\",'Attachment 4 Cover-PPA'!$F$31)","v":""}]
[{"$f":"OFFSET('Language-Sprachen'!$A$27,,'Language-Sprachen'!$N$1)","v":"E-mail"},null,null,null,null,{"$f":"IF(OR('Attachment 4 Cover-PPA'!$F$32=\"\"),\"\",'Attachment 4 Cover-PPA'!$F$32)","v":""}]
[{"$f":"OFFSET('Language-Sprachen'!$A$49,,'Language-Sprachen'!$N$1)","v":"Date"},null,null,null,null,{"$f":"IF(OR('Attachment 4 Cover-PPA'!$F$33=\"\"),\"\",'Attachment 4 Cover-PPA'!$F$33)","v":""},null,null,null,null,null,null,null,null,null,null,null,{"$f":"OFFSET('Language-Sprachen'!$A$92,,'Language-Sprachen'!$N$1)","v":"Signature"},null,null,null,null,{"$f":"IF(OR('Attachment 4 Cover-PPA'!$W$33=\"\"),\"\",'Attachment 4 Cover-PPA'!$W$33)","v":""}]

{"sheet":"Attachment 5 Software","index":8,"n_rows":278,"n_cols":32,"rows_kept":278,"cut":false,"hidden":false,"merged":[[28,27,28,34],[21,26,25,26],[17,22,20,23],[17,24,20,26],[17,27,25,34],[26,1,26,2],[26,3,26,9],[26,10,26,12],[26,13,26,15],[26,16,26,18],[17,13,25,15],[17,16,25,18],[17,19,25,21],[21,22,25,22],[21,23,25,23],[21,24,25,24],[21,25,25,25],[192,22,192,34],[13,0,13,34],[14,0,14,17],[14,18,14,34],[15,0,15,17],[15,18,15,34],[16,0,16,34],[17,1,25,2],[17,3,25,9],[17,10,25,12],[190,5,190,16],[191,0,191,4],[191,5,191,16],[192,0,192,4],[192,5,192,16],[192,17,192,21],[186,7,187,11],[186,12,187,29],[186,30,187,34],[188,0,188,4],[188,5,188,16],[188,17,191,21],[188,22,191,34],[28,19,28,21],[179,0,187,6],[179,7,179,11],[179,12,179,29],[179,30,179,34],[180,7,181,11],[180,12,181,29],[189,0,189,4],[189,5,189,16],[190,0,190,4],[180,30,181,34],[182,7,183,11],[182,12,183,29],[182,30,183,34],[184,7,185,11],[184,12,185,29],[184,30,185,34],[170,0,178,6],[170,7,170,11],[170,12,170,34],[171,7,172,11],[171,12,172,34],[173,7,174,11],[173,12,174,34],[175,7,176,11],[175,12,176,34],[177,7,178,11],[177,12,178,34],[156,0,156,16],[156,18,157,33],[156,34,157,34],[157,0,157,16],[152,0,153,34],[158,0,160,6],[158,7,160,34],[161,0,169,6],[161,7,161,11],[161,12,161,34],[162,7,163,11],[162,12,163,34],[164,7,165,11],[164,12,165,34],[166,7,167,11],[166,12,167,34],[168,7,169,11],[168,12,169,34],[142,0,142,11],[142,12,142,23],[142,24,142,34],[143,0,143,5],[143,6,143,11],[143,12,144,17],[151,0,151,34],[154,0,155,16],[154,17,155,17],[154,18,155,33],[154,34,155,34],[143,18,144,23],[143,24,144,29],[143,30,144,34],[144,0,144,5],[144,6,144,11],[145,0,145,5],[145,6,145,11],[145,12,145,17],[145,18,145,23],[145,24,145,29],[145,30,145,34],[146,0,146,5],[146,6,146,11],[134,0,134,4],[134,5,134,16],[134,17,137,21],[134,22,137,34],[135,0,135,4],[138,17,138,21],[138,22,138,34],[135,5,135,16],[136,0,136,4],[136,5,136,16],[137,0,137,4],[137,5,137,16],[138,0,138,4],[138,5,138,16],[114,0,115,34],[113,0,113,34],[116,0,120,9],[116,10,120,11],[116,12,120,13],[116,14,120,15],[116,16,120,17],[116,18,120,19],[116,22,120,30],[116,31,120,34],[116,20,120,21],[76,29,76,34],[77,29,77,34],[83,25,83,28],[83,3,83,10],[83,11,83,12],[83,13,83,14],[83,15,83,16],[83,17,83,18],[83,19,83,24],[83,29,83,34],[76,25,76,28],[78,3,82,10],[78,11,82,12],[78,13,82,14],[78,15,82,16],[78,17,82,18],[78,19,82,24],[78,25,82,28],[78,29,82,34],[77,1,77,2],[77,3,77,10],[77,11,77,12],[77,13,77,14],[77,15,77,16],[77,25,77,28],[76,1,76,2],[76,3,76,10],[76,11,76,12],[76,13,76,14],[76,15,76,16],[76,17,76,18],[77,17,77,18],[76,19,76,24],[77,19,77,24],[73,29,73,34],[74,25,74,28],[75,1,75,2],[75,3,75,10],[75,11,75,12],[75,13,75,14],[75,15,75,16],[75,25,75,28],[74,1,74,2],[74,3,74,10],[74,11,74,12],[74,13,74,14],[74,15,74,16],[74,17,74,18],[75,17,75,18],[74,19,74,24],[75,19,75,24],[74,29,74,34],[75,29,75,34],[73,1,73,2],[73,3,73,10],[73,11,73,12],[73,13,73,14],[73,15,73,16],[73,25,73,28],[72,1,72,2],[72,3,72,10],[72,11,72,12],[72,13,72,14],[72,15,72,16],[73,17,73,18],[72,19,72,24],[73,19,73,24],[71,1,71,2],[71,3,71,10],[71,11,71,12],[71,13,71,14],[71,15,71,16],[71,25,71,28],[70,1,70,2],[70,3,70,10],[70,11,70,12],[70,13,70,14],[70,15,70,16],[69,29,69,34],[69,17,69,18],[69,19,69,24],[70,17,70,18],[71,17,71,18],[72,17,72,18],[70,19,70,24],[71,19,71,24],[70,25,70,28],[70,29,70,34],[71,29,71,34],[72,25,72,28],[72,29,72,34],[64,25,68,28],[64,1,68,2],[64,3,68,10],[64,11,68,12],[64,13,68,14],[64,15,68,16],[69,1,69,2],[69,3,69,10],[69,11,69,12],[69,13,69,14],[69,15,69,16],[69,25,69,28],[64,17,68,18],[64,19,68,24],[53,0,54,11],[53,12,53,17],[53,18,54,34],[54,12,54,17],[26,27,26,34],[27,3,27,9],[27,10,27,12],[27,13,27,15],[27,16,27,18],[27,19,27,21],[27,1,27,2],[26,19,26,21],[28,1,28,2],[17,0,28,0],[29,1,30,2],[31,1,32,2],[29,0,32,0],[29,3,30,34],[31,3,32,34],[27,27,27,34],[28,3,28,9],[28,10,28,12],[28,13,28,15],[28,16,28,18],[8,6,8,11],[8,12,8,17],[8,18,8,23],[8,24,8,29],[8,30,8,34],[11,0,11,11],[11,12,11,34],[12,0,12,34],[10,0,10,5],[10,6,10,11],[10,12,10,17],[10,18,10,23],[10,24,10,29],[10,30,10,34],[0,0,1,11],[0,12,0,17],[0,18,1,34],[1,12,1,17],[2,0,2,11],[2,12,2,23],[2,24,2,34],[7,0,7,5],[7,6,7,11],[7,12,7,17],[7,18,7,23],[7,24,7,29],[7,30,7,34],[6,18,6,23],[6,24,6,29],[6,30,6,34],[3,12,4,17],[3,18,4,23],[64,29,68,34],[64,0,77,0],[3,0,3,5],[3,6,3,11],[3,24,4,29],[3,30,4,34],[4,0,4,5],[4,6,4,11],[6,0,6,5],[6,6,6,11],[6,12,6,17],[5,0,5,5],[5,6,5,11],[5,12,5,17],[5,18,5,23],[5,24,5,29],[5,30,5,34],[9,0,9,5],[9,6,9,11],[9,12,9,17],[9,18,9,23],[9,24,9,29],[9,30,9,34],[8,0,8,5],[78,0,82,2],[83,0,83,2],[100,0,100,34],[101,25,104,26],[101,27,104,28],[105,25,107,25],[105,26,107,26],[105,27,107,27],[105,28,107,28],[101,29,107,34],[101,1,107,4],[101,5,107,14],[101,15,107,24],[89,0,90,11],[89,12,89,17],[89,18,90,34],[90,12,90,17],[91,0,91,11],[91,12,91,23],[91,24,91,34],[92,0,92,5],[92,6,92,11],[92,12,93,17],[92,18,93,23],[131,18,132,33],[131,34,132,34],[133,0,133,34],[111,1,111,4],[111,5,111,14],[111,15,111,24],[111,29,111,34],[112,1,112,4],[112,5,112,14],[112,15,112,24],[112,29,112,34],[101,0,112,0],[108,1,108,4],[108,5,108,14],[108,15,108,24],[108,29,108,34],[109,1,109,4],[109,5,109,14],[109,15,109,24],[109,29,109,34],[110,1,110,4],[110,5,110,14],[110,15,110,24],[110,29,110,34],[197,0,197,5],[197,6,197,11],[197,24,198,29],[197,30,198,34],[198,0,198,5],[198,6,198,11],[194,0,195,11],[194,12,194,17],[194,18,195,34],[195,12,195,17],[196,0,196,11],[196,12,196,23],[196,24,196,34],[199,0,199,5],[199,6,199,11],[199,12,199,17],[199,18,199,23],[199,24,199,29],[199,30,199,34],[200,0,200,5],[200,6,200,11],[200,12,200,17],[200,18,200,23],[200,24,200,29],[200,30,200,34],[201,0,201,5],[201,6,201,11],[201,12,201,17],[201,18,201,23],[201,24,201,29],[201,30,201,34],[202,0,202,5],[202,6,202,11],[202,12,202,17],[202,18,202,23],[202,24,202,29],[202,30,202,34],[203,0,203,5],[203,6,203,11],[203,12,203,17],[203,18,203,23],[203,24,203,29],[203,30,203,34],[204,0,204,5],[204,6,204,11],[204,12,204,17],[204,18,204,23],[204,24,204,29],[204,30,204,34],[205,0,205,11],[205,12,205,34],[206,0,206,34],[207,0,207,34],[208,0,208,5],[209,0,209,5],[210,0,210,5],[208,27,208,34],[208,7,208,15],[208,17,208,25],[209,7,209,15],[209,17,209,25],[209,27,209,34],[210,7,210,15],[210,17,210,25],[210,27,210,34],[211,0,211,34],[212,0,213,7],[212,8,213,12],[212,13,213,17],[212,18,213,22],[212,23,213,27],[212,28,213,34],[214,0,214,7],[214,8,214,12],[214,13,214,17],[214,18,214,22],[214,23,214,27],[214,28,214,34],[215,0,215,7],[215,8,215,12],[215,13,215,17],[215,18,215,22],[215,23,215,27],[215,28,215,34],[216,0,216,7],[216,8,216,12],[216,13,216,17],[216,18,216,22],[216,23,216,27],[216,28,216,34],[217,0,217,7],[217,8,217,12],[217,13,217,17],[217,18,217,22],[217,23,217,27],[217,28,217,34],[218,0,218,7],[218,8,218,12],[218,13,218,17],[218,18,218,22],[218,23,218,27],[218,28,218,34],[219,0,219,7],[219,8,219,12],[219,13,219,17],[219,18,219,22],[219,23,219,27],[219,28,219,34],[220,0,220,7],[220,8,220,12],[220,13,220,17],[220,18,220,22],[220,23,220,27],[220,28,220,34],[223,0,223,7],[223,8,223,12],[223,13,223,17],[223,18,223,22],[223,23,223,27],[223,28,223,34],[221,0,221,7],[221,8,221,12],[221,13,221,17],[221,18,221,22],[221,23,221,27],[221,28,221,34],[222,0,222,7],[222,8,222,12],[222,13,222,17],[222,18,222,22],[222,23,222,27],[222,28,222,34],[229,13,229,17],[229,18,229,22],[229,23,229,27],[229,28,229,34],[224,0,224,34],[225,0,226,7],[225,8,226,12],[225,13,226,17],[225,18,226,22],[225,23,226,27],[225,28,226,34],[227,8,227,12],[227,13,227,17],[227,18,227,22],[227,23,227,27],[227,28,227,34],[227,0,232,7],[228,8,228,12],[228,13,228,17],[228,18,228,22],[228,23,228,27],[228,28,228,34],[229,8,229,12],[234,6,234,17],[235,6,235,17],[234,18,235,23],[234,24,234,34],[235,24,235,34],[230,8,230,12],[230,13,230,17],[230,18,230,22],[230,23,230,27],[230,28,230,34],[231,8,231,12],[231,13,231,17],[231,18,231,22],[231,23,231,27],[231,28,231,34],[258,0,258,34],[259,0,260,5],[259,6,260,9],[259,10,260,21],[259,22,260,26],[259,27,260,34],[249,0,249,11],[249,12,249,23],[249,24,249,34],[250,0,250,5],[250,6,250,11],[250,12,251,17],[250,18,251,23],[250,24,251,29],[250,30,251,34],[251,0,251,5],[251,6,251,11],[252,0,252,5],[252,6,252,11],[252,12,252,17],[252,18,252,23],[252,24,252,29],[252,30,252,34],[253,0,253,5],[261,0,261,14],[261,15,261,16],[261,17,261,32],[261,33,261,34],[262,0,264,5],[262,6,264,9],[262,10,264,21],[262,22,264,26],[262,27,264,34],[265,0,267,5],[265,6,267,9],[265,10,267,21],[265,22,267,26],[265,27,267,34],[268,0,270,5],[268,6,270,9],[268,10,270,21],[268,22,270,26],[268,27,270,34],[277,0,277,4],[277,5,277,16],[277,17,277,21],[277,22,277,34],[271,0,271,34],[272,0,272,34],[273,0,273,4],[273,5,273,16],[273,17,276,21],[273,22,276,34],[274,0,274,4],[274,5,274,16],[275,0,275,4],[275,5,275,16],[276,0,276,4],[276,5,276,16],[55,0,55,11],[55,12,55,23],[55,24,55,34],[56,0,56,5],[56,6,56,11],[56,12,57,17],[56,18,57,23],[56,24,57,29],[56,30,57,34],[57,0,57,5],[57,6,57,11],[58,0,58,5],[58,6,58,11],[58,12,58,17],[58,18,58,23],[58,24,58,29],[58,30,58,34],[59,0,59,5],[59,6,59,11],[59,12,59,17],[59,18,59,23],[59,24,59,29],[59,30,59,34],[60,0,60,5],[60,6,60,11],[60,12,60,17],[60,18,60,23],[60,24,60,29],[60,30,60,34],[61,0,61,5],[61,6,61,11],[61,12,61,17],[61,18,61,23],[61,24,61,29],[61,30,61,34],[62,0,62,5],[62,6,62,11],[62,12,62,17],[62,18,62,23],[62,24,62,29],[62,30,62,34],[63,0,63,5],[63,6,63,11],[63,12,63,17],[63,18,63,23],[63,24,63,29],[63,30,63,34],[92,24,93,29],[92,30,93,34],[93,0,93,5],[93,6,93,11],[94,0,94,5],[94,6,94,11],[94,12,94,17],[94,18,94,23],[94,24,94,29],[94,30,94,34],[95,0,95,5],[95,6,95,11],[95,12,95,17],[95,18,95,23],[95,24,95,29],[95,30,95,34],[96,0,96,5],[96,6,96,11],[96,12,96,17],[96,18,96,23],[96,24,96,29],[96,30,96,34],[97,0,97,5],[97,6,97,11],[97,12,97,17],[97,18,97,23],[97,24,97,29],[97,30,97,34],[98,0,98,5],[98,6,98,11],[98,12,98,17],[98,18,98,23],[98,24,98,29],[98,30,98,34],[99,0,99,5],[99,6,99,11],[99,12,99,17],[99,18,99,23],[99,24,99,29],[99,30,99,34],[140,0,141,11],[140,12,140,17],[140,18,141,34],[141,12,141,17],[121,0,122,9],[121,10,122,11],[121,12,122,13],[121,14,122,15],[121,16,122,17],[121,18,122,19],[121,20,122,21],[121,22,122,30],[121,31,122,34],[123,0,123,34],[124,0,129,34],[130,0,130,34],[131,0,132,16],[131,17,132,17],[146,12,146,17],[146,18,146,23],[146,24,146,29],[146,30,146,34],[147,0,147,5],[147,6,147,11],[147,12,147,17],[147,18,147,23],[147,24,147,29],[147,30,147,34],[148,0,148,5],[148,6,148,11],[148,12,148,17],[148,18,148,23],[148,24,148,29],[148,30,148,34],[149,0,149,5],[149,6,149,11],[149,12,149,17],[149,18,149,23],[149,24,149,29],[149,30,149,34],[150,0,150,5],[150,6,150,11],[150,12,150,17],[150,18,150,23],[150,24,150,29],[150,30,150,34],[197,12,198,17],[197,18,198,23],[247,0,248,11],[247,12,247,17],[247,18,248,34],[248,12,248,17],[237,0,238,5],[237,6,237,17],[237,18,238,23],[237,24,237,34],[238,6,238,17],[238,24,238,34],[232,8,232,12],[232,13,232,17],[232,18,232,22],[232,23,232,27],[232,28,232,34],[234,0,235,5],[253,12,253,17],[253,18,253,23],[253,24,253,29],[253,30,253,34],[254,0,254,5],[254,6,254,11],[254,12,254,17],[254,18,254,23],[254,24,254,29],[254,30,254,34],[257,0,257,5],[257,6,257,11],[257,12,257,17],[257,18,257,23],[257,24,257,29],[257,30,257,34],[33,0,33,34],[233,0,233,1],[233,2,233,34],[236,0,236,1],[236,2,236,34],[255,0,255,5],[255,6,255,11],[255,12,255,17],[255,18,255,23],[255,24,255,29],[255,30,255,34],[256,0,256,5],[256,6,256,11],[256,12,256,17],[256,18,256,23],[256,24,256,29],[256,30,256,34],[253,6,253,11]]}
[{"$f":"OFFSET('Language-Sprachen'!$A$400,,'Language-Sprachen'!$N$1)","v":"6.1 Cover sheet for PPA software"},null,null,null,null,null,null,null,null,null,null,null,{"$f":"OFFSET('Language-Sprachen'!$A$345,,'Language-Sprachen'!$N$1)","v":"Report"},null,null,null,null,null,{"$f":"IF(OR('Attachment 4 Cover-PPA'!$S$1=\"\"),\"-\",'Attachment 4 Cover-PPA'!$S$1)","v":"Modine Europe GmbH"}]
[null,null,null,null,null,null,null,null,null,null,null,null,{"$f":"OFFSET('Language-Sprachen'!$A$5,,'Language-Sprachen'!$N$1)","v":"Organization"}]
[{"$f":"OFFSET('Language-Sprachen'!$A$8,,'Language-Sprachen'!$N$1)","v":"Information about the organization"},null,null,null,null,null,null,null,null,null,null,null,{"$f":"OFFSET('Language-Sprachen'!$A$497,,'Language-Sprachen'!$N$1)","v":"Description about Software"},null,null,null,null,null,null,null,null,null,null,null,{"$f":"OFFSET('Language-Sprachen'!$A$9,,'Language-Sprachen'!$N$1)","v":"Information about the customer"}]
[{"$f":"OFFSET('Language-Sprachen'!$A$16,,'Language-Sprachen'!$N$1)","v":"Report number"},null,null,null,null,null,{"$f":"IF(OR('Attachment 4 Cover-PPA'!$G$16=\"\"),\"-\",'Attachment 4 Cover-PPA'!$G$16)","v":"-"},null,null,null,null,null,{"$f":"OFFSET('Language-Sprachen'!$A$498,,'Language-Sprachen'!$N$1)","v":"Parts list reference\n(Customer) (optional)"},null,null,null,null,null,null,null,null,null,null,null,{"$f":"OFFSET('Language-Sprachen'!$A$23,,'Language-Sprachen'!$N$1)","v":"Customer"},null,null,null,null,null,{"$f":"IF(OR('Attachment 4 Cover-PPA'!$AE$16=\"\"),\"-\",'Attachment 4 Cover-PPA'!$AE$16)","v":"-"}]
[{"$f":"OFFSET('Language-Sprachen'!$A$17,,'Language-Sprachen'!$N$1)","v":"Report version"},null,null,null,null,null,{"$f":"IF(OR('Attachment 4 Cover-PPA'!$G$17=\"\"),\"-\",'Attachment 4 Cover-PPA'!$G$17)","v":"-"}]
[{"$f":"OFFSET('Language-Sprachen'!$A$13,,'Language-Sprachen'!$N$1)","v":"Delivery location"},null,null,null,null,null,{"$f":"IF(OR('Attachment 4 Cover-PPA'!$G$18=\"\"),\"-\",'Attachment 4 Cover-PPA'!$G$18)","v":"-"},null,null,null,null,null,null,null,null,null,null,null,null,null,null,null,null,null,{"$f":"OFFSET('Language-Sprachen'!$A$21,,'Language-Sprachen'!$N$1)","v":"Order Number PPA sample"},null,null,null,null,null,{"$f":"IF(OR('Attachment 4 Cover-PPA'!$AE$18=\"\"),\"-\",'Attachment 4 Cover-PPA'!$AE$18)","v":"-"}]
[{"$f":"OFFSET('Language-Sprachen'!$A$11,,'Language-Sprachen'!$N$1)","v":"Production location"},null,null,null,null,null,{"$f":"IF(OR('Attachment 4 Cover-PPA'!$G$19=\"\"),\"-\",'Attachment 4 Cover-PPA'!$G$19)","v":"-"},null,null,null,null,null,null,null,null,null,null,null,null,null,null,null,null,null,{"$f":"OFFSET('Language-Sprachen'!$A$20,,'Language-Sprachen'!$N$1)","v":"Unloading point"},null,null,null,null,null,{"$f":"IF(OR('Attachment 4 Cover-PPA'!$AE$19=\"\"),\"-\",'Attachment 4 Cover-PPA'!$AE$19)","v":"-"}]
[{"$f":"OFFSET('Language-Sprachen'!$A$38,,'Language-Sprachen'!$N$1)","v":"Part Number"},null,null,null,null,null,{"$f":"IF(OR('Attachment 4 Cover-PPA'!$G$20=\"\"),\"-\",'Attachment 4 Cover-PPA'!$G$20)","v":"-"},null,null,null,null,null,null,null,null,null,null,null,null,null,null,null,null,null,{"$f":"OFFSET('Language-Sprachen'!$A$38,,'Language-Sprachen'!$N$1)","v":"Part Number"},null,null,null,null,null,{"$f":"IF(OR('Attachment 4 Cover-PPA'!$AE$20=\"\"),\"-\",'Attachment 4 Cover-PPA'!$AE$20)","v":"-"}]
[{"$f":"OFFSET('Language-Sprachen'!$A$37,,'Language-Sprachen'!$N$1)","v":"Name"},null,null,null,null,null,{"$f":"IF(OR('Attachment 4 Cover-PPA'!$G$21=\"\"),\"-\",'Attachment 4 Cover-PPA'!$G$21)","v":"-"},null,null,null,null,null,null,null,null,null,null,null,null,null,null,null,null,null,{"$f":"OFFSET('Language-Sprachen'!$A$37,,'Language-Sprachen'!$N$1)","v":"Name"},null,null,null,null,null,{"$f":"IF(OR('Attachment 4 Cover-PPA'!$AE$21=\"\"),\"-\",'Attachment 4 Cover-PPA'!$AE$21)","v":"-"}]
[{"$f":"OFFSET('Language-Sprachen'!$A$39,,'Language-Sprachen'!$N$1)","v":"Drawing number"},null,null,null,null,null,{"$f":"IF(OR('Attachment 4 Cover-PPA'!$G$22=\"\"),\"-\",'Attachment 4 Cover-PPA'!$G$22)","v":"-"},null,null,null,null,null,null,null,null,null,null,null,null,null,null,null,null,null,{"$f":"OFFSET('Language-Sprachen'!$A$39,,'Language-Sprachen'!$N$1)","v":"Drawing number"},null,null,null,null,null,{"$f":"IF(OR('Attachment 4 Cover-PPA'!$AE$22=\"\"),\"-\",'Attachment 4 Cover-PPA'!$AE$22)","v":"-"}]
[{"$f":"OFFSET('Language-Sprachen'!$A$350,,'Language-Sprachen'!$N$1)","v":"Version/ Date"},null,null,null,null,null,{"$f":"IF(OR('Attachment 4 Cover-PPA'!$G$23=\"\"),\"-\",'Attachment 4 Cover-PPA'!$G$23)","v":"-"},null,null,null,null,null,{"$f":"OFFSET('Language-Sprachen'!$A$242,,'Language-Sprachen'!$N$1)","v":"Identification/ DUNS"},null,null,null,null,null,{"$f":"IF(OR('Attachment 4 Cover-PPA'!$S$23=\"\"),\"-\",'Attachment 4 Cover-PPA'!$S$23)","v":"-"},null,null,null,null,null,{"$f":"OFFSET('Language-Sprachen'!$A$350,,'Language-Sprachen'!$N$1)","v":"Version/ Date"},null,null,null,null,null,{"$f":"IF(OR('Attachment 4 Cover-PPA'!$AE$23=\"\"),\"-\",'Attachment 4 Cover-PPA'!$AE$23)","v":"-"}]
["Part with special archiving requirement"]
[{"$f":"OFFSET('Language-Sprachen'!$A$401,,'Language-Sprachen'!$N$1)","v":"Description software"}]
[]
[{"$f":"OFFSET('Language-Sprachen'!$A$402,,'Language-Sprachen'!$N$1)","v":"Product-specific identifier/key"},null,null,null,null,null,null,null,null,null,null,null,null,null,null,null,null,null,{"$f":"OFFSET('Language-Sprachen'!$A$403,,'Language-Sprachen'!$N$1)","v":"Checksum"}]
[]
[{"$f":"OFFSET('Language-Sprachen'!$A$404,,'Language-Sprachen'!$N$1)","v":"Information about the software modules used (please list in-house and third-party components)"}]
[{"$f":"OFFSET('Language-Sprachen'!$A$405,,'Language-Sprachen'!$N$1)","v":"Description"},{"$f":"OFFSET('Language-Sprachen'!$A$407,,'Language-Sprachen'!$N$1)","v":"Independent software package"},null,{"$f":"OFFSET('Language-Sprachen'!$A$408,,'Language-Sprachen'!$N$1)","v":"Assembled in following HW"},null,null,null,null,null,null,{"$f":"OFFSET('Language-Sprachen'!$A$409,,'Language-Sprachen'!$N$1)","v":"Software version"},null,null,{"$f":"OFFSET('Language-Sprachen'!$A$410,,'Language-Sprachen'!$N$1)","v":"Operating system"},null,null,{"$f":"OFFSET('Language-Sprachen'!$A$411,,'Language-Sprachen'!$N$1)","v":"Diagnosis version"},null,null,{"$f":"OFFSET('Language-Sprachen'!$A$412,,'Language-Sprachen'!$N$1)","v":"ASIL classification"},null,null,{"$f":"OFFSET('Language-Sprachen'!$A$413,,'Language-Sprachen'!$N$1)","v":"Compa-tibility with specifi-cation"},null,{"$f":"OFFSET('Language-Sprachen'!$A$414,,'Language-Sprachen'!$N$1)","v":"(6.6) FOSS-Approval"},null,null,{"$f":"OFFSET('Language-Sprachen'!$A$122,,'Language-Sprachen'!$N$1)","v":"Remark"}]
[]
[]
[]
[null,null,null,null,null,null,null,null,null,null,null,null,null,null,null,null,null,null,null,null,null,null,{"$f":"OFFSET('Language-Sprachen'!$A$415,,'Language-Sprachen'!$N$1)","v":"Fulfilled"},{"$f":"OFFSET('Language-Sprachen'!$A$416,,'Language-Sprachen'!$N$1)","v":"Not Fulfilled"},{"$f":"OFFSET('Language-Sprachen'!$A$417,,'Language-Sprachen'!$N$1)","v":"Available"},{"$f":"OFFSET('Language-Sprachen'!$A$418,,'Language-Sprachen'!$N$1)","v":"Not available"},{"$f":"OFFSET('Language-Sprachen'!$A$419,,'Language-Sprachen'!$N$1)","v":"Not relevant"}]
[]
[]
[]
[]
[]
[]
[]
[{"$f":"OFFSET('Language-Sprachen'!$A$406,,'Language-Sprachen'!$N$1)","v":"Trigger"},null,null,{"$f":"OFFSET('Language-Sprachen'!$A$420,,'Language-Sprachen'!$N$1)","v":"Initial PPA procedure"}]
[]
[null,null,null,{"$f":"OFFSET('Language-Sprachen'!$A$421,,'Language-Sprachen'!$N$1)","v":"PPA procedure due to changes"}]
[]
[{"$f":"OFFSET('Language-Sprachen'!$A$422,,'Language-Sprachen'!$N$1)","v":"Self-assessment of organization"}]
[]
[]
[]
[]
[]
[]
[]
[]
[]
[]
[]
[]
[]
[]
[]
[]
[]
[]
[]
[{"$f":"OFFSET('Language-Sprachen'!$A$400,,'Language-Sprachen'!$N$1)","v":"6.1 Cover sheet for PPA software"},null,null,null,null,null,null,null,null,null,null,null,{"$f":"OFFSET('Language-Sprachen'!$A$345,,'Language-Sprachen'!$N$1)","v":"Report"},null,null,null,null,null,{"$f":"IF(OR('Attachment 4 Cover-PPA'!$S$1=\"\"),\"-\",'Attachment 4 Cover-PPA'!$S$1)","v":"Modine Europe GmbH"}]
[null,null,null,null,null,null,null,null,null,null,null,null,{"$f":"OFFSET('Language-Sprachen'!$A$5,,'Language-Sprachen'!$N$1)","v":"Organization"}]
[{"$f":"OFFSET('Language-Sprachen'!$A$8,,'Language-Sprachen'!$N$1)","v":"Information about the organization"},null,null,null,null,null,null,null,null,null,null,null,{"$f":"OFFSET('Language-Sprachen'!$A$497,,'Language-Sprachen'!$N$1)","v":"Description about Software"},null,null,null,null,null,null,null,null,null,null,null,{"$f":"OFFSET('Language-Sprachen'!$A$9,,'Language-Sprachen'!$N$1)","v":"Information about the customer"}]
[{"$f":"OFFSET('Language-Sprachen'!$A$16,,'Language-Sprachen'!$N$1)","v":"Report number"},null,null,null,null,null,{"$f":"IF(OR('Attachment 4 Cover-PPA'!$G$16=\"\"),\"-\",'Attachment 4 Cover-PPA'!$G$16)","v":"-"},null,null,null,null,null,{"$f":"OFFSET('Language-Sprachen'!$A$498,,'Language-Sprachen'!$N$1)","v":"Parts list reference\n(Customer) (optional)"},null,null,null,null,null,null,null,null,null,null,null,{"$f":"OFFSET('Language-Sprachen'!$A$23,,'Language-Sprachen'!$N$1)","v":"Customer"},null,null,null,null,null,{"$f":"IF(OR('Attachment 4 Cover-PPA'!$AE$16=\"\"),\"-\",'Attachment 4 Cover-PPA'!$AE$16)","v":"-"}]
[{"$f":"OFFSET('Language-Sprachen'!$A$17,,'Language-Sprachen'!$N$1)","v":"Report version"},null,null,null,null,null,{"$f":"IF(OR('Attachment 4 Cover-PPA'!$G$17=\"\"),\"-\",'Attachment 4 Cover-PPA'!$G$17)","v":"-"}]
[{"$f":"OFFSET('Language-Sprachen'!$A$13,,'Language-Sprachen'!$N$1)","v":"Delivery location"},null,null,null,null,null,{"$f":"IF(OR('Attachment 4 Cover-PPA'!$G$18=\"\"),\"-\",'Attachment 4 Cover-PPA'!$G$18)","v":"-"},null,null,null,null,null,null,null,null,null,null,null,null,null,null,null,null,null,{"$f":"OFFSET('Language-Sprachen'!$A$21,,'Language-Sprachen'!$N$1)","v":"Order Number PPA sample"},null,null,null,null,null,{"$f":"IF(OR('Attachment 4 Cover-PPA'!$AE$18=\"\"),\"-\",'Attachment 4 Cover-PPA'!$AE$18)","v":"-"}]
[{"$f":"OFFSET('Language-Sprachen'!$A$11,,'Language-Sprachen'!$N$1)","v":"Production location"},null,null,null,null,null,{"$f":"IF(OR('Attachment 4 Cover-PPA'!$G$19=\"\"),\"-\",'Attachment 4 Cover-PPA'!$G$19)","v":"-"},null,null,null,null,null,null,null,null,null,null,null,null,null,null,null,null,null,{"$f":"OFFSET('Language-Sprachen'!$A$20,,'Language-Sprachen'!$N$1)","v":"Unloading point"},null,null,null,null,null,{"$f":"IF(OR('Attachment 4 Cover-PPA'!$AE$19=\"\"),\"-\",'Attachment 4 Cover-PPA'!$AE$19)","v":"-"}]
[{"$f":"OFFSET('Language-Sprachen'!$A$38,,'Language-Sprachen'!$N$1)","v":"Part Number"},null,null,null,null,null,{"$f":"IF(OR('Attachment 4 Cover-PPA'!$G$20=\"\"),\"-\",'Attachment 4 Cover-PPA'!$G$20)","v":"-"},null,null,null,null,null,null,null,null,null,null,null,null,null,null,null,null,null,{"$f":"OFFSET('Language-Sprachen'!$A$38,,'Language-Sprachen'!$N$1)","v":"Part Number"},null,null,null,null,null,{"$f":"IF(OR('Attachment 4 Cover-PPA'!$AE$20=\"\"),\"-\",'Attachment 4 Cover-PPA'!$AE$20)","v":"-"}]
[{"$f":"OFFSET('Language-Sprachen'!$A$37,,'Language-Sprachen'!$N$1)","v":"Name"},null,null,null,null,null,{"$f":"IF(OR('Attachment 4 Cover-PPA'!$G$21=\"\"),\"-\",'Attachment 4 Cover-PPA'!$G$21)","v":"-"},null,null,null,null,null,null,null,null,null,null,null,null,null,null,null,null,null,{"$f":"OFFSET('Language-Sprachen'!$A$37,,'Language-Sprachen'!$N$1)","v":"Name"},null,null,null,null,null,{"$f":"IF(OR('Attachment 4 Cover-PPA'!$AE$21=\"\"),\"-\",'Attachment 4 Cover-PPA'!$AE$21)","v":"-"}]
[{"$f":"OFFSET('Language-Sprachen'!$A$39,,'Language-Sprachen'!$N$1)","v":"Drawing number"},null,null,null,null,null,{"$f":"IF(OR('Attachment 4 Cover-PPA'!$G$22=\"\"),\"-\",'Attachment 4 Cover-PPA'!$G$22)","v":"-"},null,null,null,null,null,null,null,null,null,null,null,null,null,null,null,null,null,{"$f":"OFFSET('Language-Sprachen'!$A$39,,'Language-Sprachen'!$N$1)","v":"Drawing number"},null,null,null,null,null,{"$f":"IF(OR('Attachment 4 Cover-PPA'!$AE$22=\"\"),\"-\",'Attachment 4 Cover-PPA'!$AE$22)","v":"-"}]
[{"$f":"OFFSET('Language-Sprachen'!$A$350,,'Language-Sprachen'!$N$1)","v":"Version/ Date"},null,null,null,null,null,{"$f":"IF(OR('Attachment 4 Cover-PPA'!$G$23=\"\"),\"-\",'Attachment 4 Cover-PPA'!$G$23)","v":"-"},null,null,null,null,null,{"$f":"OFFSET('Language-Sprachen'!$A$242,,'Language-Sprachen'!$N$1)","v":"Identification/ DUNS"},null,null,null,null,null,{"$f":"IF(OR('Attachment 4 Cover-PPA'!$S$23=\"\"),\"-\",'Attachment 4 Cover-PPA'!$S$23)","v":"-"},null,null,null,null,null,{"$f":"OFFSET('Language-Sprachen'!$A$350,,'Language-Sprachen'!$N$1)","v":"Version/ Date"},null,null,null,null,null,{"$f":"IF(OR('Attachment 4 Cover-PPA'!$AE$23=\"\"),\"-\",'Attachment 4 Cover-PPA'!$AE$23)","v":"-"}]
[{"$f":"OFFSET('Language-Sprachen'!$A$423,,'Language-Sprachen'!$N$1)","v":"Specification and deliverables"},{"$f":"OFFSET('Language-Sprachen'!$A$114,,'Language-Sprachen'!$N$1)","v":"Order number"},null,{"$f":"OFFSET('Language-Sprachen'!$A$115,,'Language-Sprachen'!$N$1)","v":"Test area\n(if applicable for the product)"},null,null,null,null,null,null,null,{"$f":"OFFSET('Language-Sprachen'!$A$117,,'Language-Sprachen'!$N$1)","v":"Submision required"},null,{"$f":"OFFSET('Language-Sprachen'!$A$347,,'Language-Sprachen'!$N$1)","v":"Requirements fully met"},null,{"$f":"OFFSET('Language-Sprachen'!$A$348,,'Language-Sprachen'!$N$1)","v":"Requirements not fully met"},null,{"$f":"OFFSET('Language-Sprachen'!$A$424,,'Language-Sprachen'!$N$1)","v":"Requirements not met"},null,{"$f":"OFFSET('Language-Sprachen'!$A$349,,'Language-Sprachen'!$N$1)","v":"Deliverable"},null,null,null,null,null,{"$f":"OFFSET('Language-Sprachen'!$A$350,,'Language-Sprachen'!$N$1)","v":"Version/ Date"},null,null,null,{"$f":"OFFSET('Language-Sprachen'!$A$122,,'Language-Sprachen'!$N$1)","v":"Remark"}]
[]
[]
[]
[]
[null,"6.2",null,{"$f":"OFFSET('Language-Sprachen'!$A190,,'Language-Sprachen'!$N$1)","v":"Definition of scope of the software product"},null,null,null,null,null,null,null,"Yes"]
[null,"6.3",null,{"$f":"OFFSET('Language-Sprachen'!$A191,,'Language-Sprachen'!$N$1)","v":"Reference to contractually stipulated quality requirements"},null,null,null,null,null,null,null,"Yes"]
[null,"6.4",null,{"$f":"OFFSET('Language-Sprachen'!$A192,,'Language-Sprachen'!$N$1)","v":"Documentation of technical SW specifications"}]
[null,"6.5",null,{"$f":"OFFSET('Language-Sprachen'!$A193,,'Language-Sprachen'!$N$1)","v":"Implementation of the requirements from 6.3 and 6.4 espacially the Special"}]
[null,"6.6",null,{"$f":"OFFSET('Language-Sprachen'!$A194,,'Language-Sprachen'!$N$1)","v":"Documentation of FOSS (free and open-source software)"},null,null,null,null,null,null,null,"Yes"]
[null,"6.7",null,{"$f":"OFFSET('Language-Sprachen'!$A195,,'Language-Sprachen'!$N$1)","v":"List of known errors"},null,null,null,null,null,null,null,"Yes"]
[null,"6.8",null,{"$f":"OFFSET('Language-Sprachen'!$A196,,'Language-Sprachen'!$N$1)","v":"Documentation of development tools"}]
[null,"6.9",null,{"$f":"OFFSET('Language-Sprachen'!$A197,,'Language-Sprachen'!$N$1)","v":"Documentation of testing tools"}]
[null,"6.10",null,{"$f":"OFFSET('Language-Sprachen'!$A198,,'Language-Sprachen'!$N$1)","v":"Documentation of version management"}]
[{"$f":"OFFSET('Language-Sprachen'!$A$114,,'Language-Sprachen'!$N$1)","v":"Order number"},null,null,{"$f":"OFFSET('Language-Sprachen'!$A$115,,'Language-Sprachen'!$N$1)","v":"Test area\n(if applicable for the product)"},null,null,null,null,null,null,null,{"$f":"OFFSET('Language-Sprachen'!$A$117,,'Language-Sprachen'!$N$1)","v":"Submision required"},null,{"$f":"OFFSET('Language-Sprachen'!$A$347,,'Language-Sprachen'!$N$1)","v":"Requirements fully met"},null,{"$f":"OFFSET('Language-Sprachen'!$A$348,,'Language-Sprachen'!$N$1)","v":"Requirements not fully met"},null,{"$f":"OFFSET('Language-Sprachen'!$A$424,,'Language-Sprachen'!$N$1)","v":"Requirements not met"},null,{"$f":"OFFSET('Language-Sprachen'!$A$425,,'Language-Sprachen'!$N$1)","v":"Process evaluation method"},null,null,null,null,null,{"$f":"OFFSET('Language-Sprachen'!$A$426,,'Language-Sprachen'!$N$1)","v":"Date of last evaluation"},null,null,null,{"$f":"OFFSET('Language-Sprachen'!$A$427,,'Language-Sprachen'!$N$1)","v":"Process evaluation result"}]
[]
[]
[]
[]
["6.11",null,null,{"$f":"OFFSET('Language-Sprachen'!$A199,,'Language-Sprachen'!$N$1)","v":"Documentation of a process evaluation (e.g. VDA Automotive Spice)"}]
[]
[]
[]
[]
[]
[{"$f":"OFFSET('Language-Sprachen'!$A$400,,'Language-Sprachen'!$N$1)","v":"6.1 Cover sheet for PPA software"},null,null,null,null,null,null,null,null,null,null,null,{"$f":"OFFSET('Language-Sprachen'!$A$345,,'Language-Sprachen'!$N$1)","v":"Report"},null,null,null,null,null,{"$f":"IF(OR('Attachment 4 Cover-PPA'!$S$1=\"\"),\"-\",'Attachment 4 Cover-PPA'!$S$1)","v":"Modine Europe GmbH"}]
[null,null,null,null,null,null,null,null,null,null,null,null,{"$f":"OFFSET('Language-Sprachen'!$A$5,,'Language-Sprachen'!$N$1)","v":"Organization"}]
[{"$f":"OFFSET('Language-Sprachen'!$A$8,,'Language-Sprachen'!$N$1)","v":"Information about the organization"},null,null,null,null,null,null,null,null,null,null,null,{"$f":"OFFSET('Language-Sprachen'!$A$497,,'Language-Sprachen'!$N$1)","v":"Description about Software"},null,null,null,null,null,null,null,null,null,null,null,{"$f":"OFFSET('Language-Sprachen'!$A$9,,'Language-Sprachen'!$N$1)","v":"Information about the customer"}]
[{"$f":"OFFSET('Language-Sprachen'!$A$16,,'Language-Sprachen'!$N$1)","v":"Report number"},null,null,null,null,null,{"$f":"IF(OR('Attachment 4 Cover-PPA'!$G$16=\"\"),\"-\",'Attachment 4 Cover-PPA'!$G$16)","v":"-"},null,null,null,null,null,{"$f":"OFFSET('Language-Sprachen'!$A$498,,'Language-Sprachen'!$N$1)","v":"Parts list reference\n(Customer) (optional)"},null,null,null,null,null,null,null,null,null,null,null,{"$f":"OFFSET('Language-Sprachen'!$A$23,,'Language-Sprachen'!$N$1)","v":"Customer"},null,null,null,null,null,{"$f":"IF(OR('Attachment 4 Cover-PPA'!$AE$16=\"\"),\"-\",'Attachment 4 Cover-PPA'!$AE$16)","v":"-"}]
[{"$f":"OFFSET('Language-Sprachen'!$A$17,,'Language-Sprachen'!$N$1)","v":"Report version"},null,null,null,null,null,{"$f":"IF(OR('Attachment 4 Cover-PPA'!$G$17=\"\"),\"-\",'Attachment 4 Cover-PPA'!$G$17)","v":"-"}]
[{"$f":"OFFSET('Language-Sprachen'!$A$13,,'Language-Sprachen'!$N$1)","v":"Delivery location"},null,null,null,null,null,{"$f":"IF(OR('Attachment 4 Cover-PPA'!$G$18=\"\"),\"-\",'Attachment 4 Cover-PPA'!$G$18)","v":"-"},null,null,null,null,null,null,null,null,null,null,null,null,null,null,null,null,null,{"$f":"OFFSET('Language-Sprachen'!$A$21,,'Language-Sprachen'!$N$1)","v":"Order Number PPA sample"},null,null,null,null,null,{"$f":"IF(OR('Attachment 4 Cover-PPA'!$AE$18=\"\"),\"-\",'Attachment 4 Cover-PPA'!$AE$18)","v":"-"}]
[{"$f":"OFFSET('Language-Sprachen'!$A$11,,'Language-Sprachen'!$N$1)","v":"Production location"},null,null,null,null,null,{"$f":"IF(OR('Attachment 4 Cover-PPA'!$G$19=\"\"),\"-\",'Attachment 4 Cover-PPA'!$G$19)","v":"-"},null,null,null,null,null,null,null,null,null,null,null,null,null,null,null,null,null,{"$f":"OFFSET('Language-Sprachen'!$A$20,,'Language-Sprachen'!$N$1)","v":"Unloading point"},null,null,null,null,null,{"$f":"IF(OR('Attachment 4 Cover-PPA'!$AE$19=\"\"),\"-\",'Attachment 4 Cover-PPA'!$AE$19)","v":"-"}]
[{"$f":"OFFSET('Language-Sprachen'!$A$38,,'Language-Sprachen'!$N$1)","v":"Part Number"},null,null,null,null,null,{"$f":"IF(OR('Attachment 4 Cover-PPA'!$G$20=\"\"),\"-\",'Attachment 4 Cover-PPA'!$G$20)","v":"-"},null,null,null,null,null,null,null,null,null,null,null,null,null,null,null,null,null,{"$f":"OFFSET('Language-Sprachen'!$A$38,,'Language-Sprachen'!$N$1)","v":"Part Number"},null,null,null,null,null,{"$f":"IF(OR('Attachment 4 Cover-PPA'!$AE$20=\"\"),\"-\",'Attachment 4 Cover-PPA'!$AE$20)","v":"-"}]
[{"$f":"OFFSET('Language-Sprachen'!$A$37,,'Language-Sprachen'!$N$1)","v":"Name"},null,null,null,null,null,{"$f":"IF(OR('Attachment 4 Cover-PPA'!$G$21=\"\"),\"-\",'Attachment 4 Cover-PPA'!$G$21)","v":"-"},null,null,null,null,null,null,null,null,null,null,null,null,null,null,null,null,null,{"$f":"OFFSET('Language-Sprachen'!$A$37,,'Language-Sprachen'!$N$1)","v":"Name"},null,null,null,null,null,{"$f":"IF(OR('Attachment 4 Cover-PPA'!$AE$21=\"\"),\"-\",'Attachment 4 Cover-PPA'!$AE$21)","v":"-"}]
[{"$f":"OFFSET('Language-Sprachen'!$A$39,,'Language-Sprachen'!$N$1)","v":"Drawing number"},null,null,null,null,null,{"$f":"IF(OR('Attachment 4 Cover-PPA'!$G$22=\"\"),\"-\",'Attachment 4 Cover-PPA'!$G$22)","v":"-"},null,null,null,null,null,null,null,null,null,null,null,null,null,null,null,null,null,{"$f":"OFFSET('Language-Sprachen'!$A$39,,'Language-Sprachen'!$N$1)","v":"Drawing number"},null,null,null,null,null,{"$f":"IF(OR('Attachment 4 Cover-PPA'!$AE$22=\"\"),\"-\",'Attachment 4 Cover-PPA'!$AE$22)","v":"-"}]
[{"$f":"OFFSET('Language-Sprachen'!$A$350,,'Language-Sprachen'!$N$1)","v":"Version/ Date"},null,null,null,null,null,{"$f":"IF(OR('Attachment 4 Cover-PPA'!$G$23=\"\"),\"-\",'Attachment 4 Cover-PPA'!$G$23)","v":"-"},null,null,null,null,null,{"$f":"OFFSET('Language-Sprachen'!$A$242,,'Language-Sprachen'!$N$1)","v":"Identification/ DUNS"},null,null,null,null,null,{"$f":"IF(OR('Attachment 4 Cover-PPA'!$S$23=\"\"),\"-\",'Attachment 4 Cover-PPA'!$S$23)","v":"-"},null,null,null,null,null,{"$f":"OFFSET('Language-Sprachen'!$A$350,,'Language-Sprachen'!$N$1)","v":"Version/ Date"},null,null,null,null,null,{"$f":"IF(OR('Attachment 4 Cover-PPA'!$AE$23=\"\"),\"-\",'Attachment 4 Cover-PPA'!$AE$23)","v":"-"}]
[{"$f":"OFFSET('Language-Sprachen'!$A$428,,'Language-Sprachen'!$N$1)","v":"Details for usage of software modules"}]
[{"$f":"OFFSET('Language-Sprachen'!$A$429,,'Language-Sprachen'!$N$1)","v":"Details for usage of software modules"},{"$f":"OFFSET('Language-Sprachen'!$A$430,,'Language-Sprachen'!$N$1)","v":"SW-PNR"},null,null,null,{"$f":"OFFSET('Language-Sprachen'!$A$431,,'Language-Sprachen'!$N$1)","v":"Release name (customer)"},null,null,null,null,null,null,null,null,null,{"$f":"OFFSET('Language-Sprachen'!$A$432,,'Language-Sprachen'!$N$1)","v":"Designation of organization"},null,null,null,null,null,null,null,null,null,{"$f":"OFFSET('Language-Sprachen'!$A$433,,'Language-Sprachen'!$N$1)","v":"Test report"},null,{"$f":"OFFSET('Language-Sprachen'!$A$434,,'Language-Sprachen'!$N$1)","v":"Approval status"},null,{"$f":"OFFSET('Language-Sprachen'!$A$122,,'Language-Sprachen'!$N$1)","v":"Remark"}]
[]
[]
[]
[null,null,null,null,null,null,null,null,null,null,null,null,null,null,null,null,null,null,null,null,null,null,null,null,null,{"$f":"OFFSET('Language-Sprachen'!$A$417,,'Language-Sprachen'!$N$1)","v":"Available"},{"$f":"OFFSET('Language-Sprachen'!$A$418,,'Language-Sprachen'!$N$1)","v":"Not available"},{"$f":"OFFSET('Language-Sprachen'!$A$417,,'Language-Sprachen'!$N$1)","v":"Available"},{"$f":"OFFSET('Language-Sprachen'!$A$418,,'Language-Sprachen'!$N$1)","v":"Not available"}]
[]
[]
[]
[]
[]
[]
[]
[{"$f":"OFFSET('Language-Sprachen'!$A$435,,'Language-Sprachen'!$N$1)","v":"Usage recommendation of organization"}]
[{"$f":"OFFSET('Language-Sprachen'!$A$436,,'Language-Sprachen'!$N$1)","v":"(To use the software for the intended application by an authorized person with the organization thorough permission granted via legally binding signature (handwritten, electronic))"}]
[]
[{"$f":"OFFSET('Language-Sprachen'!$A$361,,'Language-Sprachen'!$N$1)","v":"Deliverable category"},null,null,null,null,null,null,null,null,null,{"$f":"OFFSET('Language-Sprachen'!$A$117,,'Language-Sprachen'!$N$1)","v":"Submision required"},null,{"$f":"OFFSET('Language-Sprachen'!$A$367,,'Language-Sprachen'!$N$1)","v":"Requirements fully met"},null,{"$f":"OFFSET('Language-Sprachen'!$A$368,,'Language-Sprachen'!$N$1)","v":"Requirements not fully met"},null,{"$f":"OFFSET('Language-Sprachen'!$A$339,,'Language-Sprachen'!$N$1)","v":"PPA procedure towards customer closed"},null,{"$f":"OFFSET('Language-Sprachen'!$A$340,,'Language-Sprachen'!$N$1)","v":"Update of PPA documentation required"},null,{"$f":"OFFSET('Language-Sprachen'!$A$343,,'Language-Sprachen'!$N$1)","v":"New PPA procedure required"},null,{"$f":"OFFSET('Language-Sprachen'!$A$369,,'Language-Sprachen'!$N$1)","v":"Risk assessment"},null,null,null,null,null,null,null,null,{"$f":"OFFSET('Language-Sprachen'!$A$350,,'Language-Sprachen'!$N$1)","v":"Version/ Date"}]
[]
[]
[]
[]
[{"$f":"OFFSET('Language-Sprachen'!$A$437,,'Language-Sprachen'!$N$1)","v":"Delivarables for software"},null,null,null,null,null,null,null,null,null,"Yes"]
[]
[{"$f":"OFFSET('Language-Sprachen'!$A$230,,'Language-Sprachen'!$N$1)","v":"Comment of organization"}]
[]
[]
[]
[]
[]
[]
[{"$f":"OFFSET('Language-Sprachen'!$A$370,,'Language-Sprachen'!$N$1)","v":"Recommendation by the organization"}]
[{"$f":"OFFSET('Language-Sprachen'!$A$338,,'Language-Sprachen'!$N$1)","v":"Customer-ready/Ready for series production"},null,null,null,null,null,null,null,null,null,null,null,null,null,null,null,null,null,{"$f":"OFFSET('Language-Sprachen'!$A$342,,'Language-Sprachen'!$N$1)","v":"Not customer-ready / Not ready for series production"}]
[]
[{"$f":"OFFSET('Language-Sprachen'!$A$334,,'Language-Sprachen'!$N$1)","v":"Confirmation of organization:"}]
[{"$f":"OFFSET('Language-Sprachen'!$A$25,,'Language-Sprachen'!$N$1)","v":"Name"},null,null,null,null,{"$f":"IF(OR('Attachment 4 Cover-PPA'!$F$29=\"\"),\"\",'Attachment 4 Cover-PPA'!$F$29)","v":""},null,null,null,null,null,null,null,null,null,null,null,{"$f":"OFFSET('Language-Sprachen'!$A$122,,'Language-Sprachen'!$N$1)","v":"Remark"},null,null,null,null,{"$f":"IF(OR('Attachment 4 Cover-PPA'!$W$29=\"\"),\"\",'Attachment 4 Cover-PPA'!$W$29)","v":""}]
[{"$f":"OFFSET('Language-Sprachen'!$A$228,,'Language-Sprachen'!$N$1)","v":"Department"},null,null,null,null,{"$f":"IF(OR('Attachment 4 Cover-PPA'!$F$30=\"\"),\"\",'Attachment 4 Cover-PPA'!$F$30)","v":""}]
[{"$f":"OFFSET('Language-Sprachen'!$A$26,,'Language-Sprachen'!$N$1)","v":"Telephone"},null,null,null,null,{"$f":"IF(OR('Attachment 4 Cover-PPA'!$F$31=\"\"),\"\",'Attachment 4 Cover-PPA'!$F$31)","v":""}]
[{"$f":"OFFSET('Language-Sprachen'!$A$27,,'Language-Sprachen'!$N$1)","v":"E-mail"},null,null,null,null,{"$f":"IF(OR('Attachment 4 Cover-PPA'!$F$32=\"\"),\"\",'Attachment 4 Cover-PPA'!$F$32)","v":""}]
[{"$f":"OFFSET('Language-Sprachen'!$A$49,,'Language-Sprachen'!$N$1)","v":"Date"},null,null,null,null,{"$f":"IF(OR('Attachment 4 Cover-PPA'!$F$33=\"\"),\"\",'Attachment 4 Cover-PPA'!$F$33)","v":""},null,null,null,null,null,null,null,null,null,null,null,{"$f":"OFFSET('Language-Sprachen'!$A$92,,'Language-Sprachen'!$N$1)","v":"Signature"},null,null,null,null,{"$f":"IF(OR('Attachment 4 Cover-PPA'!$W$33=\"\"),\"\",'Attachment 4 Cover-PPA'!$W$33)","v":""}]
[]
[{"$f":"OFFSET('Language-Sprachen'!$A$400,,'Language-Sprachen'!$N$1)","v":"6.1 Cover sheet for PPA software"},null,null,null,null,null,null,null,null,null,null,null,{"$f":"OFFSET('Language-Sprachen'!$A$345,,'Language-Sprachen'!$N$1)","v":"Report"},null,null,null,null,null,{"$f":"IF(OR('Attachment 4 Cover-PPA'!$S$1=\"\"),\"-\",'Attachment 4 Cover-PPA'!$S$1)","v":"Modine Europe GmbH"}]
[null,null,null,null,null,null,null,null,null,null,null,null,{"$f":"OFFSET('Language-Sprachen'!$A$5,,'Language-Sprachen'!$N$1)","v":"Organization"}]
[{"$f":"OFFSET('Language-Sprachen'!$A$8,,'Language-Sprachen'!$N$1)","v":"Information about the organization"},null,null,null,null,null,null,null,null,null,null,null,{"$f":"OFFSET('Language-Sprachen'!$A$497,,'Language-Sprachen'!$N$1)","v":"Description about Software"},null,null,null,null,null,null,null,null,null,null,null,{"$f":"OFFSET('Language-Sprachen'!$A$9,,'Language-Sprachen'!$N$1)","v":"Information about the customer"}]
[{"$f":"OFFSET('Language-Sprachen'!$A$16,,'Language-Sprachen'!$N$1)","v":"Report number"},null,null,null,null,null,{"$f":"IF(OR('Attachment 4 Cover-PPA'!$G$16=\"\"),\"-\",'Attachment 4 Cover-PPA'!$G$16)","v":"-"},null,null,null,null,null,{"$f":"OFFSET('Language-Sprachen'!$A$498,,'Language-Sprachen'!$N$1)","v":"Parts list reference\n(Customer) (optional)"},null,null,null,null,null,null,null,null,null,null,null,{"$f":"OFFSET('Language-Sprachen'!$A$23,,'Language-Sprachen'!$N$1)","v":"Customer"},null,null,null,null,null,{"$f":"IF(OR('Attachment 4 Cover-PPA'!$AE$16=\"\"),\"-\",'Attachment 4 Cover-PPA'!$AE$16)","v":"-"}]
[{"$f":"OFFSET('Language-Sprachen'!$A$17,,'Language-Sprachen'!$N$1)","v":"Report version"},null,null,null,null,null,{"$f":"IF(OR('Attachment 4 Cover-PPA'!$G$17=\"\"),\"-\",'Attachment 4 Cover-PPA'!$G$17)","v":"-"}]
[{"$f":"OFFSET('Language-Sprachen'!$A$13,,'Language-Sprachen'!$N$1)","v":"Delivery location"},null,null,null,null,null,{"$f":"IF(OR('Attachment 4 Cover-PPA'!$G$18=\"\"),\"-\",'Attachment 4 Cover-PPA'!$G$18)","v":"-"},null,null,null,null,null,null,null,null,null,null,null,null,null,null,null,null,null,{"$f":"OFFSET('Language-Sprachen'!$A$21,,'Language-Sprachen'!$N$1)","v":"Order Number PPA sample"},null,null,null,null,null,{"$f":"IF(OR('Attachment 4 Cover-PPA'!$AE$18=\"\"),\"-\",'Attachment 4 Cover-PPA'!$AE$18)","v":"-"}]
[{"$f":"OFFSET('Language-Sprachen'!$A$11,,'Language-Sprachen'!$N$1)","v":"Production location"},null,null,null,null,null,{"$f":"IF(OR('Attachment 4 Cover-PPA'!$G$19=\"\"),\"-\",'Attachment 4 Cover-PPA'!$G$19)","v":"-"},null,null,null,null,null,null,null,null,null,null,null,null,null,null,null,null,null,{"$f":"OFFSET('Language-Sprachen'!$A$20,,'Language-Sprachen'!$N$1)","v":"Unloading point"},null,null,null,null,null,{"$f":"IF(OR('Attachment 4 Cover-PPA'!$AE$19=\"\"),\"-\",'Attachment 4 Cover-PPA'!$AE$19)","v":"-"}]
[{"$f":"OFFSET('Language-Sprachen'!$A$38,,'Language-Sprachen'!$N$1)","v":"Part Number"},null,null,null,null,null,{"$f":"IF(OR('Attachment 4 Cover-PPA'!$G$20=\"\"),\"-\",'Attachment 4 Cover-PPA'!$G$20)","v":"-"},null,null,null,null,null,null,null,null,null,null,null,null,null,null,null,null,null,{"$f":"OFFSET('Language-Sprachen'!$A$38,,'Language-Sprachen'!$N$1)","v":"Part Number"},null,null,null,null,null,{"$f":"IF(OR('Attachment 4 Cover-PPA'!$AE$20=\"\"),\"-\",'Attachment 4 Cover-PPA'!$AE$20)","v":"-"}]
[{"$f":"OFFSET('Language-Sprachen'!$A$37,,'Language-Sprachen'!$N$1)","v":"Name"},null,null,null,null,null,{"$f":"IF(OR('Attachment 4 Cover-PPA'!$G$21=\"\"),\"-\",'Attachment 4 Cover-PPA'!$G$21)","v":"-"},null,null,null,null,null,null,null,null,null,null,null,null,null,null,null,null,null,{"$f":"OFFSET('Language-Sprachen'!$A$37,,'Language-Sprachen'!$N$1)","v":"Name"},null,null,null,null,null,{"$f":"IF(OR('Attachment 4 Cover-PPA'!$AE$21=\"\"),\"-\",'Attachment 4 Cover-PPA'!$AE$21)","v":"-"}]
[{"$f":"OFFSET('Language-Sprachen'!$A$39,,'Language-Sprachen'!$N$1)","v":"Drawing number"},null,null,null,null,null,{"$f":"IF(OR('Attachment 4 Cover-PPA'!$G$22=\"\"),\"-\",'Attachment 4 Cover-PPA'!$G$22)","v":"-"},null,null,null,null,null,null,null,null,null,null,null,null,null,null,null,null,null,{"$f":"OFFSET('Language-Sprachen'!$A$39,,'Language-Sprachen'!$N$1)","v":"Drawing number"},null,null,null,null,null,{"$f":"IF(OR('Attachment 4 Cover-PPA'!$AE$22=\"\"),\"-\",'Attachment 4 Cover-PPA'!$AE$22)","v":"-"}]
[{"$f":"OFFSET('Language-Sprachen'!$A$350,,'Language-Sprachen'!$N$1)","v":"Version/ Date"},null,null,null,null,null,{"$f":"IF(OR('Attachment 4 Cover-PPA'!$G$23=\"\"),\"-\",'Attachment 4 Cover-PPA'!$G$23)","v":"-"},null,null,null,null,null,{"$f":"OFFSET('Language-Sprachen'!$A$242,,'Language-Sprachen'!$N$1)","v":"Identification/ DUNS"},null,null,null,null,null,{"$f":"IF(OR('Attachment 4 Cover-PPA'!$S$23=\"\"),\"-\",'Attachment 4 Cover-PPA'!$S$23)","v":"-"},null,null,null,null,null,{"$f":"OFFSET('Language-Sprachen'!$A$350,,'Language-Sprachen'!$N$1)","v":"Version/ Date"},null,null,null,null,null,{"$f":"IF(OR('Attachment 4 Cover-PPA'!$AE$23=\"\"),\"-\",'Attachment 4 Cover-PPA'!$AE$23)","v":"-"}]
[{"$f":"OFFSET('Language-Sprachen'!$A$337,,'Language-Sprachen'!$N$1)","v":"Customer decision"}]
[{"$f":"OFFSET('Language-Sprachen'!$A$438,,'Language-Sprachen'!$N$1)","v":"(To use the software for the intended application by an authorized person with the customer thorough permission granted via legally binding signature (handwritten, electronic))"}]
[]
[{"$f":"OFFSET('Language-Sprachen'!$A$338,,'Language-Sprachen'!$N$1)","v":"Customer-ready/Ready for series production"},null,null,null,null,null,null,null,null,null,null,null,null,null,null,null,null,null,{"$f":"OFFSET('Language-Sprachen'!$A$342,,'Language-Sprachen'!$N$1)","v":"Not customer-ready / Not ready for series production"}]
[]
[{"$f":"OFFSET('Language-Sprachen'!$A$339,,'Language-Sprachen'!$N$1)","v":"PPA procedure towards customer closed"},null,null,null,null,null,null,null,null,null,null,null,null,null,null,null,null,null,{"$f":"OFFSET('Language-Sprachen'!$A$343,,'Language-Sprachen'!$N$1)","v":"New PPA procedure required"}]
[{"$f":"OFFSET('Language-Sprachen'!$A$340,,'Language-Sprachen'!$N$1)","v":"Update of PPA documentation required"}]
[{"$f":"OFFSET('Language-Sprachen'!$A$371,,'Language-Sprachen'!$N$1)","v":"Customer evaluation deviating from that of the organization"}]
[]
[]
[{"$f":"OFFSET('Language-Sprachen'!$A$372,,'Language-Sprachen'!$N$1)","v":"Subsequent requirement Documents to be submitted about open test areas"},null,null,null,null,null,null,{"$f":"OFFSET('Language-Sprachen'!$A$375,,'Language-Sprachen'!$N$1)","v":"Test area"},null,null,null,null,{"$f":"OFFSET('Language-Sprachen'!$A$376,,'Language-Sprachen'!$N$1)","v":"Subsequent requirement / reason"}]
[]
[]
[]
[]
[]
[]
[]
[]
[{"$f":"OFFSET('Language-Sprachen'!$A$373,,'Language-Sprachen'!$N$1)","v":"Acceptance of deviations (without adjusting other documents)"},null,null,null,null,null,null,{"$f":"OFFSET('Language-Sprachen'!$A$375,,'Language-Sprachen'!$N$1)","v":"Test area"},null,null,null,null,{"$f":"OFFSET('Language-Sprachen'!$A$377,,'Language-Sprachen'!$N$1)","v":"New specification"}]
[]
[]
[]
[]
[]
[]
[]
[]
[{"$f":"OFFSET('Language-Sprachen'!$A$374,,'Language-Sprachen'!$N$1)","v":"Deviation approval"},null,null,null,null,null,null,{"$f":"OFFSET('Language-Sprachen'!$A$375,,'Language-Sprachen'!$N$1)","v":"Test area"},null,null,null,null,{"$f":"OFFSET('Language-Sprachen'!$A$378,,'Language-Sprachen'!$N$1)","v":"Deviation approval"},null,null,null,null,null,null,null,null,null,null,null,null,null,null,null,null,null,{"$f":"OFFSET('Language-Sprachen'!$A$379,,'Language-Sprachen'!$N$1)","v":"Validity"}]
[]
[]
[]
[]
[]
[]
[]
[]
[{"$f":"OFFSET('Language-Sprachen'!$A$25,,'Language-Sprachen'!$N$1)","v":"Name"},null,null,null,null,{"$f":"IF(OR('Attachment 4 Cover-PPA'!$F$29=\"\"),\"\",'Attachment 4 Cover-PPA'!$F$29)","v":""},null,null,null,null,null,null,null,null,null,null,null,{"$f":"OFFSET('Language-Sprachen'!$A$122,,'Language-Sprachen'!$N$1)","v":"Remark"},null,null,null,null,{"$f":"IF(OR('Attachment 4 Cover-PPA'!$W$29=\"\"),\"\",'Attachment 4 Cover-PPA'!$W$29)","v":""}]
[{"$f":"OFFSET('Language-Sprachen'!$A$228,,'Language-Sprachen'!$N$1)","v":"Department"},null,null,null,null,{"$f":"IF(OR('Attachment 4 Cover-PPA'!$F$30=\"\"),\"\",'Attachment 4 Cover-PPA'!$F$30)","v":""}]
[{"$f":"OFFSET('Language-Sprachen'!$A$26,,'Language-Sprachen'!$N$1)","v":"Telephone"},null,null,null,null,{"$f":"IF(OR('Attachment 4 Cover-PPA'!$F$31=\"\"),\"\",'Attachment 4 Cover-PPA'!$F$31)","v":""}]
[{"$f":"OFFSET('Language-Sprachen'!$A$27,,'Language-Sprachen'!$N$1)","v":"E-mail"},null,null,null,null,{"$f":"IF(OR('Attachment 4 Cover-PPA'!$F$32=\"\"),\"\",'Attachment 4 Cover-PPA'!$F$32)","v":""}]
[{"$f":"OFFSET('Language-Sprachen'!$A$49,,'Language-Sprachen'!$N$1)","v":"Date"},null,null,null,null,{"$f":"IF(OR('Attachment 4 Cover-PPA'!$F$33=\"\"),\"\",'Attachment 4 Cover-PPA'!$F$33)","v":""},null,null,null,null,null,null,null,null,null,null,null,{"$f":"OFFSET('Language-Sprachen'!$A$92,,'Language-Sprachen'!$N$1)","v":"Signature"},null,null,null,null,{"$f":"IF(OR('Attachment 4 Cover-PPA'!$W$33=\"\"),\"\",'Attachment 4 Cover-PPA'!$W$33)","v":""}]
[]
[{"$f":"OFFSET('Language-Sprachen'!$A$400,,'Language-Sprachen'!$N$1)","v":"6.1 Cover sheet for PPA software"},null,null,null,null,null,null,null,null,null,null,null,{"$f":"OFFSET('Language-Sprachen'!$A$345,,'Language-Sprachen'!$N$1)","v":"Report"},null,null,null,null,null,{"$f":"IF(OR('Attachment 4 Cover-PPA'!$S$1=\"\"),\"-\",'Attachment 4 Cover-PPA'!$S$1)","v":"Modine Europe GmbH"}]
[null,null,null,null,null,null,null,null,null,null,null,null,{"$f":"OFFSET('Language-Sprachen'!$A$5,,'Language-Sprachen'!$N$1)","v":"Organization"}]
[{"$f":"OFFSET('Language-Sprachen'!$A$8,,'Language-Sprachen'!$N$1)","v":"Information about the organization"},null,null,null,null,null,null,null,null,null,null,null,{"$f":"OFFSET('Language-Sprachen'!$A$497,,'Language-Sprachen'!$N$1)","v":"Description about Software"},null,null,null,null,null,null,null,null,null,null,null,{"$f":"OFFSET('Language-Sprachen'!$A$9,,'Language-Sprachen'!$N$1)","v":"Information about the customer"}]
[{"$f":"OFFSET('Language-Sprachen'!$A$16,,'Language-Sprachen'!$N$1)","v":"Report number"},null,null,null,null,null,{"$f":"IF(OR('Attachment 4 Cover-PPA'!$G$16=\"\"),\"-\",'Attachment 4 Cover-PPA'!$G$16)","v":"-"},null,null,null,null,null,{"$f":"OFFSET('Language-Sprachen'!$A$498,,'Language-Sprachen'!$N$1)","v":"Parts list reference\n(Customer) (optional)"},null,null,null,null,null,null,null,null,null,null,null,{"$f":"OFFSET('Language-Sprachen'!$A$23,,'Language-Sprachen'!$N$1)","v":"Customer"},null,null,null,null,null,{"$f":"IF(OR('Attachment 4 Cover-PPA'!$AE$16=\"\"),\"-\",'Attachment 4 Cover-PPA'!$AE$16)","v":"-"}]
[{"$f":"OFFSET('Language-Sprachen'!$A$17,,'Language-Sprachen'!$N$1)","v":"Report version"},null,null,null,null,null,{"$f":"IF(OR('Attachment 4 Cover-PPA'!$G$17=\"\"),\"-\",'Attachment 4 Cover-PPA'!$G$17)","v":"-"}]
[{"$f":"OFFSET('Language-Sprachen'!$A$13,,'Language-Sprachen'!$N$1)","v":"Delivery location"},null,null,null,null,null,{"$f":"IF(OR('Attachment 4 Cover-PPA'!$G$18=\"\"),\"-\",'Attachment 4 Cover-PPA'!$G$18)","v":"-"},null,null,null,null,null,null,null,null,null,null,null,null,null,null,null,null,null,{"$f":"OFFSET('Language-Sprachen'!$A$21,,'Language-Sprachen'!$N$1)","v":"Order Number PPA sample"},null,null,null,null,null,{"$f":"IF(OR('Attachment 4 Cover-PPA'!$AE$18=\"\"),\"-\",'Attachment 4 Cover-PPA'!$AE$18)","v":"-"}]
[{"$f":"OFFSET('Language-Sprachen'!$A$11,,'Language-Sprachen'!$N$1)","v":"Production location"},null,null,null,null,null,{"$f":"IF(OR('Attachment 4 Cover-PPA'!$G$19=\"\"),\"-\",'Attachment 4 Cover-PPA'!$G$19)","v":"-"},null,null,null,null,null,null,null,null,null,null,null,null,null,null,null,null,null,{"$f":"OFFSET('Language-Sprachen'!$A$20,,'Language-Sprachen'!$N$1)","v":"Unloading point"},null,null,null,null,null,{"$f":"IF(OR('Attachment 4 Cover-PPA'!$AE$19=\"\"),\"-\",'Attachment 4 Cover-PPA'!$AE$19)","v":"-"}]
[{"$f":"OFFSET('Language-Sprachen'!$A$38,,'Language-Sprachen'!$N$1)","v":"Part Number"},null,null,null,null,null,{"$f":"IF(OR('Attachment 4 Cover-PPA'!$G$20=\"\"),\"-\",'Attachment 4 Cover-PPA'!$G$20)","v":"-"},null,null,null,null,null,null,null,null,null,null,null,null,null,null,null,null,null,{"$f":"OFFSET('Language-Sprachen'!$A$38,,'Language-Sprachen'!$N$1)","v":"Part Number"},null,null,null,null,null,{"$f":"IF(OR('Attachment 4 Cover-PPA'!$AE$20=\"\"),\"-\",'Attachment 4 Cover-PPA'!$AE$20)","v":"-"}]
[{"$f":"OFFSET('Language-Sprachen'!$A$37,,'Language-Sprachen'!$N$1)","v":"Name"},null,null,null,null,null,{"$f":"IF(OR('Attachment 4 Cover-PPA'!$G$21=\"\"),\"-\",'Attachment 4 Cover-PPA'!$G$21)","v":"-"},null,null,null,null,null,null,null,null,null,null,null,null,null,null,null,null,null,{"$f":"OFFSET('Language-Sprachen'!$A$37,,'Language-Sprachen'!$N$1)","v":"Name"},null,null,null,null,null,{"$f":"IF(OR('Attachment 4 Cover-PPA'!$AE$21=\"\"),\"-\",'Attachment 4 Cover-PPA'!$AE$21)","v":"-"}]
[{"$f":"OFFSET('Language-Sprachen'!$A$39,,'Language-Sprachen'!$N$1)","v":"Drawing number"},null,null,null,null,null,{"$f":"IF(OR('Attachment 4 Cover-PPA'!$G$22=\"\"),\"-\",'Attachment 4 Cover-PPA'!$G$22)","v":"-"},null,null,null,null,null,null,null,null,null,null,null,null,null,null,null,null,null,{"$f":"OFFSET('Language-Sprachen'!$A$39,,'Language-Sprachen'!$N$1)","v":"Drawing number"},null,null,null,null,null,{"$f":"IF(OR('Attachment 4 Cover-PPA'!$AE$22=\"\"),\"-\",'Attachment 4 Cover-PPA'!$AE$22)","v":"-"}]
[{"$f":"OFFSET('Language-Sprachen'!$A$350,,'Language-Sprachen'!$N$1)","v":"Version/ Date"},null,null,null,null,null,{"$f":"IF(OR('Attachment 4 Cover-PPA'!$G$23=\"\"),\"-\",'Attachment 4 Cover-PPA'!$G$23)","v":"-"},null,null,null,null,null,{"$f":"OFFSET('Language-Sprachen'!$A$242,,'Language-Sprachen'!$N$1)","v":"Identification/ DUNS"},null,null,null,null,null,{"$f":"IF(OR('Attachment 4 Cover-PPA'!$S$23=\"\"),\"-\",'Attachment 4 Cover-PPA'!$S$23)","v":"-"},null,null,null,null,null,{"$f":"OFFSET('Language-Sprachen'!$A$350,,'Language-Sprachen'!$N$1)","v":"Version/ Date"},null,null,null,null,null,{"$f":"IF(OR('Attachment 4 Cover-PPA'!$AE$23=\"\"),\"-\",'Attachment 4 Cover-PPA'!$AE$23)","v":"-"}]
["Part with special archiving requirement"]
[{"$f":"OFFSET('Language-Sprachen'!$A$439,,'Language-Sprachen'!$N$1)","v":"Tests completed"}]
[{"$f":"OFFSET('Language-Sprachen'!$A$440,,'Language-Sprachen'!$N$1)","v":"General information about hardware (minimum requirement)"}]
[{"$f":"OFFSET('Language-Sprachen'!$A$441,,'Language-Sprachen'!$N$1)","v":"Microcontroller"},null,null,null,null,null,"1.",null,null,null,null,null,null,null,null,null,"2.",null,null,null,null,null,null,null,null,null,"3."]
[{"$f":"OFFSET('Language-Sprachen'!$A$442,,'Language-Sprachen'!$N$1)","v":"frequency"},null,null,null,null,null,"1.",null,null,null,null,null,null,null,null,null,"2.",null,null,null,null,null,null,null,null,null,"3."]
[{"$f":"OFFSET('Language-Sprachen'!$A$443,,'Language-Sprachen'!$N$1)","v":"Quartz frequency"},null,null,null,null,null,"1.",null,null,null,null,null,null,null,null,null,"2.",null,null,null,null,null,null,null,null,null,"3."]
[{"$f":"OFFSET('Language-Sprachen'!$A$444,,'Language-Sprachen'!$N$1)","v":"Memory utilization (measurement)"}]
[{"$f":"OFFSET('Language-Sprachen'!$A$445,,'Language-Sprachen'!$N$1)","v":"Component information"},null,null,null,null,null,null,null,{"$f":"OFFSET('Language-Sprachen'!$A$450,,'Language-Sprachen'!$N$1)","v":"Used [kB]"},null,null,null,null,{"$f":"OFFSET('Language-Sprachen'!$A$451,,'Language-Sprachen'!$N$1)","v":"Available [kB]"},null,null,null,null,{"$f":"OFFSET('Language-Sprachen'!$A$452,,'Language-Sprachen'!$N$1)","v":"Used [%]"},null,null,null,null,{"$f":"OFFSET('Language-Sprachen'!$A$453,,'Language-Sprachen'!$N$1)","v":"Specification met"},null,null,null,null,{"$f":"OFFSET('Language-Sprachen'!$A$122,,'Language-Sprachen'!$N$1)","v":"Remark"}]
[]
[{"$f":"OFFSET('Language-Sprachen'!$A$446,,'Language-Sprachen'!$N$1)","v":"ROM"}]
[{"$f":"OFFSET('Language-Sprachen'!$A$447,,'Language-Sprachen'!$N$1)","v":"RAM"}]
[{"$f":"OFFSET('Language-Sprachen'!$A$448,,'Language-Sprachen'!$N$1)","v":"EEPROM"}]
[{"$f":"OFFSET('Language-Sprachen'!$A$449,,'Language-Sprachen'!$N$1)","v":"Harddisc"}]
[]
[]
[]
[]
[]
[]
[{"$f":"OFFSET('Language-Sprachen'!$A$454,,'Language-Sprachen'!$N$1)","v":"Precessor utilization (measurement)"}]
[{"$f":"OFFSET('Language-Sprachen'!$A$455,,'Language-Sprachen'!$N$1)","v":"Component information"},null,null,null,null,null,null,null,{"$f":"OFFSET('Language-Sprachen'!$A$457,,'Language-Sprachen'!$N$1)","v":"Processor load Initial"},null,null,null,null,{"$f":"OFFSET('Language-Sprachen'!$A$458,,'Language-Sprachen'!$N$1)","v":"Processor load Operation"},null,null,null,null,{"$f":"OFFSET('Language-Sprachen'!$A$459,,'Language-Sprachen'!$N$1)","v":"Processor load Peak"},null,null,null,null,{"$f":"OFFSET('Language-Sprachen'!$A$453,,'Language-Sprachen'!$N$1)","v":"Specification met"},null,null,null,null,{"$f":"OFFSET('Language-Sprachen'!$A$122,,'Language-Sprachen'!$N$1)","v":"Remark"}]
[]
[{"$f":"OFFSET('Language-Sprachen'!$A$456,,'Language-Sprachen'!$N$1)","v":"Precessor utilization"}]
[]
[]
[]
[]
[]
["6.9",null,{"$f":"OFFSET('Language-Sprachen'!$A$460,,'Language-Sprachen'!$N$1)","v":"Documentation of testing tools"}]
[{"$f":"OFFSET('Language-Sprachen'!$A$461,,'Language-Sprachen'!$N$1)","v":"Reference to documentation"},null,null,null,null,null,{"$f":"OFFSET('Language-Sprachen'!$A$462,,'Language-Sprachen'!$N$1)","v":"Aligned configuration / baseline"},null,null,null,null,null,null,null,null,null,null,null,{"$f":"OFFSET('Language-Sprachen'!$A$463,,'Language-Sprachen'!$N$1)","v":"Status of documentation"},null,null,null,null,null,{"$f":"OFFSET('Language-Sprachen'!$A$464,,'Language-Sprachen'!$N$1)","v":"Review and approval, last status"}]
[]
["6.10",null,{"$f":"OFFSET('Language-Sprachen'!$A$465,,'Language-Sprachen'!$N$1)","v":"Documentation of version management"}]
[{"$f":"OFFSET('Language-Sprachen'!$A$461,,'Language-Sprachen'!$N$1)","v":"Reference to documentation"},null,null,null,null,null,{"$f":"OFFSET('Language-Sprachen'!$A$462,,'Language-Sprachen'!$N$1)","v":"Aligned configuration / baseline"},null,null,null,null,null,null,null,null,null,null,null,{"$f":"OFFSET('Language-Sprachen'!$A$463,,'Language-Sprachen'!$N$1)","v":"Status of documentation"},null,null,null,null,null,{"$f":"OFFSET('Language-Sprachen'!$A$464,,'Language-Sprachen'!$N$1)","v":"Review and approval, last status"}]
[]
[]
[]
[]
[]
[]
[]
[]
[]
[{"$f":"OFFSET('Language-Sprachen'!$A$400,,'Language-Sprachen'!$N$1)","v":"6.1 Cover sheet for PPA software"},null,null,null,null,null,null,null,null,null,null,null,{"$f":"OFFSET('Language-Sprachen'!$A$345,,'Language-Sprachen'!$N$1)","v":"Report"},null,null,null,null,null,{"$f":"IF(OR('Attachment 4 Cover-PPA'!$S$1=\"\"),\"-\",'Attachment 4 Cover-PPA'!$S$1)","v":"Modine Europe GmbH"}]
[null,null,null,null,null,null,null,null,null,null,null,null,{"$f":"OFFSET('Language-Sprachen'!$A$5,,'Language-Sprachen'!$N$1)","v":"Organization"}]
[{"$f":"OFFSET('Language-Sprachen'!$A$8,,'Language-Sprachen'!$N$1)","v":"Information about the organization"},null,null,null,null,null,null,null,null,null,null,null,{"$f":"OFFSET('Language-Sprachen'!$A$497,,'Language-Sprachen'!$N$1)","v":"Description about Software"},null,null,null,null,null,null,null,null,null,null,null,{"$f":"OFFSET('Language-Sprachen'!$A$9,,'Language-Sprachen'!$N$1)","v":"Information about the customer"}]
[{"$f":"OFFSET('Language-Sprachen'!$A$16,,'Language-Sprachen'!$N$1)","v":"Report number"},null,null,null,null,null,{"$f":"IF(OR('Attachment 4 Cover-PPA'!$G$16=\"\"),\"-\",'Attachment 4 Cover-PPA'!$G$16)","v":"-"},null,null,null,null,null,{"$f":"OFFSET('Language-Sprachen'!$A$498,,'Language-Sprachen'!$N$1)","v":"Parts list reference\n(Customer) (optional)"},null,null,null,null,null,null,null,null,null,null,null,{"$f":"OFFSET('Language-Sprachen'!$A$23,,'Language-Sprachen'!$N$1)","v":"Customer"},null,null,null,null,null,{"$f":"IF(OR('Attachment 4 Cover-PPA'!$AE$16=\"\"),\"-\",'Attachment 4 Cover-PPA'!$AE$16)","v":"-"}]
[{"$f":"OFFSET('Language-Sprachen'!$A$17,,'Language-Sprachen'!$N$1)","v":"Report version"},null,null,null,null,null,{"$f":"IF(OR('Attachment 4 Cover-PPA'!$G$17=\"\"),\"-\",'Attachment 4 Cover-PPA'!$G$17)","v":"-"}]
[{"$f":"OFFSET('Language-Sprachen'!$A$13,,'Language-Sprachen'!$N$1)","v":"Delivery location"},null,null,null,null,null,{"$f":"IF(OR('Attachment 4 Cover-PPA'!$G$18=\"\"),\"-\",'Attachment 4 Cover-PPA'!$G$18)","v":"-"},null,null,null,null,null,null,null,null,null,null,null,null,null,null,null,null,null,{"$f":"OFFSET('Language-Sprachen'!$A$21,,'Language-Sprachen'!$N$1)","v":"Order Number PPA sample"},null,null,null,null,null,{"$f":"IF(OR('Attachment 4 Cover-PPA'!$AE$18=\"\"),\"-\",'Attachment 4 Cover-PPA'!$AE$18)","v":"-"}]
[{"$f":"OFFSET('Language-Sprachen'!$A$11,,'Language-Sprachen'!$N$1)","v":"Production location"},null,null,null,null,null,{"$f":"IF(OR('Attachment 4 Cover-PPA'!$G$19=\"\"),\"-\",'Attachment 4 Cover-PPA'!$G$19)","v":"-"},null,null,null,null,null,null,null,null,null,null,null,null,null,null,null,null,null,{"$f":"OFFSET('Language-Sprachen'!$A$20,,'Language-Sprachen'!$N$1)","v":"Unloading point"},null,null,null,null,null,{"$f":"IF(OR('Attachment 4 Cover-PPA'!$AE$19=\"\"),\"-\",'Attachment 4 Cover-PPA'!$AE$19)","v":"-"}]
[{"$f":"OFFSET('Language-Sprachen'!$A$38,,'Language-Sprachen'!$N$1)","v":"Part Number"},null,null,null,null,null,{"$f":"IF(OR('Attachment 4 Cover-PPA'!$G$20=\"\"),\"-\",'Attachment 4 Cover-PPA'!$G$20)","v":"-"},null,null,null,null,null,null,null,null,null,null,null,null,null,null,null,null,null,{"$f":"OFFSET('Language-Sprachen'!$A$38,,'Language-Sprachen'!$N$1)","v":"Part Number"},null,null,null,null,null,{"$f":"IF(OR('Attachment 4 Cover-PPA'!$AE$20=\"\"),\"-\",'Attachment 4 Cover-PPA'!$AE$20)","v":"-"}]
[{"$f":"OFFSET('Language-Sprachen'!$A$37,,'Language-Sprachen'!$N$1)","v":"Name"},null,null,null,null,null,{"$f":"IF(OR('Attachment 4 Cover-PPA'!$G$21=\"\"),\"-\",'Attachment 4 Cover-PPA'!$G$21)","v":"-"},null,null,null,null,null,null,null,null,null,null,null,null,null,null,null,null,null,{"$f":"OFFSET('Language-Sprachen'!$A$37,,'Language-Sprachen'!$N$1)","v":"Name"},null,null,null,null,null,{"$f":"IF(OR('Attachment 4 Cover-PPA'!$AE$21=\"\"),\"-\",'Attachment 4 Cover-PPA'!$AE$21)","v":"-"}]
[{"$f":"OFFSET('Language-Sprachen'!$A$39,,'Language-Sprachen'!$N$1)","v":"Drawing number"},null,null,null,null,null,{"$f":"IF(OR('Attachment 4 Cover-PPA'!$G$22=\"\"),\"-\",'Attachment 4 Cover-PPA'!$G$22)","v":"-"},null,null,null,null,null,null,null,null,null,null,null,null,null,null,null,null,null,{"$f":"OFFSET('Language-Sprachen'!$A$39,,'Language-Sprachen'!$N$1)","v":"Drawing number"},null,null,null,null,null,{"$f":"IF(OR('Attachment 4 Cover-PPA'!$AE$22=\"\"),\"-\",'Attachment 4 Cover-PPA'!$AE$22)","v":"-"}]
[{"$f":"OFFSET('Language-Sprachen'!$A$350,,'Language-Sprachen'!$N$1)","v":"Version/ Date"},null,null,null,null,null,{"$f":"IF(OR('Attachment 4 Cover-PPA'!$G$23=\"\"),\"-\",'Attachment 4 Cover-PPA'!$G$23)","v":"-"},null,null,null,null,null,{"$f":"OFFSET('Language-Sprachen'!$A$242,,'Language-Sprachen'!$N$1)","v":"Identification/ DUNS"},null,null,null,null,null,{"$f":"IF(OR('Attachment 4 Cover-PPA'!$S$23=\"\"),\"-\",'Attachment 4 Cover-PPA'!$S$23)","v":"-"},null,null,null,null,null,{"$f":"OFFSET('Language-Sprachen'!$A$350,,'Language-Sprachen'!$N$1)","v":"Version/ Date"},null,null,null,null,null,{"$f":"IF(OR('Attachment 4 Cover-PPA'!$AE$23=\"\"),\"-\",'Attachment 4 Cover-PPA'!$AE$23)","v":"-"}]
[{"$f":"OFFSET('Language-Sprachen'!$A$466,,'Language-Sprachen'!$N$1)","v":"Function tests"}]
[{"$f":"OFFSET('Language-Sprachen'!$A$467,,'Language-Sprachen'!$N$1)","v":"Tested according to test specification"},null,null,null,null,null,{"$f":"OFFSET('Language-Sprachen'!$A$468,,'Language-Sprachen'!$N$1)","v":"Deliverable"},null,null,null,null,null,null,null,null,null,null,null,null,null,null,null,{"$f":"OFFSET('Language-Sprachen'!$A$350,,'Language-Sprachen'!$N$1)","v":"Version/ Date"}]
[]
[{"$f":"OFFSET('Language-Sprachen'!$A$469,,'Language-Sprachen'!$N$1)","v":"All test sequences passed successfully?"},null,null,null,null,null,null,null,null,null,null,null,null,null,null,null,null,{"$f":"OFFSET('Language-Sprachen'!$A$470,,'Language-Sprachen'!$N$1)","v":"All regression tests passed successfully?"}]
[{"$f":"OFFSET('Language-Sprachen'!$A$471,,'Language-Sprachen'!$N$1)","v":"List of tests not passed and risk assessment"},null,null,null,null,null,{"$f":"OFFSET('Language-Sprachen'!$A$468,,'Language-Sprachen'!$N$1)","v":"Deliverable"},null,null,null,null,null,null,null,null,null,null,null,null,null,null,null,{"$f":"OFFSET('Language-Sprachen'!$A$350,,'Language-Sprachen'!$N$1)","v":"Version/ Date"}]
[]
[]
[{"$f":"OFFSET('Language-Sprachen'!$A$472,,'Language-Sprachen'!$N$1)","v":"Verification of effectiveness of implemented measures"},null,null,null,null,null,{"$f":"OFFSET('Language-Sprachen'!$A$468,,'Language-Sprachen'!$N$1)","v":"Deliverable"},null,null,null,null,null,null,null,null,null,null,null,null,null,null,null,{"$f":"OFFSET('Language-Sprachen'!$A$350,,'Language-Sprachen'!$N$1)","v":"Version/ Date"}]
[]
[]
[{"$f":"OFFSET('Language-Sprachen'!$A$473,,'Language-Sprachen'!$N$1)","v":"Which special approvals have been granted?"},null,null,null,null,null,{"$f":"OFFSET('Language-Sprachen'!$A$468,,'Language-Sprachen'!$N$1)","v":"Deliverable"},null,null,null,null,null,null,null,null,null,null,null,null,null,null,null,{"$f":"OFFSET('Language-Sprachen'!$A$350,,'Language-Sprachen'!$N$1)","v":"Version/ Date"}]
[]
[]
[{"$f":"OFFSET('Language-Sprachen'!$A$334,,'Language-Sprachen'!$N$1)","v":"Confirmation of organization:"}]
[{"$f":"OFFSET('Language-Sprachen'!$A$474,,'Language-Sprachen'!$N$1)","v":"Deliverables can be inspected by the customer at any time."}]
[{"$f":"OFFSET('Language-Sprachen'!$A$25,,'Language-Sprachen'!$N$1)","v":"Name"},null,null,null,null,{"$f":"IF(OR('Attachment 4 Cover-PPA'!$F$29=\"\"),\"\",'Attachment 4 Cover-PPA'!$F$29)","v":""},null,null,null,null,null,null,null,null,null,null,null,{"$f":"OFFSET('Language-Sprachen'!$A$122,,'Language-Sprachen'!$N$1)","v":"Remark"},null,null,null,null,{"$f":"IF(OR('Attachment 4 Cover-PPA'!$W$29=\"\"),\"\",'Attachment 4 Cover-PPA'!$W$29)","v":""}]
[{"$f":"OFFSET('Language-Sprachen'!$A$228,,'Language-Sprachen'!$N$1)","v":"Department"},null,null,null,null,{"$f":"IF(OR('Attachment 4 Cover-PPA'!$F$30=\"\"),\"\",'Attachment 4 Cover-PPA'!$F$30)","v":""}]
[{"$f":"OFFSET('Language-Sprachen'!$A$26,,'Language-Sprachen'!$N$1)","v":"Telephone"},null,null,null,null,{"$f":"IF(OR('Attachment 4 Cover-PPA'!$F$31=\"\"),\"\",'Attachment 4 Cover-PPA'!$F$31)","v":""}]
[{"$f":"OFFSET('Language-Sprachen'!$A$27,,'Language-Sprachen'!$N$1)","v":"E-mail"},null,null,null,null,{"$f":"IF(OR('Attachment 4 Cover-PPA'!$F$32=\"\"),\"\",'Attachment 4 Cover-PPA'!$F$32)","v":""}]
[{"$f":"OFFSET('Language-Sprachen'!$A$49,,'Language-Sprachen'!$N$1)","v":"Date"},null,null,null,null,{"$f":"IF(OR('Attachment 4 Cover-PPA'!$F$33=\"\"),\"\",'Attachment 4 Cover-PPA'!$F$33)","v":""},null,null,null,null,null,null,null,null,null,null,null,{"$f":"OFFSET('Language-Sprachen'!$A$92,,'Language-Sprachen'!$N$1)","v":"Signature"},null,null,null,null,{"$f":"IF(OR('Attachment 4 Cover-PPA'!$W$33=\"\"),\"\",'Attachment 4 Cover-PPA'!$W$33)","v":""}]

{"sheet":"Attachment 6 Part history","index":9,"n_rows":31,"n_cols":50,"rows_kept":31,"cut":false,"hidden":false,"merged":[[6,42,12,45],[6,46,12,50],[13,42,13,45],[13,46,13,50],[14,42,14,45],[14,46,14,50],[15,42,15,45],[15,46,15,50],[16,42,16,45],[16,46,16,50],[2,0,2,23],[2,24,2,50],[0,42,0,44],[0,45,0,46],[0,47,0,48],[0,49,0,50],[0,0,1,41],[5,42,5,50],[3,0,3,5],[3,6,3,11],[3,12,3,17],[3,18,3,23],[3,36,3,41],[3,42,3,50],[3,24,5,29],[4,36,4,41],[4,42,4,50],[5,0,5,5],[5,6,5,11],[5,12,5,17],[5,18,5,23],[5,36,5,41],[4,0,4,5],[4,6,4,11],[4,12,4,17],[4,18,4,23],[6,38,12,41],[6,26,12,29],[6,19,12,25],[6,30,12,33],[6,34,12,37],[6,0,12,1],[6,2,12,3],[6,4,12,8],[6,9,12,10],[6,11,12,15],[6,16,7,18],[8,16,12,16],[8,17,12,17],[8,18,12,18],[29,5,29,33],[30,5,30,33],[25,0,25,50],[13,0,13,1],[13,2,13,3],[13,4,13,8],[13,9,13,10],[13,11,13,15],[13,19,13,25],[13,26,13,29],[29,0,29,4],[30,0,30,4],[26,34,29,38],[26,39,29,50],[30,34,30,38],[30,39,30,50],[26,5,26,33],[27,5,27,33],[26,0,26,4],[27,0,27,4],[28,0,28,4],[28,5,28,33],[15,0,15,1],[15,2,15,3],[15,4,15,8],[15,9,15,10],[15,11,15,15],[13,30,13,33],[13,34,13,37],[13,38,13,41],[14,0,14,1],[14,2,14,3],[14,4,14,8],[14,9,14,10],[14,11,14,15],[14,19,14,25],[15,19,15,25],[15,26,15,29],[15,30,15,33],[15,34,15,37],[15,38,15,41],[14,26,14,29],[14,30,14,33],[14,34,14,37],[14,38,14,41],[17,0,17,1],[17,2,17,3],[17,4,17,8],[17,9,17,10],[17,11,17,15],[16,0,16,1],[16,2,16,3],[16,4,16,8],[16,9,16,10],[16,11,16,15],[17,19,17,25],[17,26,17,29],[17,30,17,33],[17,34,17,37],[17,38,17,41],[16,26,16,29],[16,30,16,33],[16,34,16,37],[16,38,16,41],[16,19,16,25],[17,42,17,45],[17,46,17,50],[19,0,19,1],[19,2,19,3],[19,4,19,8],[19,9,19,10],[19,11,19,15],[18,0,18,1],[18,2,18,3],[18,4,18,8],[18,9,18,10],[18,11,18,15],[19,19,19,25],[19,26,19,29],[19,30,19,33],[19,34,19,37],[19,38,19,41],[18,26,18,29],[18,30,18,33],[18,34,18,37],[18,38,18,41],[18,19,18,25],[18,42,18,45],[18,46,18,50],[19,42,19,45],[19,46,19,50],[21,0,21,1],[21,2,21,3],[21,4,21,8],[21,9,21,10],[21,11,21,15],[20,0,20,1],[20,2,20,3],[20,4,20,8],[20,9,20,10],[20,11,20,15],[21,19,21,25],[21,26,21,29],[21,30,21,33],[21,34,21,37],[21,38,21,41],[20,26,20,29],[20,30,20,33],[20,34,20,37],[20,38,20,41],[20,19,20,25],[20,42,20,45],[20,46,20,50],[21,42,21,45],[21,46,21,50],[23,38,23,41],[22,26,22,29],[22,30,22,33],[22,34,22,37],[22,38,22,41],[22,19,22,25],[24,38,24,41],[22,42,22,45],[22,46,22,50],[23,42,23,45],[23,46,23,50],[24,42,24,45],[24,46,24,50],[24,0,24,1],[24,2,24,3],[24,4,24,8],[24,9,24,10],[24,11,24,15],[3,30,5,35],[24,26,24,29],[24,30,24,33],[24,34,24,37],[24,19,24,25],[23,19,23,25],[23,26,23,29],[23,30,23,33],[23,34,23,37],[23,0,23,1],[23,2,23,3],[23,4,23,8],[23,9,23,10],[23,11,23,15],[22,0,22,1],[22,2,22,3],[22,4,22,8],[22,9,22,10],[22,11,22,15]]}
[{"$f":"OFFSET('Language-Sprachen'!$A$475,,'Language-Sprachen'!$N$1)","v":"Part history"},null,null,null,null,null,null,null,null,null,null,null,null,null,null,null,null,null,null,null,null,null,null,null,null,null,null,null,null,null,null,null,null,null,null,null,null,null,null,null,null,null,{"$f":"OFFSET('Language-Sprachen'!$A$381,,'Language-Sprachen'!$N$1)","v":"Sheet "},null,null,{"$f":"Seitenzahl","v":1},null,{"$f":"OFFSET('Language-Sprachen'!$A$382,,'Language-Sprachen'!$N$1)","v":"of"},null,{"$f":"Seitenzahl","v":1}]
[]
[{"$f":"OFFSET('Language-Sprachen'!$A$8,,'Language-Sprachen'!$N$1)","v":"Information about the organization"},null,null,null,null,null,null,null,null,null,null,null,null,null,null,null,null,null,null,null,null,null,null,null,{"$f":"OFFSET('Language-Sprachen'!$A$9,,'Language-Sprachen'!$N$1)","v":"Information about the customer"}]
[{"$f":"OFFSET('Language-Sprachen'!$A$13,,'Language-Sprachen'!$N$1)","v":"Delivery location"},null,null,null,null,null,{"$f":"IF(OR('Attachment 4 Cover-PPA'!$G$18=\"\"),\"-\",'Attachment 4 Cover-PPA'!$G$18)","v":"-"},null,null,null,null,null,{"$f":"OFFSET('Language-Sprachen'!$A$38,,'Language-Sprachen'!$N$1)","v":"Part Number"},null,null,null,null,null,{"$f":"IF(OR('Attachment 4 Cover-PPA'!$G$20=\"\"),\"-\",'Attachment 4 Cover-PPA'!$G$20)","v":"-"},null,null,null,null,null,{"$f":"OFFSET('Language-Sprachen'!$A$23,,'Language-Sprachen'!$N$1)","v":"Customer"},null,null,null,null,null,{"$f":"IF(OR('Attachment 4 Cover-PPA'!$AE$16=\"\"),\"-\",'Attachment 4 Cover-PPA'!$AE$16)","v":"-"},null,null,null,null,null,{"$f":"OFFSET('Language-Sprachen'!$A$38,,'Language-Sprachen'!$N$1)","v":"Part Number"},null,null,null,null,null,{"$f":"IF(OR('Attachment 4 Cover-PPA'!$AE$20=\"\"),\"-\",'Attachment 4 Cover-PPA'!$AE$20)","v":"-"}]
[{"$f":"OFFSET('Language-Sprachen'!$A$11,,'Language-Sprachen'!$N$1)","v":"Production location"},null,null,null,null,null,{"$f":"IF(OR('Attachment 4 Cover-PPA'!$G$19=\"\"),\"-\",'Attachment 4 Cover-PPA'!$G$19)","v":"-"},null,null,null,null,null,{"$f":"OFFSET('Language-Sprachen'!$A$37,,'Language-Sprachen'!$N$1)","v":"Name"},null,null,null,null,null,{"$f":"IF(OR('Attachment 4 Cover-PPA'!$G$21=\"\"),\"-\",'Attachment 4 Cover-PPA'!$G$21)","v":"-"},null,null,null,null,null,null,null,null,null,null,null,null,null,null,null,null,null,{"$f":"OFFSET('Language-Sprachen'!$A$37,,'Language-Sprachen'!$N$1)","v":"Name"},null,null,null,null,null,{"$f":"IF(OR('Attachment 4 Cover-PPA'!$AE$21=\"\"),\"-\",'Attachment 4 Cover-PPA'!$AE$21)","v":"-"}]
[{"$f":"OFFSET('Language-Sprachen'!$A$242,,'Language-Sprachen'!$N$1)","v":"Identification/ DUNS"},null,null,null,null,null,{"$f":"IF(OR('Attachment 4 Cover-PPA'!$S$23=\"\"),\"-\",'Attachment 4 Cover-PPA'!$S$23)","v":"-"},null,null,null,null,null,{"$f":"OFFSET('Language-Sprachen'!$A$39,,'Language-Sprachen'!$N$1)","v":"Drawing number"},null,null,null,null,null,{"$f":"IF(OR('Attachment 4 Cover-PPA'!$G$22=\"\"),\"-\",'Attachment 4 Cover-PPA'!$G$22)","v":"-"},null,null,null,null,null,null,null,null,null,null,null,null,null,null,null,null,null,{"$f":"OFFSET('Language-Sprachen'!$A$39,,'Language-Sprachen'!$N$1)","v":"Drawing number"},null,null,null,null,null,{"$f":"IF(OR('Attachment 4 Cover-PPA'!$AE$23=\"\"),\"-\",'Attachment 4 Cover-PPA'!$AE$23)","v":"-"}]
[{"$f":"OFFSET('Language-Sprachen'!$A384,,'Language-Sprachen'!$N$1)","v":"No."},null,{"$f":"OFFSET('Language-Sprachen'!$A$476,,'Language-Sprachen'!$N$1)","v":"Version, organization"},null,{"$f":"OFFSET('Language-Sprachen'!$A$477,,'Language-Sprachen'!$N$1)","v":"Change number organization"},null,null,null,null,{"$f":"OFFSET('Language-Sprachen'!$A$478,,'Language-Sprachen'!$N$1)","v":"Version, customer"},null,{"$f":"OFFSET('Language-Sprachen'!$A$479,,'Language-Sprachen'!$N$1)","v":"Change number customer"},null,null,null,null,{"$f":"OFFSET('Language-Sprachen'!$A$480,,'Language-Sprachen'!$N$1)","v":"Appli-cation"},null,null,{"$f":"OFFSET('Language-Sprachen'!$A$484,,'Language-Sprachen'!$N$1)","v":"Discription of change"},null,null,null,null,null,null,{"$f":"OFFSET('Language-Sprachen'!$A$485,,'Language-Sprachen'!$N$1)","v":"Production date"},null,null,null,{"$f":"OFFSET('Language-Sprachen'!$A$486,,'Language-Sprachen'!$N$1)","v":"Date of first delivery"},null,null,null,{"$f":"OFFSET('Language-Sprachen'!$A$487,,'Language-Sprachen'!$N$1)","v":"Delivery identification"},null,null,null,{"$f":"OFFSET('Language-Sprachen'!$A$488,,'Language-Sprachen'!$N$1)","v":"Responsible person"},null,null,null,{"$f":"OFFSET('Language-Sprachen'!$A$499,,'Language-Sprachen'!$N$1)","v":"PPA-No.:"},null,null,null,{"$f":"OFFSET('Language-Sprachen'!$A$122,,'Language-Sprachen'!$N$1)","v":"Remark"}]
[]
[null,null,null,null,null,null,null,null,null,null,null,null,null,null,null,null,{"$f":"OFFSET('Language-Sprachen'!$A$481,,'Language-Sprachen'!$N$1)","v":"First use"},{"$f":"OFFSET('Language-Sprachen'!$A$482,,'Language-Sprachen'!$N$1)","v":"Product change"},{"$f":"OFFSET('Language-Sprachen'!$A$483,,'Language-Sprachen'!$N$1)","v":"Production process change"}]
[]
[]
[]
[]
[1]
[2]
[3]
[4]
[5]
[6]
[7]
[8]
[9]
[10]
[11]
[12]
[{"$f":"OFFSET('Language-Sprachen'!$A$334,,'Language-Sprachen'!$N$1)","v":"Confirmation of organization:"}]
[{"$f":"OFFSET('Language-Sprachen'!$A$25,,'Language-Sprachen'!$N$1)","v":"Name"},null,null,null,null,{"$f":"IF(OR('Attachment 4 Cover-PPA'!$F$29=\"\"),\"\",'Attachment 4 Cover-PPA'!$F$29)","v":""},null,null,null,null,null,null,null,null,null,null,null,null,null,null,null,null,null,null,null,null,null,null,null,null,null,null,null,null,{"$f":"OFFSET('Language-Sprachen'!$A$122,,'Language-Sprachen'!$N$1)","v":"Remark"},null,null,null,null,{"$f":"IF(OR('Attachment 4 Cover-PPA'!$W$29=\"\"),\"\",'Attachment 4 Cover-PPA'!$W$29)","v":""}]
[{"$f":"OFFSET('Language-Sprachen'!$A$228,,'Language-Sprachen'!$N$1)","v":"Department"},null,null,null,null,{"$f":"IF(OR('Attachment 4 Cover-PPA'!$F$30=\"\"),\"\",'Attachment 4 Cover-PPA'!$F$30)","v":""}]
[{"$f":"OFFSET('Language-Sprachen'!$A$26,,'Language-Sprachen'!$N$1)","v":"Telephone"},null,null,null,null,{"$f":"IF(OR('Attachment 4 Cover-PPA'!$F$31=\"\"),\"\",'Attachment 4 Cover-PPA'!$F$31)","v":""}]
[{"$f":"OFFSET('Language-Sprachen'!$A$27,,'Language-Sprachen'!$N$1)","v":"E-mail"},null,null,null,null,{"$f":"IF(OR('Attachment 4 Cover-PPA'!$F$32=\"\"),\"\",'Attachment 4 Cover-PPA'!$F$32)","v":""}]
[{"$f":"OFFSET('Language-Sprachen'!$A$49,,'Language-Sprachen'!$N$1)","v":"Date"},null,null,null,null,{"$f":"IF(OR('Attachment 4 Cover-PPA'!$F$33=\"\"),\"\",'Attachment 4 Cover-PPA'!$F$33)","v":""},null,null,null,null,null,null,null,null,null,null,null,null,null,null,null,null,null,null,null,null,null,null,null,null,null,null,null,null,{"$f":"OFFSET('Language-Sprachen'!$A$92,,'Language-Sprachen'!$N$1)","v":"Signature"},null,null,null,null,{"$f":"IF(OR('Attachment 4 Cover-PPA'!$W$33=\"\"),\"\",'Attachment 4 Cover-PPA'!$W$33)","v":""}]